Workbook

Sheet Data
A1: X1 | B1: X1.2 | C1: Operator
A2: -1.449950448 | B2: 0.9794073628 | C2: 1
A3: -0.02151247692 | B3: -0.1343848604 | C3: 1
A4: 0.76094232 | B4: 2.038111268 | C4: 1
A5: 0.02543861485 | B5: -0.4927391314 | C5: 1
A6: 1.811595838 | B6: -1.32033159 | C6: 0
A7: 1.488526522 | B7: 0.7514931781 | C7: 0
A8: -0.2622229408 | B8: -0.07103115006 | C8: 1
A9: -0.7124245462 | B9: 1.052738447 | C9: 1
A10: 1.130694271 | B10: 0.5630036992 | C10: 0
A11: -1.927886802 | B11: 0.8443635461 | C11: 1
A12: 0.6632828292 | B12: -0.1584630265 | C12: 1
A13: 0.2346721498 | B13: 0.8611275563 | C13: 0
A14: -0.5317802899 | B14: 0.01001579039 | C14: 1
A15: -1.263071196 | B15: 0.1770784507 | C15: 0
A16: 0.5530806584 | B16: -0.8293652212 | C16: 1
A17: -0.3204896911 | B17: -0.1549679553 | C17: 1
A18: 0.2014823765 | B18: 2.08679064 | C18: 0
A19: 1.705133969 | B19: 0.1500606385 | C19: 1
A20: -2.075168453 | B20: -1.340534953 | C20: 0
A21: 1.280285849 | B21: -0.5230094329 | C21: 0
A22: 0.04403698186 | B22: -0.4531423816 | C22: 1
A23: 0.3802980232 | B23: 1.278877177 | C23: 0
A24: 2.077256374 | B24: 0.1178843561 | C24: 0
A25: -2.011695367 | B25: 1.071715593 | C25: 1
A26: 0.7862737009 | B26: 0.1470693698 | C26: 0
A27: 0.2442534889 | B27: -0.07506769976 | C27: 1
A28: 1.019495164 | B28: 1.962014626 | C28: 0
A29: 0.1639728122 | B29: 2.003159096 | C29: 0
A30: 0.8876905537 | B30: -1.300057399 | C30: 0
A31: 1.478877134 | B31: 2.232771395 | C31: 1
A32: 0.4481268895 | B32: -0.6936900195 | C32: 0
A33: -0.8588922881 | B33: -1.086726933 | C33: 1
A34: 1.09737937 | B34: 1.527133145 | C34: 0
A35: 0.9031136198 | B35: -0.09744910238 | C35: 1
A36: 0.4084641018 | B36: 0.1203585067 | C36: 0
A37: 0.1075952231 | B37: -0.7592338112 | C37: 1
A38: -2.22537483 | B38: 1.244855523 | C38: 1
A39: 0.2181956451 | B39: -0.9861150185 | C39: 1
A40: -0.4365660043 | B40: -0.9602137794 | C40: 1
A41: -0.6912545581 | B41: 0.8962634965 | C41: 0
A42: -1.231038165 | B42: -1.011059137 | C42: 0
A43: 1.281473614 | B43: 0.9292757918 | C43: 0
A44: -0.8356509551 | B44: -0.690453906 | C44: 0
A45: -0.7325663065 | B45: 0.07309001381 | C45: 1
A46: -0.5887828071 | B46: 0.8439970845 | C46: 0
A47: -0.841288486 | B47: 0.4457578988 | C47: 1
A48: 0.6003125798 | B48: -1.51651301 | C48: 1
A49: 0.4918765751 | B49: -0.05727400407 | C49: 0
A50: -0.5982941493 | B50: -0.6908009168 | C50: 0
A51: -0.3827046832 | B51: 0.5571940017 | C51: 0

Sheet Histogram1
B1: XLSTAT 2023.1.2.1407 - Histograms - Start time: 12/04/2023 at 12:01:59 / End time: 12/04/2023 at 12:02:00 / Microsoft Excel 16.016227
B2: Data: Workbook = Classeur1 / Sheet = Data / Range = Data!$A:$A / 50 rows and 1 column
B3: Subsamples: Workbook = Classeur1 / Sheet = Data / Range = 'Data'!$C:$C / 50 rows and 1 column
B4: Intervals: Number = 5
B5: Compare the subsamples
B10: Summary statistics:
B12: Variable | C12: Observations | D12: Obs. with missing data | E12: Obs. without missing data | F12: Minimum | G12: Maximum | H12: Mean | I12: Std. deviation
B13: X1 | C13: 50 | D13: 0 | E13: 50 | F13: -2.22537483 | G13: 2.077256374 | H13: 0.0499042361 | I13: 1.048701488
B16: Summary statistics (Operator):
B18: Variable | C18: Categories | D18: Counts | E18: Frequencies | F18: %
B19: Operator | C19: 0 | D19: 25 | E19: 25 | F19: 50
C20: 1 | D20: 25 | E20: 25 | F20: 50
B23: Summary statistics (Data / Operator):
B25: Variable | C25: Observations | D25: Obs. with missing data | E25: Obs. without missing data | F25: Minimum | G25: Maximum | H25: Mean | I25: Std. deviation
B26: X1 | Operator-0 | C26: 25 | D26: 0 | E26: 25 | F26: -2.075168453 | G26: 2.077256374 | H26: 0.3009439687 | I26: 1.042416103
B27: X1 | Operator-1 | C27: 25 | D27: 0 | E27: 25 | F27: -2.22537483 | G27: 1.705133969 | H27: -0.2011354965 | I27: 1.013631394
B70: Descriptive statistics for the intervals (X1 | Operator-0):
B72: Lower bound | C72: Upper bound | D72: Frequency | E72: Relative frequency | F72: Density (Data) | G72: Density (Distribution)
B73: -3 | C73: -1.964548725 | D73: 1 | E73: 0.04 | F73: 0.03863049955 | G73: 0.01410743257
B74: -1.964548725 | C74: -0.9290974505 | D74: 2 | E74: 0.08 | F74: 0.07726099909 | G74: 0.1041234154
B75: -0.9290974505 | C75: 0.1063538242 | D75: 5 | E75: 0.2 | F75: 0.1931524977 | G75: 0.3069568776
B76: 0.1063538242 | C76: 1.141805099 | D76: 12 | E76: 0.48 | F76: 0.4635659946 | G76: 0.3641060521
B77: 1.141805099 | C77: 2.177256374 | D77: 5 | E77: 0.2 | F77: 0.1931524977 | G77: 0.1740020452
B80: Descriptive statistics for the intervals (X1 | Operator-1):
B82: Lower bound | C82: Upper bound | D82: Frequency | E82: Relative frequency | F82: Density (Data) | G82: Density (Distribution)
B83: -3 | C83: -1.964548725 | D83: 2 | E83: 0.08 | F83: 0.07726099909 | G83: 0.03807671985
B84: -1.964548725 | C84: -0.9290974505 | D84: 2 | E84: 0.08 | F84: 0.07726099909 | G84: 0.1953695704
B85: -0.9290974505 | C85: 0.1063538242 | D85: 11 | E85: 0.44 | F85: 0.424935495 | G85: 0.3828644816
B86: 0.1063538242 | C86: 1.141805099 | D86: 8 | E86: 0.32 | F86: 0.3090439964 | G86: 0.2882046062
B87: 1.141805099 | C87: 2.177256374 | D87: 2 | E87: 0.08 | F87: 0.07726099909 | G87: 0.08312767764

Sheet XLSTAT_20230412_120157_1_HID1 (hidden)
A1: 1 | C1: =-3+(A1-1)*0.006006006 -> -3 | D1: =[1]!XLSTAT_PDFNormal(C1,0.300943968727696,1.04241610265003) -> 0.002543419046 | E1: 1 | G1: =-3+(E1-1)*0.006006006 -> -3 | H1: =[1]!XLSTAT_PDFNormal(G1,0.300943968727696,1.04241610265003) -> 0.002543419046 | I1: 1 | K1: =-3+(I1-1)*0.006006006 -> -3 | L1: =[1]!XLSTAT_PDFNormal(K1,-0.201135496518942,1.01363139377986) -> 0.008698018512 | M1: 1 | O1: =-3+(M1-1)*0.006006006 -> -3 | P1: =[1]!XLSTAT_PDFNormal(O1,-0.201135496518942,1.01363139377986) -> 0.008698018512
A2: 2 | C2: -2.993993994 | D2: =[1]!XLSTAT_PDFNormal(C2,0.300943968727696,1.04241610265003) -> 0.002590206409 | E2: 2 | G2: -2.993993994 | H2: =[1]!XLSTAT_PDFNormal(G2,0.300943968727696,1.04241610265003) -> 0.002590206409 | I2: 2 | K2: -2.993993994 | L2: =[1]!XLSTAT_PDFNormal(K2,-0.201135496518942,1.01363139377986) -> 0.008841341345 | M2: 2 | O2: -2.993993994 | P2: =[1]!XLSTAT_PDFNormal(O2,-0.201135496518942,1.01363139377986) -> 0.008841341345
A3: 3 | C3: -2.987987988 | D3: =[1]!XLSTAT_PDFNormal(C3,0.300943968727696,1.04241610265003) -> 0.002637766883 | E3: 3 | G3: -2.987987988 | H3: =[1]!XLSTAT_PDFNormal(G3,0.300943968727696,1.04241610265003) -> 0.002637766883 | I3: 3 | K3: -2.987987988 | L3: =[1]!XLSTAT_PDFNormal(K3,-0.201135496518942,1.01363139377986) -> 0.008986710286 | M3: 3 | O3: -2.987987988 | P3: =[1]!XLSTAT_PDFNormal(O3,-0.201135496518942,1.01363139377986) -> 0.008986710286
A4: 4 | C4: -2.981981982 | D4: =[1]!XLSTAT_PDFNormal(C4,0.300943968727696,1.04241610265003) -> 0.002686111475 | E4: 4 | G4: -2.981981982 | H4: =[1]!XLSTAT_PDFNormal(G4,0.300943968727696,1.04241610265003) -> 0.002686111475 | I4: 4 | K4: -2.981981982 | L4: =[1]!XLSTAT_PDFNormal(K4,-0.201135496518942,1.01363139377986) -> 0.009134148686 | M4: 4 | O4: -2.981981982 | P4: =[1]!XLSTAT_PDFNormal(O4,-0.201135496518942,1.01363139377986) -> 0.009134148686
A5: 5 | C5: -2.975975976 | D5: =[1]!XLSTAT_PDFNormal(C5,0.300943968727696,1.04241610265003) -> 0.002735251317 | E5: 5 | G5: -2.975975976 | H5: =[1]!XLSTAT_PDFNormal(G5,0.300943968727696,1.04241610265003) -> 0.002735251317 | I5: 5 | K5: -2.975975976 | L5: =[1]!XLSTAT_PDFNormal(K5,-0.201135496518942,1.01363139377986) -> 0.009283680059 | M5: 5 | O5: -2.975975976 | P5: =[1]!XLSTAT_PDFNormal(O5,-0.201135496518942,1.01363139377986) -> 0.009283680059
A6: 6 | C6: -2.96996997 | D6: =[1]!XLSTAT_PDFNormal(C6,0.300943968727696,1.04241610265003) -> 0.002785197666 | E6: 6 | G6: -2.96996997 | H6: =[1]!XLSTAT_PDFNormal(G6,0.300943968727696,1.04241610265003) -> 0.002785197666 | I6: 6 | K6: -2.96996997 | L6: =[1]!XLSTAT_PDFNormal(K6,-0.201135496518942,1.01363139377986) -> 0.009435328082 | M6: 6 | O6: -2.96996997 | P6: =[1]!XLSTAT_PDFNormal(O6,-0.201135496518942,1.01363139377986) -> 0.009435328082
A7: 7 | C7: -2.963963964 | D7: =[1]!XLSTAT_PDFNormal(C7,0.300943968727696,1.04241610265003) -> 0.002835961903 | E7: 7 | G7: -2.963963964 | H7: =[1]!XLSTAT_PDFNormal(G7,0.300943968727696,1.04241610265003) -> 0.002835961903 | I7: 7 | K7: -2.963963964 | L7: =[1]!XLSTAT_PDFNormal(K7,-0.201135496518942,1.01363139377986) -> 0.009589116597 | M7: 7 | O7: -2.963963964 | P7: =[1]!XLSTAT_PDFNormal(O7,-0.201135496518942,1.01363139377986) -> 0.009589116597
A8: 8 | C8: -2.957957958 | D8: =[1]!XLSTAT_PDFNormal(C8,0.300943968727696,1.04241610265003) -> 0.002887555534 | E8: 8 | G8: -2.957957958 | H8: =[1]!XLSTAT_PDFNormal(G8,0.300943968727696,1.04241610265003) -> 0.002887555534 | I8: 8 | K8: -2.957957958 | L8: =[1]!XLSTAT_PDFNormal(K8,-0.201135496518942,1.01363139377986) -> 0.009745069605 | M8: 8 | O8: -2.957957958 | P8: =[1]!XLSTAT_PDFNormal(O8,-0.201135496518942,1.01363139377986) -> 0.009745069605
A9: 9 | C9: -2.951951952 | D9: =[1]!XLSTAT_PDFNormal(C9,0.300943968727696,1.04241610265003) -> 0.00293999019 | E9: 9 | G9: -2.951951952 | H9: =[1]!XLSTAT_PDFNormal(G9,0.300943968727696,1.04241610265003) -> 0.00293999019 | I9: 9 | K9: -2.951951952 | L9: =[1]!XLSTAT_PDFNormal(K9,-0.201135496518942,1.01363139377986) -> 0.009903211269 | M9: 9 | O9: -2.951951952 | P9: =[1]!XLSTAT_PDFNormal(O9,-0.201135496518942,1.01363139377986) -> 0.009903211269
A10: 10 | C10: -2.945945946 | D10: =[1]!XLSTAT_PDFNormal(C10,0.300943968727696,1.04241610265003) -> 0.002993277632 | E10: 10 | G10: -2.945945946 | H10: =[1]!XLSTAT_PDFNormal(G10,0.300943968727696,1.04241610265003) -> 0.002993277632 | I10: 10 | K10: -2.945945946 | L10: =[1]!XLSTAT_PDFNormal(K10,-0.201135496518942,1.01363139377986) -> 0.01006356591 | M10: 10 | O10: -2.945945946 | P10: =[1]!XLSTAT_PDFNormal(O10,-0.201135496518942,1.01363139377986) -> 0.01006356591
A11: 11 | C11: -2.93993994 | D11: =[1]!XLSTAT_PDFNormal(C11,0.300943968727696,1.04241610265003) -> 0.003047429745 | E11: 11 | G11: -2.93993994 | H11: =[1]!XLSTAT_PDFNormal(G11,0.300943968727696,1.04241610265003) -> 0.003047429745 | I11: 11 | K11: -2.93993994 | L11: =[1]!XLSTAT_PDFNormal(K11,-0.201135496518942,1.01363139377986) -> 0.01022615802 | M11: 11 | O11: -2.93993994 | P11: =[1]!XLSTAT_PDFNormal(O11,-0.201135496518942,1.01363139377986) -> 0.01022615802
A12: 12 | C12: -2.933933934 | D12: =[1]!XLSTAT_PDFNormal(C12,0.300943968727696,1.04241610265003) -> 0.003102458546 | E12: 12 | G12: -2.933933934 | H12: =[1]!XLSTAT_PDFNormal(G12,0.300943968727696,1.04241610265003) -> 0.003102458546 | I12: 12 | K12: -2.933933934 | L12: =[1]!XLSTAT_PDFNormal(K12,-0.201135496518942,1.01363139377986) -> 0.01039101222 | M12: 12 | O12: -2.933933934 | P12: =[1]!XLSTAT_PDFNormal(O12,-0.201135496518942,1.01363139377986) -> 0.01039101222
A13: 13 | C13: -2.927927928 | D13: =[1]!XLSTAT_PDFNormal(C13,0.300943968727696,1.04241610265003) -> 0.003158376179 | E13: 13 | G13: -2.927927928 | H13: =[1]!XLSTAT_PDFNormal(G13,0.300943968727696,1.04241610265003) -> 0.003158376179 | I13: 13 | K13: -2.927927928 | L13: =[1]!XLSTAT_PDFNormal(K13,-0.201135496518942,1.01363139377986) -> 0.01055815333 | M13: 13 | O13: -2.927927928 | P13: =[1]!XLSTAT_PDFNormal(O13,-0.201135496518942,1.01363139377986) -> 0.01055815333
A14: 14 | C14: -2.921921922 | D14: =[1]!XLSTAT_PDFNormal(C14,0.300943968727696,1.04241610265003) -> 0.003215194917 | E14: 14 | G14: -2.921921922 | H14: =[1]!XLSTAT_PDFNormal(G14,0.300943968727696,1.04241610265003) -> 0.003215194917 | I14: 14 | K14: -2.921921922 | L14: =[1]!XLSTAT_PDFNormal(K14,-0.201135496518942,1.01363139377986) -> 0.0107276063 | M14: 14 | O14: -2.921921922 | P14: =[1]!XLSTAT_PDFNormal(O14,-0.201135496518942,1.01363139377986) -> 0.0107276063
A15: 15 | C15: -2.915915916 | D15: =[1]!XLSTAT_PDFNormal(C15,0.300943968727696,1.04241610265003) -> 0.003272927166 | E15: 15 | G15: -2.915915916 | H15: =[1]!XLSTAT_PDFNormal(G15,0.300943968727696,1.04241610265003) -> 0.003272927166 | I15: 15 | K15: -2.915915916 | L15: =[1]!XLSTAT_PDFNormal(K15,-0.201135496518942,1.01363139377986) -> 0.01089939623 | M15: 15 | O15: -2.915915916 | P15: =[1]!XLSTAT_PDFNormal(O15,-0.201135496518942,1.01363139377986) -> 0.01089939623
A16: 16 | C16: -2.90990991 | D16: =[1]!XLSTAT_PDFNormal(C16,0.300943968727696,1.04241610265003) -> 0.00333158546 | E16: 16 | G16: -2.90990991 | H16: =[1]!XLSTAT_PDFNormal(G16,0.300943968727696,1.04241610265003) -> 0.00333158546 | I16: 16 | K16: -2.90990991 | L16: =[1]!XLSTAT_PDFNormal(K16,-0.201135496518942,1.01363139377986) -> 0.01107354839 | M16: 16 | O16: -2.90990991 | P16: =[1]!XLSTAT_PDFNormal(O16,-0.201135496518942,1.01363139377986) -> 0.01107354839
A17: 17 | C17: -2.903903904 | D17: =[1]!XLSTAT_PDFNormal(C17,0.300943968727696,1.04241610265003) -> 0.003391182468 | E17: 17 | G17: -2.903903904 | H17: =[1]!XLSTAT_PDFNormal(G17,0.300943968727696,1.04241610265003) -> 0.003391182468 | I17: 17 | K17: -2.903903904 | L17: =[1]!XLSTAT_PDFNormal(K17,-0.201135496518942,1.01363139377986) -> 0.0112500882 | M17: 17 | O17: -2.903903904 | P17: =[1]!XLSTAT_PDFNormal(O17,-0.201135496518942,1.01363139377986) -> 0.0112500882
A18: 18 | C18: -2.897897898 | D18: =[1]!XLSTAT_PDFNormal(C18,0.300943968727696,1.04241610265003) -> 0.003451730989 | E18: 18 | G18: -2.897897898 | H18: =[1]!XLSTAT_PDFNormal(G18,0.300943968727696,1.04241610265003) -> 0.003451730989 | I18: 18 | K18: -2.897897898 | L18: =[1]!XLSTAT_PDFNormal(K18,-0.201135496518942,1.01363139377986) -> 0.01142904123 | M18: 18 | O18: -2.897897898 | P18: =[1]!XLSTAT_PDFNormal(O18,-0.201135496518942,1.01363139377986) -> 0.01142904123
A19: 19 | C19: -2.891891892 | D19: =[1]!XLSTAT_PDFNormal(C19,0.300943968727696,1.04241610265003) -> 0.003513243958 | E19: 19 | G19: -2.891891892 | H19: =[1]!XLSTAT_PDFNormal(G19,0.300943968727696,1.04241610265003) -> 0.003513243958 | I19: 19 | K19: -2.891891892 | L19: =[1]!XLSTAT_PDFNormal(K19,-0.201135496518942,1.01363139377986) -> 0.01161043319 | M19: 19 | O19: -2.891891892 | P19: =[1]!XLSTAT_PDFNormal(O19,-0.201135496518942,1.01363139377986) -> 0.01161043319
A20: 20 | C20: -2.885885886 | D20: =[1]!XLSTAT_PDFNormal(C20,0.300943968727696,1.04241610265003) -> 0.00357573444 | E20: 20 | G20: -2.885885886 | H20: =[1]!XLSTAT_PDFNormal(G20,0.300943968727696,1.04241610265003) -> 0.00357573444 | I20: 20 | K20: -2.885885886 | L20: =[1]!XLSTAT_PDFNormal(K20,-0.201135496518942,1.01363139377986) -> 0.01179428998 | M20: 20 | O20: -2.885885886 | P20: =[1]!XLSTAT_PDFNormal(O20,-0.201135496518942,1.01363139377986) -> 0.01179428998
A21: 21 | C21: -2.87987988 | D21: =[1]!XLSTAT_PDFNormal(C21,0.300943968727696,1.04241610265003) -> 0.003639215637 | E21: 21 | G21: -2.87987988 | H21: =[1]!XLSTAT_PDFNormal(G21,0.300943968727696,1.04241610265003) -> 0.003639215637 | I21: 21 | K21: -2.87987988 | L21: =[1]!XLSTAT_PDFNormal(K21,-0.201135496518942,1.01363139377986) -> 0.01198063759 | M21: 21 | O21: -2.87987988 | P21: =[1]!XLSTAT_PDFNormal(O21,-0.201135496518942,1.01363139377986) -> 0.01198063759
A22: 22 | C22: -2.873873874 | D22: =[1]!XLSTAT_PDFNormal(C22,0.300943968727696,1.04241610265003) -> 0.003703700885 | E22: 22 | G22: -2.873873874 | H22: =[1]!XLSTAT_PDFNormal(G22,0.300943968727696,1.04241610265003) -> 0.003703700885 | I22: 22 | K22: -2.873873874 | L22: =[1]!XLSTAT_PDFNormal(K22,-0.201135496518942,1.01363139377986) -> 0.0121695022 | M22: 22 | O22: -2.873873874 | P22: =[1]!XLSTAT_PDFNormal(O22,-0.201135496518942,1.01363139377986) -> 0.0121695022
A23: 23 | C23: -2.867867868 | D23: =[1]!XLSTAT_PDFNormal(C23,0.300943968727696,1.04241610265003) -> 0.003769203658 | E23: 23 | G23: -2.867867868 | H23: =[1]!XLSTAT_PDFNormal(G23,0.300943968727696,1.04241610265003) -> 0.003769203658 | I23: 23 | K23: -2.867867868 | L23: =[1]!XLSTAT_PDFNormal(K23,-0.201135496518942,1.01363139377986) -> 0.01236091012 | M23: 23 | O23: -2.867867868 | P23: =[1]!XLSTAT_PDFNormal(O23,-0.201135496518942,1.01363139377986) -> 0.01236091012
A24: 24 | C24: -2.861861862 | D24: =[1]!XLSTAT_PDFNormal(C24,0.300943968727696,1.04241610265003) -> 0.003835737562 | E24: 24 | G24: -2.861861862 | H24: =[1]!XLSTAT_PDFNormal(G24,0.300943968727696,1.04241610265003) -> 0.003835737562 | I24: 24 | K24: -2.861861862 | L24: =[1]!XLSTAT_PDFNormal(K24,-0.201135496518942,1.01363139377986) -> 0.01255488782 | M24: 24 | O24: -2.861861862 | P24: =[1]!XLSTAT_PDFNormal(O24,-0.201135496518942,1.01363139377986) -> 0.01255488782
A25: 25 | C25: -2.855855856 | D25: =[1]!XLSTAT_PDFNormal(C25,0.300943968727696,1.04241610265003) -> 0.003903316344 | E25: 25 | G25: -2.855855856 | H25: =[1]!XLSTAT_PDFNormal(G25,0.300943968727696,1.04241610265003) -> 0.003903316344 | I25: 25 | K25: -2.855855856 | L25: =[1]!XLSTAT_PDFNormal(K25,-0.201135496518942,1.01363139377986) -> 0.01275146187 | M25: 25 | O25: -2.855855856 | P25: =[1]!XLSTAT_PDFNormal(O25,-0.201135496518942,1.01363139377986) -> 0.01275146187
A26: 26 | C26: -2.84984985 | D26: =[1]!XLSTAT_PDFNormal(C26,0.300943968727696,1.04241610265003) -> 0.003971953886 | E26: 26 | G26: -2.84984985 | H26: =[1]!XLSTAT_PDFNormal(G26,0.300943968727696,1.04241610265003) -> 0.003971953886 | I26: 26 | K26: -2.84984985 | L26: =[1]!XLSTAT_PDFNormal(K26,-0.201135496518942,1.01363139377986) -> 0.01295065904 | M26: 26 | O26: -2.84984985 | P26: =[1]!XLSTAT_PDFNormal(O26,-0.201135496518942,1.01363139377986) -> 0.01295065904
A27: 27 | C27: -2.843843844 | D27: =[1]!XLSTAT_PDFNormal(C27,0.300943968727696,1.04241610265003) -> 0.004041664209 | E27: 27 | G27: -2.843843844 | H27: =[1]!XLSTAT_PDFNormal(G27,0.300943968727696,1.04241610265003) -> 0.004041664209 | I27: 27 | K27: -2.843843844 | L27: =[1]!XLSTAT_PDFNormal(K27,-0.201135496518942,1.01363139377986) -> 0.0131525062 | M27: 27 | O27: -2.843843844 | P27: =[1]!XLSTAT_PDFNormal(O27,-0.201135496518942,1.01363139377986) -> 0.0131525062
A28: 28 | C28: -2.837837838 | D28: =[1]!XLSTAT_PDFNormal(C28,0.300943968727696,1.04241610265003) -> 0.004112461471 | E28: 28 | G28: -2.837837838 | H28: =[1]!XLSTAT_PDFNormal(G28,0.300943968727696,1.04241610265003) -> 0.004112461471 | I28: 28 | K28: -2.837837838 | L28: =[1]!XLSTAT_PDFNormal(K28,-0.201135496518942,1.01363139377986) -> 0.01335703036 | M28: 28 | O28: -2.837837838 | P28: =[1]!XLSTAT_PDFNormal(O28,-0.201135496518942,1.01363139377986) -> 0.01335703036
A29: 29 | C29: -2.831831832 | D29: =[1]!XLSTAT_PDFNormal(C29,0.300943968727696,1.04241610265003) -> 0.004184359972 | E29: 29 | G29: -2.831831832 | H29: =[1]!XLSTAT_PDFNormal(G29,0.300943968727696,1.04241610265003) -> 0.004184359972 | I29: 29 | K29: -2.831831832 | L29: =[1]!XLSTAT_PDFNormal(K29,-0.201135496518942,1.01363139377986) -> 0.0135642587 | M29: 29 | O29: -2.831831832 | P29: =[1]!XLSTAT_PDFNormal(O29,-0.201135496518942,1.01363139377986) -> 0.0135642587
A30: 30 | C30: -2.825825826 | D30: =[1]!XLSTAT_PDFNormal(C30,0.300943968727696,1.04241610265003) -> 0.004257374149 | E30: 30 | G30: -2.825825826 | H30: =[1]!XLSTAT_PDFNormal(G30,0.300943968727696,1.04241610265003) -> 0.004257374149 | I30: 30 | K30: -2.825825826 | L30: =[1]!XLSTAT_PDFNormal(K30,-0.201135496518942,1.01363139377986) -> 0.01377421848 | M30: 30 | O30: -2.825825826 | P30: =[1]!XLSTAT_PDFNormal(O30,-0.201135496518942,1.01363139377986) -> 0.01377421848
A31: 31 | C31: -2.81981982 | D31: =[1]!XLSTAT_PDFNormal(C31,0.300943968727696,1.04241610265003) -> 0.00433151858 | E31: 31 | G31: -2.81981982 | H31: =[1]!XLSTAT_PDFNormal(G31,0.300943968727696,1.04241610265003) -> 0.00433151858 | I31: 31 | K31: -2.81981982 | L31: =[1]!XLSTAT_PDFNormal(K31,-0.201135496518942,1.01363139377986) -> 0.01398693714 | M31: 31 | O31: -2.81981982 | P31: =[1]!XLSTAT_PDFNormal(O31,-0.201135496518942,1.01363139377986) -> 0.01398693714
A32: 32 | C32: -2.813813814 | D32: =[1]!XLSTAT_PDFNormal(C32,0.300943968727696,1.04241610265003) -> 0.004406807984 | E32: 32 | G32: -2.813813814 | H32: =[1]!XLSTAT_PDFNormal(G32,0.300943968727696,1.04241610265003) -> 0.004406807984 | I32: 32 | K32: -2.813813814 | L32: =[1]!XLSTAT_PDFNormal(K32,-0.201135496518942,1.01363139377986) -> 0.01420244224 | M32: 32 | O32: -2.813813814 | P32: =[1]!XLSTAT_PDFNormal(O32,-0.201135496518942,1.01363139377986) -> 0.01420244224
A33: 33 | C33: -2.807807808 | D33: =[1]!XLSTAT_PDFNormal(C33,0.300943968727696,1.04241610265003) -> 0.00448325722 | E33: 33 | G33: -2.807807808 | H33: =[1]!XLSTAT_PDFNormal(G33,0.300943968727696,1.04241610265003) -> 0.00448325722 | I33: 33 | K33: -2.807807808 | L33: =[1]!XLSTAT_PDFNormal(K33,-0.201135496518942,1.01363139377986) -> 0.01442076145 | M33: 33 | O33: -2.807807808 | P33: =[1]!XLSTAT_PDFNormal(O33,-0.201135496518942,1.01363139377986) -> 0.01442076145
A34: 34 | C34: -2.801801802 | D34: =[1]!XLSTAT_PDFNormal(C34,0.300943968727696,1.04241610265003) -> 0.004560881289 | E34: 34 | G34: -2.801801802 | H34: =[1]!XLSTAT_PDFNormal(G34,0.300943968727696,1.04241610265003) -> 0.004560881289 | I34: 34 | K34: -2.801801802 | L34: =[1]!XLSTAT_PDFNormal(K34,-0.201135496518942,1.01363139377986) -> 0.01464192259 | M34: 34 | O34: -2.801801802 | P34: =[1]!XLSTAT_PDFNormal(O34,-0.201135496518942,1.01363139377986) -> 0.01464192259
A35: 35 | C35: -2.795795796 | D35: =[1]!XLSTAT_PDFNormal(C35,0.300943968727696,1.04241610265003) -> 0.004639695335 | E35: 35 | G35: -2.795795796 | H35: =[1]!XLSTAT_PDFNormal(G35,0.300943968727696,1.04241610265003) -> 0.004639695335 | I35: 35 | K35: -2.795795796 | L35: =[1]!XLSTAT_PDFNormal(K35,-0.201135496518942,1.01363139377986) -> 0.0148659536 | M35: 35 | O35: -2.795795796 | P35: =[1]!XLSTAT_PDFNormal(O35,-0.201135496518942,1.01363139377986) -> 0.0148659536
A36: 36 | C36: -2.78978979 | D36: =[1]!XLSTAT_PDFNormal(C36,0.300943968727696,1.04241610265003) -> 0.004719714643 | E36: 36 | G36: -2.78978979 | H36: =[1]!XLSTAT_PDFNormal(G36,0.300943968727696,1.04241610265003) -> 0.004719714643 | I36: 36 | K36: -2.78978979 | L36: =[1]!XLSTAT_PDFNormal(K36,-0.201135496518942,1.01363139377986) -> 0.01509288253 | M36: 36 | O36: -2.78978979 | P36: =[1]!XLSTAT_PDFNormal(O36,-0.201135496518942,1.01363139377986) -> 0.01509288253
A37: 37 | C37: -2.783783784 | D37: =[1]!XLSTAT_PDFNormal(C37,0.300943968727696,1.04241610265003) -> 0.004800954641 | E37: 37 | G37: -2.783783784 | H37: =[1]!XLSTAT_PDFNormal(G37,0.300943968727696,1.04241610265003) -> 0.004800954641 | I37: 37 | K37: -2.783783784 | L37: =[1]!XLSTAT_PDFNormal(K37,-0.201135496518942,1.01363139377986) -> 0.01532273756 | M37: 37 | O37: -2.783783784 | P37: =[1]!XLSTAT_PDFNormal(O37,-0.201135496518942,1.01363139377986) -> 0.01532273756
A38: 38 | C38: -2.777777778 | D38: =[1]!XLSTAT_PDFNormal(C38,0.300943968727696,1.04241610265003) -> 0.004883430901 | E38: 38 | G38: -2.777777778 | H38: =[1]!XLSTAT_PDFNormal(G38,0.300943968727696,1.04241610265003) -> 0.004883430901 | I38: 38 | K38: -2.777777778 | L38: =[1]!XLSTAT_PDFNormal(K38,-0.201135496518942,1.01363139377986) -> 0.015555547 | M38: 38 | O38: -2.777777778 | P38: =[1]!XLSTAT_PDFNormal(O38,-0.201135496518942,1.01363139377986) -> 0.015555547
A39: 39 | C39: -2.771771772 | D39: =[1]!XLSTAT_PDFNormal(C39,0.300943968727696,1.04241610265003) -> 0.004967159138 | E39: 39 | G39: -2.771771772 | H39: =[1]!XLSTAT_PDFNormal(G39,0.300943968727696,1.04241610265003) -> 0.004967159138 | I39: 39 | K39: -2.771771772 | L39: =[1]!XLSTAT_PDFNormal(K39,-0.201135496518942,1.01363139377986) -> 0.01579133927 | M39: 39 | O39: -2.771771772 | P39: =[1]!XLSTAT_PDFNormal(O39,-0.201135496518942,1.01363139377986) -> 0.01579133927
A40: 40 | C40: -2.765765766 | D40: =[1]!XLSTAT_PDFNormal(C40,0.300943968727696,1.04241610265003) -> 0.005052155212 | E40: 40 | G40: -2.765765766 | H40: =[1]!XLSTAT_PDFNormal(G40,0.300943968727696,1.04241610265003) -> 0.005052155212 | I40: 40 | K40: -2.765765766 | L40: =[1]!XLSTAT_PDFNormal(K40,-0.201135496518942,1.01363139377986) -> 0.01603014289 | M40: 40 | O40: -2.765765766 | P40: =[1]!XLSTAT_PDFNormal(O40,-0.201135496518942,1.01363139377986) -> 0.01603014289
A41: 41 | C41: -2.75975976 | D41: =[1]!XLSTAT_PDFNormal(C41,0.300943968727696,1.04241610265003) -> 0.005138435125 | E41: 41 | G41: -2.75975976 | H41: =[1]!XLSTAT_PDFNormal(G41,0.300943968727696,1.04241610265003) -> 0.005138435125 | I41: 41 | K41: -2.75975976 | L41: =[1]!XLSTAT_PDFNormal(K41,-0.201135496518942,1.01363139377986) -> 0.01627198651 | M41: 41 | O41: -2.75975976 | P41: =[1]!XLSTAT_PDFNormal(O41,-0.201135496518942,1.01363139377986) -> 0.01627198651
A42: 42 | C42: -2.753753754 | D42: =[1]!XLSTAT_PDFNormal(C42,0.300943968727696,1.04241610265003) -> 0.005226015026 | E42: 42 | G42: -2.753753754 | H42: =[1]!XLSTAT_PDFNormal(G42,0.300943968727696,1.04241610265003) -> 0.005226015026 | I42: 42 | K42: -2.753753754 | L42: =[1]!XLSTAT_PDFNormal(K42,-0.201135496518942,1.01363139377986) -> 0.01651689888 | M42: 42 | O42: -2.753753754 | P42: =[1]!XLSTAT_PDFNormal(O42,-0.201135496518942,1.01363139377986) -> 0.01651689888
A43: 43 | C43: -2.747747748 | D43: =[1]!XLSTAT_PDFNormal(C43,0.300943968727696,1.04241610265003) -> 0.005314911208 | E43: 43 | G43: -2.747747748 | H43: =[1]!XLSTAT_PDFNormal(G43,0.300943968727696,1.04241610265003) -> 0.005314911208 | I43: 43 | K43: -2.747747748 | L43: =[1]!XLSTAT_PDFNormal(K43,-0.201135496518942,1.01363139377986) -> 0.01676490888 | M43: 43 | O43: -2.747747748 | P43: =[1]!XLSTAT_PDFNormal(O43,-0.201135496518942,1.01363139377986) -> 0.01676490888
A44: 44 | C44: -2.741741742 | D44: =[1]!XLSTAT_PDFNormal(C44,0.300943968727696,1.04241610265003) -> 0.005405140108 | E44: 44 | G44: -2.741741742 | H44: =[1]!XLSTAT_PDFNormal(G44,0.300943968727696,1.04241610265003) -> 0.005405140108 | I44: 44 | K44: -2.741741742 | L44: =[1]!XLSTAT_PDFNormal(K44,-0.201135496518942,1.01363139377986) -> 0.01701604545 | M44: 44 | O44: -2.741741742 | P44: =[1]!XLSTAT_PDFNormal(O44,-0.201135496518942,1.01363139377986) -> 0.01701604545
A45: 45 | C45: -2.735735736 | D45: =[1]!XLSTAT_PDFNormal(C45,0.300943968727696,1.04241610265003) -> 0.005496718311 | E45: 45 | G45: -2.735735736 | H45: =[1]!XLSTAT_PDFNormal(G45,0.300943968727696,1.04241610265003) -> 0.005496718311 | I45: 45 | K45: -2.735735736 | L45: =[1]!XLSTAT_PDFNormal(K45,-0.201135496518942,1.01363139377986) -> 0.01727033768 | M45: 45 | O45: -2.735735736 | P45: =[1]!XLSTAT_PDFNormal(O45,-0.201135496518942,1.01363139377986) -> 0.01727033768
A46: 46 | C46: -2.72972973 | D46: =[1]!XLSTAT_PDFNormal(C46,0.300943968727696,1.04241610265003) -> 0.005589662547 | E46: 46 | G46: -2.72972973 | H46: =[1]!XLSTAT_PDFNormal(G46,0.300943968727696,1.04241610265003) -> 0.005589662547 | I46: 46 | K46: -2.72972973 | L46: =[1]!XLSTAT_PDFNormal(K46,-0.201135496518942,1.01363139377986) -> 0.01752781474 | M46: 46 | O46: -2.72972973 | P46: =[1]!XLSTAT_PDFNormal(O46,-0.201135496518942,1.01363139377986) -> 0.01752781474
A47: 47 | C47: -2.723723724 | D47: =[1]!XLSTAT_PDFNormal(C47,0.300943968727696,1.04241610265003) -> 0.005683989689 | E47: 47 | G47: -2.723723724 | H47: =[1]!XLSTAT_PDFNormal(G47,0.300943968727696,1.04241610265003) -> 0.005683989689 | I47: 47 | K47: -2.723723724 | L47: =[1]!XLSTAT_PDFNormal(K47,-0.201135496518942,1.01363139377986) -> 0.01778850589 | M47: 47 | O47: -2.723723724 | P47: =[1]!XLSTAT_PDFNormal(O47,-0.201135496518942,1.01363139377986) -> 0.01778850589
A48: 48 | C48: -2.717717718 | D48: =[1]!XLSTAT_PDFNormal(C48,0.300943968727696,1.04241610265003) -> 0.005779716761 | E48: 48 | G48: -2.717717718 | H48: =[1]!XLSTAT_PDFNormal(G48,0.300943968727696,1.04241610265003) -> 0.005779716761 | I48: 48 | K48: -2.717717718 | L48: =[1]!XLSTAT_PDFNormal(K48,-0.201135496518942,1.01363139377986) -> 0.01805244049 | M48: 48 | O48: -2.717717718 | P48: =[1]!XLSTAT_PDFNormal(O48,-0.201135496518942,1.01363139377986) -> 0.01805244049
A49: 49 | C49: -2.711711712 | D49: =[1]!XLSTAT_PDFNormal(C49,0.300943968727696,1.04241610265003) -> 0.00587686093 | E49: 49 | G49: -2.711711712 | H49: =[1]!XLSTAT_PDFNormal(G49,0.300943968727696,1.04241610265003) -> 0.00587686093 | I49: 49 | K49: -2.711711712 | L49: =[1]!XLSTAT_PDFNormal(K49,-0.201135496518942,1.01363139377986) -> 0.018319648 | M49: 49 | O49: -2.711711712 | P49: =[1]!XLSTAT_PDFNormal(O49,-0.201135496518942,1.01363139377986) -> 0.018319648
A50: 50 | C50: -2.705705706 | D50: =[1]!XLSTAT_PDFNormal(C50,0.300943968727696,1.04241610265003) -> 0.00597543951 | E50: 50 | G50: -2.705705706 | H50: =[1]!XLSTAT_PDFNormal(G50,0.300943968727696,1.04241610265003) -> 0.00597543951 | I50: 50 | K50: -2.705705706 | L50: =[1]!XLSTAT_PDFNormal(K50,-0.201135496518942,1.01363139377986) -> 0.01859015797 | M50: 50 | O50: -2.705705706 | P50: =[1]!XLSTAT_PDFNormal(O50,-0.201135496518942,1.01363139377986) -> 0.01859015797
A51: 51 | C51: -2.6996997 | D51: =[1]!XLSTAT_PDFNormal(C51,0.300943968727696,1.04241610265003) -> 0.006075469964 | E51: 51 | G51: -2.6996997 | H51: =[1]!XLSTAT_PDFNormal(G51,0.300943968727696,1.04241610265003) -> 0.006075469964 | I51: 51 | K51: -2.6996997 | L51: =[1]!XLSTAT_PDFNormal(K51,-0.201135496518942,1.01363139377986) -> 0.01886400001 | M51: 51 | O51: -2.6996997 | P51: =[1]!XLSTAT_PDFNormal(O51,-0.201135496518942,1.01363139377986) -> 0.01886400001
A52: 52 | C52: -2.693693694 | D52: =[1]!XLSTAT_PDFNormal(C52,0.300943968727696,1.04241610265003) -> 0.006176969898 | E52: 52 | G52: -2.693693694 | H52: =[1]!XLSTAT_PDFNormal(G52,0.300943968727696,1.04241610265003) -> 0.006176969898 | I52: 52 | K52: -2.693693694 | L52: =[1]!XLSTAT_PDFNormal(K52,-0.201135496518942,1.01363139377986) -> 0.01914120386 | M52: 52 | O52: -2.693693694 | P52: =[1]!XLSTAT_PDFNormal(O52,-0.201135496518942,1.01363139377986) -> 0.01914120386
A53: 53 | C53: -2.687687688 | D53: =[1]!XLSTAT_PDFNormal(C53,0.300943968727696,1.04241610265003) -> 0.006279957067 | E53: 53 | G53: -2.687687688 | H53: =[1]!XLSTAT_PDFNormal(G53,0.300943968727696,1.04241610265003) -> 0.006279957067 | I53: 53 | K53: -2.687687688 | L53: =[1]!XLSTAT_PDFNormal(K53,-0.201135496518942,1.01363139377986) -> 0.01942179929 | M53: 53 | O53: -2.687687688 | P53: =[1]!XLSTAT_PDFNormal(O53,-0.201135496518942,1.01363139377986) -> 0.01942179929
A54: 54 | C54: -2.681681682 | D54: =[1]!XLSTAT_PDFNormal(C54,0.300943968727696,1.04241610265003) -> 0.006384449374 | E54: 54 | G54: -2.681681682 | H54: =[1]!XLSTAT_PDFNormal(G54,0.300943968727696,1.04241610265003) -> 0.006384449374 | I54: 54 | K54: -2.681681682 | L54: =[1]!XLSTAT_PDFNormal(K54,-0.201135496518942,1.01363139377986) -> 0.01970581619 | M54: 54 | O54: -2.681681682 | P54: =[1]!XLSTAT_PDFNormal(O54,-0.201135496518942,1.01363139377986) -> 0.01970581619
A55: 55 | C55: -2.675675676 | D55: =[1]!XLSTAT_PDFNormal(C55,0.300943968727696,1.04241610265003) -> 0.006490464868 | E55: 55 | G55: -2.675675676 | H55: =[1]!XLSTAT_PDFNormal(G55,0.300943968727696,1.04241610265003) -> 0.006490464868 | I55: 55 | K55: -2.675675676 | L55: =[1]!XLSTAT_PDFNormal(K55,-0.201135496518942,1.01363139377986) -> 0.0199932845 | M55: 55 | O55: -2.675675676 | P55: =[1]!XLSTAT_PDFNormal(O55,-0.201135496518942,1.01363139377986) -> 0.0199932845
A56: 56 | C56: -2.66966967 | D56: =[1]!XLSTAT_PDFNormal(C56,0.300943968727696,1.04241610265003) -> 0.006598021743 | E56: 56 | G56: -2.66966967 | H56: =[1]!XLSTAT_PDFNormal(G56,0.300943968727696,1.04241610265003) -> 0.006598021743 | I56: 56 | K56: -2.66966967 | L56: =[1]!XLSTAT_PDFNormal(K56,-0.201135496518942,1.01363139377986) -> 0.02028423423 | M56: 56 | O56: -2.66966967 | P56: =[1]!XLSTAT_PDFNormal(O56,-0.201135496518942,1.01363139377986) -> 0.02028423423
A57: 57 | C57: -2.663663664 | D57: =[1]!XLSTAT_PDFNormal(C57,0.300943968727696,1.04241610265003) -> 0.006707138344 | E57: 57 | G57: -2.663663664 | H57: =[1]!XLSTAT_PDFNormal(G57,0.300943968727696,1.04241610265003) -> 0.006707138344 | I57: 57 | K57: -2.663663664 | L57: =[1]!XLSTAT_PDFNormal(K57,-0.201135496518942,1.01363139377986) -> 0.02057869548 | M57: 57 | O57: -2.663663664 | P57: =[1]!XLSTAT_PDFNormal(O57,-0.201135496518942,1.01363139377986) -> 0.02057869548
A58: 58 | C58: -2.657657658 | D58: =[1]!XLSTAT_PDFNormal(C58,0.300943968727696,1.04241610265003) -> 0.006817833161 | E58: 58 | G58: -2.657657658 | H58: =[1]!XLSTAT_PDFNormal(G58,0.300943968727696,1.04241610265003) -> 0.006817833161 | I58: 58 | K58: -2.657657658 | L58: =[1]!XLSTAT_PDFNormal(K58,-0.201135496518942,1.01363139377986) -> 0.02087669838 | M58: 58 | O58: -2.657657658 | P58: =[1]!XLSTAT_PDFNormal(O58,-0.201135496518942,1.01363139377986) -> 0.02087669838
A59: 59 | C59: -2.651651652 | D59: =[1]!XLSTAT_PDFNormal(C59,0.300943968727696,1.04241610265003) -> 0.00693012483 | E59: 59 | G59: -2.651651652 | H59: =[1]!XLSTAT_PDFNormal(G59,0.300943968727696,1.04241610265003) -> 0.00693012483 | I59: 59 | K59: -2.651651652 | L59: =[1]!XLSTAT_PDFNormal(K59,-0.201135496518942,1.01363139377986) -> 0.02117827315 | M59: 59 | O59: -2.651651652 | P59: =[1]!XLSTAT_PDFNormal(O59,-0.201135496518942,1.01363139377986) -> 0.02117827315
A60: 60 | C60: -2.645645646 | D60: =[1]!XLSTAT_PDFNormal(C60,0.300943968727696,1.04241610265003) -> 0.007044032135 | E60: 60 | G60: -2.645645646 | H60: =[1]!XLSTAT_PDFNormal(G60,0.300943968727696,1.04241610265003) -> 0.007044032135 | I60: 60 | K60: -2.645645646 | L60: =[1]!XLSTAT_PDFNormal(K60,-0.201135496518942,1.01363139377986) -> 0.02148345007 | M60: 60 | O60: -2.645645646 | P60: =[1]!XLSTAT_PDFNormal(O60,-0.201135496518942,1.01363139377986) -> 0.02148345007
A61: 61 | C61: -2.63963964 | D61: =[1]!XLSTAT_PDFNormal(C61,0.300943968727696,1.04241610265003) -> 0.007159574008 | E61: 61 | G61: -2.63963964 | H61: =[1]!XLSTAT_PDFNormal(G61,0.300943968727696,1.04241610265003) -> 0.007159574008 | I61: 61 | K61: -2.63963964 | L61: =[1]!XLSTAT_PDFNormal(K61,-0.201135496518942,1.01363139377986) -> 0.02179225945 | M61: 61 | O61: -2.63963964 | P61: =[1]!XLSTAT_PDFNormal(O61,-0.201135496518942,1.01363139377986) -> 0.02179225945
A62: 62 | C62: -2.633633634 | D62: =[1]!XLSTAT_PDFNormal(C62,0.300943968727696,1.04241610265003) -> 0.007276769526 | E62: 62 | G62: -2.633633634 | H62: =[1]!XLSTAT_PDFNormal(G62,0.300943968727696,1.04241610265003) -> 0.007276769526 | I62: 62 | K62: -2.633633634 | L62: =[1]!XLSTAT_PDFNormal(K62,-0.201135496518942,1.01363139377986) -> 0.02210473167 | M62: 62 | O62: -2.633633634 | P62: =[1]!XLSTAT_PDFNormal(O62,-0.201135496518942,1.01363139377986) -> 0.02210473167
A63: 63 | C63: -2.627627628 | D63: =[1]!XLSTAT_PDFNormal(C63,0.300943968727696,1.04241610265003) -> 0.007395637913 | E63: 63 | G63: -2.627627628 | H63: =[1]!XLSTAT_PDFNormal(G63,0.300943968727696,1.04241610265003) -> 0.007395637913 | I63: 63 | K63: -2.627627628 | L63: =[1]!XLSTAT_PDFNormal(K63,-0.201135496518942,1.01363139377986) -> 0.02242089716 | M63: 63 | O63: -2.627627628 | P63: =[1]!XLSTAT_PDFNormal(O63,-0.201135496518942,1.01363139377986) -> 0.02242089716
A64: 64 | C64: -2.621621622 | D64: =[1]!XLSTAT_PDFNormal(C64,0.300943968727696,1.04241610265003) -> 0.00751619854 | E64: 64 | G64: -2.621621622 | H64: =[1]!XLSTAT_PDFNormal(G64,0.300943968727696,1.04241610265003) -> 0.00751619854 | I64: 64 | K64: -2.621621622 | L64: =[1]!XLSTAT_PDFNormal(K64,-0.201135496518942,1.01363139377986) -> 0.02274078637 | M64: 64 | O64: -2.621621622 | P64: =[1]!XLSTAT_PDFNormal(O64,-0.201135496518942,1.01363139377986) -> 0.02274078637
A65: 65 | C65: =-3+(A65-1)*0.006006006 -> -2.615615616 | D65: =[1]!XLSTAT_PDFNormal(C65,0.300943968727696,1.04241610265003) -> 0.007638470924 | E65: 65 | G65: =-3+(E65-1)*0.006006006 -> -2.615615616 | H65: =[1]!XLSTAT_PDFNormal(G65,0.300943968727696,1.04241610265003) -> 0.007638470924 | I65: 65 | K65: =-3+(I65-1)*0.006006006 -> -2.615615616 | L65: =[1]!XLSTAT_PDFNormal(K65,-0.201135496518942,1.01363139377986) -> 0.02306442982 | M65: 65 | O65: =-3+(M65-1)*0.006006006 -> -2.615615616 | P65: =[1]!XLSTAT_PDFNormal(O65,-0.201135496518942,1.01363139377986) -> 0.02306442982
A66: 66 | C66: -2.60960961 | D66: =[1]!XLSTAT_PDFNormal(C66,0.300943968727696,1.04241610265003) -> 0.007762474726 | E66: 66 | G66: -2.60960961 | H66: =[1]!XLSTAT_PDFNormal(G66,0.300943968727696,1.04241610265003) -> 0.007762474726 | I66: 66 | K66: -2.60960961 | L66: =[1]!XLSTAT_PDFNormal(K66,-0.201135496518942,1.01363139377986) -> 0.02339185805 | M66: 66 | O66: -2.60960961 | P66: =[1]!XLSTAT_PDFNormal(O66,-0.201135496518942,1.01363139377986) -> 0.02339185805
A67: 67 | C67: -2.603603604 | D67: =[1]!XLSTAT_PDFNormal(C67,0.300943968727696,1.04241610265003) -> 0.007888229756 | E67: 67 | G67: -2.603603604 | H67: =[1]!XLSTAT_PDFNormal(G67,0.300943968727696,1.04241610265003) -> 0.007888229756 | I67: 67 | K67: -2.603603604 | L67: =[1]!XLSTAT_PDFNormal(K67,-0.201135496518942,1.01363139377986) -> 0.02372310163 | M67: 67 | O67: -2.603603604 | P67: =[1]!XLSTAT_PDFNormal(O67,-0.201135496518942,1.01363139377986) -> 0.02372310163
A68: 68 | C68: -2.597597598 | D68: =[1]!XLSTAT_PDFNormal(C68,0.300943968727696,1.04241610265003) -> 0.008015755968 | E68: 68 | G68: -2.597597598 | H68: =[1]!XLSTAT_PDFNormal(G68,0.300943968727696,1.04241610265003) -> 0.008015755968 | I68: 68 | K68: -2.597597598 | L68: =[1]!XLSTAT_PDFNormal(K68,-0.201135496518942,1.01363139377986) -> 0.02405819117 | M68: 68 | O68: -2.597597598 | P68: =[1]!XLSTAT_PDFNormal(O68,-0.201135496518942,1.01363139377986) -> 0.02405819117
A69: 69 | C69: -2.591591592 | D69: =[1]!XLSTAT_PDFNormal(C69,0.300943968727696,1.04241610265003) -> 0.00814507346 | E69: 69 | G69: -2.591591592 | H69: =[1]!XLSTAT_PDFNormal(G69,0.300943968727696,1.04241610265003) -> 0.00814507346 | I69: 69 | K69: -2.591591592 | L69: =[1]!XLSTAT_PDFNormal(K69,-0.201135496518942,1.01363139377986) -> 0.02439715731 | M69: 69 | O69: -2.591591592 | P69: =[1]!XLSTAT_PDFNormal(O69,-0.201135496518942,1.01363139377986) -> 0.02439715731
A70: 70 | C70: -2.585585586 | D70: =[1]!XLSTAT_PDFNormal(C70,0.300943968727696,1.04241610265003) -> 0.008276202476 | E70: 70 | G70: -2.585585586 | H70: =[1]!XLSTAT_PDFNormal(G70,0.300943968727696,1.04241610265003) -> 0.008276202476 | I70: 70 | K70: -2.585585586 | L70: =[1]!XLSTAT_PDFNormal(K70,-0.201135496518942,1.01363139377986) -> 0.02474003068 | M70: 70 | O70: -2.585585586 | P70: =[1]!XLSTAT_PDFNormal(O70,-0.201135496518942,1.01363139377986) -> 0.02474003068
A71: 71 | C71: -2.57957958 | D71: =[1]!XLSTAT_PDFNormal(C71,0.300943968727696,1.04241610265003) -> 0.008409163404 | E71: 71 | G71: -2.57957958 | H71: =[1]!XLSTAT_PDFNormal(G71,0.300943968727696,1.04241610265003) -> 0.008409163404 | I71: 71 | K71: -2.57957958 | L71: =[1]!XLSTAT_PDFNormal(K71,-0.201135496518942,1.01363139377986) -> 0.02508684196 | M71: 71 | O71: -2.57957958 | P71: =[1]!XLSTAT_PDFNormal(O71,-0.201135496518942,1.01363139377986) -> 0.02508684196
A72: 72 | C72: -2.573573574 | D72: =[1]!XLSTAT_PDFNormal(C72,0.300943968727696,1.04241610265003) -> 0.008543976777 | E72: 72 | G72: -2.573573574 | H72: =[1]!XLSTAT_PDFNormal(G72,0.300943968727696,1.04241610265003) -> 0.008543976777 | I72: 72 | K72: -2.573573574 | L72: =[1]!XLSTAT_PDFNormal(K72,-0.201135496518942,1.01363139377986) -> 0.02543762182 | M72: 72 | O72: -2.573573574 | P72: =[1]!XLSTAT_PDFNormal(O72,-0.201135496518942,1.01363139377986) -> 0.02543762182
A73: 73 | C73: -2.567567568 | D73: =[1]!XLSTAT_PDFNormal(C73,0.300943968727696,1.04241610265003) -> 0.00868066327 | E73: 73 | G73: -2.567567568 | H73: =[1]!XLSTAT_PDFNormal(G73,0.300943968727696,1.04241610265003) -> 0.00868066327 | I73: 73 | K73: -2.567567568 | L73: =[1]!XLSTAT_PDFNormal(K73,-0.201135496518942,1.01363139377986) -> 0.02579240097 | M73: 73 | O73: -2.567567568 | P73: =[1]!XLSTAT_PDFNormal(O73,-0.201135496518942,1.01363139377986) -> 0.02579240097
A74: 74 | C74: -2.561561562 | D74: =[1]!XLSTAT_PDFNormal(C74,0.300943968727696,1.04241610265003) -> 0.008819243703 | E74: 74 | G74: -2.561561562 | H74: =[1]!XLSTAT_PDFNormal(G74,0.300943968727696,1.04241610265003) -> 0.008819243703 | I74: 74 | K74: -2.561561562 | L74: =[1]!XLSTAT_PDFNormal(K74,-0.201135496518942,1.01363139377986) -> 0.02615121008 | M74: 74 | O74: -2.561561562 | P74: =[1]!XLSTAT_PDFNormal(O74,-0.201135496518942,1.01363139377986) -> 0.02615121008
A75: 75 | C75: -2.555555556 | D75: =[1]!XLSTAT_PDFNormal(C75,0.300943968727696,1.04241610265003) -> 0.008959739035 | E75: 75 | G75: -2.555555556 | H75: =[1]!XLSTAT_PDFNormal(G75,0.300943968727696,1.04241610265003) -> 0.008959739035 | I75: 75 | K75: -2.555555556 | L75: =[1]!XLSTAT_PDFNormal(K75,-0.201135496518942,1.01363139377986) -> 0.02651407985 | M75: 75 | O75: -2.555555556 | P75: =[1]!XLSTAT_PDFNormal(O75,-0.201135496518942,1.01363139377986) -> 0.02651407985
A76: 76 | C76: -2.54954955 | D76: =[1]!XLSTAT_PDFNormal(C76,0.300943968727696,1.04241610265003) -> 0.009102170371 | E76: 76 | G76: -2.54954955 | H76: =[1]!XLSTAT_PDFNormal(G76,0.300943968727696,1.04241610265003) -> 0.009102170371 | I76: 76 | K76: -2.54954955 | L76: =[1]!XLSTAT_PDFNormal(K76,-0.201135496518942,1.01363139377986) -> 0.02688104098 | M76: 76 | O76: -2.54954955 | P76: =[1]!XLSTAT_PDFNormal(O76,-0.201135496518942,1.01363139377986) -> 0.02688104098
A77: 77 | C77: -2.543543544 | D77: =[1]!XLSTAT_PDFNormal(C77,0.300943968727696,1.04241610265003) -> 0.009246558955 | E77: 77 | G77: -2.543543544 | H77: =[1]!XLSTAT_PDFNormal(G77,0.300943968727696,1.04241610265003) -> 0.009246558955 | I77: 77 | K77: -2.543543544 | L77: =[1]!XLSTAT_PDFNormal(K77,-0.201135496518942,1.01363139377986) -> 0.02725212414 | M77: 77 | O77: -2.543543544 | P77: =[1]!XLSTAT_PDFNormal(O77,-0.201135496518942,1.01363139377986) -> 0.02725212414
A78: 78 | C78: -2.537537538 | D78: =[1]!XLSTAT_PDFNormal(C78,0.300943968727696,1.04241610265003) -> 0.009392926174 | E78: 78 | G78: -2.537537538 | H78: =[1]!XLSTAT_PDFNormal(G78,0.300943968727696,1.04241610265003) -> 0.009392926174 | I78: 78 | K78: -2.537537538 | L78: =[1]!XLSTAT_PDFNormal(K78,-0.201135496518942,1.01363139377986) -> 0.02762736 | M78: 78 | O78: -2.537537538 | P78: =[1]!XLSTAT_PDFNormal(O78,-0.201135496518942,1.01363139377986) -> 0.02762736
A79: 79 | C79: -2.531531532 | D79: =[1]!XLSTAT_PDFNormal(C79,0.300943968727696,1.04241610265003) -> 0.009541293554 | E79: 79 | G79: -2.531531532 | H79: =[1]!XLSTAT_PDFNormal(G79,0.300943968727696,1.04241610265003) -> 0.009541293554 | I79: 79 | K79: -2.531531532 | L79: =[1]!XLSTAT_PDFNormal(K79,-0.201135496518942,1.01363139377986) -> 0.02800677921 | M79: 79 | O79: -2.531531532 | P79: =[1]!XLSTAT_PDFNormal(O79,-0.201135496518942,1.01363139377986) -> 0.02800677921
A80: 80 | C80: -2.525525526 | D80: =[1]!XLSTAT_PDFNormal(C80,0.300943968727696,1.04241610265003) -> 0.009691682759 | E80: 80 | G80: -2.525525526 | H80: =[1]!XLSTAT_PDFNormal(G80,0.300943968727696,1.04241610265003) -> 0.009691682759 | I80: 80 | K80: -2.525525526 | L80: =[1]!XLSTAT_PDFNormal(K80,-0.201135496518942,1.01363139377986) -> 0.02839041239 | M80: 80 | O80: -2.525525526 | P80: =[1]!XLSTAT_PDFNormal(O80,-0.201135496518942,1.01363139377986) -> 0.02839041239
A81: 81 | C81: -2.51951952 | D81: =[1]!XLSTAT_PDFNormal(C81,0.300943968727696,1.04241610265003) -> 0.009844115596 | E81: 81 | G81: -2.51951952 | H81: =[1]!XLSTAT_PDFNormal(G81,0.300943968727696,1.04241610265003) -> 0.009844115596 | I81: 81 | K81: -2.51951952 | L81: =[1]!XLSTAT_PDFNormal(K81,-0.201135496518942,1.01363139377986) -> 0.02877829016 | M81: 81 | O81: -2.51951952 | P81: =[1]!XLSTAT_PDFNormal(O81,-0.201135496518942,1.01363139377986) -> 0.02877829016
A82: 82 | C82: -2.513513514 | D82: =[1]!XLSTAT_PDFNormal(C82,0.300943968727696,1.04241610265003) -> 0.009998614006 | E82: 82 | G82: -2.513513514 | H82: =[1]!XLSTAT_PDFNormal(G82,0.300943968727696,1.04241610265003) -> 0.009998614006 | I82: 82 | K82: -2.513513514 | L82: =[1]!XLSTAT_PDFNormal(K82,-0.201135496518942,1.01363139377986) -> 0.02917044307 | M82: 82 | O82: -2.513513514 | P82: =[1]!XLSTAT_PDFNormal(O82,-0.201135496518942,1.01363139377986) -> 0.02917044307
A83: 83 | C83: -2.507507508 | D83: =[1]!XLSTAT_PDFNormal(C83,0.300943968727696,1.04241610265003) -> 0.01015520007 | E83: 83 | G83: -2.507507508 | H83: =[1]!XLSTAT_PDFNormal(G83,0.300943968727696,1.04241610265003) -> 0.01015520007 | I83: 83 | K83: -2.507507508 | L83: =[1]!XLSTAT_PDFNormal(K83,-0.201135496518942,1.01363139377986) -> 0.02956690167 | M83: 83 | O83: -2.507507508 | P83: =[1]!XLSTAT_PDFNormal(O83,-0.201135496518942,1.01363139377986) -> 0.02956690167
A84: 84 | C84: -2.501501502 | D84: =[1]!XLSTAT_PDFNormal(C84,0.300943968727696,1.04241610265003) -> 0.010313896 | E84: 84 | G84: -2.501501502 | H84: =[1]!XLSTAT_PDFNormal(G84,0.300943968727696,1.04241610265003) -> 0.010313896 | I84: 84 | K84: -2.501501502 | L84: =[1]!XLSTAT_PDFNormal(K84,-0.201135496518942,1.01363139377986) -> 0.02996769644 | M84: 84 | O84: -2.501501502 | P84: =[1]!XLSTAT_PDFNormal(O84,-0.201135496518942,1.01363139377986) -> 0.02996769644
A85: 85 | C85: -2.495495496 | D85: =[1]!XLSTAT_PDFNormal(C85,0.300943968727696,1.04241610265003) -> 0.01047472416 | E85: 85 | G85: -2.495495496 | H85: =[1]!XLSTAT_PDFNormal(G85,0.300943968727696,1.04241610265003) -> 0.01047472416 | I85: 85 | K85: -2.495495496 | L85: =[1]!XLSTAT_PDFNormal(K85,-0.201135496518942,1.01363139377986) -> 0.03037285782 | M85: 85 | O85: -2.495495496 | P85: =[1]!XLSTAT_PDFNormal(O85,-0.201135496518942,1.01363139377986) -> 0.03037285782
A86: 86 | C86: -2.48948949 | D86: =[1]!XLSTAT_PDFNormal(C86,0.300943968727696,1.04241610265003) -> 0.01063770703 | E86: 86 | G86: -2.48948949 | H86: =[1]!XLSTAT_PDFNormal(G86,0.300943968727696,1.04241610265003) -> 0.01063770703 | I86: 86 | K86: -2.48948949 | L86: =[1]!XLSTAT_PDFNormal(K86,-0.201135496518942,1.01363139377986) -> 0.03078241623 | M86: 86 | O86: -2.48948949 | P86: =[1]!XLSTAT_PDFNormal(O86,-0.201135496518942,1.01363139377986) -> 0.03078241623
A87: 87 | C87: -2.483483484 | D87: =[1]!XLSTAT_PDFNormal(C87,0.300943968727696,1.04241610265003) -> 0.01080286724 | E87: 87 | G87: -2.483483484 | H87: =[1]!XLSTAT_PDFNormal(G87,0.300943968727696,1.04241610265003) -> 0.01080286724 | I87: 87 | K87: -2.483483484 | L87: =[1]!XLSTAT_PDFNormal(K87,-0.201135496518942,1.01363139377986) -> 0.03119640199 | M87: 87 | O87: -2.483483484 | P87: =[1]!XLSTAT_PDFNormal(O87,-0.201135496518942,1.01363139377986) -> 0.03119640199
A88: 88 | C88: -2.477477478 | D88: =[1]!XLSTAT_PDFNormal(C88,0.300943968727696,1.04241610265003) -> 0.01097022753 | E88: 88 | G88: -2.477477478 | H88: =[1]!XLSTAT_PDFNormal(G88,0.300943968727696,1.04241610265003) -> 0.01097022753 | I88: 88 | K88: -2.477477478 | L88: =[1]!XLSTAT_PDFNormal(K88,-0.201135496518942,1.01363139377986) -> 0.03161484538 | M88: 88 | O88: -2.477477478 | P88: =[1]!XLSTAT_PDFNormal(O88,-0.201135496518942,1.01363139377986) -> 0.03161484538
A89: 89 | C89: -2.471471472 | D89: =[1]!XLSTAT_PDFNormal(C89,0.300943968727696,1.04241610265003) -> 0.01113981079 | E89: 89 | G89: -2.471471472 | H89: =[1]!XLSTAT_PDFNormal(G89,0.300943968727696,1.04241610265003) -> 0.01113981079 | I89: 89 | K89: -2.471471472 | L89: =[1]!XLSTAT_PDFNormal(K89,-0.201135496518942,1.01363139377986) -> 0.03203777662 | M89: 89 | O89: -2.471471472 | P89: =[1]!XLSTAT_PDFNormal(O89,-0.201135496518942,1.01363139377986) -> 0.03203777662
A90: 90 | C90: -2.465465466 | D90: =[1]!XLSTAT_PDFNormal(C90,0.300943968727696,1.04241610265003) -> 0.01131164005 | E90: 90 | G90: -2.465465466 | H90: =[1]!XLSTAT_PDFNormal(G90,0.300943968727696,1.04241610265003) -> 0.01131164005 | I90: 90 | K90: -2.465465466 | L90: =[1]!XLSTAT_PDFNormal(K90,-0.201135496518942,1.01363139377986) -> 0.03246522585 | M90: 90 | O90: -2.465465466 | P90: =[1]!XLSTAT_PDFNormal(O90,-0.201135496518942,1.01363139377986) -> 0.03246522585
A91: 91 | C91: -2.45945946 | D91: =[1]!XLSTAT_PDFNormal(C91,0.300943968727696,1.04241610265003) -> 0.01148573845 | E91: 91 | G91: -2.45945946 | H91: =[1]!XLSTAT_PDFNormal(G91,0.300943968727696,1.04241610265003) -> 0.01148573845 | I91: 91 | K91: -2.45945946 | L91: =[1]!XLSTAT_PDFNormal(K91,-0.201135496518942,1.01363139377986) -> 0.03289722313 | M91: 91 | O91: -2.45945946 | P91: =[1]!XLSTAT_PDFNormal(O91,-0.201135496518942,1.01363139377986) -> 0.03289722313
A92: 92 | C92: -2.453453454 | D92: =[1]!XLSTAT_PDFNormal(C92,0.300943968727696,1.04241610265003) -> 0.01166212926 | E92: 92 | G92: -2.453453454 | H92: =[1]!XLSTAT_PDFNormal(G92,0.300943968727696,1.04241610265003) -> 0.01166212926 | I92: 92 | K92: -2.453453454 | L92: =[1]!XLSTAT_PDFNormal(K92,-0.201135496518942,1.01363139377986) -> 0.03333379845 | M92: 92 | O92: -2.453453454 | P92: =[1]!XLSTAT_PDFNormal(O92,-0.201135496518942,1.01363139377986) -> 0.03333379845
A93: 93 | C93: -2.447447448 | D93: =[1]!XLSTAT_PDFNormal(C93,0.300943968727696,1.04241610265003) -> 0.0118408359 | E93: 93 | G93: -2.447447448 | H93: =[1]!XLSTAT_PDFNormal(G93,0.300943968727696,1.04241610265003) -> 0.0118408359 | I93: 93 | K93: -2.447447448 | L93: =[1]!XLSTAT_PDFNormal(K93,-0.201135496518942,1.01363139377986) -> 0.0337749817 | M93: 93 | O93: -2.447447448 | P93: =[1]!XLSTAT_PDFNormal(O93,-0.201135496518942,1.01363139377986) -> 0.0337749817
A94: 94 | C94: -2.441441442 | D94: =[1]!XLSTAT_PDFNormal(C94,0.300943968727696,1.04241610265003) -> 0.01202188189 | E94: 94 | G94: -2.441441442 | H94: =[1]!XLSTAT_PDFNormal(G94,0.300943968727696,1.04241610265003) -> 0.01202188189 | I94: 94 | K94: -2.441441442 | L94: =[1]!XLSTAT_PDFNormal(K94,-0.201135496518942,1.01363139377986) -> 0.0342208027 | M94: 94 | O94: -2.441441442 | P94: =[1]!XLSTAT_PDFNormal(O94,-0.201135496518942,1.01363139377986) -> 0.0342208027
A95: 95 | C95: -2.435435436 | D95: =[1]!XLSTAT_PDFNormal(C95,0.300943968727696,1.04241610265003) -> 0.01220529089 | E95: 95 | G95: -2.435435436 | H95: =[1]!XLSTAT_PDFNormal(G95,0.300943968727696,1.04241610265003) -> 0.01220529089 | I95: 95 | K95: -2.435435436 | L95: =[1]!XLSTAT_PDFNormal(K95,-0.201135496518942,1.01363139377986) -> 0.03467129113 | M95: 95 | O95: -2.435435436 | P95: =[1]!XLSTAT_PDFNormal(O95,-0.201135496518942,1.01363139377986) -> 0.03467129113
A96: 96 | C96: -2.42942943 | D96: =[1]!XLSTAT_PDFNormal(C96,0.300943968727696,1.04241610265003) -> 0.01239108668 | E96: 96 | G96: -2.42942943 | H96: =[1]!XLSTAT_PDFNormal(G96,0.300943968727696,1.04241610265003) -> 0.01239108668 | I96: 96 | K96: -2.42942943 | L96: =[1]!XLSTAT_PDFNormal(K96,-0.201135496518942,1.01363139377986) -> 0.03512647662 | M96: 96 | O96: -2.42942943 | P96: =[1]!XLSTAT_PDFNormal(O96,-0.201135496518942,1.01363139377986) -> 0.03512647662
A97: 97 | C97: -2.423423424 | D97: =[1]!XLSTAT_PDFNormal(C97,0.300943968727696,1.04241610265003) -> 0.01257929317 | E97: 97 | G97: -2.423423424 | H97: =[1]!XLSTAT_PDFNormal(G97,0.300943968727696,1.04241610265003) -> 0.01257929317 | I97: 97 | K97: -2.423423424 | L97: =[1]!XLSTAT_PDFNormal(K97,-0.201135496518942,1.01363139377986) -> 0.03558638865 | M97: 97 | O97: -2.423423424 | P97: =[1]!XLSTAT_PDFNormal(O97,-0.201135496518942,1.01363139377986) -> 0.03558638865
A98: 98 | C98: -2.417417418 | D98: =[1]!XLSTAT_PDFNormal(C98,0.300943968727696,1.04241610265003) -> 0.01276993438 | E98: 98 | G98: -2.417417418 | H98: =[1]!XLSTAT_PDFNormal(G98,0.300943968727696,1.04241610265003) -> 0.01276993438 | I98: 98 | K98: -2.417417418 | L98: =[1]!XLSTAT_PDFNormal(K98,-0.201135496518942,1.01363139377986) -> 0.0360510566 | M98: 98 | O98: -2.417417418 | P98: =[1]!XLSTAT_PDFNormal(O98,-0.201135496518942,1.01363139377986) -> 0.0360510566
A99: 99 | C99: -2.411411412 | D99: =[1]!XLSTAT_PDFNormal(C99,0.300943968727696,1.04241610265003) -> 0.01296303445 | E99: 99 | G99: -2.411411412 | H99: =[1]!XLSTAT_PDFNormal(G99,0.300943968727696,1.04241610265003) -> 0.01296303445 | I99: 99 | K99: -2.411411412 | L99: =[1]!XLSTAT_PDFNormal(K99,-0.201135496518942,1.01363139377986) -> 0.03652050974 | M99: 99 | O99: -2.411411412 | P99: =[1]!XLSTAT_PDFNormal(O99,-0.201135496518942,1.01363139377986) -> 0.03652050974
A100: 100 | C100: -2.405405406 | D100: =[1]!XLSTAT_PDFNormal(C100,0.300943968727696,1.04241610265003) -> 0.01315861766 | E100: 100 | G100: -2.405405406 | H100: =[1]!XLSTAT_PDFNormal(G100,0.300943968727696,1.04241610265003) -> 0.01315861766 | I100: 100 | K100: -2.405405406 | L100: =[1]!XLSTAT_PDFNormal(K100,-0.201135496518942,1.01363139377986) -> 0.0369947772 | M100: 100 | O100: -2.405405406 | P100: =[1]!XLSTAT_PDFNormal(O100,-0.201135496518942,1.01363139377986) -> 0.0369947772
A101: 101 | C101: -2.3993994 | D101: =[1]!XLSTAT_PDFNormal(C101,0.300943968727696,1.04241610265003) -> 0.01335670838 | E101: 101 | G101: -2.3993994 | H101: =[1]!XLSTAT_PDFNormal(G101,0.300943968727696,1.04241610265003) -> 0.01335670838 | I101: 101 | K101: -2.3993994 | L101: =[1]!XLSTAT_PDFNormal(K101,-0.201135496518942,1.01363139377986) -> 0.03747388798 | M101: 101 | O101: -2.3993994 | P101: =[1]!XLSTAT_PDFNormal(O101,-0.201135496518942,1.01363139377986) -> 0.03747388798
A102: 102 | C102: -2.393393394 | D102: =[1]!XLSTAT_PDFNormal(C102,0.300943968727696,1.04241610265003) -> 0.01355733111 | E102: 102 | G102: -2.393393394 | H102: =[1]!XLSTAT_PDFNormal(G102,0.300943968727696,1.04241610265003) -> 0.01355733111 | I102: 102 | K102: -2.393393394 | L102: =[1]!XLSTAT_PDFNormal(K102,-0.201135496518942,1.01363139377986) -> 0.03795787094 | M102: 102 | O102: -2.393393394 | P102: =[1]!XLSTAT_PDFNormal(O102,-0.201135496518942,1.01363139377986) -> 0.03795787094
A103: 103 | C103: -2.387387388 | D103: =[1]!XLSTAT_PDFNormal(C103,0.300943968727696,1.04241610265003) -> 0.01376051046 | E103: 103 | G103: -2.387387388 | H103: =[1]!XLSTAT_PDFNormal(G103,0.300943968727696,1.04241610265003) -> 0.01376051046 | I103: 103 | K103: -2.387387388 | L103: =[1]!XLSTAT_PDFNormal(K103,-0.201135496518942,1.01363139377986) -> 0.03844675482 | M103: 103 | O103: -2.387387388 | P103: =[1]!XLSTAT_PDFNormal(O103,-0.201135496518942,1.01363139377986) -> 0.03844675482
A104: 104 | C104: -2.381381382 | D104: =[1]!XLSTAT_PDFNormal(C104,0.300943968727696,1.04241610265003) -> 0.01396627116 | E104: 104 | G104: -2.381381382 | H104: =[1]!XLSTAT_PDFNormal(G104,0.300943968727696,1.04241610265003) -> 0.01396627116 | I104: 104 | K104: -2.381381382 | L104: =[1]!XLSTAT_PDFNormal(K104,-0.201135496518942,1.01363139377986) -> 0.03894056818 | M104: 104 | O104: -2.381381382 | P104: =[1]!XLSTAT_PDFNormal(O104,-0.201135496518942,1.01363139377986) -> 0.03894056818
A105: 105 | C105: -2.375375376 | D105: =[1]!XLSTAT_PDFNormal(C105,0.300943968727696,1.04241610265003) -> 0.01417463805 | E105: 105 | G105: -2.375375376 | H105: =[1]!XLSTAT_PDFNormal(G105,0.300943968727696,1.04241610265003) -> 0.01417463805 | I105: 105 | K105: -2.375375376 | L105: =[1]!XLSTAT_PDFNormal(K105,-0.201135496518942,1.01363139377986) -> 0.03943933945 | M105: 105 | O105: -2.375375376 | P105: =[1]!XLSTAT_PDFNormal(O105,-0.201135496518942,1.01363139377986) -> 0.03943933945
A106: 106 | C106: -2.36936937 | D106: =[1]!XLSTAT_PDFNormal(C106,0.300943968727696,1.04241610265003) -> 0.01438563606 | E106: 106 | G106: -2.36936937 | H106: =[1]!XLSTAT_PDFNormal(G106,0.300943968727696,1.04241610265003) -> 0.01438563606 | I106: 106 | K106: -2.36936937 | L106: =[1]!XLSTAT_PDFNormal(K106,-0.201135496518942,1.01363139377986) -> 0.03994309687 | M106: 106 | O106: -2.36936937 | P106: =[1]!XLSTAT_PDFNormal(O106,-0.201135496518942,1.01363139377986) -> 0.03994309687
A107: 107 | C107: -2.363363364 | D107: =[1]!XLSTAT_PDFNormal(C107,0.300943968727696,1.04241610265003) -> 0.01459929025 | E107: 107 | G107: -2.363363364 | H107: =[1]!XLSTAT_PDFNormal(G107,0.300943968727696,1.04241610265003) -> 0.01459929025 | I107: 107 | K107: -2.363363364 | L107: =[1]!XLSTAT_PDFNormal(K107,-0.201135496518942,1.01363139377986) -> 0.04045186855 | M107: 107 | O107: -2.363363364 | P107: =[1]!XLSTAT_PDFNormal(O107,-0.201135496518942,1.01363139377986) -> 0.04045186855
A108: 108 | C108: -2.357357358 | D108: =[1]!XLSTAT_PDFNormal(C108,0.300943968727696,1.04241610265003) -> 0.01481562579 | E108: 108 | G108: -2.357357358 | H108: =[1]!XLSTAT_PDFNormal(G108,0.300943968727696,1.04241610265003) -> 0.01481562579 | I108: 108 | K108: -2.357357358 | L108: =[1]!XLSTAT_PDFNormal(K108,-0.201135496518942,1.01363139377986) -> 0.04096568239 | M108: 108 | O108: -2.357357358 | P108: =[1]!XLSTAT_PDFNormal(O108,-0.201135496518942,1.01363139377986) -> 0.04096568239
A109: 109 | C109: -2.351351352 | D109: =[1]!XLSTAT_PDFNormal(C109,0.300943968727696,1.04241610265003) -> 0.01503466793 | E109: 109 | G109: -2.351351352 | H109: =[1]!XLSTAT_PDFNormal(G109,0.300943968727696,1.04241610265003) -> 0.01503466793 | I109: 109 | K109: -2.351351352 | L109: =[1]!XLSTAT_PDFNormal(K109,-0.201135496518942,1.01363139377986) -> 0.04148456615 | M109: 109 | O109: -2.351351352 | P109: =[1]!XLSTAT_PDFNormal(O109,-0.201135496518942,1.01363139377986) -> 0.04148456615
A110: 110 | C110: -2.345345346 | D110: =[1]!XLSTAT_PDFNormal(C110,0.300943968727696,1.04241610265003) -> 0.01525644205 | E110: 110 | G110: -2.345345346 | H110: =[1]!XLSTAT_PDFNormal(G110,0.300943968727696,1.04241610265003) -> 0.01525644205 | I110: 110 | K110: -2.345345346 | L110: =[1]!XLSTAT_PDFNormal(K110,-0.201135496518942,1.01363139377986) -> 0.04200854735 | M110: 110 | O110: -2.345345346 | P110: =[1]!XLSTAT_PDFNormal(O110,-0.201135496518942,1.01363139377986) -> 0.04200854735
A111: 111 | C111: -2.33933934 | D111: =[1]!XLSTAT_PDFNormal(C111,0.300943968727696,1.04241610265003) -> 0.0154809736 | E111: 111 | G111: -2.33933934 | H111: =[1]!XLSTAT_PDFNormal(G111,0.300943968727696,1.04241610265003) -> 0.0154809736 | I111: 111 | K111: -2.33933934 | L111: =[1]!XLSTAT_PDFNormal(K111,-0.201135496518942,1.01363139377986) -> 0.04253765338 | M111: 111 | O111: -2.33933934 | P111: =[1]!XLSTAT_PDFNormal(O111,-0.201135496518942,1.01363139377986) -> 0.04253765338
A112: 112 | C112: -2.333333334 | D112: =[1]!XLSTAT_PDFNormal(C112,0.300943968727696,1.04241610265003) -> 0.01570828815 | E112: 112 | G112: -2.333333334 | H112: =[1]!XLSTAT_PDFNormal(G112,0.300943968727696,1.04241610265003) -> 0.01570828815 | I112: 112 | K112: -2.333333334 | L112: =[1]!XLSTAT_PDFNormal(K112,-0.201135496518942,1.01363139377986) -> 0.0430719114 | M112: 112 | O112: -2.333333334 | P112: =[1]!XLSTAT_PDFNormal(O112,-0.201135496518942,1.01363139377986) -> 0.0430719114
A113: 113 | C113: -2.327327328 | D113: =[1]!XLSTAT_PDFNormal(C113,0.300943968727696,1.04241610265003) -> 0.01593841137 | E113: 113 | G113: -2.327327328 | H113: =[1]!XLSTAT_PDFNormal(G113,0.300943968727696,1.04241610265003) -> 0.01593841137 | I113: 113 | K113: -2.327327328 | L113: =[1]!XLSTAT_PDFNormal(K113,-0.201135496518942,1.01363139377986) -> 0.04361134835 | M113: 113 | O113: -2.327327328 | P113: =[1]!XLSTAT_PDFNormal(O113,-0.201135496518942,1.01363139377986) -> 0.04361134835
A114: 114 | C114: -2.321321322 | D114: =[1]!XLSTAT_PDFNormal(C114,0.300943968727696,1.04241610265003) -> 0.016171369 | E114: 114 | G114: -2.321321322 | H114: =[1]!XLSTAT_PDFNormal(G114,0.300943968727696,1.04241610265003) -> 0.016171369 | I114: 114 | K114: -2.321321322 | L114: =[1]!XLSTAT_PDFNormal(K114,-0.201135496518942,1.01363139377986) -> 0.04415599099 | M114: 114 | O114: -2.321321322 | P114: =[1]!XLSTAT_PDFNormal(O114,-0.201135496518942,1.01363139377986) -> 0.04415599099
A115: 115 | C115: -2.315315316 | D115: =[1]!XLSTAT_PDFNormal(C115,0.300943968727696,1.04241610265003) -> 0.01640718691 | E115: 115 | G115: -2.315315316 | H115: =[1]!XLSTAT_PDFNormal(G115,0.300943968727696,1.04241610265003) -> 0.01640718691 | I115: 115 | K115: -2.315315316 | L115: =[1]!XLSTAT_PDFNormal(K115,-0.201135496518942,1.01363139377986) -> 0.04470586584 | M115: 115 | O115: -2.315315316 | P115: =[1]!XLSTAT_PDFNormal(O115,-0.201135496518942,1.01363139377986) -> 0.04470586584
A116: 116 | C116: -2.30930931 | D116: =[1]!XLSTAT_PDFNormal(C116,0.300943968727696,1.04241610265003) -> 0.01664589102 | E116: 116 | G116: -2.30930931 | H116: =[1]!XLSTAT_PDFNormal(G116,0.300943968727696,1.04241610265003) -> 0.01664589102 | I116: 116 | K116: -2.30930931 | L116: =[1]!XLSTAT_PDFNormal(K116,-0.201135496518942,1.01363139377986) -> 0.04526099923 | M116: 116 | O116: -2.30930931 | P116: =[1]!XLSTAT_PDFNormal(O116,-0.201135496518942,1.01363139377986) -> 0.04526099923
A117: 117 | C117: -2.303303304 | D117: =[1]!XLSTAT_PDFNormal(C117,0.300943968727696,1.04241610265003) -> 0.01688750737 | E117: 117 | G117: -2.303303304 | H117: =[1]!XLSTAT_PDFNormal(G117,0.300943968727696,1.04241610265003) -> 0.01688750737 | I117: 117 | K117: -2.303303304 | L117: =[1]!XLSTAT_PDFNormal(K117,-0.201135496518942,1.01363139377986) -> 0.04582141721 | M117: 117 | O117: -2.303303304 | P117: =[1]!XLSTAT_PDFNormal(O117,-0.201135496518942,1.01363139377986) -> 0.04582141721
A118: 118 | C118: -2.297297298 | D118: =[1]!XLSTAT_PDFNormal(C118,0.300943968727696,1.04241610265003) -> 0.01713206207 | E118: 118 | G118: -2.297297298 | H118: =[1]!XLSTAT_PDFNormal(G118,0.300943968727696,1.04241610265003) -> 0.01713206207 | I118: 118 | K118: -2.297297298 | L118: =[1]!XLSTAT_PDFNormal(K118,-0.201135496518942,1.01363139377986) -> 0.04638714564 | M118: 118 | O118: -2.297297298 | P118: =[1]!XLSTAT_PDFNormal(O118,-0.201135496518942,1.01363139377986) -> 0.04638714564
A119: 119 | C119: -2.291291292 | D119: =[1]!XLSTAT_PDFNormal(C119,0.300943968727696,1.04241610265003) -> 0.01737958132 | E119: 119 | G119: -2.291291292 | H119: =[1]!XLSTAT_PDFNormal(G119,0.300943968727696,1.04241610265003) -> 0.01737958132 | I119: 119 | K119: -2.291291292 | L119: =[1]!XLSTAT_PDFNormal(K119,-0.201135496518942,1.01363139377986) -> 0.0469582101 | M119: 119 | O119: -2.291291292 | P119: =[1]!XLSTAT_PDFNormal(O119,-0.201135496518942,1.01363139377986) -> 0.0469582101
A120: 120 | C120: -2.285285286 | D120: =[1]!XLSTAT_PDFNormal(C120,0.300943968727696,1.04241610265003) -> 0.01763009139 | E120: 120 | G120: -2.285285286 | H120: =[1]!XLSTAT_PDFNormal(G120,0.300943968727696,1.04241610265003) -> 0.01763009139 | I120: 120 | K120: -2.285285286 | L120: =[1]!XLSTAT_PDFNormal(K120,-0.201135496518942,1.01363139377986) -> 0.04753463594 | M120: 120 | O120: -2.285285286 | P120: =[1]!XLSTAT_PDFNormal(O120,-0.201135496518942,1.01363139377986) -> 0.04753463594
A121: 121 | C121: -2.27927928 | D121: =[1]!XLSTAT_PDFNormal(C121,0.300943968727696,1.04241610265003) -> 0.01788361864 | E121: 121 | G121: -2.27927928 | H121: =[1]!XLSTAT_PDFNormal(G121,0.300943968727696,1.04241610265003) -> 0.01788361864 | I121: 121 | K121: -2.27927928 | L121: =[1]!XLSTAT_PDFNormal(K121,-0.201135496518942,1.01363139377986) -> 0.04811644827 | M121: 121 | O121: -2.27927928 | P121: =[1]!XLSTAT_PDFNormal(O121,-0.201135496518942,1.01363139377986) -> 0.04811644827
A122: 122 | C122: -2.273273274 | D122: =[1]!XLSTAT_PDFNormal(C122,0.300943968727696,1.04241610265003) -> 0.01814018952 | E122: 122 | G122: -2.273273274 | H122: =[1]!XLSTAT_PDFNormal(G122,0.300943968727696,1.04241610265003) -> 0.01814018952 | I122: 122 | K122: -2.273273274 | L122: =[1]!XLSTAT_PDFNormal(K122,-0.201135496518942,1.01363139377986) -> 0.04870367189 | M122: 122 | O122: -2.273273274 | P122: =[1]!XLSTAT_PDFNormal(O122,-0.201135496518942,1.01363139377986) -> 0.04870367189
A123: 123 | C123: -2.267267268 | D123: =[1]!XLSTAT_PDFNormal(C123,0.300943968727696,1.04241610265003) -> 0.01839983052 | E123: 123 | G123: -2.267267268 | H123: =[1]!XLSTAT_PDFNormal(G123,0.300943968727696,1.04241610265003) -> 0.01839983052 | I123: 123 | K123: -2.267267268 | L123: =[1]!XLSTAT_PDFNormal(K123,-0.201135496518942,1.01363139377986) -> 0.04929633137 | M123: 123 | O123: -2.267267268 | P123: =[1]!XLSTAT_PDFNormal(O123,-0.201135496518942,1.01363139377986) -> 0.04929633137
A124: 124 | C124: -2.261261262 | D124: =[1]!XLSTAT_PDFNormal(C124,0.300943968727696,1.04241610265003) -> 0.01866256824 | E124: 124 | G124: -2.261261262 | H124: =[1]!XLSTAT_PDFNormal(G124,0.300943968727696,1.04241610265003) -> 0.01866256824 | I124: 124 | K124: -2.261261262 | L124: =[1]!XLSTAT_PDFNormal(K124,-0.201135496518942,1.01363139377986) -> 0.04989445099 | M124: 124 | O124: -2.261261262 | P124: =[1]!XLSTAT_PDFNormal(O124,-0.201135496518942,1.01363139377986) -> 0.04989445099
A125: 125 | C125: -2.255255256 | D125: =[1]!XLSTAT_PDFNormal(C125,0.300943968727696,1.04241610265003) -> 0.01892842931 | E125: 125 | G125: -2.255255256 | H125: =[1]!XLSTAT_PDFNormal(G125,0.300943968727696,1.04241610265003) -> 0.01892842931 | I125: 125 | K125: -2.255255256 | L125: =[1]!XLSTAT_PDFNormal(K125,-0.201135496518942,1.01363139377986) -> 0.05049805474 | M125: 125 | O125: -2.255255256 | P125: =[1]!XLSTAT_PDFNormal(O125,-0.201135496518942,1.01363139377986) -> 0.05049805474
A126: 126 | C126: -2.24924925 | D126: =[1]!XLSTAT_PDFNormal(C126,0.300943968727696,1.04241610265003) -> 0.01919744047 | E126: 126 | G126: -2.24924925 | H126: =[1]!XLSTAT_PDFNormal(G126,0.300943968727696,1.04241610265003) -> 0.01919744047 | I126: 126 | K126: -2.24924925 | L126: =[1]!XLSTAT_PDFNormal(K126,-0.201135496518942,1.01363139377986) -> 0.05110716633 | M126: 126 | O126: -2.24924925 | P126: =[1]!XLSTAT_PDFNormal(O126,-0.201135496518942,1.01363139377986) -> 0.05110716633
A127: 127 | C127: -2.243243244 | D127: =[1]!XLSTAT_PDFNormal(C127,0.300943968727696,1.04241610265003) -> 0.01946962848 | E127: 127 | G127: -2.243243244 | H127: =[1]!XLSTAT_PDFNormal(G127,0.300943968727696,1.04241610265003) -> 0.01946962848 | I127: 127 | K127: -2.243243244 | L127: =[1]!XLSTAT_PDFNormal(K127,-0.201135496518942,1.01363139377986) -> 0.05172180917 | M127: 127 | O127: -2.243243244 | P127: =[1]!XLSTAT_PDFNormal(O127,-0.201135496518942,1.01363139377986) -> 0.05172180917
A128: 128 | C128: -2.237237238 | D128: =[1]!XLSTAT_PDFNormal(C128,0.300943968727696,1.04241610265003) -> 0.0197450202 | E128: 128 | G128: -2.237237238 | H128: =[1]!XLSTAT_PDFNormal(G128,0.300943968727696,1.04241610265003) -> 0.0197450202 | I128: 128 | K128: -2.237237238 | L128: =[1]!XLSTAT_PDFNormal(K128,-0.201135496518942,1.01363139377986) -> 0.05234200637 | M128: 128 | O128: -2.237237238 | P128: =[1]!XLSTAT_PDFNormal(O128,-0.201135496518942,1.01363139377986) -> 0.05234200637
A129: 129 | C129: =-3+(A129-1)*0.006006006 -> -2.231231232 | D129: =[1]!XLSTAT_PDFNormal(C129,0.300943968727696,1.04241610265003) -> 0.02002364253 | E129: 129 | G129: =-3+(E129-1)*0.006006006 -> -2.231231232 | H129: =[1]!XLSTAT_PDFNormal(G129,0.300943968727696,1.04241610265003) -> 0.02002364253 | I129: 129 | K129: =-3+(I129-1)*0.006006006 -> -2.231231232 | L129: =[1]!XLSTAT_PDFNormal(K129,-0.201135496518942,1.01363139377986) -> 0.05296778071 | M129: 129 | O129: =-3+(M129-1)*0.006006006 -> -2.231231232 | P129: =[1]!XLSTAT_PDFNormal(O129,-0.201135496518942,1.01363139377986) -> 0.05296778071
A130: 130 | C130: -2.225225226 | D130: =[1]!XLSTAT_PDFNormal(C130,0.300943968727696,1.04241610265003) -> 0.02030552243 | E130: 130 | G130: -2.225225226 | H130: =[1]!XLSTAT_PDFNormal(G130,0.300943968727696,1.04241610265003) -> 0.02030552243 | I130: 130 | K130: -2.225225226 | L130: =[1]!XLSTAT_PDFNormal(K130,-0.201135496518942,1.01363139377986) -> 0.05359915468 | M130: 130 | O130: -2.225225226 | P130: =[1]!XLSTAT_PDFNormal(O130,-0.201135496518942,1.01363139377986) -> 0.05359915468
A131: 131 | C131: -2.21921922 | D131: =[1]!XLSTAT_PDFNormal(C131,0.300943968727696,1.04241610265003) -> 0.0205906869 | E131: 131 | G131: -2.21921922 | H131: =[1]!XLSTAT_PDFNormal(G131,0.300943968727696,1.04241610265003) -> 0.0205906869 | I131: 131 | K131: -2.21921922 | L131: =[1]!XLSTAT_PDFNormal(K131,-0.201135496518942,1.01363139377986) -> 0.05423615043 | M131: 131 | O131: -2.21921922 | P131: =[1]!XLSTAT_PDFNormal(O131,-0.201135496518942,1.01363139377986) -> 0.05423615043
A132: 132 | C132: -2.213213214 | D132: =[1]!XLSTAT_PDFNormal(C132,0.300943968727696,1.04241610265003) -> 0.02087916301 | E132: 132 | G132: -2.213213214 | H132: =[1]!XLSTAT_PDFNormal(G132,0.300943968727696,1.04241610265003) -> 0.02087916301 | I132: 132 | K132: -2.213213214 | L132: =[1]!XLSTAT_PDFNormal(K132,-0.201135496518942,1.01363139377986) -> 0.05487878976 | M132: 132 | O132: -2.213213214 | P132: =[1]!XLSTAT_PDFNormal(O132,-0.201135496518942,1.01363139377986) -> 0.05487878976
A133: 133 | C133: -2.207207208 | D133: =[1]!XLSTAT_PDFNormal(C133,0.300943968727696,1.04241610265003) -> 0.02117097787 | E133: 133 | G133: -2.207207208 | H133: =[1]!XLSTAT_PDFNormal(G133,0.300943968727696,1.04241610265003) -> 0.02117097787 | I133: 133 | K133: -2.207207208 | L133: =[1]!XLSTAT_PDFNormal(K133,-0.201135496518942,1.01363139377986) -> 0.05552709417 | M133: 133 | O133: -2.207207208 | P133: =[1]!XLSTAT_PDFNormal(O133,-0.201135496518942,1.01363139377986) -> 0.05552709417
A134: 134 | C134: -2.201201202 | D134: =[1]!XLSTAT_PDFNormal(C134,0.300943968727696,1.04241610265003) -> 0.02146615863 | E134: 134 | G134: -2.201201202 | H134: =[1]!XLSTAT_PDFNormal(G134,0.300943968727696,1.04241610265003) -> 0.02146615863 | I134: 134 | K134: -2.201201202 | L134: =[1]!XLSTAT_PDFNormal(K134,-0.201135496518942,1.01363139377986) -> 0.05618108479 | M134: 134 | O134: -2.201201202 | P134: =[1]!XLSTAT_PDFNormal(O134,-0.201135496518942,1.01363139377986) -> 0.05618108479
A135: 135 | C135: -2.195195196 | D135: =[1]!XLSTAT_PDFNormal(C135,0.300943968727696,1.04241610265003) -> 0.0217647325 | E135: 135 | G135: -2.195195196 | H135: =[1]!XLSTAT_PDFNormal(G135,0.300943968727696,1.04241610265003) -> 0.0217647325 | I135: 135 | K135: -2.195195196 | L135: =[1]!XLSTAT_PDFNormal(K135,-0.201135496518942,1.01363139377986) -> 0.05684078239 | M135: 135 | O135: -2.195195196 | P135: =[1]!XLSTAT_PDFNormal(O135,-0.201135496518942,1.01363139377986) -> 0.05684078239
A136: 136 | C136: -2.18918919 | D136: =[1]!XLSTAT_PDFNormal(C136,0.300943968727696,1.04241610265003) -> 0.02206672669 | E136: 136 | G136: -2.18918919 | H136: =[1]!XLSTAT_PDFNormal(G136,0.300943968727696,1.04241610265003) -> 0.02206672669 | I136: 136 | K136: -2.18918919 | L136: =[1]!XLSTAT_PDFNormal(K136,-0.201135496518942,1.01363139377986) -> 0.0575062074 | M136: 136 | O136: -2.18918919 | P136: =[1]!XLSTAT_PDFNormal(O136,-0.201135496518942,1.01363139377986) -> 0.0575062074
A137: 137 | C137: -2.183183184 | D137: =[1]!XLSTAT_PDFNormal(C137,0.300943968727696,1.04241610265003) -> 0.02237216849 | E137: 137 | G137: -2.183183184 | H137: =[1]!XLSTAT_PDFNormal(G137,0.300943968727696,1.04241610265003) -> 0.02237216849 | I137: 137 | K137: -2.183183184 | L137: =[1]!XLSTAT_PDFNormal(K137,-0.201135496518942,1.01363139377986) -> 0.05817737988 | M137: 137 | O137: -2.183183184 | P137: =[1]!XLSTAT_PDFNormal(O137,-0.201135496518942,1.01363139377986) -> 0.05817737988
A138: 138 | C138: -2.177177178 | D138: =[1]!XLSTAT_PDFNormal(C138,0.300943968727696,1.04241610265003) -> 0.0226810852 | E138: 138 | G138: -2.177177178 | H138: =[1]!XLSTAT_PDFNormal(G138,0.300943968727696,1.04241610265003) -> 0.0226810852 | I138: 138 | K138: -2.177177178 | L138: =[1]!XLSTAT_PDFNormal(K138,-0.201135496518942,1.01363139377986) -> 0.05885431949 | M138: 138 | O138: -2.177177178 | P138: =[1]!XLSTAT_PDFNormal(O138,-0.201135496518942,1.01363139377986) -> 0.05885431949
A139: 139 | C139: -2.171171172 | D139: =[1]!XLSTAT_PDFNormal(C139,0.300943968727696,1.04241610265003) -> 0.02299350414 | E139: 139 | G139: -2.171171172 | H139: =[1]!XLSTAT_PDFNormal(G139,0.300943968727696,1.04241610265003) -> 0.02299350414 | I139: 139 | K139: -2.171171172 | L139: =[1]!XLSTAT_PDFNormal(K139,-0.201135496518942,1.01363139377986) -> 0.05953704554 | M139: 139 | O139: -2.171171172 | P139: =[1]!XLSTAT_PDFNormal(O139,-0.201135496518942,1.01363139377986) -> 0.05953704554
A140: 140 | C140: -2.165165166 | D140: =[1]!XLSTAT_PDFNormal(C140,0.300943968727696,1.04241610265003) -> 0.02330945267 | E140: 140 | G140: -2.165165166 | H140: =[1]!XLSTAT_PDFNormal(G140,0.300943968727696,1.04241610265003) -> 0.02330945267 | I140: 140 | K140: -2.165165166 | L140: =[1]!XLSTAT_PDFNormal(K140,-0.201135496518942,1.01363139377986) -> 0.06022557693 | M140: 140 | O140: -2.165165166 | P140: =[1]!XLSTAT_PDFNormal(O140,-0.201135496518942,1.01363139377986) -> 0.06022557693
A141: 141 | C141: -2.15915916 | D141: =[1]!XLSTAT_PDFNormal(C141,0.300943968727696,1.04241610265003) -> 0.02362895817 | E141: 141 | G141: -2.15915916 | H141: =[1]!XLSTAT_PDFNormal(G141,0.300943968727696,1.04241610265003) -> 0.02362895817 | I141: 141 | K141: -2.15915916 | L141: =[1]!XLSTAT_PDFNormal(K141,-0.201135496518942,1.01363139377986) -> 0.06091993218 | M141: 141 | O141: -2.15915916 | P141: =[1]!XLSTAT_PDFNormal(O141,-0.201135496518942,1.01363139377986) -> 0.06091993218
A142: 142 | C142: -2.153153154 | D142: =[1]!XLSTAT_PDFNormal(C142,0.300943968727696,1.04241610265003) -> 0.02395204805 | E142: 142 | G142: -2.153153154 | H142: =[1]!XLSTAT_PDFNormal(G142,0.300943968727696,1.04241610265003) -> 0.02395204805 | I142: 142 | K142: -2.153153154 | L142: =[1]!XLSTAT_PDFNormal(K142,-0.201135496518942,1.01363139377986) -> 0.0616201294 | M142: 142 | O142: -2.153153154 | P142: =[1]!XLSTAT_PDFNormal(O142,-0.201135496518942,1.01363139377986) -> 0.0616201294
A143: 143 | C143: -2.147147148 | D143: =[1]!XLSTAT_PDFNormal(C143,0.300943968727696,1.04241610265003) -> 0.0242787497 | E143: 143 | G143: -2.147147148 | H143: =[1]!XLSTAT_PDFNormal(G143,0.300943968727696,1.04241610265003) -> 0.0242787497 | I143: 143 | K143: -2.147147148 | L143: =[1]!XLSTAT_PDFNormal(K143,-0.201135496518942,1.01363139377986) -> 0.06232618628 | M143: 143 | O143: -2.147147148 | P143: =[1]!XLSTAT_PDFNormal(O143,-0.201135496518942,1.01363139377986) -> 0.06232618628
A144: 144 | C144: -2.141141142 | D144: =[1]!XLSTAT_PDFNormal(C144,0.300943968727696,1.04241610265003) -> 0.02460909056 | E144: 144 | G144: -2.141141142 | H144: =[1]!XLSTAT_PDFNormal(G144,0.300943968727696,1.04241610265003) -> 0.02460909056 | I144: 144 | K144: -2.141141142 | L144: =[1]!XLSTAT_PDFNormal(K144,-0.201135496518942,1.01363139377986) -> 0.0630381201 | M144: 144 | O144: -2.141141142 | P144: =[1]!XLSTAT_PDFNormal(O144,-0.201135496518942,1.01363139377986) -> 0.0630381201
A145: 145 | C145: -2.135135136 | D145: =[1]!XLSTAT_PDFNormal(C145,0.300943968727696,1.04241610265003) -> 0.02494309807 | E145: 145 | G145: -2.135135136 | H145: =[1]!XLSTAT_PDFNormal(G145,0.300943968727696,1.04241610265003) -> 0.02494309807 | I145: 145 | K145: -2.135135136 | L145: =[1]!XLSTAT_PDFNormal(K145,-0.201135496518942,1.01363139377986) -> 0.06375594773 | M145: 145 | O145: -2.135135136 | P145: =[1]!XLSTAT_PDFNormal(O145,-0.201135496518942,1.01363139377986) -> 0.06375594773
A146: 146 | C146: -2.12912913 | D146: =[1]!XLSTAT_PDFNormal(C146,0.300943968727696,1.04241610265003) -> 0.02528079966 | E146: 146 | G146: -2.12912913 | H146: =[1]!XLSTAT_PDFNormal(G146,0.300943968727696,1.04241610265003) -> 0.02528079966 | I146: 146 | K146: -2.12912913 | L146: =[1]!XLSTAT_PDFNormal(K146,-0.201135496518942,1.01363139377986) -> 0.06447968558 | M146: 146 | O146: -2.12912913 | P146: =[1]!XLSTAT_PDFNormal(O146,-0.201135496518942,1.01363139377986) -> 0.06447968558
A147: 147 | C147: -2.123123124 | D147: =[1]!XLSTAT_PDFNormal(C147,0.300943968727696,1.04241610265003) -> 0.02562222277 | E147: 147 | G147: -2.123123124 | H147: =[1]!XLSTAT_PDFNormal(G147,0.300943968727696,1.04241610265003) -> 0.02562222277 | I147: 147 | K147: -2.123123124 | L147: =[1]!XLSTAT_PDFNormal(K147,-0.201135496518942,1.01363139377986) -> 0.06520934964 | M147: 147 | O147: -2.123123124 | P147: =[1]!XLSTAT_PDFNormal(O147,-0.201135496518942,1.01363139377986) -> 0.06520934964
A148: 148 | C148: -2.117117118 | D148: =[1]!XLSTAT_PDFNormal(C148,0.300943968727696,1.04241610265003) -> 0.02596739485 | E148: 148 | G148: -2.117117118 | H148: =[1]!XLSTAT_PDFNormal(G148,0.300943968727696,1.04241610265003) -> 0.02596739485 | I148: 148 | K148: -2.117117118 | L148: =[1]!XLSTAT_PDFNormal(K148,-0.201135496518942,1.01363139377986) -> 0.06594495546 | M148: 148 | O148: -2.117117118 | P148: =[1]!XLSTAT_PDFNormal(O148,-0.201135496518942,1.01363139377986) -> 0.06594495546
A149: 149 | C149: -2.111111112 | D149: =[1]!XLSTAT_PDFNormal(C149,0.300943968727696,1.04241610265003) -> 0.02631634333 | E149: 149 | G149: -2.111111112 | H149: =[1]!XLSTAT_PDFNormal(G149,0.300943968727696,1.04241610265003) -> 0.02631634333 | I149: 149 | K149: -2.111111112 | L149: =[1]!XLSTAT_PDFNormal(K149,-0.201135496518942,1.01363139377986) -> 0.0666865181 | M149: 149 | O149: -2.111111112 | P149: =[1]!XLSTAT_PDFNormal(O149,-0.201135496518942,1.01363139377986) -> 0.0666865181
A150: 150 | C150: -2.105105106 | D150: =[1]!XLSTAT_PDFNormal(C150,0.300943968727696,1.04241610265003) -> 0.02666909563 | E150: 150 | G150: -2.105105106 | H150: =[1]!XLSTAT_PDFNormal(G150,0.300943968727696,1.04241610265003) -> 0.02666909563 | I150: 150 | K150: -2.105105106 | L150: =[1]!XLSTAT_PDFNormal(K150,-0.201135496518942,1.01363139377986) -> 0.0674340522 | M150: 150 | O150: -2.105105106 | P150: =[1]!XLSTAT_PDFNormal(O150,-0.201135496518942,1.01363139377986) -> 0.0674340522
A151: 151 | C151: -2.0990991 | D151: =[1]!XLSTAT_PDFNormal(C151,0.300943968727696,1.04241610265003) -> 0.02702567916 | E151: 151 | G151: -2.0990991 | H151: =[1]!XLSTAT_PDFNormal(G151,0.300943968727696,1.04241610265003) -> 0.02702567916 | I151: 151 | K151: -2.0990991 | L151: =[1]!XLSTAT_PDFNormal(K151,-0.201135496518942,1.01363139377986) -> 0.06818757192 | M151: 151 | O151: -2.0990991 | P151: =[1]!XLSTAT_PDFNormal(O151,-0.201135496518942,1.01363139377986) -> 0.06818757192
A152: 152 | C152: -2.093093094 | D152: =[1]!XLSTAT_PDFNormal(C152,0.300943968727696,1.04241610265003) -> 0.02738612131 | E152: 152 | G152: -2.093093094 | H152: =[1]!XLSTAT_PDFNormal(G152,0.300943968727696,1.04241610265003) -> 0.02738612131 | I152: 152 | K152: -2.093093094 | L152: =[1]!XLSTAT_PDFNormal(K152,-0.201135496518942,1.01363139377986) -> 0.06894709093 | M152: 152 | O152: -2.093093094 | P152: =[1]!XLSTAT_PDFNormal(O152,-0.201135496518942,1.01363139377986) -> 0.06894709093
A153: 153 | C153: -2.087087088 | D153: =[1]!XLSTAT_PDFNormal(C153,0.300943968727696,1.04241610265003) -> 0.02775044947 | E153: 153 | G153: -2.087087088 | H153: =[1]!XLSTAT_PDFNormal(G153,0.300943968727696,1.04241610265003) -> 0.02775044947 | I153: 153 | K153: -2.087087088 | L153: =[1]!XLSTAT_PDFNormal(K153,-0.201135496518942,1.01363139377986) -> 0.06971262243 | M153: 153 | O153: -2.087087088 | P153: =[1]!XLSTAT_PDFNormal(O153,-0.201135496518942,1.01363139377986) -> 0.06971262243
A154: 154 | C154: -2.081081082 | D154: =[1]!XLSTAT_PDFNormal(C154,0.300943968727696,1.04241610265003) -> 0.02811869098 | E154: 154 | G154: -2.081081082 | H154: =[1]!XLSTAT_PDFNormal(G154,0.300943968727696,1.04241610265003) -> 0.02811869098 | I154: 154 | K154: -2.081081082 | L154: =[1]!XLSTAT_PDFNormal(K154,-0.201135496518942,1.01363139377986) -> 0.07048417912 | M154: 154 | O154: -2.081081082 | P154: =[1]!XLSTAT_PDFNormal(O154,-0.201135496518942,1.01363139377986) -> 0.07048417912
A155: 155 | C155: -2.075075076 | D155: =[1]!XLSTAT_PDFNormal(C155,0.300943968727696,1.04241610265003) -> 0.02849087314 | E155: 155 | G155: -2.075075076 | H155: =[1]!XLSTAT_PDFNormal(G155,0.300943968727696,1.04241610265003) -> 0.02849087314 | I155: 155 | K155: -2.075075076 | L155: =[1]!XLSTAT_PDFNormal(K155,-0.201135496518942,1.01363139377986) -> 0.07126177322 | M155: 155 | O155: -2.075075076 | P155: =[1]!XLSTAT_PDFNormal(O155,-0.201135496518942,1.01363139377986) -> 0.07126177322
A156: 156 | C156: -2.06906907 | D156: =[1]!XLSTAT_PDFNormal(C156,0.300943968727696,1.04241610265003) -> 0.02886702327 | E156: 156 | G156: -2.06906907 | H156: =[1]!XLSTAT_PDFNormal(G156,0.300943968727696,1.04241610265003) -> 0.02886702327 | I156: 156 | K156: -2.06906907 | L156: =[1]!XLSTAT_PDFNormal(K156,-0.201135496518942,1.01363139377986) -> 0.07204541643 | M156: 156 | O156: -2.06906907 | P156: =[1]!XLSTAT_PDFNormal(O156,-0.201135496518942,1.01363139377986) -> 0.07204541643
A157: 157 | C157: -2.063063064 | D157: =[1]!XLSTAT_PDFNormal(C157,0.300943968727696,1.04241610265003) -> 0.02924716859 | E157: 157 | G157: -2.063063064 | H157: =[1]!XLSTAT_PDFNormal(G157,0.300943968727696,1.04241610265003) -> 0.02924716859 | I157: 157 | K157: -2.063063064 | L157: =[1]!XLSTAT_PDFNormal(K157,-0.201135496518942,1.01363139377986) -> 0.07283511995 | M157: 157 | O157: -2.063063064 | P157: =[1]!XLSTAT_PDFNormal(O157,-0.201135496518942,1.01363139377986) -> 0.07283511995
A158: 158 | C158: -2.057057058 | D158: =[1]!XLSTAT_PDFNormal(C158,0.300943968727696,1.04241610265003) -> 0.02963133632 | E158: 158 | G158: -2.057057058 | H158: =[1]!XLSTAT_PDFNormal(G158,0.300943968727696,1.04241610265003) -> 0.02963133632 | I158: 158 | K158: -2.057057058 | L158: =[1]!XLSTAT_PDFNormal(K158,-0.201135496518942,1.01363139377986) -> 0.07363089445 | M158: 158 | O158: -2.057057058 | P158: =[1]!XLSTAT_PDFNormal(O158,-0.201135496518942,1.01363139377986) -> 0.07363089445
A159: 159 | C159: -2.051051052 | D159: =[1]!XLSTAT_PDFNormal(C159,0.300943968727696,1.04241610265003) -> 0.03001955362 | E159: 159 | G159: -2.051051052 | H159: =[1]!XLSTAT_PDFNormal(G159,0.300943968727696,1.04241610265003) -> 0.03001955362 | I159: 159 | K159: -2.051051052 | L159: =[1]!XLSTAT_PDFNormal(K159,-0.201135496518942,1.01363139377986) -> 0.07443275008 | M159: 159 | O159: -2.051051052 | P159: =[1]!XLSTAT_PDFNormal(O159,-0.201135496518942,1.01363139377986) -> 0.07443275008
A160: 160 | C160: -2.045045046 | D160: =[1]!XLSTAT_PDFNormal(C160,0.300943968727696,1.04241610265003) -> 0.0304118476 | E160: 160 | G160: -2.045045046 | H160: =[1]!XLSTAT_PDFNormal(G160,0.300943968727696,1.04241610265003) -> 0.0304118476 | I160: 160 | K160: -2.045045046 | L160: =[1]!XLSTAT_PDFNormal(K160,-0.201135496518942,1.01363139377986) -> 0.07524069645 | M160: 160 | O160: -2.045045046 | P160: =[1]!XLSTAT_PDFNormal(O160,-0.201135496518942,1.01363139377986) -> 0.07524069645
A161: 161 | C161: -2.03903904 | D161: =[1]!XLSTAT_PDFNormal(C161,0.300943968727696,1.04241610265003) -> 0.03080824533 | E161: 161 | G161: -2.03903904 | H161: =[1]!XLSTAT_PDFNormal(G161,0.300943968727696,1.04241610265003) -> 0.03080824533 | I161: 161 | K161: -2.03903904 | L161: =[1]!XLSTAT_PDFNormal(K161,-0.201135496518942,1.01363139377986) -> 0.07605474263 | M161: 161 | O161: -2.03903904 | P161: =[1]!XLSTAT_PDFNormal(O161,-0.201135496518942,1.01363139377986) -> 0.07605474263
A162: 162 | C162: -2.033033034 | D162: =[1]!XLSTAT_PDFNormal(C162,0.300943968727696,1.04241610265003) -> 0.0312087738 | E162: 162 | G162: -2.033033034 | H162: =[1]!XLSTAT_PDFNormal(G162,0.300943968727696,1.04241610265003) -> 0.0312087738 | I162: 162 | K162: -2.033033034 | L162: =[1]!XLSTAT_PDFNormal(K162,-0.201135496518942,1.01363139377986) -> 0.07687489717 | M162: 162 | O162: -2.033033034 | P162: =[1]!XLSTAT_PDFNormal(O162,-0.201135496518942,1.01363139377986) -> 0.07687489717
A163: 163 | C163: -2.027027028 | D163: =[1]!XLSTAT_PDFNormal(C163,0.300943968727696,1.04241610265003) -> 0.03161345995 | E163: 163 | G163: -2.027027028 | H163: =[1]!XLSTAT_PDFNormal(G163,0.300943968727696,1.04241610265003) -> 0.03161345995 | I163: 163 | K163: -2.027027028 | L163: =[1]!XLSTAT_PDFNormal(K163,-0.201135496518942,1.01363139377986) -> 0.07770116802 | M163: 163 | O163: -2.027027028 | P163: =[1]!XLSTAT_PDFNormal(O163,-0.201135496518942,1.01363139377986) -> 0.07770116802
A164: 164 | C164: -2.021021022 | D164: =[1]!XLSTAT_PDFNormal(C164,0.300943968727696,1.04241610265003) -> 0.03202233064 | E164: 164 | G164: -2.021021022 | H164: =[1]!XLSTAT_PDFNormal(G164,0.300943968727696,1.04241610265003) -> 0.03202233064 | I164: 164 | K164: -2.021021022 | L164: =[1]!XLSTAT_PDFNormal(K164,-0.201135496518942,1.01363139377986) -> 0.07853356261 | M164: 164 | O164: -2.021021022 | P164: =[1]!XLSTAT_PDFNormal(O164,-0.201135496518942,1.01363139377986) -> 0.07853356261
A165: 165 | C165: -2.015015016 | D165: =[1]!XLSTAT_PDFNormal(C165,0.300943968727696,1.04241610265003) -> 0.0324354127 | E165: 165 | G165: -2.015015016 | H165: =[1]!XLSTAT_PDFNormal(G165,0.300943968727696,1.04241610265003) -> 0.0324354127 | I165: 165 | K165: -2.015015016 | L165: =[1]!XLSTAT_PDFNormal(K165,-0.201135496518942,1.01363139377986) -> 0.07937208776 | M165: 165 | O165: -2.015015016 | P165: =[1]!XLSTAT_PDFNormal(O165,-0.201135496518942,1.01363139377986) -> 0.07937208776
A166: 166 | C166: -2.00900901 | D166: =[1]!XLSTAT_PDFNormal(C166,0.300943968727696,1.04241610265003) -> 0.03285273282 | E166: 166 | G166: -2.00900901 | H166: =[1]!XLSTAT_PDFNormal(G166,0.300943968727696,1.04241610265003) -> 0.03285273282 | I166: 166 | K166: -2.00900901 | L166: =[1]!XLSTAT_PDFNormal(K166,-0.201135496518942,1.01363139377986) -> 0.08021674976 | M166: 166 | O166: -2.00900901 | P166: =[1]!XLSTAT_PDFNormal(O166,-0.201135496518942,1.01363139377986) -> 0.08021674976
A167: 167 | C167: -2.003003004 | D167: =[1]!XLSTAT_PDFNormal(C167,0.300943968727696,1.04241610265003) -> 0.03327431766 | E167: 167 | G167: -2.003003004 | H167: =[1]!XLSTAT_PDFNormal(G167,0.300943968727696,1.04241610265003) -> 0.03327431766 | I167: 167 | K167: -2.003003004 | L167: =[1]!XLSTAT_PDFNormal(K167,-0.201135496518942,1.01363139377986) -> 0.08106755427 | M167: 167 | O167: -2.003003004 | P167: =[1]!XLSTAT_PDFNormal(O167,-0.201135496518942,1.01363139377986) -> 0.08106755427
A168: 168 | C168: -1.996996998 | D168: =[1]!XLSTAT_PDFNormal(C168,0.300943968727696,1.04241610265003) -> 0.03370019378 | E168: 168 | G168: -1.996996998 | H168: =[1]!XLSTAT_PDFNormal(G168,0.300943968727696,1.04241610265003) -> 0.03370019378 | I168: 168 | K168: -1.996996998 | L168: =[1]!XLSTAT_PDFNormal(K168,-0.201135496518942,1.01363139377986) -> 0.0819245064 | M168: 168 | O168: -1.996996998 | P168: =[1]!XLSTAT_PDFNormal(O168,-0.201135496518942,1.01363139377986) -> 0.0819245064
A169: 169 | C169: -1.990990992 | D169: =[1]!XLSTAT_PDFNormal(C169,0.300943968727696,1.04241610265003) -> 0.03413038764 | E169: 169 | G169: -1.990990992 | H169: =[1]!XLSTAT_PDFNormal(G169,0.300943968727696,1.04241610265003) -> 0.03413038764 | I169: 169 | K169: -1.990990992 | L169: =[1]!XLSTAT_PDFNormal(K169,-0.201135496518942,1.01363139377986) -> 0.08278761064 | M169: 169 | O169: -1.990990992 | P169: =[1]!XLSTAT_PDFNormal(O169,-0.201135496518942,1.01363139377986) -> 0.08278761064
A170: 170 | C170: -1.984984986 | D170: =[1]!XLSTAT_PDFNormal(C170,0.300943968727696,1.04241610265003) -> 0.03456492562 | E170: 170 | G170: -1.984984986 | H170: =[1]!XLSTAT_PDFNormal(G170,0.300943968727696,1.04241610265003) -> 0.03456492562 | I170: 170 | K170: -1.984984986 | L170: =[1]!XLSTAT_PDFNormal(K170,-0.201135496518942,1.01363139377986) -> 0.08365687088 | M170: 170 | O170: -1.984984986 | P170: =[1]!XLSTAT_PDFNormal(O170,-0.201135496518942,1.01363139377986) -> 0.08365687088
A171: 171 | C171: -1.97897898 | D171: =[1]!XLSTAT_PDFNormal(C171,0.300943968727696,1.04241610265003) -> 0.035003834 | E171: 171 | G171: -1.97897898 | H171: =[1]!XLSTAT_PDFNormal(G171,0.300943968727696,1.04241610265003) -> 0.035003834 | I171: 171 | K171: -1.97897898 | L171: =[1]!XLSTAT_PDFNormal(K171,-0.201135496518942,1.01363139377986) -> 0.0845322904 | M171: 171 | O171: -1.97897898 | P171: =[1]!XLSTAT_PDFNormal(O171,-0.201135496518942,1.01363139377986) -> 0.0845322904
A172: 172 | C172: -1.972972974 | D172: =[1]!XLSTAT_PDFNormal(C172,0.300943968727696,1.04241610265003) -> 0.03544713893 | E172: 172 | G172: -1.972972974 | H172: =[1]!XLSTAT_PDFNormal(G172,0.300943968727696,1.04241610265003) -> 0.03544713893 | I172: 172 | K172: -1.972972974 | L172: =[1]!XLSTAT_PDFNormal(K172,-0.201135496518942,1.01363139377986) -> 0.08541387186 | M172: 172 | O172: -1.972972974 | P172: =[1]!XLSTAT_PDFNormal(O172,-0.201135496518942,1.01363139377986) -> 0.08541387186
A173: 173 | C173: -1.966966968 | D173: =[1]!XLSTAT_PDFNormal(C173,0.300943968727696,1.04241610265003) -> 0.0358948665 | E173: 173 | G173: -1.966966968 | H173: =[1]!XLSTAT_PDFNormal(G173,0.300943968727696,1.04241610265003) -> 0.0358948665 | I173: 173 | K173: -1.966966968 | L173: =[1]!XLSTAT_PDFNormal(K173,-0.201135496518942,1.01363139377986) -> 0.08630161732 | M173: 173 | O173: -1.966966968 | P173: =[1]!XLSTAT_PDFNormal(O173,-0.201135496518942,1.01363139377986) -> 0.08630161732
A174: 174 | C174: -1.960960962 | D174: =[1]!XLSTAT_PDFNormal(C174,0.300943968727696,1.04241610265003) -> 0.03634704263 | E174: 174 | G174: -1.960960962 | H174: =[1]!XLSTAT_PDFNormal(G174,0.300943968727696,1.04241610265003) -> 0.03634704263 | I174: 174 | K174: -1.960960962 | L174: =[1]!XLSTAT_PDFNormal(K174,-0.201135496518942,1.01363139377986) -> 0.08719552816 | M174: 174 | O174: -1.960960962 | P174: =[1]!XLSTAT_PDFNormal(O174,-0.201135496518942,1.01363139377986) -> 0.08719552816
A175: 175 | C175: -1.954954956 | D175: =[1]!XLSTAT_PDFNormal(C175,0.300943968727696,1.04241610265003) -> 0.03680369317 | E175: 175 | G175: -1.954954956 | H175: =[1]!XLSTAT_PDFNormal(G175,0.300943968727696,1.04241610265003) -> 0.03680369317 | I175: 175 | K175: -1.954954956 | L175: =[1]!XLSTAT_PDFNormal(K175,-0.201135496518942,1.01363139377986) -> 0.08809560517 | M175: 175 | O175: -1.954954956 | P175: =[1]!XLSTAT_PDFNormal(O175,-0.201135496518942,1.01363139377986) -> 0.08809560517
A176: 176 | C176: -1.94894895 | D176: =[1]!XLSTAT_PDFNormal(C176,0.300943968727696,1.04241610265003) -> 0.03726484383 | E176: 176 | G176: -1.94894895 | H176: =[1]!XLSTAT_PDFNormal(G176,0.300943968727696,1.04241610265003) -> 0.03726484383 | I176: 176 | K176: -1.94894895 | L176: =[1]!XLSTAT_PDFNormal(K176,-0.201135496518942,1.01363139377986) -> 0.08900184847 | M176: 176 | O176: -1.94894895 | P176: =[1]!XLSTAT_PDFNormal(O176,-0.201135496518942,1.01363139377986) -> 0.08900184847
A177: 177 | C177: -1.942942944 | D177: =[1]!XLSTAT_PDFNormal(C177,0.300943968727696,1.04241610265003) -> 0.03773052017 | E177: 177 | G177: -1.942942944 | H177: =[1]!XLSTAT_PDFNormal(G177,0.300943968727696,1.04241610265003) -> 0.03773052017 | I177: 177 | K177: -1.942942944 | L177: =[1]!XLSTAT_PDFNormal(K177,-0.201135496518942,1.01363139377986) -> 0.08991425752 | M177: 177 | O177: -1.942942944 | P177: =[1]!XLSTAT_PDFNormal(O177,-0.201135496518942,1.01363139377986) -> 0.08991425752
A178: 178 | C178: -1.936936938 | D178: =[1]!XLSTAT_PDFNormal(C178,0.300943968727696,1.04241610265003) -> 0.03820074764 | E178: 178 | G178: -1.936936938 | H178: =[1]!XLSTAT_PDFNormal(G178,0.300943968727696,1.04241610265003) -> 0.03820074764 | I178: 178 | K178: -1.936936938 | L178: =[1]!XLSTAT_PDFNormal(K178,-0.201135496518942,1.01363139377986) -> 0.09083283115 | M178: 178 | O178: -1.936936938 | P178: =[1]!XLSTAT_PDFNormal(O178,-0.201135496518942,1.01363139377986) -> 0.09083283115
A179: 179 | C179: -1.930930932 | D179: =[1]!XLSTAT_PDFNormal(C179,0.300943968727696,1.04241610265003) -> 0.03867555156 | E179: 179 | G179: -1.930930932 | H179: =[1]!XLSTAT_PDFNormal(G179,0.300943968727696,1.04241610265003) -> 0.03867555156 | I179: 179 | K179: -1.930930932 | L179: =[1]!XLSTAT_PDFNormal(K179,-0.201135496518942,1.01363139377986) -> 0.09175756751 | M179: 179 | O179: -1.930930932 | P179: =[1]!XLSTAT_PDFNormal(O179,-0.201135496518942,1.01363139377986) -> 0.09175756751
A180: 180 | C180: -1.924924926 | D180: =[1]!XLSTAT_PDFNormal(C180,0.300943968727696,1.04241610265003) -> 0.03915495707 | E180: 180 | G180: -1.924924926 | H180: =[1]!XLSTAT_PDFNormal(G180,0.300943968727696,1.04241610265003) -> 0.03915495707 | I180: 180 | K180: -1.924924926 | L180: =[1]!XLSTAT_PDFNormal(K180,-0.201135496518942,1.01363139377986) -> 0.09268846407 | M180: 180 | O180: -1.924924926 | P180: =[1]!XLSTAT_PDFNormal(O180,-0.201135496518942,1.01363139377986) -> 0.09268846407
A181: 181 | C181: -1.91891892 | D181: =[1]!XLSTAT_PDFNormal(C181,0.300943968727696,1.04241610265003) -> 0.03963898921 | E181: 181 | G181: -1.91891892 | H181: =[1]!XLSTAT_PDFNormal(G181,0.300943968727696,1.04241610265003) -> 0.03963898921 | I181: 181 | K181: -1.91891892 | L181: =[1]!XLSTAT_PDFNormal(K181,-0.201135496518942,1.01363139377986) -> 0.09362551763 | M181: 181 | O181: -1.91891892 | P181: =[1]!XLSTAT_PDFNormal(O181,-0.201135496518942,1.01363139377986) -> 0.09362551763
A182: 182 | C182: -1.912912914 | D182: =[1]!XLSTAT_PDFNormal(C182,0.300943968727696,1.04241610265003) -> 0.04012767282 | E182: 182 | G182: -1.912912914 | H182: =[1]!XLSTAT_PDFNormal(G182,0.300943968727696,1.04241610265003) -> 0.04012767282 | I182: 182 | K182: -1.912912914 | L182: =[1]!XLSTAT_PDFNormal(K182,-0.201135496518942,1.01363139377986) -> 0.09456872432 | M182: 182 | O182: -1.912912914 | P182: =[1]!XLSTAT_PDFNormal(O182,-0.201135496518942,1.01363139377986) -> 0.09456872432
A183: 183 | C183: -1.906906908 | D183: =[1]!XLSTAT_PDFNormal(C183,0.300943968727696,1.04241610265003) -> 0.0406210326 | E183: 183 | G183: -1.906906908 | H183: =[1]!XLSTAT_PDFNormal(G183,0.300943968727696,1.04241610265003) -> 0.0406210326 | I183: 183 | K183: -1.906906908 | L183: =[1]!XLSTAT_PDFNormal(K183,-0.201135496518942,1.01363139377986) -> 0.09551807956 | M183: 183 | O183: -1.906906908 | P183: =[1]!XLSTAT_PDFNormal(O183,-0.201135496518942,1.01363139377986) -> 0.09551807956
A184: 184 | C184: -1.900900902 | D184: =[1]!XLSTAT_PDFNormal(C184,0.300943968727696,1.04241610265003) -> 0.0411190931 | E184: 184 | G184: -1.900900902 | H184: =[1]!XLSTAT_PDFNormal(G184,0.300943968727696,1.04241610265003) -> 0.0411190931 | I184: 184 | K184: -1.900900902 | L184: =[1]!XLSTAT_PDFNormal(K184,-0.201135496518942,1.01363139377986) -> 0.09647357807 | M184: 184 | O184: -1.900900902 | P184: =[1]!XLSTAT_PDFNormal(O184,-0.201135496518942,1.01363139377986) -> 0.09647357807
A185: 185 | C185: -1.894894896 | D185: =[1]!XLSTAT_PDFNormal(C185,0.300943968727696,1.04241610265003) -> 0.04162187868 | E185: 185 | G185: -1.894894896 | H185: =[1]!XLSTAT_PDFNormal(G185,0.300943968727696,1.04241610265003) -> 0.04162187868 | I185: 185 | K185: -1.894894896 | L185: =[1]!XLSTAT_PDFNormal(K185,-0.201135496518942,1.01363139377986) -> 0.09743521389 | M185: 185 | O185: -1.894894896 | P185: =[1]!XLSTAT_PDFNormal(O185,-0.201135496518942,1.01363139377986) -> 0.09743521389
A186: 186 | C186: -1.88888889 | D186: =[1]!XLSTAT_PDFNormal(C186,0.300943968727696,1.04241610265003) -> 0.04212941353 | E186: 186 | G186: -1.88888889 | H186: =[1]!XLSTAT_PDFNormal(G186,0.300943968727696,1.04241610265003) -> 0.04212941353 | I186: 186 | K186: -1.88888889 | L186: =[1]!XLSTAT_PDFNormal(K186,-0.201135496518942,1.01363139377986) -> 0.09840298034 | M186: 186 | O186: -1.88888889 | P186: =[1]!XLSTAT_PDFNormal(O186,-0.201135496518942,1.01363139377986) -> 0.09840298034
A187: 187 | C187: -1.882882884 | D187: =[1]!XLSTAT_PDFNormal(C187,0.300943968727696,1.04241610265003) -> 0.04264172166 | E187: 187 | G187: -1.882882884 | H187: =[1]!XLSTAT_PDFNormal(G187,0.300943968727696,1.04241610265003) -> 0.04264172166 | I187: 187 | K187: -1.882882884 | L187: =[1]!XLSTAT_PDFNormal(K187,-0.201135496518942,1.01363139377986) -> 0.09937687001 | M187: 187 | O187: -1.882882884 | P187: =[1]!XLSTAT_PDFNormal(O187,-0.201135496518942,1.01363139377986) -> 0.09937687001
A188: 188 | C188: -1.876876878 | D188: =[1]!XLSTAT_PDFNormal(C188,0.300943968727696,1.04241610265003) -> 0.0431588269 | E188: 188 | G188: -1.876876878 | H188: =[1]!XLSTAT_PDFNormal(G188,0.300943968727696,1.04241610265003) -> 0.0431588269 | I188: 188 | K188: -1.876876878 | L188: =[1]!XLSTAT_PDFNormal(K188,-0.201135496518942,1.01363139377986) -> 0.1003568748 | M188: 188 | O188: -1.876876878 | P188: =[1]!XLSTAT_PDFNormal(O188,-0.201135496518942,1.01363139377986) -> 0.1003568748
A189: 189 | C189: -1.870870872 | D189: =[1]!XLSTAT_PDFNormal(C189,0.300943968727696,1.04241610265003) -> 0.04368075288 | E189: 189 | G189: -1.870870872 | H189: =[1]!XLSTAT_PDFNormal(G189,0.300943968727696,1.04241610265003) -> 0.04368075288 | I189: 189 | K189: -1.870870872 | L189: =[1]!XLSTAT_PDFNormal(K189,-0.201135496518942,1.01363139377986) -> 0.1013429858 | M189: 189 | O189: -1.870870872 | P189: =[1]!XLSTAT_PDFNormal(O189,-0.201135496518942,1.01363139377986) -> 0.1013429858
A190: 190 | C190: -1.864864866 | D190: =[1]!XLSTAT_PDFNormal(C190,0.300943968727696,1.04241610265003) -> 0.04420752304 | E190: 190 | G190: -1.864864866 | H190: =[1]!XLSTAT_PDFNormal(G190,0.300943968727696,1.04241610265003) -> 0.04420752304 | I190: 190 | K190: -1.864864866 | L190: =[1]!XLSTAT_PDFNormal(K190,-0.201135496518942,1.01363139377986) -> 0.1023351935 | M190: 190 | O190: -1.864864866 | P190: =[1]!XLSTAT_PDFNormal(O190,-0.201135496518942,1.01363139377986) -> 0.1023351935
A191: 191 | C191: -1.85885886 | D191: =[1]!XLSTAT_PDFNormal(C191,0.300943968727696,1.04241610265003) -> 0.0447391606 | E191: 191 | G191: -1.85885886 | H191: =[1]!XLSTAT_PDFNormal(G191,0.300943968727696,1.04241610265003) -> 0.0447391606 | I191: 191 | K191: -1.85885886 | L191: =[1]!XLSTAT_PDFNormal(K191,-0.201135496518942,1.01363139377986) -> 0.1033334876 | M191: 191 | O191: -1.85885886 | P191: =[1]!XLSTAT_PDFNormal(O191,-0.201135496518942,1.01363139377986) -> 0.1033334876
A192: 192 | C192: -1.852852854 | D192: =[1]!XLSTAT_PDFNormal(C192,0.300943968727696,1.04241610265003) -> 0.04527568861 | E192: 192 | G192: -1.852852854 | H192: =[1]!XLSTAT_PDFNormal(G192,0.300943968727696,1.04241610265003) -> 0.04527568861 | I192: 192 | K192: -1.852852854 | L192: =[1]!XLSTAT_PDFNormal(K192,-0.201135496518942,1.01363139377986) -> 0.104337857 | M192: 192 | O192: -1.852852854 | P192: =[1]!XLSTAT_PDFNormal(O192,-0.201135496518942,1.01363139377986) -> 0.104337857
A193: 193 | C193: =-3+(A193-1)*0.006006006 -> -1.846846848 | D193: =[1]!XLSTAT_PDFNormal(C193,0.300943968727696,1.04241610265003) -> 0.04581712987 | E193: 193 | G193: =-3+(E193-1)*0.006006006 -> -1.846846848 | H193: =[1]!XLSTAT_PDFNormal(G193,0.300943968727696,1.04241610265003) -> 0.04581712987 | I193: 193 | K193: =-3+(I193-1)*0.006006006 -> -1.846846848 | L193: =[1]!XLSTAT_PDFNormal(K193,-0.201135496518942,1.01363139377986) -> 0.1053482898 | M193: 193 | O193: =-3+(M193-1)*0.006006006 -> -1.846846848 | P193: =[1]!XLSTAT_PDFNormal(O193,-0.201135496518942,1.01363139377986) -> 0.1053482898
A194: 194 | C194: -1.840840842 | D194: =[1]!XLSTAT_PDFNormal(C194,0.300943968727696,1.04241610265003) -> 0.04636350698 | E194: 194 | G194: -1.840840842 | H194: =[1]!XLSTAT_PDFNormal(G194,0.300943968727696,1.04241610265003) -> 0.04636350698 | I194: 194 | K194: -1.840840842 | L194: =[1]!XLSTAT_PDFNormal(K194,-0.201135496518942,1.01363139377986) -> 0.1063647736 | M194: 194 | O194: -1.840840842 | P194: =[1]!XLSTAT_PDFNormal(O194,-0.201135496518942,1.01363139377986) -> 0.1063647736
A195: 195 | C195: -1.834834836 | D195: =[1]!XLSTAT_PDFNormal(C195,0.300943968727696,1.04241610265003) -> 0.04691484231 | E195: 195 | G195: -1.834834836 | H195: =[1]!XLSTAT_PDFNormal(G195,0.300943968727696,1.04241610265003) -> 0.04691484231 | I195: 195 | K195: -1.834834836 | L195: =[1]!XLSTAT_PDFNormal(K195,-0.201135496518942,1.01363139377986) -> 0.1073872949 | M195: 195 | O195: -1.834834836 | P195: =[1]!XLSTAT_PDFNormal(O195,-0.201135496518942,1.01363139377986) -> 0.1073872949
A196: 196 | C196: -1.82882883 | D196: =[1]!XLSTAT_PDFNormal(C196,0.300943968727696,1.04241610265003) -> 0.04747115799 | E196: 196 | G196: -1.82882883 | H196: =[1]!XLSTAT_PDFNormal(G196,0.300943968727696,1.04241610265003) -> 0.04747115799 | I196: 196 | K196: -1.82882883 | L196: =[1]!XLSTAT_PDFNormal(K196,-0.201135496518942,1.01363139377986) -> 0.1084158397 | M196: 196 | O196: -1.82882883 | P196: =[1]!XLSTAT_PDFNormal(O196,-0.201135496518942,1.01363139377986) -> 0.1084158397
A197: 197 | C197: -1.822822824 | D197: =[1]!XLSTAT_PDFNormal(C197,0.300943968727696,1.04241610265003) -> 0.04803247593 | E197: 197 | G197: -1.822822824 | H197: =[1]!XLSTAT_PDFNormal(G197,0.300943968727696,1.04241610265003) -> 0.04803247593 | I197: 197 | K197: -1.822822824 | L197: =[1]!XLSTAT_PDFNormal(K197,-0.201135496518942,1.01363139377986) -> 0.1094503931 | M197: 197 | O197: -1.822822824 | P197: =[1]!XLSTAT_PDFNormal(O197,-0.201135496518942,1.01363139377986) -> 0.1094503931
A198: 198 | C198: -1.816816818 | D198: =[1]!XLSTAT_PDFNormal(C198,0.300943968727696,1.04241610265003) -> 0.04859881779 | E198: 198 | G198: -1.816816818 | H198: =[1]!XLSTAT_PDFNormal(G198,0.300943968727696,1.04241610265003) -> 0.04859881779 | I198: 198 | K198: -1.816816818 | L198: =[1]!XLSTAT_PDFNormal(K198,-0.201135496518942,1.01363139377986) -> 0.1104909395 | M198: 198 | O198: -1.816816818 | P198: =[1]!XLSTAT_PDFNormal(O198,-0.201135496518942,1.01363139377986) -> 0.1104909395
A199: 199 | C199: -1.810810812 | D199: =[1]!XLSTAT_PDFNormal(C199,0.300943968727696,1.04241610265003) -> 0.04917020498 | E199: 199 | G199: -1.810810812 | H199: =[1]!XLSTAT_PDFNormal(G199,0.300943968727696,1.04241610265003) -> 0.04917020498 | I199: 199 | K199: -1.810810812 | L199: =[1]!XLSTAT_PDFNormal(K199,-0.201135496518942,1.01363139377986) -> 0.1115374624 | M199: 199 | O199: -1.810810812 | P199: =[1]!XLSTAT_PDFNormal(O199,-0.201135496518942,1.01363139377986) -> 0.1115374624
A200: 200 | C200: -1.804804806 | D200: =[1]!XLSTAT_PDFNormal(C200,0.300943968727696,1.04241610265003) -> 0.04974665868 | E200: 200 | G200: -1.804804806 | H200: =[1]!XLSTAT_PDFNormal(G200,0.300943968727696,1.04241610265003) -> 0.04974665868 | I200: 200 | K200: -1.804804806 | L200: =[1]!XLSTAT_PDFNormal(K200,-0.201135496518942,1.01363139377986) -> 0.1125899445 | M200: 200 | O200: -1.804804806 | P200: =[1]!XLSTAT_PDFNormal(O200,-0.201135496518942,1.01363139377986) -> 0.1125899445
... 800 more rows

Sheet XLSTAT_20230412_120157_1_HID (hidden)
B1: -3 | C1: 0 | D1: -3 | E1: 0 | F1: -3 | G1: 0 | H1: -3 | I1: 0
B2: -3 | C2: 0.03863049955 | D2: -3 | E2: 0.03863049955 | F2: -3 | G2: 0.07726099909 | H2: -3 | I2: 0.07726099909
B3: -2.997411372 | C3: 0.03863049955 | D3: -1.964548725 | E3: 0.03863049955 | F3: -2.997411372 | G3: 0.07726099909 | H3: -1.964548725 | I3: 0.07726099909
B4: -2.997411372 | C4: 0 | D4: -1.964548725 | E4: 0 | F4: -2.997411372 | G4: 0 | H4: -1.964548725 | I4: 0
B5: -2.994822744 | C5: 0 | D5: -1.964548725 | E5: 0.07726099909 | F5: -2.994822744 | G5: 0 | H5: -1.964548725 | I5: 0.07726099909
B6: -2.994822744 | C6: 0.03863049955 | D6: -0.9290974505 | E6: 0.07726099909 | F6: -2.994822744 | G6: 0.07726099909 | H6: -0.9290974505 | I6: 0.07726099909
B7: -2.992234115 | C7: 0.03863049955 | D7: -0.9290974505 | E7: 0 | F7: -2.992234115 | G7: 0.07726099909 | H7: -0.9290974505 | I7: 0
B8: -2.992234115 | C8: 0 | D8: -0.9290974505 | E8: 0.1931524977 | F8: -2.992234115 | G8: 0 | H8: -0.9290974505 | I8: 0.424935495
B9: -2.989645487 | C9: 0 | D9: 0.1063538242 | E9: 0.1931524977 | F9: -2.989645487 | G9: 0 | H9: 0.1063538242 | I9: 0.424935495
B10: -2.989645487 | C10: 0.03863049955 | D10: 0.1063538242 | E10: 0 | F10: -2.989645487 | G10: 0.07726099909 | H10: 0.1063538242 | I10: 0
B11: -2.987056859 | C11: 0.03863049955 | D11: 0.1063538242 | E11: 0.4635659946 | F11: -2.987056859 | G11: 0.07726099909 | H11: 0.1063538242 | I11: 0.3090439964
B12: -2.987056859 | C12: 0 | D12: 1.141805099 | E12: 0.4635659946 | F12: -2.987056859 | G12: 0 | H12: 1.141805099 | I12: 0.3090439964
B13: -2.984468231 | C13: 0 | D13: 1.141805099 | E13: 0 | F13: -2.984468231 | G13: 0 | H13: 1.141805099 | I13: 0
B14: -2.984468231 | C14: 0.03863049955 | D14: 1.141805099 | E14: 0.1931524977 | F14: -2.984468231 | G14: 0.07726099909 | H14: 1.141805099 | I14: 0.07726099909
B15: -2.981879603 | C15: 0.03863049955 | D15: 2.177256374 | E15: 0.1931524977 | F15: -2.981879603 | G15: 0.07726099909 | H15: 2.177256374 | I15: 0.07726099909
B16: -2.981879603 | C16: 0 | D16: 2.177256374 | E16: 0 | F16: -2.981879603 | G16: 0 | H16: 2.177256374 | I16: 0
B17: -2.979290975 | C17: 0 | F17: -2.979290975 | G17: 0
B18: -2.979290975 | C18: 0.03863049955 | F18: -2.979290975 | G18: 0.07726099909
B19: -2.976702346 | C19: 0.03863049955 | F19: -2.976702346 | G19: 0.07726099909
B20: -2.976702346 | C20: 0 | F20: -2.976702346 | G20: 0
B21: -2.974113718 | C21: 0 | F21: -2.974113718 | G21: 0
B22: -2.974113718 | C22: 0.03863049955 | F22: -2.974113718 | G22: 0.07726099909
B23: -2.97152509 | C23: 0.03863049955 | F23: -2.97152509 | G23: 0.07726099909
B24: -2.97152509 | C24: 0 | F24: -2.97152509 | G24: 0
B25: -2.968936462 | C25: 0 | F25: -2.968936462 | G25: 0
B26: -2.968936462 | C26: 0.03863049955 | F26: -2.968936462 | G26: 0.07726099909
B27: -2.966347834 | C27: 0.03863049955 | F27: -2.966347834 | G27: 0.07726099909
B28: -2.966347834 | C28: 0 | F28: -2.966347834 | G28: 0
B29: -2.963759205 | C29: 0 | F29: -2.963759205 | G29: 0
B30: -2.963759205 | C30: 0.03863049955 | F30: -2.963759205 | G30: 0.07726099909
B31: -2.961170577 | C31: 0.03863049955 | F31: -2.961170577 | G31: 0.07726099909
B32: -2.961170577 | C32: 0 | F32: -2.961170577 | G32: 0
B33: -2.958581949 | C33: 0 | F33: -2.958581949 | G33: 0
B34: -2.958581949 | C34: 0.03863049955 | F34: -2.958581949 | G34: 0.07726099909
B35: -2.955993321 | C35: 0.03863049955 | F35: -2.955993321 | G35: 0.07726099909
B36: -2.955993321 | C36: 0 | F36: -2.955993321 | G36: 0
B37: -2.953404693 | C37: 0 | F37: -2.953404693 | G37: 0
B38: -2.953404693 | C38: 0.03863049955 | F38: -2.953404693 | G38: 0.07726099909
B39: -2.950816064 | C39: 0.03863049955 | F39: -2.950816064 | G39: 0.07726099909
B40: -2.950816064 | C40: 0 | F40: -2.950816064 | G40: 0
B41: -2.948227436 | C41: 0 | F41: -2.948227436 | G41: 0
B42: -2.948227436 | C42: 0.03863049955 | F42: -2.948227436 | G42: 0.07726099909
B43: -2.945638808 | C43: 0.03863049955 | F43: -2.945638808 | G43: 0.07726099909
B44: -2.945638808 | C44: 0 | F44: -2.945638808 | G44: 0
B45: -2.94305018 | C45: 0 | F45: -2.94305018 | G45: 0
B46: -2.94305018 | C46: 0.03863049955 | F46: -2.94305018 | G46: 0.07726099909
B47: -2.940461552 | C47: 0.03863049955 | F47: -2.940461552 | G47: 0.07726099909
B48: -2.940461552 | C48: 0 | F48: -2.940461552 | G48: 0
B49: -2.937872924 | C49: 0 | F49: -2.937872924 | G49: 0
B50: -2.937872924 | C50: 0.03863049955 | F50: -2.937872924 | G50: 0.07726099909
B51: -2.935284295 | C51: 0.03863049955 | F51: -2.935284295 | G51: 0.07726099909
B52: -2.935284295 | C52: 0 | F52: -2.935284295 | G52: 0
B53: -2.932695667 | C53: 0 | F53: -2.932695667 | G53: 0
B54: -2.932695667 | C54: 0.03863049955 | F54: -2.932695667 | G54: 0.07726099909
B55: -2.930107039 | C55: 0.03863049955 | F55: -2.930107039 | G55: 0.07726099909
B56: -2.930107039 | C56: 0 | F56: -2.930107039 | G56: 0
B57: -2.927518411 | C57: 0 | F57: -2.927518411 | G57: 0
B58: -2.927518411 | C58: 0.03863049955 | F58: -2.927518411 | G58: 0.07726099909
B59: -2.924929783 | C59: 0.03863049955 | F59: -2.924929783 | G59: 0.07726099909
B60: -2.924929783 | C60: 0 | F60: -2.924929783 | G60: 0
B61: -2.922341154 | C61: 0 | F61: -2.922341154 | G61: 0
B62: -2.922341154 | C62: 0.03863049955 | F62: -2.922341154 | G62: 0.07726099909
B63: -2.919752526 | C63: 0.03863049955 | F63: -2.919752526 | G63: 0.07726099909
B64: -2.919752526 | C64: 0 | F64: -2.919752526 | G64: 0
B65: -2.917163898 | C65: 0 | F65: -2.917163898 | G65: 0
B66: -2.917163898 | C66: 0.03863049955 | F66: -2.917163898 | G66: 0.07726099909
B67: -2.91457527 | C67: 0.03863049955 | F67: -2.91457527 | G67: 0.07726099909
B68: -2.91457527 | C68: 0 | F68: -2.91457527 | G68: 0
B69: -2.911986642 | C69: 0 | F69: -2.911986642 | G69: 0
B70: -2.911986642 | C70: 0.03863049955 | F70: -2.911986642 | G70: 0.07726099909
B71: -2.909398013 | C71: 0.03863049955 | F71: -2.909398013 | G71: 0.07726099909
B72: -2.909398013 | C72: 0 | F72: -2.909398013 | G72: 0
B73: -2.906809385 | C73: 0 | F73: -2.906809385 | G73: 0
B74: -2.906809385 | C74: 0.03863049955 | F74: -2.906809385 | G74: 0.07726099909
B75: -2.904220757 | C75: 0.03863049955 | F75: -2.904220757 | G75: 0.07726099909
B76: -2.904220757 | C76: 0 | F76: -2.904220757 | G76: 0
B77: -2.901632129 | C77: 0 | F77: -2.901632129 | G77: 0
B78: -2.901632129 | C78: 0.03863049955 | F78: -2.901632129 | G78: 0.07726099909
B79: -2.899043501 | C79: 0.03863049955 | F79: -2.899043501 | G79: 0.07726099909
B80: -2.899043501 | C80: 0 | F80: -2.899043501 | G80: 0
B81: -2.896454873 | C81: 0 | F81: -2.896454873 | G81: 0
B82: -2.896454873 | C82: 0.03863049955 | F82: -2.896454873 | G82: 0.07726099909
B83: -2.893866244 | C83: 0.03863049955 | F83: -2.893866244 | G83: 0.07726099909
B84: -2.893866244 | C84: 0 | F84: -2.893866244 | G84: 0
B85: -2.891277616 | C85: 0 | F85: -2.891277616 | G85: 0
B86: -2.891277616 | C86: 0.03863049955 | F86: -2.891277616 | G86: 0.07726099909
B87: -2.888688988 | C87: 0.03863049955 | F87: -2.888688988 | G87: 0.07726099909
B88: -2.888688988 | C88: 0 | F88: -2.888688988 | G88: 0
B89: -2.88610036 | C89: 0 | F89: -2.88610036 | G89: 0
B90: -2.88610036 | C90: 0.03863049955 | F90: -2.88610036 | G90: 0.07726099909
B91: -2.883511732 | C91: 0.03863049955 | F91: -2.883511732 | G91: 0.07726099909
B92: -2.883511732 | C92: 0 | F92: -2.883511732 | G92: 0
B93: -2.880923103 | C93: 0 | F93: -2.880923103 | G93: 0
B94: -2.880923103 | C94: 0.03863049955 | F94: -2.880923103 | G94: 0.07726099909
B95: -2.878334475 | C95: 0.03863049955 | F95: -2.878334475 | G95: 0.07726099909
B96: -2.878334475 | C96: 0 | F96: -2.878334475 | G96: 0
B97: -2.875745847 | C97: 0 | F97: -2.875745847 | G97: 0
B98: -2.875745847 | C98: 0.03863049955 | F98: -2.875745847 | G98: 0.07726099909
B99: -2.873157219 | C99: 0.03863049955 | F99: -2.873157219 | G99: 0.07726099909
B100: -2.873157219 | C100: 0 | F100: -2.873157219 | G100: 0
B101: -2.870568591 | C101: 0 | F101: -2.870568591 | G101: 0
B102: -2.870568591 | C102: 0.03863049955 | F102: -2.870568591 | G102: 0.07726099909
B103: -2.867979962 | C103: 0.03863049955 | F103: -2.867979962 | G103: 0.07726099909
B104: -2.867979962 | C104: 0 | F104: -2.867979962 | G104: 0
B105: -2.865391334 | C105: 0 | F105: -2.865391334 | G105: 0
B106: -2.865391334 | C106: 0.03863049955 | F106: -2.865391334 | G106: 0.07726099909
B107: -2.862802706 | C107: 0.03863049955 | F107: -2.862802706 | G107: 0.07726099909
B108: -2.862802706 | C108: 0 | F108: -2.862802706 | G108: 0
B109: -2.860214078 | C109: 0 | F109: -2.860214078 | G109: 0
B110: -2.860214078 | C110: 0.03863049955 | F110: -2.860214078 | G110: 0.07726099909
B111: -2.85762545 | C111: 0.03863049955 | F111: -2.85762545 | G111: 0.07726099909
B112: -2.85762545 | C112: 0 | F112: -2.85762545 | G112: 0
B113: -2.855036822 | C113: 0 | F113: -2.855036822 | G113: 0
B114: -2.855036822 | C114: 0.03863049955 | F114: -2.855036822 | G114: 0.07726099909
B115: -2.852448193 | C115: 0.03863049955 | F115: -2.852448193 | G115: 0.07726099909
B116: -2.852448193 | C116: 0 | F116: -2.852448193 | G116: 0
B117: -2.849859565 | C117: 0 | F117: -2.849859565 | G117: 0
B118: -2.849859565 | C118: 0.03863049955 | F118: -2.849859565 | G118: 0.07726099909
B119: -2.847270937 | C119: 0.03863049955 | F119: -2.847270937 | G119: 0.07726099909
B120: -2.847270937 | C120: 0 | F120: -2.847270937 | G120: 0
B121: -2.844682309 | C121: 0 | F121: -2.844682309 | G121: 0
B122: -2.844682309 | C122: 0.03863049955 | F122: -2.844682309 | G122: 0.07726099909
B123: -2.842093681 | C123: 0.03863049955 | F123: -2.842093681 | G123: 0.07726099909
B124: -2.842093681 | C124: 0 | F124: -2.842093681 | G124: 0
B125: -2.839505052 | C125: 0 | F125: -2.839505052 | G125: 0
B126: -2.839505052 | C126: 0.03863049955 | F126: -2.839505052 | G126: 0.07726099909
B127: -2.836916424 | C127: 0.03863049955 | F127: -2.836916424 | G127: 0.07726099909
B128: -2.836916424 | C128: 0 | F128: -2.836916424 | G128: 0
B129: -2.834327796 | C129: 0 | F129: -2.834327796 | G129: 0
B130: -2.834327796 | C130: 0.03863049955 | F130: -2.834327796 | G130: 0.07726099909
B131: -2.831739168 | C131: 0.03863049955 | F131: -2.831739168 | G131: 0.07726099909
B132: -2.831739168 | C132: 0 | F132: -2.831739168 | G132: 0
B133: -2.82915054 | C133: 0 | F133: -2.82915054 | G133: 0
B134: -2.82915054 | C134: 0.03863049955 | F134: -2.82915054 | G134: 0.07726099909
B135: -2.826561911 | C135: 0.03863049955 | F135: -2.826561911 | G135: 0.07726099909
B136: -2.826561911 | C136: 0 | F136: -2.826561911 | G136: 0
B137: -2.823973283 | C137: 0 | F137: -2.823973283 | G137: 0
B138: -2.823973283 | C138: 0.03863049955 | F138: -2.823973283 | G138: 0.07726099909
B139: -2.821384655 | C139: 0.03863049955 | F139: -2.821384655 | G139: 0.07726099909
B140: -2.821384655 | C140: 0 | F140: -2.821384655 | G140: 0
B141: -2.818796027 | C141: 0 | F141: -2.818796027 | G141: 0
B142: -2.818796027 | C142: 0.03863049955 | F142: -2.818796027 | G142: 0.07726099909
B143: -2.816207399 | C143: 0.03863049955 | F143: -2.816207399 | G143: 0.07726099909
B144: -2.816207399 | C144: 0 | F144: -2.816207399 | G144: 0
B145: -2.813618771 | C145: 0 | F145: -2.813618771 | G145: 0
B146: -2.813618771 | C146: 0.03863049955 | F146: -2.813618771 | G146: 0.07726099909
B147: -2.811030142 | C147: 0.03863049955 | F147: -2.811030142 | G147: 0.07726099909
B148: -2.811030142 | C148: 0 | F148: -2.811030142 | G148: 0
B149: -2.808441514 | C149: 0 | F149: -2.808441514 | G149: 0
B150: -2.808441514 | C150: 0.03863049955 | F150: -2.808441514 | G150: 0.07726099909
B151: -2.805852886 | C151: 0.03863049955 | F151: -2.805852886 | G151: 0.07726099909
B152: -2.805852886 | C152: 0 | F152: -2.805852886 | G152: 0
B153: -2.803264258 | C153: 0 | F153: -2.803264258 | G153: 0
B154: -2.803264258 | C154: 0.03863049955 | F154: -2.803264258 | G154: 0.07726099909
B155: -2.80067563 | C155: 0.03863049955 | F155: -2.80067563 | G155: 0.07726099909
B156: -2.80067563 | C156: 0 | F156: -2.80067563 | G156: 0
B157: -2.798087001 | C157: 0 | F157: -2.798087001 | G157: 0
B158: -2.798087001 | C158: 0.03863049955 | F158: -2.798087001 | G158: 0.07726099909
B159: -2.795498373 | C159: 0.03863049955 | F159: -2.795498373 | G159: 0.07726099909
B160: -2.795498373 | C160: 0 | F160: -2.795498373 | G160: 0
B161: -2.792909745 | C161: 0 | F161: -2.792909745 | G161: 0
B162: -2.792909745 | C162: 0.03863049955 | F162: -2.792909745 | G162: 0.07726099909
B163: -2.790321117 | C163: 0.03863049955 | F163: -2.790321117 | G163: 0.07726099909
B164: -2.790321117 | C164: 0 | F164: -2.790321117 | G164: 0
B165: -2.787732489 | C165: 0 | F165: -2.787732489 | G165: 0
B166: -2.787732489 | C166: 0.03863049955 | F166: -2.787732489 | G166: 0.07726099909
B167: -2.78514386 | C167: 0.03863049955 | F167: -2.78514386 | G167: 0.07726099909
B168: -2.78514386 | C168: 0 | F168: -2.78514386 | G168: 0
B169: -2.782555232 | C169: 0 | F169: -2.782555232 | G169: 0
B170: -2.782555232 | C170: 0.03863049955 | F170: -2.782555232 | G170: 0.07726099909
B171: -2.779966604 | C171: 0.03863049955 | F171: -2.779966604 | G171: 0.07726099909
B172: -2.779966604 | C172: 0 | F172: -2.779966604 | G172: 0
B173: -2.777377976 | C173: 0 | F173: -2.777377976 | G173: 0
B174: -2.777377976 | C174: 0.03863049955 | F174: -2.777377976 | G174: 0.07726099909
B175: -2.774789348 | C175: 0.03863049955 | F175: -2.774789348 | G175: 0.07726099909
B176: -2.774789348 | C176: 0 | F176: -2.774789348 | G176: 0
B177: -2.77220072 | C177: 0 | F177: -2.77220072 | G177: 0
B178: -2.77220072 | C178: 0.03863049955 | F178: -2.77220072 | G178: 0.07726099909
B179: -2.769612091 | C179: 0.03863049955 | F179: -2.769612091 | G179: 0.07726099909
B180: -2.769612091 | C180: 0 | F180: -2.769612091 | G180: 0
B181: -2.767023463 | C181: 0 | F181: -2.767023463 | G181: 0
B182: -2.767023463 | C182: 0.03863049955 | F182: -2.767023463 | G182: 0.07726099909
B183: -2.764434835 | C183: 0.03863049955 | F183: -2.764434835 | G183: 0.07726099909
B184: -2.764434835 | C184: 0 | F184: -2.764434835 | G184: 0
B185: -2.761846207 | C185: 0 | F185: -2.761846207 | G185: 0
B186: -2.761846207 | C186: 0.03863049955 | F186: -2.761846207 | G186: 0.07726099909
B187: -2.759257579 | C187: 0.03863049955 | F187: -2.759257579 | G187: 0.07726099909
B188: -2.759257579 | C188: 0 | F188: -2.759257579 | G188: 0
B189: -2.75666895 | C189: 0 | F189: -2.75666895 | G189: 0
B190: -2.75666895 | C190: 0.03863049955 | F190: -2.75666895 | G190: 0.07726099909
B191: -2.754080322 | C191: 0.03863049955 | F191: -2.754080322 | G191: 0.07726099909
B192: -2.754080322 | C192: 0 | F192: -2.754080322 | G192: 0
B193: -2.751491694 | C193: 0 | F193: -2.751491694 | G193: 0
B194: -2.751491694 | C194: 0.03863049955 | F194: -2.751491694 | G194: 0.07726099909
B195: -2.748903066 | C195: 0.03863049955 | F195: -2.748903066 | G195: 0.07726099909
B196: -2.748903066 | C196: 0 | F196: -2.748903066 | G196: 0
B197: -2.746314438 | C197: 0 | F197: -2.746314438 | G197: 0
B198: -2.746314438 | C198: 0.03863049955 | F198: -2.746314438 | G198: 0.07726099909
B199: -2.74372581 | C199: 0.03863049955 | F199: -2.74372581 | G199: 0.07726099909
B200: -2.74372581 | C200: 0 | F200: -2.74372581 | G200: 0
... 3808 more rows

Sheet XLSTAT_20230412_115939_1_HID1 (hidden)
A1: 1 | C1: =-3+(A1-1)*0.006006006 -> -3 | D1: =[1]!XLSTAT_PDFNormal(C1,0.300943968727696,1.04241610265003) -> 0.002543419046 | E1: 1 | G1: =-3+(E1-1)*0.006006006 -> -3 | H1: =[1]!XLSTAT_PDFNormal(G1,0.300943968727696,1.04241610265003) -> 0.002543419046 | I1: 1 | K1: =-3+(I1-1)*0.006006006 -> -3 | L1: =[1]!XLSTAT_PDFNormal(K1,-0.201135496518942,1.01363139377986) -> 0.008698018512 | M1: 1 | O1: =-3+(M1-1)*0.006006006 -> -3 | P1: =[1]!XLSTAT_PDFNormal(O1,-0.201135496518942,1.01363139377986) -> 0.008698018512 | Q1: 1 | S1: =-2+(Q1-1)*0.0045045045 -> -2 | T1: =[1]!XLSTAT_PDFNormal(S1,0.287820352735161,1.05024622546205) -> 0.03541564069 | U1: 1 | W1: =-2+(U1-1)*0.0045045045 -> -2 | X1: =[1]!XLSTAT_PDFNormal(W1,0.287820352735161,1.05024622546205) -> 0.03541564069 | Y1: 1 | AA1: =-2+(Y1-1)*0.0045045045 -> -2 | AB1: =[1]!XLSTAT_PDFNormal(AA1,0.0946989758111516,0.952962709014027) -> 0.03738216497 | AC1: 1 | AE1: =-2+(AC1-1)*0.0045045045 -> -2 | AF1: =[1]!XLSTAT_PDFNormal(AE1,0.0946989758111516,0.952962709014027) -> 0.03738216497
A2: 2 | C2: -2.993993994 | D2: =[1]!XLSTAT_PDFNormal(C2,0.300943968727696,1.04241610265003) -> 0.002590206409 | E2: 2 | G2: -2.993993994 | H2: =[1]!XLSTAT_PDFNormal(G2,0.300943968727696,1.04241610265003) -> 0.002590206409 | I2: 2 | K2: -2.993993994 | L2: =[1]!XLSTAT_PDFNormal(K2,-0.201135496518942,1.01363139377986) -> 0.008841341345 | M2: 2 | O2: -2.993993994 | P2: =[1]!XLSTAT_PDFNormal(O2,-0.201135496518942,1.01363139377986) -> 0.008841341345 | Q2: 2 | S2: -1.995495495 | T2: =[1]!XLSTAT_PDFNormal(S2,0.287820352735161,1.05024622546205) -> 0.03574775105 | U2: 2 | W2: -1.995495495 | X2: =[1]!XLSTAT_PDFNormal(W2,0.287820352735161,1.05024622546205) -> 0.03574775105 | Y2: 2 | AA2: -1.995495495 | AB2: =[1]!XLSTAT_PDFNormal(AA2,0.0946989758111516,0.952962709014027) -> 0.0377721696 | AC2: 2 | AE2: -1.995495495 | AF2: =[1]!XLSTAT_PDFNormal(AE2,0.0946989758111516,0.952962709014027) -> 0.0377721696
A3: 3 | C3: -2.987987988 | D3: =[1]!XLSTAT_PDFNormal(C3,0.300943968727696,1.04241610265003) -> 0.002637766883 | E3: 3 | G3: -2.987987988 | H3: =[1]!XLSTAT_PDFNormal(G3,0.300943968727696,1.04241610265003) -> 0.002637766883 | I3: 3 | K3: -2.987987988 | L3: =[1]!XLSTAT_PDFNormal(K3,-0.201135496518942,1.01363139377986) -> 0.008986710286 | M3: 3 | O3: -2.987987988 | P3: =[1]!XLSTAT_PDFNormal(O3,-0.201135496518942,1.01363139377986) -> 0.008986710286 | Q3: 3 | S3: -1.990990991 | T3: =[1]!XLSTAT_PDFNormal(S3,0.287820352735161,1.05024622546205) -> 0.03608231202 | U3: 3 | W3: -1.990990991 | X3: =[1]!XLSTAT_PDFNormal(W3,0.287820352735161,1.05024622546205) -> 0.03608231202 | Y3: 3 | AA3: -1.990990991 | AB3: =[1]!XLSTAT_PDFNormal(AA3,0.0946989758111516,0.952962709014027) -> 0.03816539037 | AC3: 3 | AE3: -1.990990991 | AF3: =[1]!XLSTAT_PDFNormal(AE3,0.0946989758111516,0.952962709014027) -> 0.03816539037
A4: 4 | C4: -2.981981982 | D4: =[1]!XLSTAT_PDFNormal(C4,0.300943968727696,1.04241610265003) -> 0.002686111475 | E4: 4 | G4: -2.981981982 | H4: =[1]!XLSTAT_PDFNormal(G4,0.300943968727696,1.04241610265003) -> 0.002686111475 | I4: 4 | K4: -2.981981982 | L4: =[1]!XLSTAT_PDFNormal(K4,-0.201135496518942,1.01363139377986) -> 0.009134148686 | M4: 4 | O4: -2.981981982 | P4: =[1]!XLSTAT_PDFNormal(O4,-0.201135496518942,1.01363139377986) -> 0.009134148686 | Q4: 4 | S4: -1.986486487 | T4: =[1]!XLSTAT_PDFNormal(S4,0.287820352735161,1.05024622546205) -> 0.03641933416 | U4: 4 | W4: -1.986486487 | X4: =[1]!XLSTAT_PDFNormal(W4,0.287820352735161,1.05024622546205) -> 0.03641933416 | Y4: 4 | AA4: -1.986486487 | AB4: =[1]!XLSTAT_PDFNormal(AA4,0.0946989758111516,0.952962709014027) -> 0.0385618431 | AC4: 4 | AE4: -1.986486487 | AF4: =[1]!XLSTAT_PDFNormal(AE4,0.0946989758111516,0.952962709014027) -> 0.0385618431
A5: 5 | C5: -2.975975976 | D5: =[1]!XLSTAT_PDFNormal(C5,0.300943968727696,1.04241610265003) -> 0.002735251317 | E5: 5 | G5: -2.975975976 | H5: =[1]!XLSTAT_PDFNormal(G5,0.300943968727696,1.04241610265003) -> 0.002735251317 | I5: 5 | K5: -2.975975976 | L5: =[1]!XLSTAT_PDFNormal(K5,-0.201135496518942,1.01363139377986) -> 0.009283680059 | M5: 5 | O5: -2.975975976 | P5: =[1]!XLSTAT_PDFNormal(O5,-0.201135496518942,1.01363139377986) -> 0.009283680059 | Q5: 5 | S5: -1.981981982 | T5: =[1]!XLSTAT_PDFNormal(S5,0.287820352735161,1.05024622546205) -> 0.03675882802 | U5: 5 | W5: -1.981981982 | X5: =[1]!XLSTAT_PDFNormal(W5,0.287820352735161,1.05024622546205) -> 0.03675882802 | Y5: 5 | AA5: -1.981981982 | AB5: =[1]!XLSTAT_PDFNormal(AA5,0.0946989758111516,0.952962709014027) -> 0.03896154355 | AC5: 5 | AE5: -1.981981982 | AF5: =[1]!XLSTAT_PDFNormal(AE5,0.0946989758111516,0.952962709014027) -> 0.03896154355
A6: 6 | C6: -2.96996997 | D6: =[1]!XLSTAT_PDFNormal(C6,0.300943968727696,1.04241610265003) -> 0.002785197666 | E6: 6 | G6: -2.96996997 | H6: =[1]!XLSTAT_PDFNormal(G6,0.300943968727696,1.04241610265003) -> 0.002785197666 | I6: 6 | K6: -2.96996997 | L6: =[1]!XLSTAT_PDFNormal(K6,-0.201135496518942,1.01363139377986) -> 0.009435328082 | M6: 6 | O6: -2.96996997 | P6: =[1]!XLSTAT_PDFNormal(O6,-0.201135496518942,1.01363139377986) -> 0.009435328082 | Q6: 6 | S6: -1.977477477 | T6: =[1]!XLSTAT_PDFNormal(S6,0.287820352735161,1.05024622546205) -> 0.03710080407 | U6: 6 | W6: -1.977477477 | X6: =[1]!XLSTAT_PDFNormal(W6,0.287820352735161,1.05024622546205) -> 0.03710080407 | Y6: 6 | AA6: -1.977477477 | AB6: =[1]!XLSTAT_PDFNormal(AA6,0.0946989758111516,0.952962709014027) -> 0.03936450744 | AC6: 6 | AE6: -1.977477477 | AF6: =[1]!XLSTAT_PDFNormal(AE6,0.0946989758111516,0.952962709014027) -> 0.03936450744
A7: 7 | C7: -2.963963964 | D7: =[1]!XLSTAT_PDFNormal(C7,0.300943968727696,1.04241610265003) -> 0.002835961903 | E7: 7 | G7: -2.963963964 | H7: =[1]!XLSTAT_PDFNormal(G7,0.300943968727696,1.04241610265003) -> 0.002835961903 | I7: 7 | K7: -2.963963964 | L7: =[1]!XLSTAT_PDFNormal(K7,-0.201135496518942,1.01363139377986) -> 0.009589116597 | M7: 7 | O7: -2.963963964 | P7: =[1]!XLSTAT_PDFNormal(O7,-0.201135496518942,1.01363139377986) -> 0.009589116597 | Q7: 7 | S7: -1.972972973 | T7: =[1]!XLSTAT_PDFNormal(S7,0.287820352735161,1.05024622546205) -> 0.03744527277 | U7: 7 | W7: -1.972972973 | X7: =[1]!XLSTAT_PDFNormal(W7,0.287820352735161,1.05024622546205) -> 0.03744527277 | Y7: 7 | AA7: -1.972972973 | AB7: =[1]!XLSTAT_PDFNormal(AA7,0.0946989758111516,0.952962709014027) -> 0.03977075042 | AC7: 7 | AE7: -1.972972973 | AF7: =[1]!XLSTAT_PDFNormal(AE7,0.0946989758111516,0.952962709014027) -> 0.03977075042
A8: 8 | C8: -2.957957958 | D8: =[1]!XLSTAT_PDFNormal(C8,0.300943968727696,1.04241610265003) -> 0.002887555534 | E8: 8 | G8: -2.957957958 | H8: =[1]!XLSTAT_PDFNormal(G8,0.300943968727696,1.04241610265003) -> 0.002887555534 | I8: 8 | K8: -2.957957958 | L8: =[1]!XLSTAT_PDFNormal(K8,-0.201135496518942,1.01363139377986) -> 0.009745069605 | M8: 8 | O8: -2.957957958 | P8: =[1]!XLSTAT_PDFNormal(O8,-0.201135496518942,1.01363139377986) -> 0.009745069605 | Q8: 8 | S8: -1.968468469 | T8: =[1]!XLSTAT_PDFNormal(S8,0.287820352735161,1.05024622546205) -> 0.03779224454 | U8: 8 | W8: -1.968468469 | X8: =[1]!XLSTAT_PDFNormal(W8,0.287820352735161,1.05024622546205) -> 0.03779224454 | Y8: 8 | AA8: -1.968468469 | AB8: =[1]!XLSTAT_PDFNormal(AA8,0.0946989758111516,0.952962709014027) -> 0.04018028808 | AC8: 8 | AE8: -1.968468469 | AF8: =[1]!XLSTAT_PDFNormal(AE8,0.0946989758111516,0.952962709014027) -> 0.04018028808
A9: 9 | C9: -2.951951952 | D9: =[1]!XLSTAT_PDFNormal(C9,0.300943968727696,1.04241610265003) -> 0.00293999019 | E9: 9 | G9: -2.951951952 | H9: =[1]!XLSTAT_PDFNormal(G9,0.300943968727696,1.04241610265003) -> 0.00293999019 | I9: 9 | K9: -2.951951952 | L9: =[1]!XLSTAT_PDFNormal(K9,-0.201135496518942,1.01363139377986) -> 0.009903211269 | M9: 9 | O9: -2.951951952 | P9: =[1]!XLSTAT_PDFNormal(O9,-0.201135496518942,1.01363139377986) -> 0.009903211269 | Q9: 9 | S9: -1.963963964 | T9: =[1]!XLSTAT_PDFNormal(S9,0.287820352735161,1.05024622546205) -> 0.03814172975 | U9: 9 | W9: -1.963963964 | X9: =[1]!XLSTAT_PDFNormal(W9,0.287820352735161,1.05024622546205) -> 0.03814172975 | Y9: 9 | AA9: -1.963963964 | AB9: =[1]!XLSTAT_PDFNormal(AA9,0.0946989758111516,0.952962709014027) -> 0.04059313595 | AC9: 9 | AE9: -1.963963964 | AF9: =[1]!XLSTAT_PDFNormal(AE9,0.0946989758111516,0.952962709014027) -> 0.04059313595
A10: 10 | C10: -2.945945946 | D10: =[1]!XLSTAT_PDFNormal(C10,0.300943968727696,1.04241610265003) -> 0.002993277632 | E10: 10 | G10: -2.945945946 | H10: =[1]!XLSTAT_PDFNormal(G10,0.300943968727696,1.04241610265003) -> 0.002993277632 | I10: 10 | K10: -2.945945946 | L10: =[1]!XLSTAT_PDFNormal(K10,-0.201135496518942,1.01363139377986) -> 0.01006356591 | M10: 10 | O10: -2.945945946 | P10: =[1]!XLSTAT_PDFNormal(O10,-0.201135496518942,1.01363139377986) -> 0.01006356591 | Q10: 10 | S10: -1.95945946 | T10: =[1]!XLSTAT_PDFNormal(S10,0.287820352735161,1.05024622546205) -> 0.03849373871 | U10: 10 | W10: -1.95945946 | X10: =[1]!XLSTAT_PDFNormal(W10,0.287820352735161,1.05024622546205) -> 0.03849373871 | Y10: 10 | AA10: -1.95945946 | AB10: =[1]!XLSTAT_PDFNormal(AA10,0.0946989758111516,0.952962709014027) -> 0.0410093095 | AC10: 10 | AE10: -1.95945946 | AF10: =[1]!XLSTAT_PDFNormal(AE10,0.0946989758111516,0.952962709014027) -> 0.0410093095
A11: 11 | C11: -2.93993994 | D11: =[1]!XLSTAT_PDFNormal(C11,0.300943968727696,1.04241610265003) -> 0.003047429745 | E11: 11 | G11: -2.93993994 | H11: =[1]!XLSTAT_PDFNormal(G11,0.300943968727696,1.04241610265003) -> 0.003047429745 | I11: 11 | K11: -2.93993994 | L11: =[1]!XLSTAT_PDFNormal(K11,-0.201135496518942,1.01363139377986) -> 0.01022615802 | M11: 11 | O11: -2.93993994 | P11: =[1]!XLSTAT_PDFNormal(O11,-0.201135496518942,1.01363139377986) -> 0.01022615802 | Q11: 11 | S11: -1.954954955 | T11: =[1]!XLSTAT_PDFNormal(S11,0.287820352735161,1.05024622546205) -> 0.03884828171 | U11: 11 | W11: -1.954954955 | X11: =[1]!XLSTAT_PDFNormal(W11,0.287820352735161,1.05024622546205) -> 0.03884828171 | Y11: 11 | AA11: -1.954954955 | AB11: =[1]!XLSTAT_PDFNormal(AA11,0.0946989758111516,0.952962709014027) -> 0.04142882414 | AC11: 11 | AE11: -1.954954955 | AF11: =[1]!XLSTAT_PDFNormal(AE11,0.0946989758111516,0.952962709014027) -> 0.04142882414
A12: 12 | C12: -2.933933934 | D12: =[1]!XLSTAT_PDFNormal(C12,0.300943968727696,1.04241610265003) -> 0.003102458546 | E12: 12 | G12: -2.933933934 | H12: =[1]!XLSTAT_PDFNormal(G12,0.300943968727696,1.04241610265003) -> 0.003102458546 | I12: 12 | K12: -2.933933934 | L12: =[1]!XLSTAT_PDFNormal(K12,-0.201135496518942,1.01363139377986) -> 0.01039101222 | M12: 12 | O12: -2.933933934 | P12: =[1]!XLSTAT_PDFNormal(O12,-0.201135496518942,1.01363139377986) -> 0.01039101222 | Q12: 12 | S12: -1.95045045 | T12: =[1]!XLSTAT_PDFNormal(S12,0.287820352735161,1.05024622546205) -> 0.03920536899 | U12: 12 | W12: -1.95045045 | X12: =[1]!XLSTAT_PDFNormal(W12,0.287820352735161,1.05024622546205) -> 0.03920536899 | Y12: 12 | AA12: -1.95045045 | AB12: =[1]!XLSTAT_PDFNormal(AA12,0.0946989758111516,0.952962709014027) -> 0.0418516952 | AC12: 12 | AE12: -1.95045045 | AF12: =[1]!XLSTAT_PDFNormal(AE12,0.0946989758111516,0.952962709014027) -> 0.0418516952
A13: 13 | C13: -2.927927928 | D13: =[1]!XLSTAT_PDFNormal(C13,0.300943968727696,1.04241610265003) -> 0.003158376179 | E13: 13 | G13: -2.927927928 | H13: =[1]!XLSTAT_PDFNormal(G13,0.300943968727696,1.04241610265003) -> 0.003158376179 | I13: 13 | K13: -2.927927928 | L13: =[1]!XLSTAT_PDFNormal(K13,-0.201135496518942,1.01363139377986) -> 0.01055815333 | M13: 13 | O13: -2.927927928 | P13: =[1]!XLSTAT_PDFNormal(O13,-0.201135496518942,1.01363139377986) -> 0.01055815333 | Q13: 13 | S13: -1.945945946 | T13: =[1]!XLSTAT_PDFNormal(S13,0.287820352735161,1.05024622546205) -> 0.03956501073 | U13: 13 | W13: -1.945945946 | X13: =[1]!XLSTAT_PDFNormal(W13,0.287820352735161,1.05024622546205) -> 0.03956501073 | Y13: 13 | AA13: -1.945945946 | AB13: =[1]!XLSTAT_PDFNormal(AA13,0.0946989758111516,0.952962709014027) -> 0.04227793795 | AC13: 13 | AE13: -1.945945946 | AF13: =[1]!XLSTAT_PDFNormal(AE13,0.0946989758111516,0.952962709014027) -> 0.04227793795
A14: 14 | C14: -2.921921922 | D14: =[1]!XLSTAT_PDFNormal(C14,0.300943968727696,1.04241610265003) -> 0.003215194917 | E14: 14 | G14: -2.921921922 | H14: =[1]!XLSTAT_PDFNormal(G14,0.300943968727696,1.04241610265003) -> 0.003215194917 | I14: 14 | K14: -2.921921922 | L14: =[1]!XLSTAT_PDFNormal(K14,-0.201135496518942,1.01363139377986) -> 0.0107276063 | M14: 14 | O14: -2.921921922 | P14: =[1]!XLSTAT_PDFNormal(O14,-0.201135496518942,1.01363139377986) -> 0.0107276063 | Q14: 14 | S14: -1.941441442 | T14: =[1]!XLSTAT_PDFNormal(S14,0.287820352735161,1.05024622546205) -> 0.03992721708 | U14: 14 | W14: -1.941441442 | X14: =[1]!XLSTAT_PDFNormal(W14,0.287820352735161,1.05024622546205) -> 0.03992721708 | Y14: 14 | AA14: -1.941441442 | AB14: =[1]!XLSTAT_PDFNormal(AA14,0.0946989758111516,0.952962709014027) -> 0.04270756758 | AC14: 14 | AE14: -1.941441442 | AF14: =[1]!XLSTAT_PDFNormal(AE14,0.0946989758111516,0.952962709014027) -> 0.04270756758
A15: 15 | C15: -2.915915916 | D15: =[1]!XLSTAT_PDFNormal(C15,0.300943968727696,1.04241610265003) -> 0.003272927166 | E15: 15 | G15: -2.915915916 | H15: =[1]!XLSTAT_PDFNormal(G15,0.300943968727696,1.04241610265003) -> 0.003272927166 | I15: 15 | K15: -2.915915916 | L15: =[1]!XLSTAT_PDFNormal(K15,-0.201135496518942,1.01363139377986) -> 0.01089939623 | M15: 15 | O15: -2.915915916 | P15: =[1]!XLSTAT_PDFNormal(O15,-0.201135496518942,1.01363139377986) -> 0.01089939623 | Q15: 15 | S15: -1.936936937 | T15: =[1]!XLSTAT_PDFNormal(S15,0.287820352735161,1.05024622546205) -> 0.04029199813 | U15: 15 | W15: -1.936936937 | X15: =[1]!XLSTAT_PDFNormal(W15,0.287820352735161,1.05024622546205) -> 0.04029199813 | Y15: 15 | AA15: -1.936936937 | AB15: =[1]!XLSTAT_PDFNormal(AA15,0.0946989758111516,0.952962709014027) -> 0.04314059922 | AC15: 15 | AE15: -1.936936937 | AF15: =[1]!XLSTAT_PDFNormal(AE15,0.0946989758111516,0.952962709014027) -> 0.04314059922
A16: 16 | C16: -2.90990991 | D16: =[1]!XLSTAT_PDFNormal(C16,0.300943968727696,1.04241610265003) -> 0.00333158546 | E16: 16 | G16: -2.90990991 | H16: =[1]!XLSTAT_PDFNormal(G16,0.300943968727696,1.04241610265003) -> 0.00333158546 | I16: 16 | K16: -2.90990991 | L16: =[1]!XLSTAT_PDFNormal(K16,-0.201135496518942,1.01363139377986) -> 0.01107354839 | M16: 16 | O16: -2.90990991 | P16: =[1]!XLSTAT_PDFNormal(O16,-0.201135496518942,1.01363139377986) -> 0.01107354839 | Q16: 16 | S16: -1.932432432 | T16: =[1]!XLSTAT_PDFNormal(S16,0.287820352735161,1.05024622546205) -> 0.04065936391 | U16: 16 | W16: -1.932432432 | X16: =[1]!XLSTAT_PDFNormal(W16,0.287820352735161,1.05024622546205) -> 0.04065936391 | Y16: 16 | AA16: -1.932432432 | AB16: =[1]!XLSTAT_PDFNormal(AA16,0.0946989758111516,0.952962709014027) -> 0.04357704791 | AC16: 16 | AE16: -1.932432432 | AF16: =[1]!XLSTAT_PDFNormal(AE16,0.0946989758111516,0.952962709014027) -> 0.04357704791
A17: 17 | C17: -2.903903904 | D17: =[1]!XLSTAT_PDFNormal(C17,0.300943968727696,1.04241610265003) -> 0.003391182468 | E17: 17 | G17: -2.903903904 | H17: =[1]!XLSTAT_PDFNormal(G17,0.300943968727696,1.04241610265003) -> 0.003391182468 | I17: 17 | K17: -2.903903904 | L17: =[1]!XLSTAT_PDFNormal(K17,-0.201135496518942,1.01363139377986) -> 0.0112500882 | M17: 17 | O17: -2.903903904 | P17: =[1]!XLSTAT_PDFNormal(O17,-0.201135496518942,1.01363139377986) -> 0.0112500882 | Q17: 17 | S17: -1.927927928 | T17: =[1]!XLSTAT_PDFNormal(S17,0.287820352735161,1.05024622546205) -> 0.04102932442 | U17: 17 | W17: -1.927927928 | X17: =[1]!XLSTAT_PDFNormal(W17,0.287820352735161,1.05024622546205) -> 0.04102932442 | Y17: 17 | AA17: -1.927927928 | AB17: =[1]!XLSTAT_PDFNormal(AA17,0.0946989758111516,0.952962709014027) -> 0.04401692862 | AC17: 17 | AE17: -1.927927928 | AF17: =[1]!XLSTAT_PDFNormal(AE17,0.0946989758111516,0.952962709014027) -> 0.04401692862
A18: 18 | C18: -2.897897898 | D18: =[1]!XLSTAT_PDFNormal(C18,0.300943968727696,1.04241610265003) -> 0.003451730989 | E18: 18 | G18: -2.897897898 | H18: =[1]!XLSTAT_PDFNormal(G18,0.300943968727696,1.04241610265003) -> 0.003451730989 | I18: 18 | K18: -2.897897898 | L18: =[1]!XLSTAT_PDFNormal(K18,-0.201135496518942,1.01363139377986) -> 0.01142904123 | M18: 18 | O18: -2.897897898 | P18: =[1]!XLSTAT_PDFNormal(O18,-0.201135496518942,1.01363139377986) -> 0.01142904123 | Q18: 18 | S18: -1.923423424 | T18: =[1]!XLSTAT_PDFNormal(S18,0.287820352735161,1.05024622546205) -> 0.0414018896 | U18: 18 | W18: -1.923423424 | X18: =[1]!XLSTAT_PDFNormal(W18,0.287820352735161,1.05024622546205) -> 0.0414018896 | Y18: 18 | AA18: -1.923423424 | AB18: =[1]!XLSTAT_PDFNormal(AA18,0.0946989758111516,0.952962709014027) -> 0.04446025624 | AC18: 18 | AE18: -1.923423424 | AF18: =[1]!XLSTAT_PDFNormal(AE18,0.0946989758111516,0.952962709014027) -> 0.04446025624
A19: 19 | C19: -2.891891892 | D19: =[1]!XLSTAT_PDFNormal(C19,0.300943968727696,1.04241610265003) -> 0.003513243958 | E19: 19 | G19: -2.891891892 | H19: =[1]!XLSTAT_PDFNormal(G19,0.300943968727696,1.04241610265003) -> 0.003513243958 | I19: 19 | K19: -2.891891892 | L19: =[1]!XLSTAT_PDFNormal(K19,-0.201135496518942,1.01363139377986) -> 0.01161043319 | M19: 19 | O19: -2.891891892 | P19: =[1]!XLSTAT_PDFNormal(O19,-0.201135496518942,1.01363139377986) -> 0.01161043319 | Q19: 19 | S19: -1.918918919 | T19: =[1]!XLSTAT_PDFNormal(S19,0.287820352735161,1.05024622546205) -> 0.04177706932 | U19: 19 | W19: -1.918918919 | X19: =[1]!XLSTAT_PDFNormal(W19,0.287820352735161,1.05024622546205) -> 0.04177706932 | Y19: 19 | AA19: -1.918918919 | AB19: =[1]!XLSTAT_PDFNormal(AA19,0.0946989758111516,0.952962709014027) -> 0.04490704557 | AC19: 19 | AE19: -1.918918919 | AF19: =[1]!XLSTAT_PDFNormal(AE19,0.0946989758111516,0.952962709014027) -> 0.04490704557
A20: 20 | C20: -2.885885886 | D20: =[1]!XLSTAT_PDFNormal(C20,0.300943968727696,1.04241610265003) -> 0.00357573444 | E20: 20 | G20: -2.885885886 | H20: =[1]!XLSTAT_PDFNormal(G20,0.300943968727696,1.04241610265003) -> 0.00357573444 | I20: 20 | K20: -2.885885886 | L20: =[1]!XLSTAT_PDFNormal(K20,-0.201135496518942,1.01363139377986) -> 0.01179428998 | M20: 20 | O20: -2.885885886 | P20: =[1]!XLSTAT_PDFNormal(O20,-0.201135496518942,1.01363139377986) -> 0.01179428998 | Q20: 20 | S20: -1.914414414 | T20: =[1]!XLSTAT_PDFNormal(S20,0.287820352735161,1.05024622546205) -> 0.04215487341 | U20: 20 | W20: -1.914414414 | X20: =[1]!XLSTAT_PDFNormal(W20,0.287820352735161,1.05024622546205) -> 0.04215487341 | Y20: 20 | AA20: -1.914414414 | AB20: =[1]!XLSTAT_PDFNormal(AA20,0.0946989758111516,0.952962709014027) -> 0.04535731135 | AC20: 20 | AE20: -1.914414414 | AF20: =[1]!XLSTAT_PDFNormal(AE20,0.0946989758111516,0.952962709014027) -> 0.04535731135
A21: 21 | C21: -2.87987988 | D21: =[1]!XLSTAT_PDFNormal(C21,0.300943968727696,1.04241610265003) -> 0.003639215637 | E21: 21 | G21: -2.87987988 | H21: =[1]!XLSTAT_PDFNormal(G21,0.300943968727696,1.04241610265003) -> 0.003639215637 | I21: 21 | K21: -2.87987988 | L21: =[1]!XLSTAT_PDFNormal(K21,-0.201135496518942,1.01363139377986) -> 0.01198063759 | M21: 21 | O21: -2.87987988 | P21: =[1]!XLSTAT_PDFNormal(O21,-0.201135496518942,1.01363139377986) -> 0.01198063759 | Q21: 21 | S21: -1.90990991 | T21: =[1]!XLSTAT_PDFNormal(S21,0.287820352735161,1.05024622546205) -> 0.04253531165 | U21: 21 | W21: -1.90990991 | X21: =[1]!XLSTAT_PDFNormal(W21,0.287820352735161,1.05024622546205) -> 0.04253531165 | Y21: 21 | AA21: -1.90990991 | AB21: =[1]!XLSTAT_PDFNormal(AA21,0.0946989758111516,0.952962709014027) -> 0.04581106819 | AC21: 21 | AE21: -1.90990991 | AF21: =[1]!XLSTAT_PDFNormal(AE21,0.0946989758111516,0.952962709014027) -> 0.04581106819
A22: 22 | C22: -2.873873874 | D22: =[1]!XLSTAT_PDFNormal(C22,0.300943968727696,1.04241610265003) -> 0.003703700885 | E22: 22 | G22: -2.873873874 | H22: =[1]!XLSTAT_PDFNormal(G22,0.300943968727696,1.04241610265003) -> 0.003703700885 | I22: 22 | K22: -2.873873874 | L22: =[1]!XLSTAT_PDFNormal(K22,-0.201135496518942,1.01363139377986) -> 0.0121695022 | M22: 22 | O22: -2.873873874 | P22: =[1]!XLSTAT_PDFNormal(O22,-0.201135496518942,1.01363139377986) -> 0.0121695022 | Q22: 22 | S22: -1.905405406 | T22: =[1]!XLSTAT_PDFNormal(S22,0.287820352735161,1.05024622546205) -> 0.04291839374 | U22: 22 | W22: -1.905405406 | X22: =[1]!XLSTAT_PDFNormal(W22,0.287820352735161,1.05024622546205) -> 0.04291839374 | Y22: 22 | AA22: -1.905405406 | AB22: =[1]!XLSTAT_PDFNormal(AA22,0.0946989758111516,0.952962709014027) -> 0.04626833066 | AC22: 22 | AE22: -1.905405406 | AF22: =[1]!XLSTAT_PDFNormal(AE22,0.0946989758111516,0.952962709014027) -> 0.04626833066
A23: 23 | C23: -2.867867868 | D23: =[1]!XLSTAT_PDFNormal(C23,0.300943968727696,1.04241610265003) -> 0.003769203658 | E23: 23 | G23: -2.867867868 | H23: =[1]!XLSTAT_PDFNormal(G23,0.300943968727696,1.04241610265003) -> 0.003769203658 | I23: 23 | K23: -2.867867868 | L23: =[1]!XLSTAT_PDFNormal(K23,-0.201135496518942,1.01363139377986) -> 0.01236091012 | M23: 23 | O23: -2.867867868 | P23: =[1]!XLSTAT_PDFNormal(O23,-0.201135496518942,1.01363139377986) -> 0.01236091012 | Q23: 23 | S23: -1.900900901 | T23: =[1]!XLSTAT_PDFNormal(S23,0.287820352735161,1.05024622546205) -> 0.04330412934 | U23: 23 | W23: -1.900900901 | X23: =[1]!XLSTAT_PDFNormal(W23,0.287820352735161,1.05024622546205) -> 0.04330412934 | Y23: 23 | AA23: -1.900900901 | AB23: =[1]!XLSTAT_PDFNormal(AA23,0.0946989758111516,0.952962709014027) -> 0.0467291132 | AC23: 23 | AE23: -1.900900901 | AF23: =[1]!XLSTAT_PDFNormal(AE23,0.0946989758111516,0.952962709014027) -> 0.0467291132
A24: 24 | C24: -2.861861862 | D24: =[1]!XLSTAT_PDFNormal(C24,0.300943968727696,1.04241610265003) -> 0.003835737562 | E24: 24 | G24: -2.861861862 | H24: =[1]!XLSTAT_PDFNormal(G24,0.300943968727696,1.04241610265003) -> 0.003835737562 | I24: 24 | K24: -2.861861862 | L24: =[1]!XLSTAT_PDFNormal(K24,-0.201135496518942,1.01363139377986) -> 0.01255488782 | M24: 24 | O24: -2.861861862 | P24: =[1]!XLSTAT_PDFNormal(O24,-0.201135496518942,1.01363139377986) -> 0.01255488782 | Q24: 24 | S24: -1.896396396 | T24: =[1]!XLSTAT_PDFNormal(S24,0.287820352735161,1.05024622546205) -> 0.04369252805 | U24: 24 | W24: -1.896396396 | X24: =[1]!XLSTAT_PDFNormal(W24,0.287820352735161,1.05024622546205) -> 0.04369252805 | Y24: 24 | AA24: -1.896396396 | AB24: =[1]!XLSTAT_PDFNormal(AA24,0.0946989758111516,0.952962709014027) -> 0.04719343018 | AC24: 24 | AE24: -1.896396396 | AF24: =[1]!XLSTAT_PDFNormal(AE24,0.0946989758111516,0.952962709014027) -> 0.04719343018
A25: 25 | C25: -2.855855856 | D25: =[1]!XLSTAT_PDFNormal(C25,0.300943968727696,1.04241610265003) -> 0.003903316344 | E25: 25 | G25: -2.855855856 | H25: =[1]!XLSTAT_PDFNormal(G25,0.300943968727696,1.04241610265003) -> 0.003903316344 | I25: 25 | K25: -2.855855856 | L25: =[1]!XLSTAT_PDFNormal(K25,-0.201135496518942,1.01363139377986) -> 0.01275146187 | M25: 25 | O25: -2.855855856 | P25: =[1]!XLSTAT_PDFNormal(O25,-0.201135496518942,1.01363139377986) -> 0.01275146187 | Q25: 25 | S25: -1.891891892 | T25: =[1]!XLSTAT_PDFNormal(S25,0.287820352735161,1.05024622546205) -> 0.0440835994 | U25: 25 | W25: -1.891891892 | X25: =[1]!XLSTAT_PDFNormal(W25,0.287820352735161,1.05024622546205) -> 0.0440835994 | Y25: 25 | AA25: -1.891891892 | AB25: =[1]!XLSTAT_PDFNormal(AA25,0.0946989758111516,0.952962709014027) -> 0.04766129586 | AC25: 25 | AE25: -1.891891892 | AF25: =[1]!XLSTAT_PDFNormal(AE25,0.0946989758111516,0.952962709014027) -> 0.04766129586
A26: 26 | C26: -2.84984985 | D26: =[1]!XLSTAT_PDFNormal(C26,0.300943968727696,1.04241610265003) -> 0.003971953886 | E26: 26 | G26: -2.84984985 | H26: =[1]!XLSTAT_PDFNormal(G26,0.300943968727696,1.04241610265003) -> 0.003971953886 | I26: 26 | K26: -2.84984985 | L26: =[1]!XLSTAT_PDFNormal(K26,-0.201135496518942,1.01363139377986) -> 0.01295065904 | M26: 26 | O26: -2.84984985 | P26: =[1]!XLSTAT_PDFNormal(O26,-0.201135496518942,1.01363139377986) -> 0.01295065904 | Q26: 26 | S26: -1.887387388 | T26: =[1]!XLSTAT_PDFNormal(S26,0.287820352735161,1.05024622546205) -> 0.04447735284 | U26: 26 | W26: -1.887387388 | X26: =[1]!XLSTAT_PDFNormal(W26,0.287820352735161,1.05024622546205) -> 0.04447735284 | Y26: 26 | AA26: -1.887387388 | AB26: =[1]!XLSTAT_PDFNormal(AA26,0.0946989758111516,0.952962709014027) -> 0.04813272443 | AC26: 26 | AE26: -1.887387388 | AF26: =[1]!XLSTAT_PDFNormal(AE26,0.0946989758111516,0.952962709014027) -> 0.04813272443
A27: 27 | C27: -2.843843844 | D27: =[1]!XLSTAT_PDFNormal(C27,0.300943968727696,1.04241610265003) -> 0.004041664209 | E27: 27 | G27: -2.843843844 | H27: =[1]!XLSTAT_PDFNormal(G27,0.300943968727696,1.04241610265003) -> 0.004041664209 | I27: 27 | K27: -2.843843844 | L27: =[1]!XLSTAT_PDFNormal(K27,-0.201135496518942,1.01363139377986) -> 0.0131525062 | M27: 27 | O27: -2.843843844 | P27: =[1]!XLSTAT_PDFNormal(O27,-0.201135496518942,1.01363139377986) -> 0.0131525062 | Q27: 27 | S27: -1.882882883 | T27: =[1]!XLSTAT_PDFNormal(S27,0.287820352735161,1.05024622546205) -> 0.0448737978 | U27: 27 | W27: -1.882882883 | X27: =[1]!XLSTAT_PDFNormal(W27,0.287820352735161,1.05024622546205) -> 0.0448737978 | Y27: 27 | AA27: -1.882882883 | AB27: =[1]!XLSTAT_PDFNormal(AA27,0.0946989758111516,0.952962709014027) -> 0.04860772995 | AC27: 27 | AE27: -1.882882883 | AF27: =[1]!XLSTAT_PDFNormal(AE27,0.0946989758111516,0.952962709014027) -> 0.04860772995
A28: 28 | C28: -2.837837838 | D28: =[1]!XLSTAT_PDFNormal(C28,0.300943968727696,1.04241610265003) -> 0.004112461471 | E28: 28 | G28: -2.837837838 | H28: =[1]!XLSTAT_PDFNormal(G28,0.300943968727696,1.04241610265003) -> 0.004112461471 | I28: 28 | K28: -2.837837838 | L28: =[1]!XLSTAT_PDFNormal(K28,-0.201135496518942,1.01363139377986) -> 0.01335703036 | M28: 28 | O28: -2.837837838 | P28: =[1]!XLSTAT_PDFNormal(O28,-0.201135496518942,1.01363139377986) -> 0.01335703036 | Q28: 28 | S28: -1.878378378 | T28: =[1]!XLSTAT_PDFNormal(S28,0.287820352735161,1.05024622546205) -> 0.04527294361 | U28: 28 | W28: -1.878378378 | X28: =[1]!XLSTAT_PDFNormal(W28,0.287820352735161,1.05024622546205) -> 0.04527294361 | Y28: 28 | AA28: -1.878378378 | AB28: =[1]!XLSTAT_PDFNormal(AA28,0.0946989758111516,0.952962709014027) -> 0.04908632638 | AC28: 28 | AE28: -1.878378378 | AF28: =[1]!XLSTAT_PDFNormal(AE28,0.0946989758111516,0.952962709014027) -> 0.04908632638
A29: 29 | C29: -2.831831832 | D29: =[1]!XLSTAT_PDFNormal(C29,0.300943968727696,1.04241610265003) -> 0.004184359972 | E29: 29 | G29: -2.831831832 | H29: =[1]!XLSTAT_PDFNormal(G29,0.300943968727696,1.04241610265003) -> 0.004184359972 | I29: 29 | K29: -2.831831832 | L29: =[1]!XLSTAT_PDFNormal(K29,-0.201135496518942,1.01363139377986) -> 0.0135642587 | M29: 29 | O29: -2.831831832 | P29: =[1]!XLSTAT_PDFNormal(O29,-0.201135496518942,1.01363139377986) -> 0.0135642587 | Q29: 29 | S29: -1.873873874 | T29: =[1]!XLSTAT_PDFNormal(S29,0.287820352735161,1.05024622546205) -> 0.04567479955 | U29: 29 | W29: -1.873873874 | X29: =[1]!XLSTAT_PDFNormal(W29,0.287820352735161,1.05024622546205) -> 0.04567479955 | Y29: 29 | AA29: -1.873873874 | AB29: =[1]!XLSTAT_PDFNormal(AA29,0.0946989758111516,0.952962709014027) -> 0.0495685276 | AC29: 29 | AE29: -1.873873874 | AF29: =[1]!XLSTAT_PDFNormal(AE29,0.0946989758111516,0.952962709014027) -> 0.0495685276
A30: 30 | C30: -2.825825826 | D30: =[1]!XLSTAT_PDFNormal(C30,0.300943968727696,1.04241610265003) -> 0.004257374149 | E30: 30 | G30: -2.825825826 | H30: =[1]!XLSTAT_PDFNormal(G30,0.300943968727696,1.04241610265003) -> 0.004257374149 | I30: 30 | K30: -2.825825826 | L30: =[1]!XLSTAT_PDFNormal(K30,-0.201135496518942,1.01363139377986) -> 0.01377421848 | M30: 30 | O30: -2.825825826 | P30: =[1]!XLSTAT_PDFNormal(O30,-0.201135496518942,1.01363139377986) -> 0.01377421848 | Q30: 30 | S30: -1.869369369 | T30: =[1]!XLSTAT_PDFNormal(S30,0.287820352735161,1.05024622546205) -> 0.04607937481 | U30: 30 | W30: -1.869369369 | X30: =[1]!XLSTAT_PDFNormal(W30,0.287820352735161,1.05024622546205) -> 0.04607937481 | Y30: 30 | AA30: -1.869369369 | AB30: =[1]!XLSTAT_PDFNormal(AA30,0.0946989758111516,0.952962709014027) -> 0.05005434735 | AC30: 30 | AE30: -1.869369369 | AF30: =[1]!XLSTAT_PDFNormal(AE30,0.0946989758111516,0.952962709014027) -> 0.05005434735
A31: 31 | C31: -2.81981982 | D31: =[1]!XLSTAT_PDFNormal(C31,0.300943968727696,1.04241610265003) -> 0.00433151858 | E31: 31 | G31: -2.81981982 | H31: =[1]!XLSTAT_PDFNormal(G31,0.300943968727696,1.04241610265003) -> 0.00433151858 | I31: 31 | K31: -2.81981982 | L31: =[1]!XLSTAT_PDFNormal(K31,-0.201135496518942,1.01363139377986) -> 0.01398693714 | M31: 31 | O31: -2.81981982 | P31: =[1]!XLSTAT_PDFNormal(O31,-0.201135496518942,1.01363139377986) -> 0.01398693714 | Q31: 31 | S31: -1.864864865 | T31: =[1]!XLSTAT_PDFNormal(S31,0.287820352735161,1.05024622546205) -> 0.04648667854 | U31: 31 | W31: -1.864864865 | X31: =[1]!XLSTAT_PDFNormal(W31,0.287820352735161,1.05024622546205) -> 0.04648667854 | Y31: 31 | AA31: -1.864864865 | AB31: =[1]!XLSTAT_PDFNormal(AA31,0.0946989758111516,0.952962709014027) -> 0.0505437993 | AC31: 31 | AE31: -1.864864865 | AF31: =[1]!XLSTAT_PDFNormal(AE31,0.0946989758111516,0.952962709014027) -> 0.0505437993
A32: 32 | C32: -2.813813814 | D32: =[1]!XLSTAT_PDFNormal(C32,0.300943968727696,1.04241610265003) -> 0.004406807984 | E32: 32 | G32: -2.813813814 | H32: =[1]!XLSTAT_PDFNormal(G32,0.300943968727696,1.04241610265003) -> 0.004406807984 | I32: 32 | K32: -2.813813814 | L32: =[1]!XLSTAT_PDFNormal(K32,-0.201135496518942,1.01363139377986) -> 0.01420244224 | M32: 32 | O32: -2.813813814 | P32: =[1]!XLSTAT_PDFNormal(O32,-0.201135496518942,1.01363139377986) -> 0.01420244224 | Q32: 32 | S32: -1.860360361 | T32: =[1]!XLSTAT_PDFNormal(S32,0.287820352735161,1.05024622546205) -> 0.04689671981 | U32: 32 | W32: -1.860360361 | X32: =[1]!XLSTAT_PDFNormal(W32,0.287820352735161,1.05024622546205) -> 0.04689671981 | Y32: 32 | AA32: -1.860360361 | AB32: =[1]!XLSTAT_PDFNormal(AA32,0.0946989758111516,0.952962709014027) -> 0.05103689698 | AC32: 32 | AE32: -1.860360361 | AF32: =[1]!XLSTAT_PDFNormal(AE32,0.0946989758111516,0.952962709014027) -> 0.05103689698
A33: 33 | C33: -2.807807808 | D33: =[1]!XLSTAT_PDFNormal(C33,0.300943968727696,1.04241610265003) -> 0.00448325722 | E33: 33 | G33: -2.807807808 | H33: =[1]!XLSTAT_PDFNormal(G33,0.300943968727696,1.04241610265003) -> 0.00448325722 | I33: 33 | K33: -2.807807808 | L33: =[1]!XLSTAT_PDFNormal(K33,-0.201135496518942,1.01363139377986) -> 0.01442076145 | M33: 33 | O33: -2.807807808 | P33: =[1]!XLSTAT_PDFNormal(O33,-0.201135496518942,1.01363139377986) -> 0.01442076145 | Q33: 33 | S33: -1.855855856 | T33: =[1]!XLSTAT_PDFNormal(S33,0.287820352735161,1.05024622546205) -> 0.0473095076 | U33: 33 | W33: -1.855855856 | X33: =[1]!XLSTAT_PDFNormal(W33,0.287820352735161,1.05024622546205) -> 0.0473095076 | Y33: 33 | AA33: -1.855855856 | AB33: =[1]!XLSTAT_PDFNormal(AA33,0.0946989758111516,0.952962709014027) -> 0.05153365382 | AC33: 33 | AE33: -1.855855856 | AF33: =[1]!XLSTAT_PDFNormal(AE33,0.0946989758111516,0.952962709014027) -> 0.05153365382
A34: 34 | C34: -2.801801802 | D34: =[1]!XLSTAT_PDFNormal(C34,0.300943968727696,1.04241610265003) -> 0.004560881289 | E34: 34 | G34: -2.801801802 | H34: =[1]!XLSTAT_PDFNormal(G34,0.300943968727696,1.04241610265003) -> 0.004560881289 | I34: 34 | K34: -2.801801802 | L34: =[1]!XLSTAT_PDFNormal(K34,-0.201135496518942,1.01363139377986) -> 0.01464192259 | M34: 34 | O34: -2.801801802 | P34: =[1]!XLSTAT_PDFNormal(O34,-0.201135496518942,1.01363139377986) -> 0.01464192259 | Q34: 34 | S34: -1.851351351 | T34: =[1]!XLSTAT_PDFNormal(S34,0.287820352735161,1.05024622546205) -> 0.04772505084 | U34: 34 | W34: -1.851351351 | X34: =[1]!XLSTAT_PDFNormal(W34,0.287820352735161,1.05024622546205) -> 0.04772505084 | Y34: 34 | AA34: -1.851351351 | AB34: =[1]!XLSTAT_PDFNormal(AA34,0.0946989758111516,0.952962709014027) -> 0.05203408312 | AC34: 34 | AE34: -1.851351351 | AF34: =[1]!XLSTAT_PDFNormal(AE34,0.0946989758111516,0.952962709014027) -> 0.05203408312
A35: 35 | C35: -2.795795796 | D35: =[1]!XLSTAT_PDFNormal(C35,0.300943968727696,1.04241610265003) -> 0.004639695335 | E35: 35 | G35: -2.795795796 | H35: =[1]!XLSTAT_PDFNormal(G35,0.300943968727696,1.04241610265003) -> 0.004639695335 | I35: 35 | K35: -2.795795796 | L35: =[1]!XLSTAT_PDFNormal(K35,-0.201135496518942,1.01363139377986) -> 0.0148659536 | M35: 35 | O35: -2.795795796 | P35: =[1]!XLSTAT_PDFNormal(O35,-0.201135496518942,1.01363139377986) -> 0.0148659536 | Q35: 35 | S35: -1.846846847 | T35: =[1]!XLSTAT_PDFNormal(S35,0.287820352735161,1.05024622546205) -> 0.04814335837 | U35: 35 | W35: -1.846846847 | X35: =[1]!XLSTAT_PDFNormal(W35,0.287820352735161,1.05024622546205) -> 0.04814335837 | Y35: 35 | AA35: -1.846846847 | AB35: =[1]!XLSTAT_PDFNormal(AA35,0.0946989758111516,0.952962709014027) -> 0.05253819807 | AC35: 35 | AE35: -1.846846847 | AF35: =[1]!XLSTAT_PDFNormal(AE35,0.0946989758111516,0.952962709014027) -> 0.05253819807
A36: 36 | C36: -2.78978979 | D36: =[1]!XLSTAT_PDFNormal(C36,0.300943968727696,1.04241610265003) -> 0.004719714643 | E36: 36 | G36: -2.78978979 | H36: =[1]!XLSTAT_PDFNormal(G36,0.300943968727696,1.04241610265003) -> 0.004719714643 | I36: 36 | K36: -2.78978979 | L36: =[1]!XLSTAT_PDFNormal(K36,-0.201135496518942,1.01363139377986) -> 0.01509288253 | M36: 36 | O36: -2.78978979 | P36: =[1]!XLSTAT_PDFNormal(O36,-0.201135496518942,1.01363139377986) -> 0.01509288253 | Q36: 36 | S36: -1.842342343 | T36: =[1]!XLSTAT_PDFNormal(S36,0.287820352735161,1.05024622546205) -> 0.04856443898 | U36: 36 | W36: -1.842342343 | X36: =[1]!XLSTAT_PDFNormal(W36,0.287820352735161,1.05024622546205) -> 0.04856443898 | Y36: 36 | AA36: -1.842342343 | AB36: =[1]!XLSTAT_PDFNormal(AA36,0.0946989758111516,0.952962709014027) -> 0.05304601176 | AC36: 36 | AE36: -1.842342343 | AF36: =[1]!XLSTAT_PDFNormal(AE36,0.0946989758111516,0.952962709014027) -> 0.05304601176
A37: 37 | C37: -2.783783784 | D37: =[1]!XLSTAT_PDFNormal(C37,0.300943968727696,1.04241610265003) -> 0.004800954641 | E37: 37 | G37: -2.783783784 | H37: =[1]!XLSTAT_PDFNormal(G37,0.300943968727696,1.04241610265003) -> 0.004800954641 | I37: 37 | K37: -2.783783784 | L37: =[1]!XLSTAT_PDFNormal(K37,-0.201135496518942,1.01363139377986) -> 0.01532273756 | M37: 37 | O37: -2.783783784 | P37: =[1]!XLSTAT_PDFNormal(O37,-0.201135496518942,1.01363139377986) -> 0.01532273756 | Q37: 37 | S37: -1.837837838 | T37: =[1]!XLSTAT_PDFNormal(S37,0.287820352735161,1.05024622546205) -> 0.04898830134 | U37: 37 | W37: -1.837837838 | X37: =[1]!XLSTAT_PDFNormal(W37,0.287820352735161,1.05024622546205) -> 0.04898830134 | Y37: 37 | AA37: -1.837837838 | AB37: =[1]!XLSTAT_PDFNormal(AA37,0.0946989758111516,0.952962709014027) -> 0.05355753712 | AC37: 37 | AE37: -1.837837838 | AF37: =[1]!XLSTAT_PDFNormal(AE37,0.0946989758111516,0.952962709014027) -> 0.05355753712
A38: 38 | C38: -2.777777778 | D38: =[1]!XLSTAT_PDFNormal(C38,0.300943968727696,1.04241610265003) -> 0.004883430901 | E38: 38 | G38: -2.777777778 | H38: =[1]!XLSTAT_PDFNormal(G38,0.300943968727696,1.04241610265003) -> 0.004883430901 | I38: 38 | K38: -2.777777778 | L38: =[1]!XLSTAT_PDFNormal(K38,-0.201135496518942,1.01363139377986) -> 0.015555547 | M38: 38 | O38: -2.777777778 | P38: =[1]!XLSTAT_PDFNormal(O38,-0.201135496518942,1.01363139377986) -> 0.015555547 | Q38: 38 | S38: -1.833333333 | T38: =[1]!XLSTAT_PDFNormal(S38,0.287820352735161,1.05024622546205) -> 0.04941495408 | U38: 38 | W38: -1.833333333 | X38: =[1]!XLSTAT_PDFNormal(W38,0.287820352735161,1.05024622546205) -> 0.04941495408 | Y38: 38 | AA38: -1.833333333 | AB38: =[1]!XLSTAT_PDFNormal(AA38,0.0946989758111516,0.952962709014027) -> 0.05407278698 | AC38: 38 | AE38: -1.833333333 | AF38: =[1]!XLSTAT_PDFNormal(AE38,0.0946989758111516,0.952962709014027) -> 0.05407278698
A39: 39 | C39: -2.771771772 | D39: =[1]!XLSTAT_PDFNormal(C39,0.300943968727696,1.04241610265003) -> 0.004967159138 | E39: 39 | G39: -2.771771772 | H39: =[1]!XLSTAT_PDFNormal(G39,0.300943968727696,1.04241610265003) -> 0.004967159138 | I39: 39 | K39: -2.771771772 | L39: =[1]!XLSTAT_PDFNormal(K39,-0.201135496518942,1.01363139377986) -> 0.01579133927 | M39: 39 | O39: -2.771771772 | P39: =[1]!XLSTAT_PDFNormal(O39,-0.201135496518942,1.01363139377986) -> 0.01579133927 | Q39: 39 | S39: -1.828828829 | T39: =[1]!XLSTAT_PDFNormal(S39,0.287820352735161,1.05024622546205) -> 0.04984440574 | U39: 39 | W39: -1.828828829 | X39: =[1]!XLSTAT_PDFNormal(W39,0.287820352735161,1.05024622546205) -> 0.04984440574 | Y39: 39 | AA39: -1.828828829 | AB39: =[1]!XLSTAT_PDFNormal(AA39,0.0946989758111516,0.952962709014027) -> 0.05459177404 | AC39: 39 | AE39: -1.828828829 | AF39: =[1]!XLSTAT_PDFNormal(AE39,0.0946989758111516,0.952962709014027) -> 0.05459177404
A40: 40 | C40: -2.765765766 | D40: =[1]!XLSTAT_PDFNormal(C40,0.300943968727696,1.04241610265003) -> 0.005052155212 | E40: 40 | G40: -2.765765766 | H40: =[1]!XLSTAT_PDFNormal(G40,0.300943968727696,1.04241610265003) -> 0.005052155212 | I40: 40 | K40: -2.765765766 | L40: =[1]!XLSTAT_PDFNormal(K40,-0.201135496518942,1.01363139377986) -> 0.01603014289 | M40: 40 | O40: -2.765765766 | P40: =[1]!XLSTAT_PDFNormal(O40,-0.201135496518942,1.01363139377986) -> 0.01603014289 | Q40: 40 | S40: -1.824324325 | T40: =[1]!XLSTAT_PDFNormal(S40,0.287820352735161,1.05024622546205) -> 0.05027666478 | U40: 40 | W40: -1.824324325 | X40: =[1]!XLSTAT_PDFNormal(W40,0.287820352735161,1.05024622546205) -> 0.05027666478 | Y40: 40 | AA40: -1.824324325 | AB40: =[1]!XLSTAT_PDFNormal(AA40,0.0946989758111516,0.952962709014027) -> 0.05511451086 | AC40: 40 | AE40: -1.824324325 | AF40: =[1]!XLSTAT_PDFNormal(AE40,0.0946989758111516,0.952962709014027) -> 0.05511451086
A41: 41 | C41: -2.75975976 | D41: =[1]!XLSTAT_PDFNormal(C41,0.300943968727696,1.04241610265003) -> 0.005138435125 | E41: 41 | G41: -2.75975976 | H41: =[1]!XLSTAT_PDFNormal(G41,0.300943968727696,1.04241610265003) -> 0.005138435125 | I41: 41 | K41: -2.75975976 | L41: =[1]!XLSTAT_PDFNormal(K41,-0.201135496518942,1.01363139377986) -> 0.01627198651 | M41: 41 | O41: -2.75975976 | P41: =[1]!XLSTAT_PDFNormal(O41,-0.201135496518942,1.01363139377986) -> 0.01627198651 | Q41: 41 | S41: -1.81981982 | T41: =[1]!XLSTAT_PDFNormal(S41,0.287820352735161,1.05024622546205) -> 0.05071173955 | U41: 41 | W41: -1.81981982 | X41: =[1]!XLSTAT_PDFNormal(W41,0.287820352735161,1.05024622546205) -> 0.05071173955 | Y41: 41 | AA41: -1.81981982 | AB41: =[1]!XLSTAT_PDFNormal(AA41,0.0946989758111516,0.952962709014027) -> 0.05564100989 | AC41: 41 | AE41: -1.81981982 | AF41: =[1]!XLSTAT_PDFNormal(AE41,0.0946989758111516,0.952962709014027) -> 0.05564100989
A42: 42 | C42: -2.753753754 | D42: =[1]!XLSTAT_PDFNormal(C42,0.300943968727696,1.04241610265003) -> 0.005226015026 | E42: 42 | G42: -2.753753754 | H42: =[1]!XLSTAT_PDFNormal(G42,0.300943968727696,1.04241610265003) -> 0.005226015026 | I42: 42 | K42: -2.753753754 | L42: =[1]!XLSTAT_PDFNormal(K42,-0.201135496518942,1.01363139377986) -> 0.01651689888 | M42: 42 | O42: -2.753753754 | P42: =[1]!XLSTAT_PDFNormal(O42,-0.201135496518942,1.01363139377986) -> 0.01651689888 | Q42: 42 | S42: -1.815315315 | T42: =[1]!XLSTAT_PDFNormal(S42,0.287820352735161,1.05024622546205) -> 0.05114963837 | U42: 42 | W42: -1.815315315 | X42: =[1]!XLSTAT_PDFNormal(W42,0.287820352735161,1.05024622546205) -> 0.05114963837 | Y42: 42 | AA42: -1.815315315 | AB42: =[1]!XLSTAT_PDFNormal(AA42,0.0946989758111516,0.952962709014027) -> 0.05617128341 | AC42: 42 | AE42: -1.815315315 | AF42: =[1]!XLSTAT_PDFNormal(AE42,0.0946989758111516,0.952962709014027) -> 0.05617128341
A43: 43 | C43: -2.747747748 | D43: =[1]!XLSTAT_PDFNormal(C43,0.300943968727696,1.04241610265003) -> 0.005314911208 | E43: 43 | G43: -2.747747748 | H43: =[1]!XLSTAT_PDFNormal(G43,0.300943968727696,1.04241610265003) -> 0.005314911208 | I43: 43 | K43: -2.747747748 | L43: =[1]!XLSTAT_PDFNormal(K43,-0.201135496518942,1.01363139377986) -> 0.01676490888 | M43: 43 | O43: -2.747747748 | P43: =[1]!XLSTAT_PDFNormal(O43,-0.201135496518942,1.01363139377986) -> 0.01676490888 | Q43: 43 | S43: -1.810810811 | T43: =[1]!XLSTAT_PDFNormal(S43,0.287820352735161,1.05024622546205) -> 0.05159036942 | U43: 43 | W43: -1.810810811 | X43: =[1]!XLSTAT_PDFNormal(W43,0.287820352735161,1.05024622546205) -> 0.05159036942 | Y43: 43 | AA43: -1.810810811 | AB43: =[1]!XLSTAT_PDFNormal(AA43,0.0946989758111516,0.952962709014027) -> 0.05670534359 | AC43: 43 | AE43: -1.810810811 | AF43: =[1]!XLSTAT_PDFNormal(AE43,0.0946989758111516,0.952962709014027) -> 0.05670534359
A44: 44 | C44: -2.741741742 | D44: =[1]!XLSTAT_PDFNormal(C44,0.300943968727696,1.04241610265003) -> 0.005405140108 | E44: 44 | G44: -2.741741742 | H44: =[1]!XLSTAT_PDFNormal(G44,0.300943968727696,1.04241610265003) -> 0.005405140108 | I44: 44 | K44: -2.741741742 | L44: =[1]!XLSTAT_PDFNormal(K44,-0.201135496518942,1.01363139377986) -> 0.01701604545 | M44: 44 | O44: -2.741741742 | P44: =[1]!XLSTAT_PDFNormal(O44,-0.201135496518942,1.01363139377986) -> 0.01701604545 | Q44: 44 | S44: -1.806306307 | T44: =[1]!XLSTAT_PDFNormal(S44,0.287820352735161,1.05024622546205) -> 0.05203394084 | U44: 44 | W44: -1.806306307 | X44: =[1]!XLSTAT_PDFNormal(W44,0.287820352735161,1.05024622546205) -> 0.05203394084 | Y44: 44 | AA44: -1.806306307 | AB44: =[1]!XLSTAT_PDFNormal(AA44,0.0946989758111516,0.952962709014027) -> 0.05724320247 | AC44: 44 | AE44: -1.806306307 | AF44: =[1]!XLSTAT_PDFNormal(AE44,0.0946989758111516,0.952962709014027) -> 0.05724320247
A45: 45 | C45: -2.735735736 | D45: =[1]!XLSTAT_PDFNormal(C45,0.300943968727696,1.04241610265003) -> 0.005496718311 | E45: 45 | G45: -2.735735736 | H45: =[1]!XLSTAT_PDFNormal(G45,0.300943968727696,1.04241610265003) -> 0.005496718311 | I45: 45 | K45: -2.735735736 | L45: =[1]!XLSTAT_PDFNormal(K45,-0.201135496518942,1.01363139377986) -> 0.01727033768 | M45: 45 | O45: -2.735735736 | P45: =[1]!XLSTAT_PDFNormal(O45,-0.201135496518942,1.01363139377986) -> 0.01727033768 | Q45: 45 | S45: -1.801801802 | T45: =[1]!XLSTAT_PDFNormal(S45,0.287820352735161,1.05024622546205) -> 0.05248036065 | U45: 45 | W45: -1.801801802 | X45: =[1]!XLSTAT_PDFNormal(W45,0.287820352735161,1.05024622546205) -> 0.05248036065 | Y45: 45 | AA45: -1.801801802 | AB45: =[1]!XLSTAT_PDFNormal(AA45,0.0946989758111516,0.952962709014027) -> 0.05778487191 | AC45: 45 | AE45: -1.801801802 | AF45: =[1]!XLSTAT_PDFNormal(AE45,0.0946989758111516,0.952962709014027) -> 0.05778487191
A46: 46 | C46: -2.72972973 | D46: =[1]!XLSTAT_PDFNormal(C46,0.300943968727696,1.04241610265003) -> 0.005589662547 | E46: 46 | G46: -2.72972973 | H46: =[1]!XLSTAT_PDFNormal(G46,0.300943968727696,1.04241610265003) -> 0.005589662547 | I46: 46 | K46: -2.72972973 | L46: =[1]!XLSTAT_PDFNormal(K46,-0.201135496518942,1.01363139377986) -> 0.01752781474 | M46: 46 | O46: -2.72972973 | P46: =[1]!XLSTAT_PDFNormal(O46,-0.201135496518942,1.01363139377986) -> 0.01752781474 | Q46: 46 | S46: -1.797297298 | T46: =[1]!XLSTAT_PDFNormal(S46,0.287820352735161,1.05024622546205) -> 0.0529296368 | U46: 46 | W46: -1.797297298 | X46: =[1]!XLSTAT_PDFNormal(W46,0.287820352735161,1.05024622546205) -> 0.0529296368 | Y46: 46 | AA46: -1.797297298 | AB46: =[1]!XLSTAT_PDFNormal(AA46,0.0946989758111516,0.952962709014027) -> 0.05833036366 | AC46: 46 | AE46: -1.797297298 | AF46: =[1]!XLSTAT_PDFNormal(AE46,0.0946989758111516,0.952962709014027) -> 0.05833036366
A47: 47 | C47: -2.723723724 | D47: =[1]!XLSTAT_PDFNormal(C47,0.300943968727696,1.04241610265003) -> 0.005683989689 | E47: 47 | G47: -2.723723724 | H47: =[1]!XLSTAT_PDFNormal(G47,0.300943968727696,1.04241610265003) -> 0.005683989689 | I47: 47 | K47: -2.723723724 | L47: =[1]!XLSTAT_PDFNormal(K47,-0.201135496518942,1.01363139377986) -> 0.01778850589 | M47: 47 | O47: -2.723723724 | P47: =[1]!XLSTAT_PDFNormal(O47,-0.201135496518942,1.01363139377986) -> 0.01778850589 | Q47: 47 | S47: -1.792792793 | T47: =[1]!XLSTAT_PDFNormal(S47,0.287820352735161,1.05024622546205) -> 0.05338177713 | U47: 47 | W47: -1.792792793 | X47: =[1]!XLSTAT_PDFNormal(W47,0.287820352735161,1.05024622546205) -> 0.05338177713 | Y47: 47 | AA47: -1.792792793 | AB47: =[1]!XLSTAT_PDFNormal(AA47,0.0946989758111516,0.952962709014027) -> 0.05887968931 | AC47: 47 | AE47: -1.792792793 | AF47: =[1]!XLSTAT_PDFNormal(AE47,0.0946989758111516,0.952962709014027) -> 0.05887968931
A48: 48 | C48: -2.717717718 | D48: =[1]!XLSTAT_PDFNormal(C48,0.300943968727696,1.04241610265003) -> 0.005779716761 | E48: 48 | G48: -2.717717718 | H48: =[1]!XLSTAT_PDFNormal(G48,0.300943968727696,1.04241610265003) -> 0.005779716761 | I48: 48 | K48: -2.717717718 | L48: =[1]!XLSTAT_PDFNormal(K48,-0.201135496518942,1.01363139377986) -> 0.01805244049 | M48: 48 | O48: -2.717717718 | P48: =[1]!XLSTAT_PDFNormal(O48,-0.201135496518942,1.01363139377986) -> 0.01805244049 | Q48: 48 | S48: -1.788288288 | T48: =[1]!XLSTAT_PDFNormal(S48,0.287820352735161,1.05024622546205) -> 0.05383678942 | U48: 48 | W48: -1.788288288 | X48: =[1]!XLSTAT_PDFNormal(W48,0.287820352735161,1.05024622546205) -> 0.05383678942 | Y48: 48 | AA48: -1.788288288 | AB48: =[1]!XLSTAT_PDFNormal(AA48,0.0946989758111516,0.952962709014027) -> 0.05943286031 | AC48: 48 | AE48: -1.788288288 | AF48: =[1]!XLSTAT_PDFNormal(AE48,0.0946989758111516,0.952962709014027) -> 0.05943286031
A49: 49 | C49: -2.711711712 | D49: =[1]!XLSTAT_PDFNormal(C49,0.300943968727696,1.04241610265003) -> 0.00587686093 | E49: 49 | G49: -2.711711712 | H49: =[1]!XLSTAT_PDFNormal(G49,0.300943968727696,1.04241610265003) -> 0.00587686093 | I49: 49 | K49: -2.711711712 | L49: =[1]!XLSTAT_PDFNormal(K49,-0.201135496518942,1.01363139377986) -> 0.018319648 | M49: 49 | O49: -2.711711712 | P49: =[1]!XLSTAT_PDFNormal(O49,-0.201135496518942,1.01363139377986) -> 0.018319648 | Q49: 49 | S49: -1.783783784 | T49: =[1]!XLSTAT_PDFNormal(S49,0.287820352735161,1.05024622546205) -> 0.05429468132 | U49: 49 | W49: -1.783783784 | X49: =[1]!XLSTAT_PDFNormal(W49,0.287820352735161,1.05024622546205) -> 0.05429468132 | Y49: 49 | AA49: -1.783783784 | AB49: =[1]!XLSTAT_PDFNormal(AA49,0.0946989758111516,0.952962709014027) -> 0.05998988794 | AC49: 49 | AE49: -1.783783784 | AF49: =[1]!XLSTAT_PDFNormal(AE49,0.0946989758111516,0.952962709014027) -> 0.05998988794
A50: 50 | C50: -2.705705706 | D50: =[1]!XLSTAT_PDFNormal(C50,0.300943968727696,1.04241610265003) -> 0.00597543951 | E50: 50 | G50: -2.705705706 | H50: =[1]!XLSTAT_PDFNormal(G50,0.300943968727696,1.04241610265003) -> 0.00597543951 | I50: 50 | K50: -2.705705706 | L50: =[1]!XLSTAT_PDFNormal(K50,-0.201135496518942,1.01363139377986) -> 0.01859015797 | M50: 50 | O50: -2.705705706 | P50: =[1]!XLSTAT_PDFNormal(O50,-0.201135496518942,1.01363139377986) -> 0.01859015797 | Q50: 50 | S50: -1.77927928 | T50: =[1]!XLSTAT_PDFNormal(S50,0.287820352735161,1.05024622546205) -> 0.05475546041 | U50: 50 | W50: -1.77927928 | X50: =[1]!XLSTAT_PDFNormal(W50,0.287820352735161,1.05024622546205) -> 0.05475546041 | Y50: 50 | AA50: -1.77927928 | AB50: =[1]!XLSTAT_PDFNormal(AA50,0.0946989758111516,0.952962709014027) -> 0.06055078334 | AC50: 50 | AE50: -1.77927928 | AF50: =[1]!XLSTAT_PDFNormal(AE50,0.0946989758111516,0.952962709014027) -> 0.06055078334
A51: 51 | C51: -2.6996997 | D51: =[1]!XLSTAT_PDFNormal(C51,0.300943968727696,1.04241610265003) -> 0.006075469964 | E51: 51 | G51: -2.6996997 | H51: =[1]!XLSTAT_PDFNormal(G51,0.300943968727696,1.04241610265003) -> 0.006075469964 | I51: 51 | K51: -2.6996997 | L51: =[1]!XLSTAT_PDFNormal(K51,-0.201135496518942,1.01363139377986) -> 0.01886400001 | M51: 51 | O51: -2.6996997 | P51: =[1]!XLSTAT_PDFNormal(O51,-0.201135496518942,1.01363139377986) -> 0.01886400001 | Q51: 51 | S51: -1.774774775 | T51: =[1]!XLSTAT_PDFNormal(S51,0.287820352735161,1.05024622546205) -> 0.05521913418 | U51: 51 | W51: -1.774774775 | X51: =[1]!XLSTAT_PDFNormal(W51,0.287820352735161,1.05024622546205) -> 0.05521913418 | Y51: 51 | AA51: -1.774774775 | AB51: =[1]!XLSTAT_PDFNormal(AA51,0.0946989758111516,0.952962709014027) -> 0.0611155575 | AC51: 51 | AE51: -1.774774775 | AF51: =[1]!XLSTAT_PDFNormal(AE51,0.0946989758111516,0.952962709014027) -> 0.0611155575
A52: 52 | C52: -2.693693694 | D52: =[1]!XLSTAT_PDFNormal(C52,0.300943968727696,1.04241610265003) -> 0.006176969898 | E52: 52 | G52: -2.693693694 | H52: =[1]!XLSTAT_PDFNormal(G52,0.300943968727696,1.04241610265003) -> 0.006176969898 | I52: 52 | K52: -2.693693694 | L52: =[1]!XLSTAT_PDFNormal(K52,-0.201135496518942,1.01363139377986) -> 0.01914120386 | M52: 52 | O52: -2.693693694 | P52: =[1]!XLSTAT_PDFNormal(O52,-0.201135496518942,1.01363139377986) -> 0.01914120386 | Q52: 52 | S52: -1.77027027 | T52: =[1]!XLSTAT_PDFNormal(S52,0.287820352735161,1.05024622546205) -> 0.05568571 | U52: 52 | W52: -1.77027027 | X52: =[1]!XLSTAT_PDFNormal(W52,0.287820352735161,1.05024622546205) -> 0.05568571 | Y52: 52 | AA52: -1.77027027 | AB52: =[1]!XLSTAT_PDFNormal(AA52,0.0946989758111516,0.952962709014027) -> 0.06168422124 | AC52: 52 | AE52: -1.77027027 | AF52: =[1]!XLSTAT_PDFNormal(AE52,0.0946989758111516,0.952962709014027) -> 0.06168422124
A53: 53 | C53: -2.687687688 | D53: =[1]!XLSTAT_PDFNormal(C53,0.300943968727696,1.04241610265003) -> 0.006279957067 | E53: 53 | G53: -2.687687688 | H53: =[1]!XLSTAT_PDFNormal(G53,0.300943968727696,1.04241610265003) -> 0.006279957067 | I53: 53 | K53: -2.687687688 | L53: =[1]!XLSTAT_PDFNormal(K53,-0.201135496518942,1.01363139377986) -> 0.01942179929 | M53: 53 | O53: -2.687687688 | P53: =[1]!XLSTAT_PDFNormal(O53,-0.201135496518942,1.01363139377986) -> 0.01942179929 | Q53: 53 | S53: -1.765765766 | T53: =[1]!XLSTAT_PDFNormal(S53,0.287820352735161,1.05024622546205) -> 0.05615519515 | U53: 53 | W53: -1.765765766 | X53: =[1]!XLSTAT_PDFNormal(W53,0.287820352735161,1.05024622546205) -> 0.05615519515 | Y53: 53 | AA53: -1.765765766 | AB53: =[1]!XLSTAT_PDFNormal(AA53,0.0946989758111516,0.952962709014027) -> 0.06225678522 | AC53: 53 | AE53: -1.765765766 | AF53: =[1]!XLSTAT_PDFNormal(AE53,0.0946989758111516,0.952962709014027) -> 0.06225678522
A54: 54 | C54: -2.681681682 | D54: =[1]!XLSTAT_PDFNormal(C54,0.300943968727696,1.04241610265003) -> 0.006384449374 | E54: 54 | G54: -2.681681682 | H54: =[1]!XLSTAT_PDFNormal(G54,0.300943968727696,1.04241610265003) -> 0.006384449374 | I54: 54 | K54: -2.681681682 | L54: =[1]!XLSTAT_PDFNormal(K54,-0.201135496518942,1.01363139377986) -> 0.01970581619 | M54: 54 | O54: -2.681681682 | P54: =[1]!XLSTAT_PDFNormal(O54,-0.201135496518942,1.01363139377986) -> 0.01970581619 | Q54: 54 | S54: -1.761261262 | T54: =[1]!XLSTAT_PDFNormal(S54,0.287820352735161,1.05024622546205) -> 0.05662759681 | U54: 54 | W54: -1.761261262 | X54: =[1]!XLSTAT_PDFNormal(W54,0.287820352735161,1.05024622546205) -> 0.05662759681 | Y54: 54 | AA54: -1.761261262 | AB54: =[1]!XLSTAT_PDFNormal(AA54,0.0946989758111516,0.952962709014027) -> 0.06283325994 | AC54: 54 | AE54: -1.761261262 | AF54: =[1]!XLSTAT_PDFNormal(AE54,0.0946989758111516,0.952962709014027) -> 0.06283325994
A55: 55 | C55: -2.675675676 | D55: =[1]!XLSTAT_PDFNormal(C55,0.300943968727696,1.04241610265003) -> 0.006490464868 | E55: 55 | G55: -2.675675676 | H55: =[1]!XLSTAT_PDFNormal(G55,0.300943968727696,1.04241610265003) -> 0.006490464868 | I55: 55 | K55: -2.675675676 | L55: =[1]!XLSTAT_PDFNormal(K55,-0.201135496518942,1.01363139377986) -> 0.0199932845 | M55: 55 | O55: -2.675675676 | P55: =[1]!XLSTAT_PDFNormal(O55,-0.201135496518942,1.01363139377986) -> 0.0199932845 | Q55: 55 | S55: -1.756756757 | T55: =[1]!XLSTAT_PDFNormal(S55,0.287820352735161,1.05024622546205) -> 0.05710292208 | U55: 55 | W55: -1.756756757 | X55: =[1]!XLSTAT_PDFNormal(W55,0.287820352735161,1.05024622546205) -> 0.05710292208 | Y55: 55 | AA55: -1.756756757 | AB55: =[1]!XLSTAT_PDFNormal(AA55,0.0946989758111516,0.952962709014027) -> 0.06341365573 | AC55: 55 | AE55: -1.756756757 | AF55: =[1]!XLSTAT_PDFNormal(AE55,0.0946989758111516,0.952962709014027) -> 0.06341365573
A56: 56 | C56: -2.66966967 | D56: =[1]!XLSTAT_PDFNormal(C56,0.300943968727696,1.04241610265003) -> 0.006598021743 | E56: 56 | G56: -2.66966967 | H56: =[1]!XLSTAT_PDFNormal(G56,0.300943968727696,1.04241610265003) -> 0.006598021743 | I56: 56 | K56: -2.66966967 | L56: =[1]!XLSTAT_PDFNormal(K56,-0.201135496518942,1.01363139377986) -> 0.02028423423 | M56: 56 | O56: -2.66966967 | P56: =[1]!XLSTAT_PDFNormal(O56,-0.201135496518942,1.01363139377986) -> 0.02028423423 | Q56: 56 | S56: -1.752252252 | T56: =[1]!XLSTAT_PDFNormal(S56,0.287820352735161,1.05024622546205) -> 0.05758117793 | U56: 56 | W56: -1.752252252 | X56: =[1]!XLSTAT_PDFNormal(W56,0.287820352735161,1.05024622546205) -> 0.05758117793 | Y56: 56 | AA56: -1.752252252 | AB56: =[1]!XLSTAT_PDFNormal(AA56,0.0946989758111516,0.952962709014027) -> 0.06399798276 | AC56: 56 | AE56: -1.752252252 | AF56: =[1]!XLSTAT_PDFNormal(AE56,0.0946989758111516,0.952962709014027) -> 0.06399798276
A57: 57 | C57: -2.663663664 | D57: =[1]!XLSTAT_PDFNormal(C57,0.300943968727696,1.04241610265003) -> 0.006707138344 | E57: 57 | G57: -2.663663664 | H57: =[1]!XLSTAT_PDFNormal(G57,0.300943968727696,1.04241610265003) -> 0.006707138344 | I57: 57 | K57: -2.663663664 | L57: =[1]!XLSTAT_PDFNormal(K57,-0.201135496518942,1.01363139377986) -> 0.02057869548 | M57: 57 | O57: -2.663663664 | P57: =[1]!XLSTAT_PDFNormal(O57,-0.201135496518942,1.01363139377986) -> 0.02057869548 | Q57: 57 | S57: -1.747747748 | T57: =[1]!XLSTAT_PDFNormal(S57,0.287820352735161,1.05024622546205) -> 0.05806237123 | U57: 57 | W57: -1.747747748 | X57: =[1]!XLSTAT_PDFNormal(W57,0.287820352735161,1.05024622546205) -> 0.05806237123 | Y57: 57 | AA57: -1.747747748 | AB57: =[1]!XLSTAT_PDFNormal(AA57,0.0946989758111516,0.952962709014027) -> 0.06458625101 | AC57: 57 | AE57: -1.747747748 | AF57: =[1]!XLSTAT_PDFNormal(AE57,0.0946989758111516,0.952962709014027) -> 0.06458625101
A58: 58 | C58: -2.657657658 | D58: =[1]!XLSTAT_PDFNormal(C58,0.300943968727696,1.04241610265003) -> 0.006817833161 | E58: 58 | G58: -2.657657658 | H58: =[1]!XLSTAT_PDFNormal(G58,0.300943968727696,1.04241610265003) -> 0.006817833161 | I58: 58 | K58: -2.657657658 | L58: =[1]!XLSTAT_PDFNormal(K58,-0.201135496518942,1.01363139377986) -> 0.02087669838 | M58: 58 | O58: -2.657657658 | P58: =[1]!XLSTAT_PDFNormal(O58,-0.201135496518942,1.01363139377986) -> 0.02087669838 | Q58: 58 | S58: -1.743243244 | T58: =[1]!XLSTAT_PDFNormal(S58,0.287820352735161,1.05024622546205) -> 0.05854650875 | U58: 58 | W58: -1.743243244 | X58: =[1]!XLSTAT_PDFNormal(W58,0.287820352735161,1.05024622546205) -> 0.05854650875 | Y58: 58 | AA58: -1.743243244 | AB58: =[1]!XLSTAT_PDFNormal(AA58,0.0946989758111516,0.952962709014027) -> 0.06517847032 | AC58: 58 | AE58: -1.743243244 | AF58: =[1]!XLSTAT_PDFNormal(AE58,0.0946989758111516,0.952962709014027) -> 0.06517847032
A59: 59 | C59: -2.651651652 | D59: =[1]!XLSTAT_PDFNormal(C59,0.300943968727696,1.04241610265003) -> 0.00693012483 | E59: 59 | G59: -2.651651652 | H59: =[1]!XLSTAT_PDFNormal(G59,0.300943968727696,1.04241610265003) -> 0.00693012483 | I59: 59 | K59: -2.651651652 | L59: =[1]!XLSTAT_PDFNormal(K59,-0.201135496518942,1.01363139377986) -> 0.02117827315 | M59: 59 | O59: -2.651651652 | P59: =[1]!XLSTAT_PDFNormal(O59,-0.201135496518942,1.01363139377986) -> 0.02117827315 | Q59: 59 | S59: -1.738738739 | T59: =[1]!XLSTAT_PDFNormal(S59,0.287820352735161,1.05024622546205) -> 0.05903359716 | U59: 59 | W59: -1.738738739 | X59: =[1]!XLSTAT_PDFNormal(W59,0.287820352735161,1.05024622546205) -> 0.05903359716 | Y59: 59 | AA59: -1.738738739 | AB59: =[1]!XLSTAT_PDFNormal(AA59,0.0946989758111516,0.952962709014027) -> 0.06577465032 | AC59: 59 | AE59: -1.738738739 | AF59: =[1]!XLSTAT_PDFNormal(AE59,0.0946989758111516,0.952962709014027) -> 0.06577465032
A60: 60 | C60: -2.645645646 | D60: =[1]!XLSTAT_PDFNormal(C60,0.300943968727696,1.04241610265003) -> 0.007044032135 | E60: 60 | G60: -2.645645646 | H60: =[1]!XLSTAT_PDFNormal(G60,0.300943968727696,1.04241610265003) -> 0.007044032135 | I60: 60 | K60: -2.645645646 | L60: =[1]!XLSTAT_PDFNormal(K60,-0.201135496518942,1.01363139377986) -> 0.02148345007 | M60: 60 | O60: -2.645645646 | P60: =[1]!XLSTAT_PDFNormal(O60,-0.201135496518942,1.01363139377986) -> 0.02148345007 | Q60: 60 | S60: -1.734234234 | T60: =[1]!XLSTAT_PDFNormal(S60,0.287820352735161,1.05024622546205) -> 0.05952364302 | U60: 60 | W60: -1.734234234 | X60: =[1]!XLSTAT_PDFNormal(W60,0.287820352735161,1.05024622546205) -> 0.05952364302 | Y60: 60 | AA60: -1.734234234 | AB60: =[1]!XLSTAT_PDFNormal(AA60,0.0946989758111516,0.952962709014027) -> 0.06637480048 | AC60: 60 | AE60: -1.734234234 | AF60: =[1]!XLSTAT_PDFNormal(AE60,0.0946989758111516,0.952962709014027) -> 0.06637480048
A61: 61 | C61: -2.63963964 | D61: =[1]!XLSTAT_PDFNormal(C61,0.300943968727696,1.04241610265003) -> 0.007159574008 | E61: 61 | G61: -2.63963964 | H61: =[1]!XLSTAT_PDFNormal(G61,0.300943968727696,1.04241610265003) -> 0.007159574008 | I61: 61 | K61: -2.63963964 | L61: =[1]!XLSTAT_PDFNormal(K61,-0.201135496518942,1.01363139377986) -> 0.02179225945 | M61: 61 | O61: -2.63963964 | P61: =[1]!XLSTAT_PDFNormal(O61,-0.201135496518942,1.01363139377986) -> 0.02179225945 | Q61: 61 | S61: -1.72972973 | T61: =[1]!XLSTAT_PDFNormal(S61,0.287820352735161,1.05024622546205) -> 0.06001665277 | U61: 61 | W61: -1.72972973 | X61: =[1]!XLSTAT_PDFNormal(W61,0.287820352735161,1.05024622546205) -> 0.06001665277 | Y61: 61 | AA61: -1.72972973 | AB61: =[1]!XLSTAT_PDFNormal(AA61,0.0946989758111516,0.952962709014027) -> 0.06697893008 | AC61: 61 | AE61: -1.72972973 | AF61: =[1]!XLSTAT_PDFNormal(AE61,0.0946989758111516,0.952962709014027) -> 0.06697893008
A62: 62 | C62: -2.633633634 | D62: =[1]!XLSTAT_PDFNormal(C62,0.300943968727696,1.04241610265003) -> 0.007276769526 | E62: 62 | G62: -2.633633634 | H62: =[1]!XLSTAT_PDFNormal(G62,0.300943968727696,1.04241610265003) -> 0.007276769526 | I62: 62 | K62: -2.633633634 | L62: =[1]!XLSTAT_PDFNormal(K62,-0.201135496518942,1.01363139377986) -> 0.02210473167 | M62: 62 | O62: -2.633633634 | P62: =[1]!XLSTAT_PDFNormal(O62,-0.201135496518942,1.01363139377986) -> 0.02210473167 | Q62: 62 | S62: -1.725225226 | T62: =[1]!XLSTAT_PDFNormal(S62,0.287820352735161,1.05024622546205) -> 0.06051263274 | U62: 62 | W62: -1.725225226 | X62: =[1]!XLSTAT_PDFNormal(W62,0.287820352735161,1.05024622546205) -> 0.06051263274 | Y62: 62 | AA62: -1.725225226 | AB62: =[1]!XLSTAT_PDFNormal(AA62,0.0946989758111516,0.952962709014027) -> 0.06758704823 | AC62: 62 | AE62: -1.725225226 | AF62: =[1]!XLSTAT_PDFNormal(AE62,0.0946989758111516,0.952962709014027) -> 0.06758704823
A63: 63 | C63: -2.627627628 | D63: =[1]!XLSTAT_PDFNormal(C63,0.300943968727696,1.04241610265003) -> 0.007395637913 | E63: 63 | G63: -2.627627628 | H63: =[1]!XLSTAT_PDFNormal(G63,0.300943968727696,1.04241610265003) -> 0.007395637913 | I63: 63 | K63: -2.627627628 | L63: =[1]!XLSTAT_PDFNormal(K63,-0.201135496518942,1.01363139377986) -> 0.02242089716 | M63: 63 | O63: -2.627627628 | P63: =[1]!XLSTAT_PDFNormal(O63,-0.201135496518942,1.01363139377986) -> 0.02242089716 | Q63: 63 | S63: -1.720720721 | T63: =[1]!XLSTAT_PDFNormal(S63,0.287820352735161,1.05024622546205) -> 0.06101158916 | U63: 63 | W63: -1.720720721 | X63: =[1]!XLSTAT_PDFNormal(W63,0.287820352735161,1.05024622546205) -> 0.06101158916 | Y63: 63 | AA63: -1.720720721 | AB63: =[1]!XLSTAT_PDFNormal(AA63,0.0946989758111516,0.952962709014027) -> 0.06819916384 | AC63: 63 | AE63: -1.720720721 | AF63: =[1]!XLSTAT_PDFNormal(AE63,0.0946989758111516,0.952962709014027) -> 0.06819916384
A64: 64 | C64: -2.621621622 | D64: =[1]!XLSTAT_PDFNormal(C64,0.300943968727696,1.04241610265003) -> 0.00751619854 | E64: 64 | G64: -2.621621622 | H64: =[1]!XLSTAT_PDFNormal(G64,0.300943968727696,1.04241610265003) -> 0.00751619854 | I64: 64 | K64: -2.621621622 | L64: =[1]!XLSTAT_PDFNormal(K64,-0.201135496518942,1.01363139377986) -> 0.02274078637 | M64: 64 | O64: -2.621621622 | P64: =[1]!XLSTAT_PDFNormal(O64,-0.201135496518942,1.01363139377986) -> 0.02274078637 | Q64: 64 | S64: -1.716216216 | T64: =[1]!XLSTAT_PDFNormal(S64,0.287820352735161,1.05024622546205) -> 0.06151352813 | U64: 64 | W64: -1.716216216 | X64: =[1]!XLSTAT_PDFNormal(W64,0.287820352735161,1.05024622546205) -> 0.06151352813 | Y64: 64 | AA64: -1.716216216 | AB64: =[1]!XLSTAT_PDFNormal(AA64,0.0946989758111516,0.952962709014027) -> 0.06881528563 | AC64: 64 | AE64: -1.716216216 | AF64: =[1]!XLSTAT_PDFNormal(AE64,0.0946989758111516,0.952962709014027) -> 0.06881528563
A65: 65 | C65: =-3+(A65-1)*0.006006006 -> -2.615615616 | D65: =[1]!XLSTAT_PDFNormal(C65,0.300943968727696,1.04241610265003) -> 0.007638470924 | E65: 65 | G65: =-3+(E65-1)*0.006006006 -> -2.615615616 | H65: =[1]!XLSTAT_PDFNormal(G65,0.300943968727696,1.04241610265003) -> 0.007638470924 | I65: 65 | K65: =-3+(I65-1)*0.006006006 -> -2.615615616 | L65: =[1]!XLSTAT_PDFNormal(K65,-0.201135496518942,1.01363139377986) -> 0.02306442982 | M65: 65 | O65: =-3+(M65-1)*0.006006006 -> -2.615615616 | P65: =[1]!XLSTAT_PDFNormal(O65,-0.201135496518942,1.01363139377986) -> 0.02306442982 | Q65: 65 | S65: =-2+(Q65-1)*0.0045045045 -> -1.711711712 | T65: =[1]!XLSTAT_PDFNormal(S65,0.287820352735161,1.05024622546205) -> 0.06201845566 | U65: 65 | W65: =-2+(U65-1)*0.0045045045 -> -1.711711712 | X65: =[1]!XLSTAT_PDFNormal(W65,0.287820352735161,1.05024622546205) -> 0.06201845566 | Y65: 65 | AA65: =-2+(Y65-1)*0.0045045045 -> -1.711711712 | AB65: =[1]!XLSTAT_PDFNormal(AA65,0.0946989758111516,0.952962709014027) -> 0.06943542215 | AC65: 65 | AE65: =-2+(AC65-1)*0.0045045045 -> -1.711711712 | AF65: =[1]!XLSTAT_PDFNormal(AE65,0.0946989758111516,0.952962709014027) -> 0.06943542215
A66: 66 | C66: -2.60960961 | D66: =[1]!XLSTAT_PDFNormal(C66,0.300943968727696,1.04241610265003) -> 0.007762474726 | E66: 66 | G66: -2.60960961 | H66: =[1]!XLSTAT_PDFNormal(G66,0.300943968727696,1.04241610265003) -> 0.007762474726 | I66: 66 | K66: -2.60960961 | L66: =[1]!XLSTAT_PDFNormal(K66,-0.201135496518942,1.01363139377986) -> 0.02339185805 | M66: 66 | O66: -2.60960961 | P66: =[1]!XLSTAT_PDFNormal(O66,-0.201135496518942,1.01363139377986) -> 0.02339185805 | Q66: 66 | S66: -1.707207207 | T66: =[1]!XLSTAT_PDFNormal(S66,0.287820352735161,1.05024622546205) -> 0.06252637762 | U66: 66 | W66: -1.707207207 | X66: =[1]!XLSTAT_PDFNormal(W66,0.287820352735161,1.05024622546205) -> 0.06252637762 | Y66: 66 | AA66: -1.707207207 | AB66: =[1]!XLSTAT_PDFNormal(AA66,0.0946989758111516,0.952962709014027) -> 0.07005958174 | AC66: 66 | AE66: -1.707207207 | AF66: =[1]!XLSTAT_PDFNormal(AE66,0.0946989758111516,0.952962709014027) -> 0.07005958174
A67: 67 | C67: -2.603603604 | D67: =[1]!XLSTAT_PDFNormal(C67,0.300943968727696,1.04241610265003) -> 0.007888229756 | E67: 67 | G67: -2.603603604 | H67: =[1]!XLSTAT_PDFNormal(G67,0.300943968727696,1.04241610265003) -> 0.007888229756 | I67: 67 | K67: -2.603603604 | L67: =[1]!XLSTAT_PDFNormal(K67,-0.201135496518942,1.01363139377986) -> 0.02372310163 | M67: 67 | O67: -2.603603604 | P67: =[1]!XLSTAT_PDFNormal(O67,-0.201135496518942,1.01363139377986) -> 0.02372310163 | Q67: 67 | S67: -1.702702703 | T67: =[1]!XLSTAT_PDFNormal(S67,0.287820352735161,1.05024622546205) -> 0.06303729978 | U67: 67 | W67: -1.702702703 | X67: =[1]!XLSTAT_PDFNormal(W67,0.287820352735161,1.05024622546205) -> 0.06303729978 | Y67: 67 | AA67: -1.702702703 | AB67: =[1]!XLSTAT_PDFNormal(AA67,0.0946989758111516,0.952962709014027) -> 0.07068777254 | AC67: 67 | AE67: -1.702702703 | AF67: =[1]!XLSTAT_PDFNormal(AE67,0.0946989758111516,0.952962709014027) -> 0.07068777254
A68: 68 | C68: -2.597597598 | D68: =[1]!XLSTAT_PDFNormal(C68,0.300943968727696,1.04241610265003) -> 0.008015755968 | E68: 68 | G68: -2.597597598 | H68: =[1]!XLSTAT_PDFNormal(G68,0.300943968727696,1.04241610265003) -> 0.008015755968 | I68: 68 | K68: -2.597597598 | L68: =[1]!XLSTAT_PDFNormal(K68,-0.201135496518942,1.01363139377986) -> 0.02405819117 | M68: 68 | O68: -2.597597598 | P68: =[1]!XLSTAT_PDFNormal(O68,-0.201135496518942,1.01363139377986) -> 0.02405819117 | Q68: 68 | S68: -1.698198199 | T68: =[1]!XLSTAT_PDFNormal(S68,0.287820352735161,1.05024622546205) -> 0.06355122776 | U68: 68 | W68: -1.698198199 | X68: =[1]!XLSTAT_PDFNormal(W68,0.287820352735161,1.05024622546205) -> 0.06355122776 | Y68: 68 | AA68: -1.698198199 | AB68: =[1]!XLSTAT_PDFNormal(AA68,0.0946989758111516,0.952962709014027) -> 0.0713200025 | AC68: 68 | AE68: -1.698198199 | AF68: =[1]!XLSTAT_PDFNormal(AE68,0.0946989758111516,0.952962709014027) -> 0.0713200025
A69: 69 | C69: -2.591591592 | D69: =[1]!XLSTAT_PDFNormal(C69,0.300943968727696,1.04241610265003) -> 0.00814507346 | E69: 69 | G69: -2.591591592 | H69: =[1]!XLSTAT_PDFNormal(G69,0.300943968727696,1.04241610265003) -> 0.00814507346 | I69: 69 | K69: -2.591591592 | L69: =[1]!XLSTAT_PDFNormal(K69,-0.201135496518942,1.01363139377986) -> 0.02439715731 | M69: 69 | O69: -2.591591592 | P69: =[1]!XLSTAT_PDFNormal(O69,-0.201135496518942,1.01363139377986) -> 0.02439715731 | Q69: 69 | S69: -1.693693694 | T69: =[1]!XLSTAT_PDFNormal(S69,0.287820352735161,1.05024622546205) -> 0.0640681671 | U69: 69 | W69: -1.693693694 | X69: =[1]!XLSTAT_PDFNormal(W69,0.287820352735161,1.05024622546205) -> 0.0640681671 | Y69: 69 | AA69: -1.693693694 | AB69: =[1]!XLSTAT_PDFNormal(AA69,0.0946989758111516,0.952962709014027) -> 0.07195627938 | AC69: 69 | AE69: -1.693693694 | AF69: =[1]!XLSTAT_PDFNormal(AE69,0.0946989758111516,0.952962709014027) -> 0.07195627938
A70: 70 | C70: -2.585585586 | D70: =[1]!XLSTAT_PDFNormal(C70,0.300943968727696,1.04241610265003) -> 0.008276202476 | E70: 70 | G70: -2.585585586 | H70: =[1]!XLSTAT_PDFNormal(G70,0.300943968727696,1.04241610265003) -> 0.008276202476 | I70: 70 | K70: -2.585585586 | L70: =[1]!XLSTAT_PDFNormal(K70,-0.201135496518942,1.01363139377986) -> 0.02474003068 | M70: 70 | O70: -2.585585586 | P70: =[1]!XLSTAT_PDFNormal(O70,-0.201135496518942,1.01363139377986) -> 0.02474003068 | Q70: 70 | S70: -1.689189189 | T70: =[1]!XLSTAT_PDFNormal(S70,0.287820352735161,1.05024622546205) -> 0.0645881232 | U70: 70 | W70: -1.689189189 | X70: =[1]!XLSTAT_PDFNormal(W70,0.287820352735161,1.05024622546205) -> 0.0645881232 | Y70: 70 | AA70: -1.689189189 | AB70: =[1]!XLSTAT_PDFNormal(AA70,0.0946989758111516,0.952962709014027) -> 0.07259661071 | AC70: 70 | AE70: -1.689189189 | AF70: =[1]!XLSTAT_PDFNormal(AE70,0.0946989758111516,0.952962709014027) -> 0.07259661071
A71: 71 | C71: -2.57957958 | D71: =[1]!XLSTAT_PDFNormal(C71,0.300943968727696,1.04241610265003) -> 0.008409163404 | E71: 71 | G71: -2.57957958 | H71: =[1]!XLSTAT_PDFNormal(G71,0.300943968727696,1.04241610265003) -> 0.008409163404 | I71: 71 | K71: -2.57957958 | L71: =[1]!XLSTAT_PDFNormal(K71,-0.201135496518942,1.01363139377986) -> 0.02508684196 | M71: 71 | O71: -2.57957958 | P71: =[1]!XLSTAT_PDFNormal(O71,-0.201135496518942,1.01363139377986) -> 0.02508684196 | Q71: 71 | S71: -1.684684685 | T71: =[1]!XLSTAT_PDFNormal(S71,0.287820352735161,1.05024622546205) -> 0.06511110132 | U71: 71 | W71: -1.684684685 | X71: =[1]!XLSTAT_PDFNormal(W71,0.287820352735161,1.05024622546205) -> 0.06511110132 | Y71: 71 | AA71: -1.684684685 | AB71: =[1]!XLSTAT_PDFNormal(AA71,0.0946989758111516,0.952962709014027) -> 0.07324100384 | AC71: 71 | AE71: -1.684684685 | AF71: =[1]!XLSTAT_PDFNormal(AE71,0.0946989758111516,0.952962709014027) -> 0.07324100384
A72: 72 | C72: -2.573573574 | D72: =[1]!XLSTAT_PDFNormal(C72,0.300943968727696,1.04241610265003) -> 0.008543976777 | E72: 72 | G72: -2.573573574 | H72: =[1]!XLSTAT_PDFNormal(G72,0.300943968727696,1.04241610265003) -> 0.008543976777 | I72: 72 | K72: -2.573573574 | L72: =[1]!XLSTAT_PDFNormal(K72,-0.201135496518942,1.01363139377986) -> 0.02543762182 | M72: 72 | O72: -2.573573574 | P72: =[1]!XLSTAT_PDFNormal(O72,-0.201135496518942,1.01363139377986) -> 0.02543762182 | Q72: 72 | S72: -1.680180181 | T72: =[1]!XLSTAT_PDFNormal(S72,0.287820352735161,1.05024622546205) -> 0.06563710662 | U72: 72 | W72: -1.680180181 | X72: =[1]!XLSTAT_PDFNormal(W72,0.287820352735161,1.05024622546205) -> 0.06563710662 | Y72: 72 | AA72: -1.680180181 | AB72: =[1]!XLSTAT_PDFNormal(AA72,0.0946989758111516,0.952962709014027) -> 0.0738894659 | AC72: 72 | AE72: -1.680180181 | AF72: =[1]!XLSTAT_PDFNormal(AE72,0.0946989758111516,0.952962709014027) -> 0.0738894659
A73: 73 | C73: -2.567567568 | D73: =[1]!XLSTAT_PDFNormal(C73,0.300943968727696,1.04241610265003) -> 0.00868066327 | E73: 73 | G73: -2.567567568 | H73: =[1]!XLSTAT_PDFNormal(G73,0.300943968727696,1.04241610265003) -> 0.00868066327 | I73: 73 | K73: -2.567567568 | L73: =[1]!XLSTAT_PDFNormal(K73,-0.201135496518942,1.01363139377986) -> 0.02579240097 | M73: 73 | O73: -2.567567568 | P73: =[1]!XLSTAT_PDFNormal(O73,-0.201135496518942,1.01363139377986) -> 0.02579240097 | Q73: 73 | S73: -1.675675676 | T73: =[1]!XLSTAT_PDFNormal(S73,0.287820352735161,1.05024622546205) -> 0.06616614413 | U73: 73 | W73: -1.675675676 | X73: =[1]!XLSTAT_PDFNormal(W73,0.287820352735161,1.05024622546205) -> 0.06616614413 | Y73: 73 | AA73: -1.675675676 | AB73: =[1]!XLSTAT_PDFNormal(AA73,0.0946989758111516,0.952962709014027) -> 0.0745420038 | AC73: 73 | AE73: -1.675675676 | AF73: =[1]!XLSTAT_PDFNormal(AE73,0.0946989758111516,0.952962709014027) -> 0.0745420038
A74: 74 | C74: -2.561561562 | D74: =[1]!XLSTAT_PDFNormal(C74,0.300943968727696,1.04241610265003) -> 0.008819243703 | E74: 74 | G74: -2.561561562 | H74: =[1]!XLSTAT_PDFNormal(G74,0.300943968727696,1.04241610265003) -> 0.008819243703 | I74: 74 | K74: -2.561561562 | L74: =[1]!XLSTAT_PDFNormal(K74,-0.201135496518942,1.01363139377986) -> 0.02615121008 | M74: 74 | O74: -2.561561562 | P74: =[1]!XLSTAT_PDFNormal(O74,-0.201135496518942,1.01363139377986) -> 0.02615121008 | Q74: 74 | S74: -1.671171171 | T74: =[1]!XLSTAT_PDFNormal(S74,0.287820352735161,1.05024622546205) -> 0.06669821875 | U74: 74 | W74: -1.671171171 | X74: =[1]!XLSTAT_PDFNormal(W74,0.287820352735161,1.05024622546205) -> 0.06669821875 | Y74: 74 | AA74: -1.671171171 | AB74: =[1]!XLSTAT_PDFNormal(AA74,0.0946989758111516,0.952962709014027) -> 0.07519862426 | AC74: 74 | AE74: -1.671171171 | AF74: =[1]!XLSTAT_PDFNormal(AE74,0.0946989758111516,0.952962709014027) -> 0.07519862426
A75: 75 | C75: -2.555555556 | D75: =[1]!XLSTAT_PDFNormal(C75,0.300943968727696,1.04241610265003) -> 0.008959739035 | E75: 75 | G75: -2.555555556 | H75: =[1]!XLSTAT_PDFNormal(G75,0.300943968727696,1.04241610265003) -> 0.008959739035 | I75: 75 | K75: -2.555555556 | L75: =[1]!XLSTAT_PDFNormal(K75,-0.201135496518942,1.01363139377986) -> 0.02651407985 | M75: 75 | O75: -2.555555556 | P75: =[1]!XLSTAT_PDFNormal(O75,-0.201135496518942,1.01363139377986) -> 0.02651407985 | Q75: 75 | S75: -1.666666667 | T75: =[1]!XLSTAT_PDFNormal(S75,0.287820352735161,1.05024622546205) -> 0.06723333523 | U75: 75 | W75: -1.666666667 | X75: =[1]!XLSTAT_PDFNormal(W75,0.287820352735161,1.05024622546205) -> 0.06723333523 | Y75: 75 | AA75: -1.666666667 | AB75: =[1]!XLSTAT_PDFNormal(AA75,0.0946989758111516,0.952962709014027) -> 0.07585933376 | AC75: 75 | AE75: -1.666666667 | AF75: =[1]!XLSTAT_PDFNormal(AE75,0.0946989758111516,0.952962709014027) -> 0.07585933376
A76: 76 | C76: -2.54954955 | D76: =[1]!XLSTAT_PDFNormal(C76,0.300943968727696,1.04241610265003) -> 0.009102170371 | E76: 76 | G76: -2.54954955 | H76: =[1]!XLSTAT_PDFNormal(G76,0.300943968727696,1.04241610265003) -> 0.009102170371 | I76: 76 | K76: -2.54954955 | L76: =[1]!XLSTAT_PDFNormal(K76,-0.201135496518942,1.01363139377986) -> 0.02688104098 | M76: 76 | O76: -2.54954955 | P76: =[1]!XLSTAT_PDFNormal(O76,-0.201135496518942,1.01363139377986) -> 0.02688104098 | Q76: 76 | S76: -1.662162163 | T76: =[1]!XLSTAT_PDFNormal(S76,0.287820352735161,1.05024622546205) -> 0.06777149822 | U76: 76 | W76: -1.662162163 | X76: =[1]!XLSTAT_PDFNormal(W76,0.287820352735161,1.05024622546205) -> 0.06777149822 | Y76: 76 | AA76: -1.662162163 | AB76: =[1]!XLSTAT_PDFNormal(AA76,0.0946989758111516,0.952962709014027) -> 0.07652413858 | AC76: 76 | AE76: -1.662162163 | AF76: =[1]!XLSTAT_PDFNormal(AE76,0.0946989758111516,0.952962709014027) -> 0.07652413858
A77: 77 | C77: -2.543543544 | D77: =[1]!XLSTAT_PDFNormal(C77,0.300943968727696,1.04241610265003) -> 0.009246558955 | E77: 77 | G77: -2.543543544 | H77: =[1]!XLSTAT_PDFNormal(G77,0.300943968727696,1.04241610265003) -> 0.009246558955 | I77: 77 | K77: -2.543543544 | L77: =[1]!XLSTAT_PDFNormal(K77,-0.201135496518942,1.01363139377986) -> 0.02725212414 | M77: 77 | O77: -2.543543544 | P77: =[1]!XLSTAT_PDFNormal(O77,-0.201135496518942,1.01363139377986) -> 0.02725212414 | Q77: 77 | S77: -1.657657658 | T77: =[1]!XLSTAT_PDFNormal(S77,0.287820352735161,1.05024622546205) -> 0.06831271223 | U77: 77 | W77: -1.657657658 | X77: =[1]!XLSTAT_PDFNormal(W77,0.287820352735161,1.05024622546205) -> 0.06831271223 | Y77: 77 | AA77: -1.657657658 | AB77: =[1]!XLSTAT_PDFNormal(AA77,0.0946989758111516,0.952962709014027) -> 0.07719304478 | AC77: 77 | AE77: -1.657657658 | AF77: =[1]!XLSTAT_PDFNormal(AE77,0.0946989758111516,0.952962709014027) -> 0.07719304478
A78: 78 | C78: -2.537537538 | D78: =[1]!XLSTAT_PDFNormal(C78,0.300943968727696,1.04241610265003) -> 0.009392926174 | E78: 78 | G78: -2.537537538 | H78: =[1]!XLSTAT_PDFNormal(G78,0.300943968727696,1.04241610265003) -> 0.009392926174 | I78: 78 | K78: -2.537537538 | L78: =[1]!XLSTAT_PDFNormal(K78,-0.201135496518942,1.01363139377986) -> 0.02762736 | M78: 78 | O78: -2.537537538 | P78: =[1]!XLSTAT_PDFNormal(O78,-0.201135496518942,1.01363139377986) -> 0.02762736 | Q78: 78 | S78: -1.653153153 | T78: =[1]!XLSTAT_PDFNormal(S78,0.287820352735161,1.05024622546205) -> 0.06885698164 | U78: 78 | W78: -1.653153153 | X78: =[1]!XLSTAT_PDFNormal(W78,0.287820352735161,1.05024622546205) -> 0.06885698164 | Y78: 78 | AA78: -1.653153153 | AB78: =[1]!XLSTAT_PDFNormal(AA78,0.0946989758111516,0.952962709014027) -> 0.07786605817 | AC78: 78 | AE78: -1.653153153 | AF78: =[1]!XLSTAT_PDFNormal(AE78,0.0946989758111516,0.952962709014027) -> 0.07786605817
A79: 79 | C79: -2.531531532 | D79: =[1]!XLSTAT_PDFNormal(C79,0.300943968727696,1.04241610265003) -> 0.009541293554 | E79: 79 | G79: -2.531531532 | H79: =[1]!XLSTAT_PDFNormal(G79,0.300943968727696,1.04241610265003) -> 0.009541293554 | I79: 79 | K79: -2.531531532 | L79: =[1]!XLSTAT_PDFNormal(K79,-0.201135496518942,1.01363139377986) -> 0.02800677921 | M79: 79 | O79: -2.531531532 | P79: =[1]!XLSTAT_PDFNormal(O79,-0.201135496518942,1.01363139377986) -> 0.02800677921 | Q79: 79 | S79: -1.648648649 | T79: =[1]!XLSTAT_PDFNormal(S79,0.287820352735161,1.05024622546205) -> 0.06940431067 | U79: 79 | W79: -1.648648649 | X79: =[1]!XLSTAT_PDFNormal(W79,0.287820352735161,1.05024622546205) -> 0.06940431067 | Y79: 79 | AA79: -1.648648649 | AB79: =[1]!XLSTAT_PDFNormal(AA79,0.0946989758111516,0.952962709014027) -> 0.07854318438 | AC79: 79 | AE79: -1.648648649 | AF79: =[1]!XLSTAT_PDFNormal(AE79,0.0946989758111516,0.952962709014027) -> 0.07854318438
A80: 80 | C80: -2.525525526 | D80: =[1]!XLSTAT_PDFNormal(C80,0.300943968727696,1.04241610265003) -> 0.009691682759 | E80: 80 | G80: -2.525525526 | H80: =[1]!XLSTAT_PDFNormal(G80,0.300943968727696,1.04241610265003) -> 0.009691682759 | I80: 80 | K80: -2.525525526 | L80: =[1]!XLSTAT_PDFNormal(K80,-0.201135496518942,1.01363139377986) -> 0.02839041239 | M80: 80 | O80: -2.525525526 | P80: =[1]!XLSTAT_PDFNormal(O80,-0.201135496518942,1.01363139377986) -> 0.02839041239 | Q80: 80 | S80: -1.644144145 | T80: =[1]!XLSTAT_PDFNormal(S80,0.287820352735161,1.05024622546205) -> 0.06995470343 | U80: 80 | W80: -1.644144145 | X80: =[1]!XLSTAT_PDFNormal(W80,0.287820352735161,1.05024622546205) -> 0.06995470343 | Y80: 80 | AA80: -1.644144145 | AB80: =[1]!XLSTAT_PDFNormal(AA80,0.0946989758111516,0.952962709014027) -> 0.07922442876 | AC80: 80 | AE80: -1.644144145 | AF80: =[1]!XLSTAT_PDFNormal(AE80,0.0946989758111516,0.952962709014027) -> 0.07922442876
A81: 81 | C81: -2.51951952 | D81: =[1]!XLSTAT_PDFNormal(C81,0.300943968727696,1.04241610265003) -> 0.009844115596 | E81: 81 | G81: -2.51951952 | H81: =[1]!XLSTAT_PDFNormal(G81,0.300943968727696,1.04241610265003) -> 0.009844115596 | I81: 81 | K81: -2.51951952 | L81: =[1]!XLSTAT_PDFNormal(K81,-0.201135496518942,1.01363139377986) -> 0.02877829016 | M81: 81 | O81: -2.51951952 | P81: =[1]!XLSTAT_PDFNormal(O81,-0.201135496518942,1.01363139377986) -> 0.02877829016 | Q81: 81 | S81: -1.63963964 | T81: =[1]!XLSTAT_PDFNormal(S81,0.287820352735161,1.05024622546205) -> 0.0705081639 | U81: 81 | W81: -1.63963964 | X81: =[1]!XLSTAT_PDFNormal(W81,0.287820352735161,1.05024622546205) -> 0.0705081639 | Y81: 81 | AA81: -1.63963964 | AB81: =[1]!XLSTAT_PDFNormal(AA81,0.0946989758111516,0.952962709014027) -> 0.07990979647 | AC81: 81 | AE81: -1.63963964 | AF81: =[1]!XLSTAT_PDFNormal(AE81,0.0946989758111516,0.952962709014027) -> 0.07990979647
A82: 82 | C82: -2.513513514 | D82: =[1]!XLSTAT_PDFNormal(C82,0.300943968727696,1.04241610265003) -> 0.009998614006 | E82: 82 | G82: -2.513513514 | H82: =[1]!XLSTAT_PDFNormal(G82,0.300943968727696,1.04241610265003) -> 0.009998614006 | I82: 82 | K82: -2.513513514 | L82: =[1]!XLSTAT_PDFNormal(K82,-0.201135496518942,1.01363139377986) -> 0.02917044307 | M82: 82 | O82: -2.513513514 | P82: =[1]!XLSTAT_PDFNormal(O82,-0.201135496518942,1.01363139377986) -> 0.02917044307 | Q82: 82 | S82: -1.635135136 | T82: =[1]!XLSTAT_PDFNormal(S82,0.287820352735161,1.05024622546205) -> 0.0710646959 | U82: 82 | W82: -1.635135136 | X82: =[1]!XLSTAT_PDFNormal(W82,0.287820352735161,1.05024622546205) -> 0.0710646959 | Y82: 82 | AA82: -1.635135136 | AB82: =[1]!XLSTAT_PDFNormal(AA82,0.0946989758111516,0.952962709014027) -> 0.08059929241 | AC82: 82 | AE82: -1.635135136 | AF82: =[1]!XLSTAT_PDFNormal(AE82,0.0946989758111516,0.952962709014027) -> 0.08059929241
A83: 83 | C83: -2.507507508 | D83: =[1]!XLSTAT_PDFNormal(C83,0.300943968727696,1.04241610265003) -> 0.01015520007 | E83: 83 | G83: -2.507507508 | H83: =[1]!XLSTAT_PDFNormal(G83,0.300943968727696,1.04241610265003) -> 0.01015520007 | I83: 83 | K83: -2.507507508 | L83: =[1]!XLSTAT_PDFNormal(K83,-0.201135496518942,1.01363139377986) -> 0.02956690167 | M83: 83 | O83: -2.507507508 | P83: =[1]!XLSTAT_PDFNormal(O83,-0.201135496518942,1.01363139377986) -> 0.02956690167 | Q83: 83 | S83: -1.630630631 | T83: =[1]!XLSTAT_PDFNormal(S83,0.287820352735161,1.05024622546205) -> 0.07162430311 | U83: 83 | W83: -1.630630631 | X83: =[1]!XLSTAT_PDFNormal(W83,0.287820352735161,1.05024622546205) -> 0.07162430311 | Y83: 83 | AA83: -1.630630631 | AB83: =[1]!XLSTAT_PDFNormal(AA83,0.0946989758111516,0.952962709014027) -> 0.08129292128 | AC83: 83 | AE83: -1.630630631 | AF83: =[1]!XLSTAT_PDFNormal(AE83,0.0946989758111516,0.952962709014027) -> 0.08129292128
A84: 84 | C84: -2.501501502 | D84: =[1]!XLSTAT_PDFNormal(C84,0.300943968727696,1.04241610265003) -> 0.010313896 | E84: 84 | G84: -2.501501502 | H84: =[1]!XLSTAT_PDFNormal(G84,0.300943968727696,1.04241610265003) -> 0.010313896 | I84: 84 | K84: -2.501501502 | L84: =[1]!XLSTAT_PDFNormal(K84,-0.201135496518942,1.01363139377986) -> 0.02996769644 | M84: 84 | O84: -2.501501502 | P84: =[1]!XLSTAT_PDFNormal(O84,-0.201135496518942,1.01363139377986) -> 0.02996769644 | Q84: 84 | S84: -1.626126126 | T84: =[1]!XLSTAT_PDFNormal(S84,0.287820352735161,1.05024622546205) -> 0.07218698909 | U84: 84 | W84: -1.626126126 | X84: =[1]!XLSTAT_PDFNormal(W84,0.287820352735161,1.05024622546205) -> 0.07218698909 | Y84: 84 | AA84: -1.626126126 | AB84: =[1]!XLSTAT_PDFNormal(AA84,0.0946989758111516,0.952962709014027) -> 0.08199068749 | AC84: 84 | AE84: -1.626126126 | AF84: =[1]!XLSTAT_PDFNormal(AE84,0.0946989758111516,0.952962709014027) -> 0.08199068749
A85: 85 | C85: -2.495495496 | D85: =[1]!XLSTAT_PDFNormal(C85,0.300943968727696,1.04241610265003) -> 0.01047472416 | E85: 85 | G85: -2.495495496 | H85: =[1]!XLSTAT_PDFNormal(G85,0.300943968727696,1.04241610265003) -> 0.01047472416 | I85: 85 | K85: -2.495495496 | L85: =[1]!XLSTAT_PDFNormal(K85,-0.201135496518942,1.01363139377986) -> 0.03037285782 | M85: 85 | O85: -2.495495496 | P85: =[1]!XLSTAT_PDFNormal(O85,-0.201135496518942,1.01363139377986) -> 0.03037285782 | Q85: 85 | S85: -1.621621622 | T85: =[1]!XLSTAT_PDFNormal(S85,0.287820352735161,1.05024622546205) -> 0.07275275723 | U85: 85 | W85: -1.621621622 | X85: =[1]!XLSTAT_PDFNormal(W85,0.287820352735161,1.05024622546205) -> 0.07275275723 | Y85: 85 | AA85: -1.621621622 | AB85: =[1]!XLSTAT_PDFNormal(AA85,0.0946989758111516,0.952962709014027) -> 0.08269259526 | AC85: 85 | AE85: -1.621621622 | AF85: =[1]!XLSTAT_PDFNormal(AE85,0.0946989758111516,0.952962709014027) -> 0.08269259526
A86: 86 | C86: -2.48948949 | D86: =[1]!XLSTAT_PDFNormal(C86,0.300943968727696,1.04241610265003) -> 0.01063770703 | E86: 86 | G86: -2.48948949 | H86: =[1]!XLSTAT_PDFNormal(G86,0.300943968727696,1.04241610265003) -> 0.01063770703 | I86: 86 | K86: -2.48948949 | L86: =[1]!XLSTAT_PDFNormal(K86,-0.201135496518942,1.01363139377986) -> 0.03078241623 | M86: 86 | O86: -2.48948949 | P86: =[1]!XLSTAT_PDFNormal(O86,-0.201135496518942,1.01363139377986) -> 0.03078241623 | Q86: 86 | S86: -1.617117117 | T86: =[1]!XLSTAT_PDFNormal(S86,0.287820352735161,1.05024622546205) -> 0.0733216108 | U86: 86 | W86: -1.617117117 | X86: =[1]!XLSTAT_PDFNormal(W86,0.287820352735161,1.05024622546205) -> 0.0733216108 | Y86: 86 | AA86: -1.617117117 | AB86: =[1]!XLSTAT_PDFNormal(AA86,0.0946989758111516,0.952962709014027) -> 0.08339864854 | AC86: 86 | AE86: -1.617117117 | AF86: =[1]!XLSTAT_PDFNormal(AE86,0.0946989758111516,0.952962709014027) -> 0.08339864854
A87: 87 | C87: -2.483483484 | D87: =[1]!XLSTAT_PDFNormal(C87,0.300943968727696,1.04241610265003) -> 0.01080286724 | E87: 87 | G87: -2.483483484 | H87: =[1]!XLSTAT_PDFNormal(G87,0.300943968727696,1.04241610265003) -> 0.01080286724 | I87: 87 | K87: -2.483483484 | L87: =[1]!XLSTAT_PDFNormal(K87,-0.201135496518942,1.01363139377986) -> 0.03119640199 | M87: 87 | O87: -2.483483484 | P87: =[1]!XLSTAT_PDFNormal(O87,-0.201135496518942,1.01363139377986) -> 0.03119640199 | Q87: 87 | S87: -1.612612613 | T87: =[1]!XLSTAT_PDFNormal(S87,0.287820352735161,1.05024622546205) -> 0.07389355292 | U87: 87 | W87: -1.612612613 | X87: =[1]!XLSTAT_PDFNormal(W87,0.287820352735161,1.05024622546205) -> 0.07389355292 | Y87: 87 | AA87: -1.612612613 | AB87: =[1]!XLSTAT_PDFNormal(AA87,0.0946989758111516,0.952962709014027) -> 0.08410885103 | AC87: 87 | AE87: -1.612612613 | AF87: =[1]!XLSTAT_PDFNormal(AE87,0.0946989758111516,0.952962709014027) -> 0.08410885103
A88: 88 | C88: -2.477477478 | D88: =[1]!XLSTAT_PDFNormal(C88,0.300943968727696,1.04241610265003) -> 0.01097022753 | E88: 88 | G88: -2.477477478 | H88: =[1]!XLSTAT_PDFNormal(G88,0.300943968727696,1.04241610265003) -> 0.01097022753 | I88: 88 | K88: -2.477477478 | L88: =[1]!XLSTAT_PDFNormal(K88,-0.201135496518942,1.01363139377986) -> 0.03161484538 | M88: 88 | O88: -2.477477478 | P88: =[1]!XLSTAT_PDFNormal(O88,-0.201135496518942,1.01363139377986) -> 0.03161484538 | Q88: 88 | S88: -1.608108108 | T88: =[1]!XLSTAT_PDFNormal(S88,0.287820352735161,1.05024622546205) -> 0.07446858654 | U88: 88 | W88: -1.608108108 | X88: =[1]!XLSTAT_PDFNormal(W88,0.287820352735161,1.05024622546205) -> 0.07446858654 | Y88: 88 | AA88: -1.608108108 | AB88: =[1]!XLSTAT_PDFNormal(AA88,0.0946989758111516,0.952962709014027) -> 0.08482320621 | AC88: 88 | AE88: -1.608108108 | AF88: =[1]!XLSTAT_PDFNormal(AE88,0.0946989758111516,0.952962709014027) -> 0.08482320621
A89: 89 | C89: -2.471471472 | D89: =[1]!XLSTAT_PDFNormal(C89,0.300943968727696,1.04241610265003) -> 0.01113981079 | E89: 89 | G89: -2.471471472 | H89: =[1]!XLSTAT_PDFNormal(G89,0.300943968727696,1.04241610265003) -> 0.01113981079 | I89: 89 | K89: -2.471471472 | L89: =[1]!XLSTAT_PDFNormal(K89,-0.201135496518942,1.01363139377986) -> 0.03203777662 | M89: 89 | O89: -2.471471472 | P89: =[1]!XLSTAT_PDFNormal(O89,-0.201135496518942,1.01363139377986) -> 0.03203777662 | Q89: 89 | S89: -1.603603604 | T89: =[1]!XLSTAT_PDFNormal(S89,0.287820352735161,1.05024622546205) -> 0.07504671449 | U89: 89 | W89: -1.603603604 | X89: =[1]!XLSTAT_PDFNormal(W89,0.287820352735161,1.05024622546205) -> 0.07504671449 | Y89: 89 | AA89: -1.603603604 | AB89: =[1]!XLSTAT_PDFNormal(AA89,0.0946989758111516,0.952962709014027) -> 0.08554171728 | AC89: 89 | AE89: -1.603603604 | AF89: =[1]!XLSTAT_PDFNormal(AE89,0.0946989758111516,0.952962709014027) -> 0.08554171728
A90: 90 | C90: -2.465465466 | D90: =[1]!XLSTAT_PDFNormal(C90,0.300943968727696,1.04241610265003) -> 0.01131164005 | E90: 90 | G90: -2.465465466 | H90: =[1]!XLSTAT_PDFNormal(G90,0.300943968727696,1.04241610265003) -> 0.01131164005 | I90: 90 | K90: -2.465465466 | L90: =[1]!XLSTAT_PDFNormal(K90,-0.201135496518942,1.01363139377986) -> 0.03246522585 | M90: 90 | O90: -2.465465466 | P90: =[1]!XLSTAT_PDFNormal(O90,-0.201135496518942,1.01363139377986) -> 0.03246522585 | Q90: 90 | S90: -1.5990991 | T90: =[1]!XLSTAT_PDFNormal(S90,0.287820352735161,1.05024622546205) -> 0.07562793945 | U90: 90 | W90: -1.5990991 | X90: =[1]!XLSTAT_PDFNormal(W90,0.287820352735161,1.05024622546205) -> 0.07562793945 | Y90: 90 | AA90: -1.5990991 | AB90: =[1]!XLSTAT_PDFNormal(AA90,0.0946989758111516,0.952962709014027) -> 0.0862643872 | AC90: 90 | AE90: -1.5990991 | AF90: =[1]!XLSTAT_PDFNormal(AE90,0.0946989758111516,0.952962709014027) -> 0.0862643872
A91: 91 | C91: -2.45945946 | D91: =[1]!XLSTAT_PDFNormal(C91,0.300943968727696,1.04241610265003) -> 0.01148573845 | E91: 91 | G91: -2.45945946 | H91: =[1]!XLSTAT_PDFNormal(G91,0.300943968727696,1.04241610265003) -> 0.01148573845 | I91: 91 | K91: -2.45945946 | L91: =[1]!XLSTAT_PDFNormal(K91,-0.201135496518942,1.01363139377986) -> 0.03289722313 | M91: 91 | O91: -2.45945946 | P91: =[1]!XLSTAT_PDFNormal(O91,-0.201135496518942,1.01363139377986) -> 0.03289722313 | Q91: 91 | S91: -1.594594595 | T91: =[1]!XLSTAT_PDFNormal(S91,0.287820352735161,1.05024622546205) -> 0.07621226392 | U91: 91 | W91: -1.594594595 | X91: =[1]!XLSTAT_PDFNormal(W91,0.287820352735161,1.05024622546205) -> 0.07621226392 | Y91: 91 | AA91: -1.594594595 | AB91: =[1]!XLSTAT_PDFNormal(AA91,0.0946989758111516,0.952962709014027) -> 0.08699121869 | AC91: 91 | AE91: -1.594594595 | AF91: =[1]!XLSTAT_PDFNormal(AE91,0.0946989758111516,0.952962709014027) -> 0.08699121869
A92: 92 | C92: -2.453453454 | D92: =[1]!XLSTAT_PDFNormal(C92,0.300943968727696,1.04241610265003) -> 0.01166212926 | E92: 92 | G92: -2.453453454 | H92: =[1]!XLSTAT_PDFNormal(G92,0.300943968727696,1.04241610265003) -> 0.01166212926 | I92: 92 | K92: -2.453453454 | L92: =[1]!XLSTAT_PDFNormal(K92,-0.201135496518942,1.01363139377986) -> 0.03333379845 | M92: 92 | O92: -2.453453454 | P92: =[1]!XLSTAT_PDFNormal(O92,-0.201135496518942,1.01363139377986) -> 0.03333379845 | Q92: 92 | S92: -1.59009009 | T92: =[1]!XLSTAT_PDFNormal(S92,0.287820352735161,1.05024622546205) -> 0.07679969028 | U92: 92 | W92: -1.59009009 | X92: =[1]!XLSTAT_PDFNormal(W92,0.287820352735161,1.05024622546205) -> 0.07679969028 | Y92: 92 | AA92: -1.59009009 | AB92: =[1]!XLSTAT_PDFNormal(AA92,0.0946989758111516,0.952962709014027) -> 0.08772221418 | AC92: 92 | AE92: -1.59009009 | AF92: =[1]!XLSTAT_PDFNormal(AE92,0.0946989758111516,0.952962709014027) -> 0.08772221418
A93: 93 | C93: -2.447447448 | D93: =[1]!XLSTAT_PDFNormal(C93,0.300943968727696,1.04241610265003) -> 0.0118408359 | E93: 93 | G93: -2.447447448 | H93: =[1]!XLSTAT_PDFNormal(G93,0.300943968727696,1.04241610265003) -> 0.0118408359 | I93: 93 | K93: -2.447447448 | L93: =[1]!XLSTAT_PDFNormal(K93,-0.201135496518942,1.01363139377986) -> 0.0337749817 | M93: 93 | O93: -2.447447448 | P93: =[1]!XLSTAT_PDFNormal(O93,-0.201135496518942,1.01363139377986) -> 0.0337749817 | Q93: 93 | S93: -1.585585586 | T93: =[1]!XLSTAT_PDFNormal(S93,0.287820352735161,1.05024622546205) -> 0.07739022074 | U93: 93 | W93: -1.585585586 | X93: =[1]!XLSTAT_PDFNormal(W93,0.287820352735161,1.05024622546205) -> 0.07739022074 | Y93: 93 | AA93: -1.585585586 | AB93: =[1]!XLSTAT_PDFNormal(AA93,0.0946989758111516,0.952962709014027) -> 0.08845737587 | AC93: 93 | AE93: -1.585585586 | AF93: =[1]!XLSTAT_PDFNormal(AE93,0.0946989758111516,0.952962709014027) -> 0.08845737587
A94: 94 | C94: -2.441441442 | D94: =[1]!XLSTAT_PDFNormal(C94,0.300943968727696,1.04241610265003) -> 0.01202188189 | E94: 94 | G94: -2.441441442 | H94: =[1]!XLSTAT_PDFNormal(G94,0.300943968727696,1.04241610265003) -> 0.01202188189 | I94: 94 | K94: -2.441441442 | L94: =[1]!XLSTAT_PDFNormal(K94,-0.201135496518942,1.01363139377986) -> 0.0342208027 | M94: 94 | O94: -2.441441442 | P94: =[1]!XLSTAT_PDFNormal(O94,-0.201135496518942,1.01363139377986) -> 0.0342208027 | Q94: 94 | S94: -1.581081082 | T94: =[1]!XLSTAT_PDFNormal(S94,0.287820352735161,1.05024622546205) -> 0.07798385735 | U94: 94 | W94: -1.581081082 | X94: =[1]!XLSTAT_PDFNormal(W94,0.287820352735161,1.05024622546205) -> 0.07798385735 | Y94: 94 | AA94: -1.581081082 | AB94: =[1]!XLSTAT_PDFNormal(AA94,0.0946989758111516,0.952962709014027) -> 0.08919670568 | AC94: 94 | AE94: -1.581081082 | AF94: =[1]!XLSTAT_PDFNormal(AE94,0.0946989758111516,0.952962709014027) -> 0.08919670568
A95: 95 | C95: -2.435435436 | D95: =[1]!XLSTAT_PDFNormal(C95,0.300943968727696,1.04241610265003) -> 0.01220529089 | E95: 95 | G95: -2.435435436 | H95: =[1]!XLSTAT_PDFNormal(G95,0.300943968727696,1.04241610265003) -> 0.01220529089 | I95: 95 | K95: -2.435435436 | L95: =[1]!XLSTAT_PDFNormal(K95,-0.201135496518942,1.01363139377986) -> 0.03467129113 | M95: 95 | O95: -2.435435436 | P95: =[1]!XLSTAT_PDFNormal(O95,-0.201135496518942,1.01363139377986) -> 0.03467129113 | Q95: 95 | S95: -1.576576577 | T95: =[1]!XLSTAT_PDFNormal(S95,0.287820352735161,1.05024622546205) -> 0.07858060203 | U95: 95 | W95: -1.576576577 | X95: =[1]!XLSTAT_PDFNormal(W95,0.287820352735161,1.05024622546205) -> 0.07858060203 | Y95: 95 | AA95: -1.576576577 | AB95: =[1]!XLSTAT_PDFNormal(AA95,0.0946989758111516,0.952962709014027) -> 0.08994020528 | AC95: 95 | AE95: -1.576576577 | AF95: =[1]!XLSTAT_PDFNormal(AE95,0.0946989758111516,0.952962709014027) -> 0.08994020528
A96: 96 | C96: -2.42942943 | D96: =[1]!XLSTAT_PDFNormal(C96,0.300943968727696,1.04241610265003) -> 0.01239108668 | E96: 96 | G96: -2.42942943 | H96: =[1]!XLSTAT_PDFNormal(G96,0.300943968727696,1.04241610265003) -> 0.01239108668 | I96: 96 | K96: -2.42942943 | L96: =[1]!XLSTAT_PDFNormal(K96,-0.201135496518942,1.01363139377986) -> 0.03512647662 | M96: 96 | O96: -2.42942943 | P96: =[1]!XLSTAT_PDFNormal(O96,-0.201135496518942,1.01363139377986) -> 0.03512647662 | Q96: 96 | S96: -1.572072072 | T96: =[1]!XLSTAT_PDFNormal(S96,0.287820352735161,1.05024622546205) -> 0.07918045652 | U96: 96 | W96: -1.572072072 | X96: =[1]!XLSTAT_PDFNormal(W96,0.287820352735161,1.05024622546205) -> 0.07918045652 | Y96: 96 | AA96: -1.572072072 | AB96: =[1]!XLSTAT_PDFNormal(AA96,0.0946989758111516,0.952962709014027) -> 0.09068787605 | AC96: 96 | AE96: -1.572072072 | AF96: =[1]!XLSTAT_PDFNormal(AE96,0.0946989758111516,0.952962709014027) -> 0.09068787605
A97: 97 | C97: -2.423423424 | D97: =[1]!XLSTAT_PDFNormal(C97,0.300943968727696,1.04241610265003) -> 0.01257929317 | E97: 97 | G97: -2.423423424 | H97: =[1]!XLSTAT_PDFNormal(G97,0.300943968727696,1.04241610265003) -> 0.01257929317 | I97: 97 | K97: -2.423423424 | L97: =[1]!XLSTAT_PDFNormal(K97,-0.201135496518942,1.01363139377986) -> 0.03558638865 | M97: 97 | O97: -2.423423424 | P97: =[1]!XLSTAT_PDFNormal(O97,-0.201135496518942,1.01363139377986) -> 0.03558638865 | Q97: 97 | S97: -1.567567568 | T97: =[1]!XLSTAT_PDFNormal(S97,0.287820352735161,1.05024622546205) -> 0.07978342239 | U97: 97 | W97: -1.567567568 | X97: =[1]!XLSTAT_PDFNormal(W97,0.287820352735161,1.05024622546205) -> 0.07978342239 | Y97: 97 | AA97: -1.567567568 | AB97: =[1]!XLSTAT_PDFNormal(AA97,0.0946989758111516,0.952962709014027) -> 0.09143971913 | AC97: 97 | AE97: -1.567567568 | AF97: =[1]!XLSTAT_PDFNormal(AE97,0.0946989758111516,0.952962709014027) -> 0.09143971913
A98: 98 | C98: -2.417417418 | D98: =[1]!XLSTAT_PDFNormal(C98,0.300943968727696,1.04241610265003) -> 0.01276993438 | E98: 98 | G98: -2.417417418 | H98: =[1]!XLSTAT_PDFNormal(G98,0.300943968727696,1.04241610265003) -> 0.01276993438 | I98: 98 | K98: -2.417417418 | L98: =[1]!XLSTAT_PDFNormal(K98,-0.201135496518942,1.01363139377986) -> 0.0360510566 | M98: 98 | O98: -2.417417418 | P98: =[1]!XLSTAT_PDFNormal(O98,-0.201135496518942,1.01363139377986) -> 0.0360510566 | Q98: 98 | S98: -1.563063064 | T98: =[1]!XLSTAT_PDFNormal(S98,0.287820352735161,1.05024622546205) -> 0.08038950108 | U98: 98 | W98: -1.563063064 | X98: =[1]!XLSTAT_PDFNormal(W98,0.287820352735161,1.05024622546205) -> 0.08038950108 | Y98: 98 | AA98: -1.563063064 | AB98: =[1]!XLSTAT_PDFNormal(AA98,0.0946989758111516,0.952962709014027) -> 0.09219573537 | AC98: 98 | AE98: -1.563063064 | AF98: =[1]!XLSTAT_PDFNormal(AE98,0.0946989758111516,0.952962709014027) -> 0.09219573537
A99: 99 | C99: -2.411411412 | D99: =[1]!XLSTAT_PDFNormal(C99,0.300943968727696,1.04241610265003) -> 0.01296303445 | E99: 99 | G99: -2.411411412 | H99: =[1]!XLSTAT_PDFNormal(G99,0.300943968727696,1.04241610265003) -> 0.01296303445 | I99: 99 | K99: -2.411411412 | L99: =[1]!XLSTAT_PDFNormal(K99,-0.201135496518942,1.01363139377986) -> 0.03652050974 | M99: 99 | O99: -2.411411412 | P99: =[1]!XLSTAT_PDFNormal(O99,-0.201135496518942,1.01363139377986) -> 0.03652050974 | Q99: 99 | S99: -1.558558559 | T99: =[1]!XLSTAT_PDFNormal(S99,0.287820352735161,1.05024622546205) -> 0.08099869386 | U99: 99 | W99: -1.558558559 | X99: =[1]!XLSTAT_PDFNormal(W99,0.287820352735161,1.05024622546205) -> 0.08099869386 | Y99: 99 | AA99: -1.558558559 | AB99: =[1]!XLSTAT_PDFNormal(AA99,0.0946989758111516,0.952962709014027) -> 0.09295592535 | AC99: 99 | AE99: -1.558558559 | AF99: =[1]!XLSTAT_PDFNormal(AE99,0.0946989758111516,0.952962709014027) -> 0.09295592535
A100: 100 | C100: -2.405405406 | D100: =[1]!XLSTAT_PDFNormal(C100,0.300943968727696,1.04241610265003) -> 0.01315861766 | E100: 100 | G100: -2.405405406 | H100: =[1]!XLSTAT_PDFNormal(G100,0.300943968727696,1.04241610265003) -> 0.01315861766 | I100: 100 | K100: -2.405405406 | L100: =[1]!XLSTAT_PDFNormal(K100,-0.201135496518942,1.01363139377986) -> 0.0369947772 | M100: 100 | O100: -2.405405406 | P100: =[1]!XLSTAT_PDFNormal(O100,-0.201135496518942,1.01363139377986) -> 0.0369947772 | Q100: 100 | S100: -1.554054054 | T100: =[1]!XLSTAT_PDFNormal(S100,0.287820352735161,1.05024622546205) -> 0.08161100181 | U100: 100 | W100: -1.554054054 | X100: =[1]!XLSTAT_PDFNormal(W100,0.287820352735161,1.05024622546205) -> 0.08161100181 | Y100: 100 | AA100: -1.554054054 | AB100: =[1]!XLSTAT_PDFNormal(AA100,0.0946989758111516,0.952962709014027) -> 0.09372028937 | AC100: 100 | AE100: -1.554054054 | AF100: =[1]!XLSTAT_PDFNormal(AE100,0.0946989758111516,0.952962709014027) -> 0.09372028937
A101: 101 | C101: -2.3993994 | D101: =[1]!XLSTAT_PDFNormal(C101,0.300943968727696,1.04241610265003) -> 0.01335670838 | E101: 101 | G101: -2.3993994 | H101: =[1]!XLSTAT_PDFNormal(G101,0.300943968727696,1.04241610265003) -> 0.01335670838 | I101: 101 | K101: -2.3993994 | L101: =[1]!XLSTAT_PDFNormal(K101,-0.201135496518942,1.01363139377986) -> 0.03747388798 | M101: 101 | O101: -2.3993994 | P101: =[1]!XLSTAT_PDFNormal(O101,-0.201135496518942,1.01363139377986) -> 0.03747388798 | Q101: 101 | S101: -1.54954955 | T101: =[1]!XLSTAT_PDFNormal(S101,0.287820352735161,1.05024622546205) -> 0.08222642588 | U101: 101 | W101: -1.54954955 | X101: =[1]!XLSTAT_PDFNormal(W101,0.287820352735161,1.05024622546205) -> 0.08222642588 | Y101: 101 | AA101: -1.54954955 | AB101: =[1]!XLSTAT_PDFNormal(AA101,0.0946989758111516,0.952962709014027) -> 0.09448882747 | AC101: 101 | AE101: -1.54954955 | AF101: =[1]!XLSTAT_PDFNormal(AE101,0.0946989758111516,0.952962709014027) -> 0.09448882747
A102: 102 | C102: -2.393393394 | D102: =[1]!XLSTAT_PDFNormal(C102,0.300943968727696,1.04241610265003) -> 0.01355733111 | E102: 102 | G102: -2.393393394 | H102: =[1]!XLSTAT_PDFNormal(G102,0.300943968727696,1.04241610265003) -> 0.01355733111 | I102: 102 | K102: -2.393393394 | L102: =[1]!XLSTAT_PDFNormal(K102,-0.201135496518942,1.01363139377986) -> 0.03795787094 | M102: 102 | O102: -2.393393394 | P102: =[1]!XLSTAT_PDFNormal(O102,-0.201135496518942,1.01363139377986) -> 0.03795787094 | Q102: 102 | S102: -1.545045045 | T102: =[1]!XLSTAT_PDFNormal(S102,0.287820352735161,1.05024622546205) -> 0.08284496685 | U102: 102 | W102: -1.545045045 | X102: =[1]!XLSTAT_PDFNormal(W102,0.287820352735161,1.05024622546205) -> 0.08284496685 | Y102: 102 | AA102: -1.545045045 | AB102: =[1]!XLSTAT_PDFNormal(AA102,0.0946989758111516,0.952962709014027) -> 0.09526153938 | AC102: 102 | AE102: -1.545045045 | AF102: =[1]!XLSTAT_PDFNormal(AE102,0.0946989758111516,0.952962709014027) -> 0.09526153938
A103: 103 | C103: -2.387387388 | D103: =[1]!XLSTAT_PDFNormal(C103,0.300943968727696,1.04241610265003) -> 0.01376051046 | E103: 103 | G103: -2.387387388 | H103: =[1]!XLSTAT_PDFNormal(G103,0.300943968727696,1.04241610265003) -> 0.01376051046 | I103: 103 | K103: -2.387387388 | L103: =[1]!XLSTAT_PDFNormal(K103,-0.201135496518942,1.01363139377986) -> 0.03844675482 | M103: 103 | O103: -2.387387388 | P103: =[1]!XLSTAT_PDFNormal(O103,-0.201135496518942,1.01363139377986) -> 0.03844675482 | Q103: 103 | S103: -1.540540541 | T103: =[1]!XLSTAT_PDFNormal(S103,0.287820352735161,1.05024622546205) -> 0.0834666253 | U103: 103 | W103: -1.540540541 | X103: =[1]!XLSTAT_PDFNormal(W103,0.287820352735161,1.05024622546205) -> 0.0834666253 | Y103: 103 | AA103: -1.540540541 | AB103: =[1]!XLSTAT_PDFNormal(AA103,0.0946989758111516,0.952962709014027) -> 0.09603842457 | AC103: 103 | AE103: -1.540540541 | AF103: =[1]!XLSTAT_PDFNormal(AE103,0.0946989758111516,0.952962709014027) -> 0.09603842457
A104: 104 | C104: -2.381381382 | D104: =[1]!XLSTAT_PDFNormal(C104,0.300943968727696,1.04241610265003) -> 0.01396627116 | E104: 104 | G104: -2.381381382 | H104: =[1]!XLSTAT_PDFNormal(G104,0.300943968727696,1.04241610265003) -> 0.01396627116 | I104: 104 | K104: -2.381381382 | L104: =[1]!XLSTAT_PDFNormal(K104,-0.201135496518942,1.01363139377986) -> 0.03894056818 | M104: 104 | O104: -2.381381382 | P104: =[1]!XLSTAT_PDFNormal(O104,-0.201135496518942,1.01363139377986) -> 0.03894056818 | Q104: 104 | S104: -1.536036037 | T104: =[1]!XLSTAT_PDFNormal(S104,0.287820352735161,1.05024622546205) -> 0.08409140169 | U104: 104 | W104: -1.536036037 | X104: =[1]!XLSTAT_PDFNormal(W104,0.287820352735161,1.05024622546205) -> 0.08409140169 | Y104: 104 | AA104: -1.536036037 | AB104: =[1]!XLSTAT_PDFNormal(AA104,0.0946989758111516,0.952962709014027) -> 0.09681948222 | AC104: 104 | AE104: -1.536036037 | AF104: =[1]!XLSTAT_PDFNormal(AE104,0.0946989758111516,0.952962709014027) -> 0.09681948222
A105: 105 | C105: -2.375375376 | D105: =[1]!XLSTAT_PDFNormal(C105,0.300943968727696,1.04241610265003) -> 0.01417463805 | E105: 105 | G105: -2.375375376 | H105: =[1]!XLSTAT_PDFNormal(G105,0.300943968727696,1.04241610265003) -> 0.01417463805 | I105: 105 | K105: -2.375375376 | L105: =[1]!XLSTAT_PDFNormal(K105,-0.201135496518942,1.01363139377986) -> 0.03943933945 | M105: 105 | O105: -2.375375376 | P105: =[1]!XLSTAT_PDFNormal(O105,-0.201135496518942,1.01363139377986) -> 0.03943933945 | Q105: 105 | S105: -1.531531532 | T105: =[1]!XLSTAT_PDFNormal(S105,0.287820352735161,1.05024622546205) -> 0.08471929627 | U105: 105 | W105: -1.531531532 | X105: =[1]!XLSTAT_PDFNormal(W105,0.287820352735161,1.05024622546205) -> 0.08471929627 | Y105: 105 | AA105: -1.531531532 | AB105: =[1]!XLSTAT_PDFNormal(AA105,0.0946989758111516,0.952962709014027) -> 0.09760471121 | AC105: 105 | AE105: -1.531531532 | AF105: =[1]!XLSTAT_PDFNormal(AE105,0.0946989758111516,0.952962709014027) -> 0.09760471121
A106: 106 | C106: -2.36936937 | D106: =[1]!XLSTAT_PDFNormal(C106,0.300943968727696,1.04241610265003) -> 0.01438563606 | E106: 106 | G106: -2.36936937 | H106: =[1]!XLSTAT_PDFNormal(G106,0.300943968727696,1.04241610265003) -> 0.01438563606 | I106: 106 | K106: -2.36936937 | L106: =[1]!XLSTAT_PDFNormal(K106,-0.201135496518942,1.01363139377986) -> 0.03994309687 | M106: 106 | O106: -2.36936937 | P106: =[1]!XLSTAT_PDFNormal(O106,-0.201135496518942,1.01363139377986) -> 0.03994309687 | Q106: 106 | S106: -1.527027027 | T106: =[1]!XLSTAT_PDFNormal(S106,0.287820352735161,1.05024622546205) -> 0.08535030915 | U106: 106 | W106: -1.527027027 | X106: =[1]!XLSTAT_PDFNormal(W106,0.287820352735161,1.05024622546205) -> 0.08535030915 | Y106: 106 | AA106: -1.527027027 | AB106: =[1]!XLSTAT_PDFNormal(AA106,0.0946989758111516,0.952962709014027) -> 0.09839411015 | AC106: 106 | AE106: -1.527027027 | AF106: =[1]!XLSTAT_PDFNormal(AE106,0.0946989758111516,0.952962709014027) -> 0.09839411015
A107: 107 | C107: -2.363363364 | D107: =[1]!XLSTAT_PDFNormal(C107,0.300943968727696,1.04241610265003) -> 0.01459929025 | E107: 107 | G107: -2.363363364 | H107: =[1]!XLSTAT_PDFNormal(G107,0.300943968727696,1.04241610265003) -> 0.01459929025 | I107: 107 | K107: -2.363363364 | L107: =[1]!XLSTAT_PDFNormal(K107,-0.201135496518942,1.01363139377986) -> 0.04045186855 | M107: 107 | O107: -2.363363364 | P107: =[1]!XLSTAT_PDFNormal(O107,-0.201135496518942,1.01363139377986) -> 0.04045186855 | Q107: 107 | S107: -1.522522523 | T107: =[1]!XLSTAT_PDFNormal(S107,0.287820352735161,1.05024622546205) -> 0.08598444025 | U107: 107 | W107: -1.522522523 | X107: =[1]!XLSTAT_PDFNormal(W107,0.287820352735161,1.05024622546205) -> 0.08598444025 | Y107: 107 | AA107: -1.522522523 | AB107: =[1]!XLSTAT_PDFNormal(AA107,0.0946989758111516,0.952962709014027) -> 0.09918767735 | AC107: 107 | AE107: -1.522522523 | AF107: =[1]!XLSTAT_PDFNormal(AE107,0.0946989758111516,0.952962709014027) -> 0.09918767735
A108: 108 | C108: -2.357357358 | D108: =[1]!XLSTAT_PDFNormal(C108,0.300943968727696,1.04241610265003) -> 0.01481562579 | E108: 108 | G108: -2.357357358 | H108: =[1]!XLSTAT_PDFNormal(G108,0.300943968727696,1.04241610265003) -> 0.01481562579 | I108: 108 | K108: -2.357357358 | L108: =[1]!XLSTAT_PDFNormal(K108,-0.201135496518942,1.01363139377986) -> 0.04096568239 | M108: 108 | O108: -2.357357358 | P108: =[1]!XLSTAT_PDFNormal(O108,-0.201135496518942,1.01363139377986) -> 0.04096568239 | Q108: 108 | S108: -1.518018019 | T108: =[1]!XLSTAT_PDFNormal(S108,0.287820352735161,1.05024622546205) -> 0.08662168931 | U108: 108 | W108: -1.518018019 | X108: =[1]!XLSTAT_PDFNormal(W108,0.287820352735161,1.05024622546205) -> 0.08662168931 | Y108: 108 | AA108: -1.518018019 | AB108: =[1]!XLSTAT_PDFNormal(AA108,0.0946989758111516,0.952962709014027) -> 0.09998541081 | AC108: 108 | AE108: -1.518018019 | AF108: =[1]!XLSTAT_PDFNormal(AE108,0.0946989758111516,0.952962709014027) -> 0.09998541081
A109: 109 | C109: -2.351351352 | D109: =[1]!XLSTAT_PDFNormal(C109,0.300943968727696,1.04241610265003) -> 0.01503466793 | E109: 109 | G109: -2.351351352 | H109: =[1]!XLSTAT_PDFNormal(G109,0.300943968727696,1.04241610265003) -> 0.01503466793 | I109: 109 | K109: -2.351351352 | L109: =[1]!XLSTAT_PDFNormal(K109,-0.201135496518942,1.01363139377986) -> 0.04148456615 | M109: 109 | O109: -2.351351352 | P109: =[1]!XLSTAT_PDFNormal(O109,-0.201135496518942,1.01363139377986) -> 0.04148456615 | Q109: 109 | S109: -1.513513514 | T109: =[1]!XLSTAT_PDFNormal(S109,0.287820352735161,1.05024622546205) -> 0.08726205592 | U109: 109 | W109: -1.513513514 | X109: =[1]!XLSTAT_PDFNormal(W109,0.287820352735161,1.05024622546205) -> 0.08726205592 | Y109: 109 | AA109: -1.513513514 | AB109: =[1]!XLSTAT_PDFNormal(AA109,0.0946989758111516,0.952962709014027) -> 0.1007873082 | AC109: 109 | AE109: -1.513513514 | AF109: =[1]!XLSTAT_PDFNormal(AE109,0.0946989758111516,0.952962709014027) -> 0.1007873082
A110: 110 | C110: -2.345345346 | D110: =[1]!XLSTAT_PDFNormal(C110,0.300943968727696,1.04241610265003) -> 0.01525644205 | E110: 110 | G110: -2.345345346 | H110: =[1]!XLSTAT_PDFNormal(G110,0.300943968727696,1.04241610265003) -> 0.01525644205 | I110: 110 | K110: -2.345345346 | L110: =[1]!XLSTAT_PDFNormal(K110,-0.201135496518942,1.01363139377986) -> 0.04200854735 | M110: 110 | O110: -2.345345346 | P110: =[1]!XLSTAT_PDFNormal(O110,-0.201135496518942,1.01363139377986) -> 0.04200854735 | Q110: 110 | S110: -1.509009009 | T110: =[1]!XLSTAT_PDFNormal(S110,0.287820352735161,1.05024622546205) -> 0.08790553947 | U110: 110 | W110: -1.509009009 | X110: =[1]!XLSTAT_PDFNormal(W110,0.287820352735161,1.05024622546205) -> 0.08790553947 | Y110: 110 | AA110: -1.509009009 | AB110: =[1]!XLSTAT_PDFNormal(AA110,0.0946989758111516,0.952962709014027) -> 0.1015933671 | AC110: 110 | AE110: -1.509009009 | AF110: =[1]!XLSTAT_PDFNormal(AE110,0.0946989758111516,0.952962709014027) -> 0.1015933671
A111: 111 | C111: -2.33933934 | D111: =[1]!XLSTAT_PDFNormal(C111,0.300943968727696,1.04241610265003) -> 0.0154809736 | E111: 111 | G111: -2.33933934 | H111: =[1]!XLSTAT_PDFNormal(G111,0.300943968727696,1.04241610265003) -> 0.0154809736 | I111: 111 | K111: -2.33933934 | L111: =[1]!XLSTAT_PDFNormal(K111,-0.201135496518942,1.01363139377986) -> 0.04253765338 | M111: 111 | O111: -2.33933934 | P111: =[1]!XLSTAT_PDFNormal(O111,-0.201135496518942,1.01363139377986) -> 0.04253765338 | Q111: 111 | S111: -1.504504505 | T111: =[1]!XLSTAT_PDFNormal(S111,0.287820352735161,1.05024622546205) -> 0.08855213919 | U111: 111 | W111: -1.504504505 | X111: =[1]!XLSTAT_PDFNormal(W111,0.287820352735161,1.05024622546205) -> 0.08855213919 | Y111: 111 | AA111: -1.504504505 | AB111: =[1]!XLSTAT_PDFNormal(AA111,0.0946989758111516,0.952962709014027) -> 0.1024035845 | AC111: 111 | AE111: -1.504504505 | AF111: =[1]!XLSTAT_PDFNormal(AE111,0.0946989758111516,0.952962709014027) -> 0.1024035845
A112: 112 | C112: -2.333333334 | D112: =[1]!XLSTAT_PDFNormal(C112,0.300943968727696,1.04241610265003) -> 0.01570828815 | E112: 112 | G112: -2.333333334 | H112: =[1]!XLSTAT_PDFNormal(G112,0.300943968727696,1.04241610265003) -> 0.01570828815 | I112: 112 | K112: -2.333333334 | L112: =[1]!XLSTAT_PDFNormal(K112,-0.201135496518942,1.01363139377986) -> 0.0430719114 | M112: 112 | O112: -2.333333334 | P112: =[1]!XLSTAT_PDFNormal(O112,-0.201135496518942,1.01363139377986) -> 0.0430719114 | Q112: 112 | S112: -1.500000001 | T112: =[1]!XLSTAT_PDFNormal(S112,0.287820352735161,1.05024622546205) -> 0.08920185413 | U112: 112 | W112: -1.500000001 | X112: =[1]!XLSTAT_PDFNormal(W112,0.287820352735161,1.05024622546205) -> 0.08920185413 | Y112: 112 | AA112: -1.500000001 | AB112: =[1]!XLSTAT_PDFNormal(AA112,0.0946989758111516,0.952962709014027) -> 0.1032179572 | AC112: 112 | AE112: -1.500000001 | AF112: =[1]!XLSTAT_PDFNormal(AE112,0.0946989758111516,0.952962709014027) -> 0.1032179572
A113: 113 | C113: -2.327327328 | D113: =[1]!XLSTAT_PDFNormal(C113,0.300943968727696,1.04241610265003) -> 0.01593841137 | E113: 113 | G113: -2.327327328 | H113: =[1]!XLSTAT_PDFNormal(G113,0.300943968727696,1.04241610265003) -> 0.01593841137 | I113: 113 | K113: -2.327327328 | L113: =[1]!XLSTAT_PDFNormal(K113,-0.201135496518942,1.01363139377986) -> 0.04361134835 | M113: 113 | O113: -2.327327328 | P113: =[1]!XLSTAT_PDFNormal(O113,-0.201135496518942,1.01363139377986) -> 0.04361134835 | Q113: 113 | S113: -1.495495496 | T113: =[1]!XLSTAT_PDFNormal(S113,0.287820352735161,1.05024622546205) -> 0.08985468314 | U113: 113 | W113: -1.495495496 | X113: =[1]!XLSTAT_PDFNormal(W113,0.287820352735161,1.05024622546205) -> 0.08985468314 | Y113: 113 | AA113: -1.495495496 | AB113: =[1]!XLSTAT_PDFNormal(AA113,0.0946989758111516,0.952962709014027) -> 0.1040364817 | AC113: 113 | AE113: -1.495495496 | AF113: =[1]!XLSTAT_PDFNormal(AE113,0.0946989758111516,0.952962709014027) -> 0.1040364817
A114: 114 | C114: -2.321321322 | D114: =[1]!XLSTAT_PDFNormal(C114,0.300943968727696,1.04241610265003) -> 0.016171369 | E114: 114 | G114: -2.321321322 | H114: =[1]!XLSTAT_PDFNormal(G114,0.300943968727696,1.04241610265003) -> 0.016171369 | I114: 114 | K114: -2.321321322 | L114: =[1]!XLSTAT_PDFNormal(K114,-0.201135496518942,1.01363139377986) -> 0.04415599099 | M114: 114 | O114: -2.321321322 | P114: =[1]!XLSTAT_PDFNormal(O114,-0.201135496518942,1.01363139377986) -> 0.04415599099 | Q114: 114 | S114: -1.490990991 | T114: =[1]!XLSTAT_PDFNormal(S114,0.287820352735161,1.05024622546205) -> 0.09051062491 | U114: 114 | W114: -1.490990991 | X114: =[1]!XLSTAT_PDFNormal(W114,0.287820352735161,1.05024622546205) -> 0.09051062491 | Y114: 114 | AA114: -1.490990991 | AB114: =[1]!XLSTAT_PDFNormal(AA114,0.0946989758111516,0.952962709014027) -> 0.1048591543 | AC114: 114 | AE114: -1.490990991 | AF114: =[1]!XLSTAT_PDFNormal(AE114,0.0946989758111516,0.952962709014027) -> 0.1048591543
A115: 115 | C115: -2.315315316 | D115: =[1]!XLSTAT_PDFNormal(C115,0.300943968727696,1.04241610265003) -> 0.01640718691 | E115: 115 | G115: -2.315315316 | H115: =[1]!XLSTAT_PDFNormal(G115,0.300943968727696,1.04241610265003) -> 0.01640718691 | I115: 115 | K115: -2.315315316 | L115: =[1]!XLSTAT_PDFNormal(K115,-0.201135496518942,1.01363139377986) -> 0.04470586584 | M115: 115 | O115: -2.315315316 | P115: =[1]!XLSTAT_PDFNormal(O115,-0.201135496518942,1.01363139377986) -> 0.04470586584 | Q115: 115 | S115: -1.486486487 | T115: =[1]!XLSTAT_PDFNormal(S115,0.287820352735161,1.05024622546205) -> 0.09116967795 | U115: 115 | W115: -1.486486487 | X115: =[1]!XLSTAT_PDFNormal(W115,0.287820352735161,1.05024622546205) -> 0.09116967795 | Y115: 115 | AA115: -1.486486487 | AB115: =[1]!XLSTAT_PDFNormal(AA115,0.0946989758111516,0.952962709014027) -> 0.1056859709 | AC115: 115 | AE115: -1.486486487 | AF115: =[1]!XLSTAT_PDFNormal(AE115,0.0946989758111516,0.952962709014027) -> 0.1056859709
A116: 116 | C116: -2.30930931 | D116: =[1]!XLSTAT_PDFNormal(C116,0.300943968727696,1.04241610265003) -> 0.01664589102 | E116: 116 | G116: -2.30930931 | H116: =[1]!XLSTAT_PDFNormal(G116,0.300943968727696,1.04241610265003) -> 0.01664589102 | I116: 116 | K116: -2.30930931 | L116: =[1]!XLSTAT_PDFNormal(K116,-0.201135496518942,1.01363139377986) -> 0.04526099923 | M116: 116 | O116: -2.30930931 | P116: =[1]!XLSTAT_PDFNormal(O116,-0.201135496518942,1.01363139377986) -> 0.04526099923 | Q116: 116 | S116: -1.481981983 | T116: =[1]!XLSTAT_PDFNormal(S116,0.287820352735161,1.05024622546205) -> 0.09183184058 | U116: 116 | W116: -1.481981983 | X116: =[1]!XLSTAT_PDFNormal(W116,0.287820352735161,1.05024622546205) -> 0.09183184058 | Y116: 116 | AA116: -1.481981983 | AB116: =[1]!XLSTAT_PDFNormal(AA116,0.0946989758111516,0.952962709014027) -> 0.106516927 | AC116: 116 | AE116: -1.481981983 | AF116: =[1]!XLSTAT_PDFNormal(AE116,0.0946989758111516,0.952962709014027) -> 0.106516927
A117: 117 | C117: -2.303303304 | D117: =[1]!XLSTAT_PDFNormal(C117,0.300943968727696,1.04241610265003) -> 0.01688750737 | E117: 117 | G117: -2.303303304 | H117: =[1]!XLSTAT_PDFNormal(G117,0.300943968727696,1.04241610265003) -> 0.01688750737 | I117: 117 | K117: -2.303303304 | L117: =[1]!XLSTAT_PDFNormal(K117,-0.201135496518942,1.01363139377986) -> 0.04582141721 | M117: 117 | O117: -2.303303304 | P117: =[1]!XLSTAT_PDFNormal(O117,-0.201135496518942,1.01363139377986) -> 0.04582141721 | Q117: 117 | S117: -1.477477478 | T117: =[1]!XLSTAT_PDFNormal(S117,0.287820352735161,1.05024622546205) -> 0.09249711093 | U117: 117 | W117: -1.477477478 | X117: =[1]!XLSTAT_PDFNormal(W117,0.287820352735161,1.05024622546205) -> 0.09249711093 | Y117: 117 | AA117: -1.477477478 | AB117: =[1]!XLSTAT_PDFNormal(AA117,0.0946989758111516,0.952962709014027) -> 0.1073520178 | AC117: 117 | AE117: -1.477477478 | AF117: =[1]!XLSTAT_PDFNormal(AE117,0.0946989758111516,0.952962709014027) -> 0.1073520178
A118: 118 | C118: -2.297297298 | D118: =[1]!XLSTAT_PDFNormal(C118,0.300943968727696,1.04241610265003) -> 0.01713206207 | E118: 118 | G118: -2.297297298 | H118: =[1]!XLSTAT_PDFNormal(G118,0.300943968727696,1.04241610265003) -> 0.01713206207 | I118: 118 | K118: -2.297297298 | L118: =[1]!XLSTAT_PDFNormal(K118,-0.201135496518942,1.01363139377986) -> 0.04638714564 | M118: 118 | O118: -2.297297298 | P118: =[1]!XLSTAT_PDFNormal(O118,-0.201135496518942,1.01363139377986) -> 0.04638714564 | Q118: 118 | S118: -1.472972974 | T118: =[1]!XLSTAT_PDFNormal(S118,0.287820352735161,1.05024622546205) -> 0.09316548694 | U118: 118 | W118: -1.472972974 | X118: =[1]!XLSTAT_PDFNormal(W118,0.287820352735161,1.05024622546205) -> 0.09316548694 | Y118: 118 | AA118: -1.472972974 | AB118: =[1]!XLSTAT_PDFNormal(AA118,0.0946989758111516,0.952962709014027) -> 0.1081912384 | AC118: 118 | AE118: -1.472972974 | AF118: =[1]!XLSTAT_PDFNormal(AE118,0.0946989758111516,0.952962709014027) -> 0.1081912384
A119: 119 | C119: -2.291291292 | D119: =[1]!XLSTAT_PDFNormal(C119,0.300943968727696,1.04241610265003) -> 0.01737958132 | E119: 119 | G119: -2.291291292 | H119: =[1]!XLSTAT_PDFNormal(G119,0.300943968727696,1.04241610265003) -> 0.01737958132 | I119: 119 | K119: -2.291291292 | L119: =[1]!XLSTAT_PDFNormal(K119,-0.201135496518942,1.01363139377986) -> 0.0469582101 | M119: 119 | O119: -2.291291292 | P119: =[1]!XLSTAT_PDFNormal(O119,-0.201135496518942,1.01363139377986) -> 0.0469582101 | Q119: 119 | S119: -1.468468469 | T119: =[1]!XLSTAT_PDFNormal(S119,0.287820352735161,1.05024622546205) -> 0.09383696639 | U119: 119 | W119: -1.468468469 | X119: =[1]!XLSTAT_PDFNormal(W119,0.287820352735161,1.05024622546205) -> 0.09383696639 | Y119: 119 | AA119: -1.468468469 | AB119: =[1]!XLSTAT_PDFNormal(AA119,0.0946989758111516,0.952962709014027) -> 0.1090345834 | AC119: 119 | AE119: -1.468468469 | AF119: =[1]!XLSTAT_PDFNormal(AE119,0.0946989758111516,0.952962709014027) -> 0.1090345834
A120: 120 | C120: -2.285285286 | D120: =[1]!XLSTAT_PDFNormal(C120,0.300943968727696,1.04241610265003) -> 0.01763009139 | E120: 120 | G120: -2.285285286 | H120: =[1]!XLSTAT_PDFNormal(G120,0.300943968727696,1.04241610265003) -> 0.01763009139 | I120: 120 | K120: -2.285285286 | L120: =[1]!XLSTAT_PDFNormal(K120,-0.201135496518942,1.01363139377986) -> 0.04753463594 | M120: 120 | O120: -2.285285286 | P120: =[1]!XLSTAT_PDFNormal(O120,-0.201135496518942,1.01363139377986) -> 0.04753463594 | Q120: 120 | S120: -1.463963964 | T120: =[1]!XLSTAT_PDFNormal(S120,0.287820352735161,1.05024622546205) -> 0.09451154685 | U120: 120 | W120: -1.463963964 | X120: =[1]!XLSTAT_PDFNormal(W120,0.287820352735161,1.05024622546205) -> 0.09451154685 | Y120: 120 | AA120: -1.463963964 | AB120: =[1]!XLSTAT_PDFNormal(AA120,0.0946989758111516,0.952962709014027) -> 0.1098820472 | AC120: 120 | AE120: -1.463963964 | AF120: =[1]!XLSTAT_PDFNormal(AE120,0.0946989758111516,0.952962709014027) -> 0.1098820472
A121: 121 | C121: -2.27927928 | D121: =[1]!XLSTAT_PDFNormal(C121,0.300943968727696,1.04241610265003) -> 0.01788361864 | E121: 121 | G121: -2.27927928 | H121: =[1]!XLSTAT_PDFNormal(G121,0.300943968727696,1.04241610265003) -> 0.01788361864 | I121: 121 | K121: -2.27927928 | L121: =[1]!XLSTAT_PDFNormal(K121,-0.201135496518942,1.01363139377986) -> 0.04811644827 | M121: 121 | O121: -2.27927928 | P121: =[1]!XLSTAT_PDFNormal(O121,-0.201135496518942,1.01363139377986) -> 0.04811644827 | Q121: 121 | S121: -1.45945946 | T121: =[1]!XLSTAT_PDFNormal(S121,0.287820352735161,1.05024622546205) -> 0.09518922569 | U121: 121 | W121: -1.45945946 | X121: =[1]!XLSTAT_PDFNormal(W121,0.287820352735161,1.05024622546205) -> 0.09518922569 | Y121: 121 | AA121: -1.45945946 | AB121: =[1]!XLSTAT_PDFNormal(AA121,0.0946989758111516,0.952962709014027) -> 0.1107336236 | AC121: 121 | AE121: -1.45945946 | AF121: =[1]!XLSTAT_PDFNormal(AE121,0.0946989758111516,0.952962709014027) -> 0.1107336236
A122: 122 | C122: -2.273273274 | D122: =[1]!XLSTAT_PDFNormal(C122,0.300943968727696,1.04241610265003) -> 0.01814018952 | E122: 122 | G122: -2.273273274 | H122: =[1]!XLSTAT_PDFNormal(G122,0.300943968727696,1.04241610265003) -> 0.01814018952 | I122: 122 | K122: -2.273273274 | L122: =[1]!XLSTAT_PDFNormal(K122,-0.201135496518942,1.01363139377986) -> 0.04870367189 | M122: 122 | O122: -2.273273274 | P122: =[1]!XLSTAT_PDFNormal(O122,-0.201135496518942,1.01363139377986) -> 0.04870367189 | Q122: 122 | S122: -1.454954955 | T122: =[1]!XLSTAT_PDFNormal(S122,0.287820352735161,1.05024622546205) -> 0.09587000013 | U122: 122 | W122: -1.454954955 | X122: =[1]!XLSTAT_PDFNormal(W122,0.287820352735161,1.05024622546205) -> 0.09587000013 | Y122: 122 | AA122: -1.454954955 | AB122: =[1]!XLSTAT_PDFNormal(AA122,0.0946989758111516,0.952962709014027) -> 0.1115893064 | AC122: 122 | AE122: -1.454954955 | AF122: =[1]!XLSTAT_PDFNormal(AE122,0.0946989758111516,0.952962709014027) -> 0.1115893064
A123: 123 | C123: -2.267267268 | D123: =[1]!XLSTAT_PDFNormal(C123,0.300943968727696,1.04241610265003) -> 0.01839983052 | E123: 123 | G123: -2.267267268 | H123: =[1]!XLSTAT_PDFNormal(G123,0.300943968727696,1.04241610265003) -> 0.01839983052 | I123: 123 | K123: -2.267267268 | L123: =[1]!XLSTAT_PDFNormal(K123,-0.201135496518942,1.01363139377986) -> 0.04929633137 | M123: 123 | O123: -2.267267268 | P123: =[1]!XLSTAT_PDFNormal(O123,-0.201135496518942,1.01363139377986) -> 0.04929633137 | Q123: 123 | S123: -1.450450451 | T123: =[1]!XLSTAT_PDFNormal(S123,0.287820352735161,1.05024622546205) -> 0.09655386715 | U123: 123 | W123: -1.450450451 | X123: =[1]!XLSTAT_PDFNormal(W123,0.287820352735161,1.05024622546205) -> 0.09655386715 | Y123: 123 | AA123: -1.450450451 | AB123: =[1]!XLSTAT_PDFNormal(AA123,0.0946989758111516,0.952962709014027) -> 0.1124490889 | AC123: 123 | AE123: -1.450450451 | AF123: =[1]!XLSTAT_PDFNormal(AE123,0.0946989758111516,0.952962709014027) -> 0.1124490889
A124: 124 | C124: -2.261261262 | D124: =[1]!XLSTAT_PDFNormal(C124,0.300943968727696,1.04241610265003) -> 0.01866256824 | E124: 124 | G124: -2.261261262 | H124: =[1]!XLSTAT_PDFNormal(G124,0.300943968727696,1.04241610265003) -> 0.01866256824 | I124: 124 | K124: -2.261261262 | L124: =[1]!XLSTAT_PDFNormal(K124,-0.201135496518942,1.01363139377986) -> 0.04989445099 | M124: 124 | O124: -2.261261262 | P124: =[1]!XLSTAT_PDFNormal(O124,-0.201135496518942,1.01363139377986) -> 0.04989445099 | Q124: 124 | S124: -1.445945946 | T124: =[1]!XLSTAT_PDFNormal(S124,0.287820352735161,1.05024622546205) -> 0.09724082357 | U124: 124 | W124: -1.445945946 | X124: =[1]!XLSTAT_PDFNormal(W124,0.287820352735161,1.05024622546205) -> 0.09724082357 | Y124: 124 | AA124: -1.445945946 | AB124: =[1]!XLSTAT_PDFNormal(AA124,0.0946989758111516,0.952962709014027) -> 0.1133129641 | AC124: 124 | AE124: -1.445945946 | AF124: =[1]!XLSTAT_PDFNormal(AE124,0.0946989758111516,0.952962709014027) -> 0.1133129641
A125: 125 | C125: -2.255255256 | D125: =[1]!XLSTAT_PDFNormal(C125,0.300943968727696,1.04241610265003) -> 0.01892842931 | E125: 125 | G125: -2.255255256 | H125: =[1]!XLSTAT_PDFNormal(G125,0.300943968727696,1.04241610265003) -> 0.01892842931 | I125: 125 | K125: -2.255255256 | L125: =[1]!XLSTAT_PDFNormal(K125,-0.201135496518942,1.01363139377986) -> 0.05049805474 | M125: 125 | O125: -2.255255256 | P125: =[1]!XLSTAT_PDFNormal(O125,-0.201135496518942,1.01363139377986) -> 0.05049805474 | Q125: 125 | S125: -1.441441442 | T125: =[1]!XLSTAT_PDFNormal(S125,0.287820352735161,1.05024622546205) -> 0.09793086601 | U125: 125 | W125: -1.441441442 | X125: =[1]!XLSTAT_PDFNormal(W125,0.287820352735161,1.05024622546205) -> 0.09793086601 | Y125: 125 | AA125: -1.441441442 | AB125: =[1]!XLSTAT_PDFNormal(AA125,0.0946989758111516,0.952962709014027) -> 0.1141809248 | AC125: 125 | AE125: -1.441441442 | AF125: =[1]!XLSTAT_PDFNormal(AE125,0.0946989758111516,0.952962709014027) -> 0.1141809248
A126: 126 | C126: -2.24924925 | D126: =[1]!XLSTAT_PDFNormal(C126,0.300943968727696,1.04241610265003) -> 0.01919744047 | E126: 126 | G126: -2.24924925 | H126: =[1]!XLSTAT_PDFNormal(G126,0.300943968727696,1.04241610265003) -> 0.01919744047 | I126: 126 | K126: -2.24924925 | L126: =[1]!XLSTAT_PDFNormal(K126,-0.201135496518942,1.01363139377986) -> 0.05110716633 | M126: 126 | O126: -2.24924925 | P126: =[1]!XLSTAT_PDFNormal(O126,-0.201135496518942,1.01363139377986) -> 0.05110716633 | Q126: 126 | S126: -1.436936938 | T126: =[1]!XLSTAT_PDFNormal(S126,0.287820352735161,1.05024622546205) -> 0.09862399089 | U126: 126 | W126: -1.436936938 | X126: =[1]!XLSTAT_PDFNormal(W126,0.287820352735161,1.05024622546205) -> 0.09862399089 | Y126: 126 | AA126: -1.436936938 | AB126: =[1]!XLSTAT_PDFNormal(AA126,0.0946989758111516,0.952962709014027) -> 0.1150529632 | AC126: 126 | AE126: -1.436936938 | AF126: =[1]!XLSTAT_PDFNormal(AE126,0.0946989758111516,0.952962709014027) -> 0.1150529632
A127: 127 | C127: -2.243243244 | D127: =[1]!XLSTAT_PDFNormal(C127,0.300943968727696,1.04241610265003) -> 0.01946962848 | E127: 127 | G127: -2.243243244 | H127: =[1]!XLSTAT_PDFNormal(G127,0.300943968727696,1.04241610265003) -> 0.01946962848 | I127: 127 | K127: -2.243243244 | L127: =[1]!XLSTAT_PDFNormal(K127,-0.201135496518942,1.01363139377986) -> 0.05172180917 | M127: 127 | O127: -2.243243244 | P127: =[1]!XLSTAT_PDFNormal(O127,-0.201135496518942,1.01363139377986) -> 0.05172180917 | Q127: 127 | S127: -1.432432433 | T127: =[1]!XLSTAT_PDFNormal(S127,0.287820352735161,1.05024622546205) -> 0.09932019443 | U127: 127 | W127: -1.432432433 | X127: =[1]!XLSTAT_PDFNormal(W127,0.287820352735161,1.05024622546205) -> 0.09932019443 | Y127: 127 | AA127: -1.432432433 | AB127: =[1]!XLSTAT_PDFNormal(AA127,0.0946989758111516,0.952962709014027) -> 0.1159290715 | AC127: 127 | AE127: -1.432432433 | AF127: =[1]!XLSTAT_PDFNormal(AE127,0.0946989758111516,0.952962709014027) -> 0.1159290715
A128: 128 | C128: -2.237237238 | D128: =[1]!XLSTAT_PDFNormal(C128,0.300943968727696,1.04241610265003) -> 0.0197450202 | E128: 128 | G128: -2.237237238 | H128: =[1]!XLSTAT_PDFNormal(G128,0.300943968727696,1.04241610265003) -> 0.0197450202 | I128: 128 | K128: -2.237237238 | L128: =[1]!XLSTAT_PDFNormal(K128,-0.201135496518942,1.01363139377986) -> 0.05234200637 | M128: 128 | O128: -2.237237238 | P128: =[1]!XLSTAT_PDFNormal(O128,-0.201135496518942,1.01363139377986) -> 0.05234200637 | Q128: 128 | S128: -1.427927928 | T128: =[1]!XLSTAT_PDFNormal(S128,0.287820352735161,1.05024622546205) -> 0.1000194727 | U128: 128 | W128: -1.427927928 | X128: =[1]!XLSTAT_PDFNormal(W128,0.287820352735161,1.05024622546205) -> 0.1000194727 | Y128: 128 | AA128: -1.427927928 | AB128: =[1]!XLSTAT_PDFNormal(AA128,0.0946989758111516,0.952962709014027) -> 0.1168092413 | AC128: 128 | AE128: -1.427927928 | AF128: =[1]!XLSTAT_PDFNormal(AE128,0.0946989758111516,0.952962709014027) -> 0.1168092413
A129: 129 | C129: =-3+(A129-1)*0.006006006 -> -2.231231232 | D129: =[1]!XLSTAT_PDFNormal(C129,0.300943968727696,1.04241610265003) -> 0.02002364253 | E129: 129 | G129: =-3+(E129-1)*0.006006006 -> -2.231231232 | H129: =[1]!XLSTAT_PDFNormal(G129,0.300943968727696,1.04241610265003) -> 0.02002364253 | I129: 129 | K129: =-3+(I129-1)*0.006006006 -> -2.231231232 | L129: =[1]!XLSTAT_PDFNormal(K129,-0.201135496518942,1.01363139377986) -> 0.05296778071 | M129: 129 | O129: =-3+(M129-1)*0.006006006 -> -2.231231232 | P129: =[1]!XLSTAT_PDFNormal(O129,-0.201135496518942,1.01363139377986) -> 0.05296778071 | Q129: 129 | S129: =-2+(Q129-1)*0.0045045045 -> -1.423423424 | T129: =[1]!XLSTAT_PDFNormal(S129,0.287820352735161,1.05024622546205) -> 0.1007218214 | U129: 129 | W129: =-2+(U129-1)*0.0045045045 -> -1.423423424 | X129: =[1]!XLSTAT_PDFNormal(W129,0.287820352735161,1.05024622546205) -> 0.1007218214 | Y129: 129 | AA129: =-2+(Y129-1)*0.0045045045 -> -1.423423424 | AB129: =[1]!XLSTAT_PDFNormal(AA129,0.0946989758111516,0.952962709014027) -> 0.1176934639 | AC129: 129 | AE129: =-2+(AC129-1)*0.0045045045 -> -1.423423424 | AF129: =[1]!XLSTAT_PDFNormal(AE129,0.0946989758111516,0.952962709014027) -> 0.1176934639
A130: 130 | C130: -2.225225226 | D130: =[1]!XLSTAT_PDFNormal(C130,0.300943968727696,1.04241610265003) -> 0.02030552243 | E130: 130 | G130: -2.225225226 | H130: =[1]!XLSTAT_PDFNormal(G130,0.300943968727696,1.04241610265003) -> 0.02030552243 | I130: 130 | K130: -2.225225226 | L130: =[1]!XLSTAT_PDFNormal(K130,-0.201135496518942,1.01363139377986) -> 0.05359915468 | M130: 130 | O130: -2.225225226 | P130: =[1]!XLSTAT_PDFNormal(O130,-0.201135496518942,1.01363139377986) -> 0.05359915468 | Q130: 130 | S130: -1.41891892 | T130: =[1]!XLSTAT_PDFNormal(S130,0.287820352735161,1.05024622546205) -> 0.1014272363 | U130: 130 | W130: -1.41891892 | X130: =[1]!XLSTAT_PDFNormal(W130,0.287820352735161,1.05024622546205) -> 0.1014272363 | Y130: 130 | AA130: -1.41891892 | AB130: =[1]!XLSTAT_PDFNormal(AA130,0.0946989758111516,0.952962709014027) -> 0.1185817305 | AC130: 130 | AE130: -1.41891892 | AF130: =[1]!XLSTAT_PDFNormal(AE130,0.0946989758111516,0.952962709014027) -> 0.1185817305
A131: 131 | C131: -2.21921922 | D131: =[1]!XLSTAT_PDFNormal(C131,0.300943968727696,1.04241610265003) -> 0.0205906869 | E131: 131 | G131: -2.21921922 | H131: =[1]!XLSTAT_PDFNormal(G131,0.300943968727696,1.04241610265003) -> 0.0205906869 | I131: 131 | K131: -2.21921922 | L131: =[1]!XLSTAT_PDFNormal(K131,-0.201135496518942,1.01363139377986) -> 0.05423615043 | M131: 131 | O131: -2.21921922 | P131: =[1]!XLSTAT_PDFNormal(O131,-0.201135496518942,1.01363139377986) -> 0.05423615043 | Q131: 131 | S131: -1.414414415 | T131: =[1]!XLSTAT_PDFNormal(S131,0.287820352735161,1.05024622546205) -> 0.1021357128 | U131: 131 | W131: -1.414414415 | X131: =[1]!XLSTAT_PDFNormal(W131,0.287820352735161,1.05024622546205) -> 0.1021357128 | Y131: 131 | AA131: -1.414414415 | AB131: =[1]!XLSTAT_PDFNormal(AA131,0.0946989758111516,0.952962709014027) -> 0.1194740316 | AC131: 131 | AE131: -1.414414415 | AF131: =[1]!XLSTAT_PDFNormal(AE131,0.0946989758111516,0.952962709014027) -> 0.1194740316
A132: 132 | C132: -2.213213214 | D132: =[1]!XLSTAT_PDFNormal(C132,0.300943968727696,1.04241610265003) -> 0.02087916301 | E132: 132 | G132: -2.213213214 | H132: =[1]!XLSTAT_PDFNormal(G132,0.300943968727696,1.04241610265003) -> 0.02087916301 | I132: 132 | K132: -2.213213214 | L132: =[1]!XLSTAT_PDFNormal(K132,-0.201135496518942,1.01363139377986) -> 0.05487878976 | M132: 132 | O132: -2.213213214 | P132: =[1]!XLSTAT_PDFNormal(O132,-0.201135496518942,1.01363139377986) -> 0.05487878976 | Q132: 132 | S132: -1.409909911 | T132: =[1]!XLSTAT_PDFNormal(S132,0.287820352735161,1.05024622546205) -> 0.1028472462 | U132: 132 | W132: -1.409909911 | X132: =[1]!XLSTAT_PDFNormal(W132,0.287820352735161,1.05024622546205) -> 0.1028472462 | Y132: 132 | AA132: -1.409909911 | AB132: =[1]!XLSTAT_PDFNormal(AA132,0.0946989758111516,0.952962709014027) -> 0.1203703576 | AC132: 132 | AE132: -1.409909911 | AF132: =[1]!XLSTAT_PDFNormal(AE132,0.0946989758111516,0.952962709014027) -> 0.1203703576
A133: 133 | C133: -2.207207208 | D133: =[1]!XLSTAT_PDFNormal(C133,0.300943968727696,1.04241610265003) -> 0.02117097787 | E133: 133 | G133: -2.207207208 | H133: =[1]!XLSTAT_PDFNormal(G133,0.300943968727696,1.04241610265003) -> 0.02117097787 | I133: 133 | K133: -2.207207208 | L133: =[1]!XLSTAT_PDFNormal(K133,-0.201135496518942,1.01363139377986) -> 0.05552709417 | M133: 133 | O133: -2.207207208 | P133: =[1]!XLSTAT_PDFNormal(O133,-0.201135496518942,1.01363139377986) -> 0.05552709417 | Q133: 133 | S133: -1.405405406 | T133: =[1]!XLSTAT_PDFNormal(S133,0.287820352735161,1.05024622546205) -> 0.1035618313 | U133: 133 | W133: -1.405405406 | X133: =[1]!XLSTAT_PDFNormal(W133,0.287820352735161,1.05024622546205) -> 0.1035618313 | Y133: 133 | AA133: -1.405405406 | AB133: =[1]!XLSTAT_PDFNormal(AA133,0.0946989758111516,0.952962709014027) -> 0.1212706984 | AC133: 133 | AE133: -1.405405406 | AF133: =[1]!XLSTAT_PDFNormal(AE133,0.0946989758111516,0.952962709014027) -> 0.1212706984
A134: 134 | C134: -2.201201202 | D134: =[1]!XLSTAT_PDFNormal(C134,0.300943968727696,1.04241610265003) -> 0.02146615863 | E134: 134 | G134: -2.201201202 | H134: =[1]!XLSTAT_PDFNormal(G134,0.300943968727696,1.04241610265003) -> 0.02146615863 | I134: 134 | K134: -2.201201202 | L134: =[1]!XLSTAT_PDFNormal(K134,-0.201135496518942,1.01363139377986) -> 0.05618108479 | M134: 134 | O134: -2.201201202 | P134: =[1]!XLSTAT_PDFNormal(O134,-0.201135496518942,1.01363139377986) -> 0.05618108479 | Q134: 134 | S134: -1.400900902 | T134: =[1]!XLSTAT_PDFNormal(S134,0.287820352735161,1.05024622546205) -> 0.1042794631 | U134: 134 | W134: -1.400900902 | X134: =[1]!XLSTAT_PDFNormal(W134,0.287820352735161,1.05024622546205) -> 0.1042794631 | Y134: 134 | AA134: -1.400900902 | AB134: =[1]!XLSTAT_PDFNormal(AA134,0.0946989758111516,0.952962709014027) -> 0.1221750439 | AC134: 134 | AE134: -1.400900902 | AF134: =[1]!XLSTAT_PDFNormal(AE134,0.0946989758111516,0.952962709014027) -> 0.1221750439
A135: 135 | C135: -2.195195196 | D135: =[1]!XLSTAT_PDFNormal(C135,0.300943968727696,1.04241610265003) -> 0.0217647325 | E135: 135 | G135: -2.195195196 | H135: =[1]!XLSTAT_PDFNormal(G135,0.300943968727696,1.04241610265003) -> 0.0217647325 | I135: 135 | K135: -2.195195196 | L135: =[1]!XLSTAT_PDFNormal(K135,-0.201135496518942,1.01363139377986) -> 0.05684078239 | M135: 135 | O135: -2.195195196 | P135: =[1]!XLSTAT_PDFNormal(O135,-0.201135496518942,1.01363139377986) -> 0.05684078239 | Q135: 135 | S135: -1.396396397 | T135: =[1]!XLSTAT_PDFNormal(S135,0.287820352735161,1.05024622546205) -> 0.1050001362 | U135: 135 | W135: -1.396396397 | X135: =[1]!XLSTAT_PDFNormal(W135,0.287820352735161,1.05024622546205) -> 0.1050001362 | Y135: 135 | AA135: -1.396396397 | AB135: =[1]!XLSTAT_PDFNormal(AA135,0.0946989758111516,0.952962709014027) -> 0.1230833831 | AC135: 135 | AE135: -1.396396397 | AF135: =[1]!XLSTAT_PDFNormal(AE135,0.0946989758111516,0.952962709014027) -> 0.1230833831
A136: 136 | C136: -2.18918919 | D136: =[1]!XLSTAT_PDFNormal(C136,0.300943968727696,1.04241610265003) -> 0.02206672669 | E136: 136 | G136: -2.18918919 | H136: =[1]!XLSTAT_PDFNormal(G136,0.300943968727696,1.04241610265003) -> 0.02206672669 | I136: 136 | K136: -2.18918919 | L136: =[1]!XLSTAT_PDFNormal(K136,-0.201135496518942,1.01363139377986) -> 0.0575062074 | M136: 136 | O136: -2.18918919 | P136: =[1]!XLSTAT_PDFNormal(O136,-0.201135496518942,1.01363139377986) -> 0.0575062074 | Q136: 136 | S136: -1.391891892 | T136: =[1]!XLSTAT_PDFNormal(S136,0.287820352735161,1.05024622546205) -> 0.105723845 | U136: 136 | W136: -1.391891892 | X136: =[1]!XLSTAT_PDFNormal(W136,0.287820352735161,1.05024622546205) -> 0.105723845 | Y136: 136 | AA136: -1.391891892 | AB136: =[1]!XLSTAT_PDFNormal(AA136,0.0946989758111516,0.952962709014027) -> 0.1239957052 | AC136: 136 | AE136: -1.391891892 | AF136: =[1]!XLSTAT_PDFNormal(AE136,0.0946989758111516,0.952962709014027) -> 0.1239957052
A137: 137 | C137: -2.183183184 | D137: =[1]!XLSTAT_PDFNormal(C137,0.300943968727696,1.04241610265003) -> 0.02237216849 | E137: 137 | G137: -2.183183184 | H137: =[1]!XLSTAT_PDFNormal(G137,0.300943968727696,1.04241610265003) -> 0.02237216849 | I137: 137 | K137: -2.183183184 | L137: =[1]!XLSTAT_PDFNormal(K137,-0.201135496518942,1.01363139377986) -> 0.05817737988 | M137: 137 | O137: -2.183183184 | P137: =[1]!XLSTAT_PDFNormal(O137,-0.201135496518942,1.01363139377986) -> 0.05817737988 | Q137: 137 | S137: -1.387387388 | T137: =[1]!XLSTAT_PDFNormal(S137,0.287820352735161,1.05024622546205) -> 0.1064505837 | U137: 137 | W137: -1.387387388 | X137: =[1]!XLSTAT_PDFNormal(W137,0.287820352735161,1.05024622546205) -> 0.1064505837 | Y137: 137 | AA137: -1.387387388 | AB137: =[1]!XLSTAT_PDFNormal(AA137,0.0946989758111516,0.952962709014027) -> 0.1249119986 | AC137: 137 | AE137: -1.387387388 | AF137: =[1]!XLSTAT_PDFNormal(AE137,0.0946989758111516,0.952962709014027) -> 0.1249119986
A138: 138 | C138: -2.177177178 | D138: =[1]!XLSTAT_PDFNormal(C138,0.300943968727696,1.04241610265003) -> 0.0226810852 | E138: 138 | G138: -2.177177178 | H138: =[1]!XLSTAT_PDFNormal(G138,0.300943968727696,1.04241610265003) -> 0.0226810852 | I138: 138 | K138: -2.177177178 | L138: =[1]!XLSTAT_PDFNormal(K138,-0.201135496518942,1.01363139377986) -> 0.05885431949 | M138: 138 | O138: -2.177177178 | P138: =[1]!XLSTAT_PDFNormal(O138,-0.201135496518942,1.01363139377986) -> 0.05885431949 | Q138: 138 | S138: -1.382882883 | T138: =[1]!XLSTAT_PDFNormal(S138,0.287820352735161,1.05024622546205) -> 0.1071803463 | U138: 138 | W138: -1.382882883 | X138: =[1]!XLSTAT_PDFNormal(W138,0.287820352735161,1.05024622546205) -> 0.1071803463 | Y138: 138 | AA138: -1.382882883 | AB138: =[1]!XLSTAT_PDFNormal(AA138,0.0946989758111516,0.952962709014027) -> 0.1258322517 | AC138: 138 | AE138: -1.382882883 | AF138: =[1]!XLSTAT_PDFNormal(AE138,0.0946989758111516,0.952962709014027) -> 0.1258322517
A139: 139 | C139: -2.171171172 | D139: =[1]!XLSTAT_PDFNormal(C139,0.300943968727696,1.04241610265003) -> 0.02299350414 | E139: 139 | G139: -2.171171172 | H139: =[1]!XLSTAT_PDFNormal(G139,0.300943968727696,1.04241610265003) -> 0.02299350414 | I139: 139 | K139: -2.171171172 | L139: =[1]!XLSTAT_PDFNormal(K139,-0.201135496518942,1.01363139377986) -> 0.05953704554 | M139: 139 | O139: -2.171171172 | P139: =[1]!XLSTAT_PDFNormal(O139,-0.201135496518942,1.01363139377986) -> 0.05953704554 | Q139: 139 | S139: -1.378378379 | T139: =[1]!XLSTAT_PDFNormal(S139,0.287820352735161,1.05024622546205) -> 0.1079131266 | U139: 139 | W139: -1.378378379 | X139: =[1]!XLSTAT_PDFNormal(W139,0.287820352735161,1.05024622546205) -> 0.1079131266 | Y139: 139 | AA139: -1.378378379 | AB139: =[1]!XLSTAT_PDFNormal(AA139,0.0946989758111516,0.952962709014027) -> 0.1267564523 | AC139: 139 | AE139: -1.378378379 | AF139: =[1]!XLSTAT_PDFNormal(AE139,0.0946989758111516,0.952962709014027) -> 0.1267564523
A140: 140 | C140: -2.165165166 | D140: =[1]!XLSTAT_PDFNormal(C140,0.300943968727696,1.04241610265003) -> 0.02330945267 | E140: 140 | G140: -2.165165166 | H140: =[1]!XLSTAT_PDFNormal(G140,0.300943968727696,1.04241610265003) -> 0.02330945267 | I140: 140 | K140: -2.165165166 | L140: =[1]!XLSTAT_PDFNormal(K140,-0.201135496518942,1.01363139377986) -> 0.06022557693 | M140: 140 | O140: -2.165165166 | P140: =[1]!XLSTAT_PDFNormal(O140,-0.201135496518942,1.01363139377986) -> 0.06022557693 | Q140: 140 | S140: -1.373873875 | T140: =[1]!XLSTAT_PDFNormal(S140,0.287820352735161,1.05024622546205) -> 0.1086489182 | U140: 140 | W140: -1.373873875 | X140: =[1]!XLSTAT_PDFNormal(W140,0.287820352735161,1.05024622546205) -> 0.1086489182 | Y140: 140 | AA140: -1.373873875 | AB140: =[1]!XLSTAT_PDFNormal(AA140,0.0946989758111516,0.952962709014027) -> 0.1276845881 | AC140: 140 | AE140: -1.373873875 | AF140: =[1]!XLSTAT_PDFNormal(AE140,0.0946989758111516,0.952962709014027) -> 0.1276845881
A141: 141 | C141: -2.15915916 | D141: =[1]!XLSTAT_PDFNormal(C141,0.300943968727696,1.04241610265003) -> 0.02362895817 | E141: 141 | G141: -2.15915916 | H141: =[1]!XLSTAT_PDFNormal(G141,0.300943968727696,1.04241610265003) -> 0.02362895817 | I141: 141 | K141: -2.15915916 | L141: =[1]!XLSTAT_PDFNormal(K141,-0.201135496518942,1.01363139377986) -> 0.06091993218 | M141: 141 | O141: -2.15915916 | P141: =[1]!XLSTAT_PDFNormal(O141,-0.201135496518942,1.01363139377986) -> 0.06091993218 | Q141: 141 | S141: -1.36936937 | T141: =[1]!XLSTAT_PDFNormal(S141,0.287820352735161,1.05024622546205) -> 0.1093877143 | U141: 141 | W141: -1.36936937 | X141: =[1]!XLSTAT_PDFNormal(W141,0.287820352735161,1.05024622546205) -> 0.1093877143 | Y141: 141 | AA141: -1.36936937 | AB141: =[1]!XLSTAT_PDFNormal(AA141,0.0946989758111516,0.952962709014027) -> 0.128616646 | AC141: 141 | AE141: -1.36936937 | AF141: =[1]!XLSTAT_PDFNormal(AE141,0.0946989758111516,0.952962709014027) -> 0.128616646
A142: 142 | C142: -2.153153154 | D142: =[1]!XLSTAT_PDFNormal(C142,0.300943968727696,1.04241610265003) -> 0.02395204805 | E142: 142 | G142: -2.153153154 | H142: =[1]!XLSTAT_PDFNormal(G142,0.300943968727696,1.04241610265003) -> 0.02395204805 | I142: 142 | K142: -2.153153154 | L142: =[1]!XLSTAT_PDFNormal(K142,-0.201135496518942,1.01363139377986) -> 0.0616201294 | M142: 142 | O142: -2.153153154 | P142: =[1]!XLSTAT_PDFNormal(O142,-0.201135496518942,1.01363139377986) -> 0.0616201294 | Q142: 142 | S142: -1.364864865 | T142: =[1]!XLSTAT_PDFNormal(S142,0.287820352735161,1.05024622546205) -> 0.1101295083 | U142: 142 | W142: -1.364864865 | X142: =[1]!XLSTAT_PDFNormal(W142,0.287820352735161,1.05024622546205) -> 0.1101295083 | Y142: 142 | AA142: -1.364864865 | AB142: =[1]!XLSTAT_PDFNormal(AA142,0.0946989758111516,0.952962709014027) -> 0.1295526131 | AC142: 142 | AE142: -1.364864865 | AF142: =[1]!XLSTAT_PDFNormal(AE142,0.0946989758111516,0.952962709014027) -> 0.1295526131
A143: 143 | C143: -2.147147148 | D143: =[1]!XLSTAT_PDFNormal(C143,0.300943968727696,1.04241610265003) -> 0.0242787497 | E143: 143 | G143: -2.147147148 | H143: =[1]!XLSTAT_PDFNormal(G143,0.300943968727696,1.04241610265003) -> 0.0242787497 | I143: 143 | K143: -2.147147148 | L143: =[1]!XLSTAT_PDFNormal(K143,-0.201135496518942,1.01363139377986) -> 0.06232618628 | M143: 143 | O143: -2.147147148 | P143: =[1]!XLSTAT_PDFNormal(O143,-0.201135496518942,1.01363139377986) -> 0.06232618628 | Q143: 143 | S143: -1.360360361 | T143: =[1]!XLSTAT_PDFNormal(S143,0.287820352735161,1.05024622546205) -> 0.110874293 | U143: 143 | W143: -1.360360361 | X143: =[1]!XLSTAT_PDFNormal(W143,0.287820352735161,1.05024622546205) -> 0.110874293 | Y143: 143 | AA143: -1.360360361 | AB143: =[1]!XLSTAT_PDFNormal(AA143,0.0946989758111516,0.952962709014027) -> 0.1304924758 | AC143: 143 | AE143: -1.360360361 | AF143: =[1]!XLSTAT_PDFNormal(AE143,0.0946989758111516,0.952962709014027) -> 0.1304924758
A144: 144 | C144: -2.141141142 | D144: =[1]!XLSTAT_PDFNormal(C144,0.300943968727696,1.04241610265003) -> 0.02460909056 | E144: 144 | G144: -2.141141142 | H144: =[1]!XLSTAT_PDFNormal(G144,0.300943968727696,1.04241610265003) -> 0.02460909056 | I144: 144 | K144: -2.141141142 | L144: =[1]!XLSTAT_PDFNormal(K144,-0.201135496518942,1.01363139377986) -> 0.0630381201 | M144: 144 | O144: -2.141141142 | P144: =[1]!XLSTAT_PDFNormal(O144,-0.201135496518942,1.01363139377986) -> 0.0630381201 | Q144: 144 | S144: -1.355855856 | T144: =[1]!XLSTAT_PDFNormal(S144,0.287820352735161,1.05024622546205) -> 0.1116220612 | U144: 144 | W144: -1.355855856 | X144: =[1]!XLSTAT_PDFNormal(W144,0.287820352735161,1.05024622546205) -> 0.1116220612 | Y144: 144 | AA144: -1.355855856 | AB144: =[1]!XLSTAT_PDFNormal(AA144,0.0946989758111516,0.952962709014027) -> 0.1314362202 | AC144: 144 | AE144: -1.355855856 | AF144: =[1]!XLSTAT_PDFNormal(AE144,0.0946989758111516,0.952962709014027) -> 0.1314362202
A145: 145 | C145: -2.135135136 | D145: =[1]!XLSTAT_PDFNormal(C145,0.300943968727696,1.04241610265003) -> 0.02494309807 | E145: 145 | G145: -2.135135136 | H145: =[1]!XLSTAT_PDFNormal(G145,0.300943968727696,1.04241610265003) -> 0.02494309807 | I145: 145 | K145: -2.135135136 | L145: =[1]!XLSTAT_PDFNormal(K145,-0.201135496518942,1.01363139377986) -> 0.06375594773 | M145: 145 | O145: -2.135135136 | P145: =[1]!XLSTAT_PDFNormal(O145,-0.201135496518942,1.01363139377986) -> 0.06375594773 | Q145: 145 | S145: -1.351351352 | T145: =[1]!XLSTAT_PDFNormal(S145,0.287820352735161,1.05024622546205) -> 0.1123728054 | U145: 145 | W145: -1.351351352 | X145: =[1]!XLSTAT_PDFNormal(W145,0.287820352735161,1.05024622546205) -> 0.1123728054 | Y145: 145 | AA145: -1.351351352 | AB145: =[1]!XLSTAT_PDFNormal(AA145,0.0946989758111516,0.952962709014027) -> 0.132383832 | AC145: 145 | AE145: -1.351351352 | AF145: =[1]!XLSTAT_PDFNormal(AE145,0.0946989758111516,0.952962709014027) -> 0.132383832
A146: 146 | C146: -2.12912913 | D146: =[1]!XLSTAT_PDFNormal(C146,0.300943968727696,1.04241610265003) -> 0.02528079966 | E146: 146 | G146: -2.12912913 | H146: =[1]!XLSTAT_PDFNormal(G146,0.300943968727696,1.04241610265003) -> 0.02528079966 | I146: 146 | K146: -2.12912913 | L146: =[1]!XLSTAT_PDFNormal(K146,-0.201135496518942,1.01363139377986) -> 0.06447968558 | M146: 146 | O146: -2.12912913 | P146: =[1]!XLSTAT_PDFNormal(O146,-0.201135496518942,1.01363139377986) -> 0.06447968558 | Q146: 146 | S146: -1.346846847 | T146: =[1]!XLSTAT_PDFNormal(S146,0.287820352735161,1.05024622546205) -> 0.1131265179 | U146: 146 | W146: -1.346846847 | X146: =[1]!XLSTAT_PDFNormal(W146,0.287820352735161,1.05024622546205) -> 0.1131265179 | Y146: 146 | AA146: -1.346846847 | AB146: =[1]!XLSTAT_PDFNormal(AA146,0.0946989758111516,0.952962709014027) -> 0.1333352966 | AC146: 146 | AE146: -1.346846847 | AF146: =[1]!XLSTAT_PDFNormal(AE146,0.0946989758111516,0.952962709014027) -> 0.1333352966
A147: 147 | C147: -2.123123124 | D147: =[1]!XLSTAT_PDFNormal(C147,0.300943968727696,1.04241610265003) -> 0.02562222277 | E147: 147 | G147: -2.123123124 | H147: =[1]!XLSTAT_PDFNormal(G147,0.300943968727696,1.04241610265003) -> 0.02562222277 | I147: 147 | K147: -2.123123124 | L147: =[1]!XLSTAT_PDFNormal(K147,-0.201135496518942,1.01363139377986) -> 0.06520934964 | M147: 147 | O147: -2.123123124 | P147: =[1]!XLSTAT_PDFNormal(O147,-0.201135496518942,1.01363139377986) -> 0.06520934964 | Q147: 147 | S147: -1.342342343 | T147: =[1]!XLSTAT_PDFNormal(S147,0.287820352735161,1.05024622546205) -> 0.1138831908 | U147: 147 | W147: -1.342342343 | X147: =[1]!XLSTAT_PDFNormal(W147,0.287820352735161,1.05024622546205) -> 0.1138831908 | Y147: 147 | AA147: -1.342342343 | AB147: =[1]!XLSTAT_PDFNormal(AA147,0.0946989758111516,0.952962709014027) -> 0.134290599 | AC147: 147 | AE147: -1.342342343 | AF147: =[1]!XLSTAT_PDFNormal(AE147,0.0946989758111516,0.952962709014027) -> 0.134290599
A148: 148 | C148: -2.117117118 | D148: =[1]!XLSTAT_PDFNormal(C148,0.300943968727696,1.04241610265003) -> 0.02596739485 | E148: 148 | G148: -2.117117118 | H148: =[1]!XLSTAT_PDFNormal(G148,0.300943968727696,1.04241610265003) -> 0.02596739485 | I148: 148 | K148: -2.117117118 | L148: =[1]!XLSTAT_PDFNormal(K148,-0.201135496518942,1.01363139377986) -> 0.06594495546 | M148: 148 | O148: -2.117117118 | P148: =[1]!XLSTAT_PDFNormal(O148,-0.201135496518942,1.01363139377986) -> 0.06594495546 | Q148: 148 | S148: -1.337837839 | T148: =[1]!XLSTAT_PDFNormal(S148,0.287820352735161,1.05024622546205) -> 0.1146428159 | U148: 148 | W148: -1.337837839 | X148: =[1]!XLSTAT_PDFNormal(W148,0.287820352735161,1.05024622546205) -> 0.1146428159 | Y148: 148 | AA148: -1.337837839 | AB148: =[1]!XLSTAT_PDFNormal(AA148,0.0946989758111516,0.952962709014027) -> 0.135249724 | AC148: 148 | AE148: -1.337837839 | AF148: =[1]!XLSTAT_PDFNormal(AE148,0.0946989758111516,0.952962709014027) -> 0.135249724
A149: 149 | C149: -2.111111112 | D149: =[1]!XLSTAT_PDFNormal(C149,0.300943968727696,1.04241610265003) -> 0.02631634333 | E149: 149 | G149: -2.111111112 | H149: =[1]!XLSTAT_PDFNormal(G149,0.300943968727696,1.04241610265003) -> 0.02631634333 | I149: 149 | K149: -2.111111112 | L149: =[1]!XLSTAT_PDFNormal(K149,-0.201135496518942,1.01363139377986) -> 0.0666865181 | M149: 149 | O149: -2.111111112 | P149: =[1]!XLSTAT_PDFNormal(O149,-0.201135496518942,1.01363139377986) -> 0.0666865181 | Q149: 149 | S149: -1.333333334 | T149: =[1]!XLSTAT_PDFNormal(S149,0.287820352735161,1.05024622546205) -> 0.1154053849 | U149: 149 | W149: -1.333333334 | X149: =[1]!XLSTAT_PDFNormal(W149,0.287820352735161,1.05024622546205) -> 0.1154053849 | Y149: 149 | AA149: -1.333333334 | AB149: =[1]!XLSTAT_PDFNormal(AA149,0.0946989758111516,0.952962709014027) -> 0.1362126557 | AC149: 149 | AE149: -1.333333334 | AF149: =[1]!XLSTAT_PDFNormal(AE149,0.0946989758111516,0.952962709014027) -> 0.1362126557
A150: 150 | C150: -2.105105106 | D150: =[1]!XLSTAT_PDFNormal(C150,0.300943968727696,1.04241610265003) -> 0.02666909563 | E150: 150 | G150: -2.105105106 | H150: =[1]!XLSTAT_PDFNormal(G150,0.300943968727696,1.04241610265003) -> 0.02666909563 | I150: 150 | K150: -2.105105106 | L150: =[1]!XLSTAT_PDFNormal(K150,-0.201135496518942,1.01363139377986) -> 0.0674340522 | M150: 150 | O150: -2.105105106 | P150: =[1]!XLSTAT_PDFNormal(O150,-0.201135496518942,1.01363139377986) -> 0.0674340522 | Q150: 150 | S150: -1.328828829 | T150: =[1]!XLSTAT_PDFNormal(S150,0.287820352735161,1.05024622546205) -> 0.1161708892 | U150: 150 | W150: -1.328828829 | X150: =[1]!XLSTAT_PDFNormal(W150,0.287820352735161,1.05024622546205) -> 0.1161708892 | Y150: 150 | AA150: -1.328828829 | AB150: =[1]!XLSTAT_PDFNormal(AA150,0.0946989758111516,0.952962709014027) -> 0.1371793781 | AC150: 150 | AE150: -1.328828829 | AF150: =[1]!XLSTAT_PDFNormal(AE150,0.0946989758111516,0.952962709014027) -> 0.1371793781
A151: 151 | C151: -2.0990991 | D151: =[1]!XLSTAT_PDFNormal(C151,0.300943968727696,1.04241610265003) -> 0.02702567916 | E151: 151 | G151: -2.0990991 | H151: =[1]!XLSTAT_PDFNormal(G151,0.300943968727696,1.04241610265003) -> 0.02702567916 | I151: 151 | K151: -2.0990991 | L151: =[1]!XLSTAT_PDFNormal(K151,-0.201135496518942,1.01363139377986) -> 0.06818757192 | M151: 151 | O151: -2.0990991 | P151: =[1]!XLSTAT_PDFNormal(O151,-0.201135496518942,1.01363139377986) -> 0.06818757192 | Q151: 151 | S151: -1.324324325 | T151: =[1]!XLSTAT_PDFNormal(S151,0.287820352735161,1.05024622546205) -> 0.1169393201 | U151: 151 | W151: -1.324324325 | X151: =[1]!XLSTAT_PDFNormal(W151,0.287820352735161,1.05024622546205) -> 0.1169393201 | Y151: 151 | AA151: -1.324324325 | AB151: =[1]!XLSTAT_PDFNormal(AA151,0.0946989758111516,0.952962709014027) -> 0.1381498748 | AC151: 151 | AE151: -1.324324325 | AF151: =[1]!XLSTAT_PDFNormal(AE151,0.0946989758111516,0.952962709014027) -> 0.1381498748
A152: 152 | C152: -2.093093094 | D152: =[1]!XLSTAT_PDFNormal(C152,0.300943968727696,1.04241610265003) -> 0.02738612131 | E152: 152 | G152: -2.093093094 | H152: =[1]!XLSTAT_PDFNormal(G152,0.300943968727696,1.04241610265003) -> 0.02738612131 | I152: 152 | K152: -2.093093094 | L152: =[1]!XLSTAT_PDFNormal(K152,-0.201135496518942,1.01363139377986) -> 0.06894709093 | M152: 152 | O152: -2.093093094 | P152: =[1]!XLSTAT_PDFNormal(O152,-0.201135496518942,1.01363139377986) -> 0.06894709093 | Q152: 152 | S152: -1.319819821 | T152: =[1]!XLSTAT_PDFNormal(S152,0.287820352735161,1.05024622546205) -> 0.1177106686 | U152: 152 | W152: -1.319819821 | X152: =[1]!XLSTAT_PDFNormal(W152,0.287820352735161,1.05024622546205) -> 0.1177106686 | Y152: 152 | AA152: -1.319819821 | AB152: =[1]!XLSTAT_PDFNormal(AA152,0.0946989758111516,0.952962709014027) -> 0.139124129 | AC152: 152 | AE152: -1.319819821 | AF152: =[1]!XLSTAT_PDFNormal(AE152,0.0946989758111516,0.952962709014027) -> 0.139124129
A153: 153 | C153: -2.087087088 | D153: =[1]!XLSTAT_PDFNormal(C153,0.300943968727696,1.04241610265003) -> 0.02775044947 | E153: 153 | G153: -2.087087088 | H153: =[1]!XLSTAT_PDFNormal(G153,0.300943968727696,1.04241610265003) -> 0.02775044947 | I153: 153 | K153: -2.087087088 | L153: =[1]!XLSTAT_PDFNormal(K153,-0.201135496518942,1.01363139377986) -> 0.06971262243 | M153: 153 | O153: -2.087087088 | P153: =[1]!XLSTAT_PDFNormal(O153,-0.201135496518942,1.01363139377986) -> 0.06971262243 | Q153: 153 | S153: -1.315315316 | T153: =[1]!XLSTAT_PDFNormal(S153,0.287820352735161,1.05024622546205) -> 0.1184849253 | U153: 153 | W153: -1.315315316 | X153: =[1]!XLSTAT_PDFNormal(W153,0.287820352735161,1.05024622546205) -> 0.1184849253 | Y153: 153 | AA153: -1.315315316 | AB153: =[1]!XLSTAT_PDFNormal(AA153,0.0946989758111516,0.952962709014027) -> 0.1401021233 | AC153: 153 | AE153: -1.315315316 | AF153: =[1]!XLSTAT_PDFNormal(AE153,0.0946989758111516,0.952962709014027) -> 0.1401021233
A154: 154 | C154: -2.081081082 | D154: =[1]!XLSTAT_PDFNormal(C154,0.300943968727696,1.04241610265003) -> 0.02811869098 | E154: 154 | G154: -2.081081082 | H154: =[1]!XLSTAT_PDFNormal(G154,0.300943968727696,1.04241610265003) -> 0.02811869098 | I154: 154 | K154: -2.081081082 | L154: =[1]!XLSTAT_PDFNormal(K154,-0.201135496518942,1.01363139377986) -> 0.07048417912 | M154: 154 | O154: -2.081081082 | P154: =[1]!XLSTAT_PDFNormal(O154,-0.201135496518942,1.01363139377986) -> 0.07048417912 | Q154: 154 | S154: -1.310810812 | T154: =[1]!XLSTAT_PDFNormal(S154,0.287820352735161,1.05024622546205) -> 0.1192620809 | U154: 154 | W154: -1.310810812 | X154: =[1]!XLSTAT_PDFNormal(W154,0.287820352735161,1.05024622546205) -> 0.1192620809 | Y154: 154 | AA154: -1.310810812 | AB154: =[1]!XLSTAT_PDFNormal(AA154,0.0946989758111516,0.952962709014027) -> 0.1410838404 | AC154: 154 | AE154: -1.310810812 | AF154: =[1]!XLSTAT_PDFNormal(AE154,0.0946989758111516,0.952962709014027) -> 0.1410838404
A155: 155 | C155: -2.075075076 | D155: =[1]!XLSTAT_PDFNormal(C155,0.300943968727696,1.04241610265003) -> 0.02849087314 | E155: 155 | G155: -2.075075076 | H155: =[1]!XLSTAT_PDFNormal(G155,0.300943968727696,1.04241610265003) -> 0.02849087314 | I155: 155 | K155: -2.075075076 | L155: =[1]!XLSTAT_PDFNormal(K155,-0.201135496518942,1.01363139377986) -> 0.07126177322 | M155: 155 | O155: -2.075075076 | P155: =[1]!XLSTAT_PDFNormal(O155,-0.201135496518942,1.01363139377986) -> 0.07126177322 | Q155: 155 | S155: -1.306306307 | T155: =[1]!XLSTAT_PDFNormal(S155,0.287820352735161,1.05024622546205) -> 0.1200421257 | U155: 155 | W155: -1.306306307 | X155: =[1]!XLSTAT_PDFNormal(W155,0.287820352735161,1.05024622546205) -> 0.1200421257 | Y155: 155 | AA155: -1.306306307 | AB155: =[1]!XLSTAT_PDFNormal(AA155,0.0946989758111516,0.952962709014027) -> 0.1420692622 | AC155: 155 | AE155: -1.306306307 | AF155: =[1]!XLSTAT_PDFNormal(AE155,0.0946989758111516,0.952962709014027) -> 0.1420692622
A156: 156 | C156: -2.06906907 | D156: =[1]!XLSTAT_PDFNormal(C156,0.300943968727696,1.04241610265003) -> 0.02886702327 | E156: 156 | G156: -2.06906907 | H156: =[1]!XLSTAT_PDFNormal(G156,0.300943968727696,1.04241610265003) -> 0.02886702327 | I156: 156 | K156: -2.06906907 | L156: =[1]!XLSTAT_PDFNormal(K156,-0.201135496518942,1.01363139377986) -> 0.07204541643 | M156: 156 | O156: -2.06906907 | P156: =[1]!XLSTAT_PDFNormal(O156,-0.201135496518942,1.01363139377986) -> 0.07204541643 | Q156: 156 | S156: -1.301801802 | T156: =[1]!XLSTAT_PDFNormal(S156,0.287820352735161,1.05024622546205) -> 0.1208250498 | U156: 156 | W156: -1.301801802 | X156: =[1]!XLSTAT_PDFNormal(W156,0.287820352735161,1.05024622546205) -> 0.1208250498 | Y156: 156 | AA156: -1.301801802 | AB156: =[1]!XLSTAT_PDFNormal(AA156,0.0946989758111516,0.952962709014027) -> 0.1430583705 | AC156: 156 | AE156: -1.301801802 | AF156: =[1]!XLSTAT_PDFNormal(AE156,0.0946989758111516,0.952962709014027) -> 0.1430583705
A157: 157 | C157: -2.063063064 | D157: =[1]!XLSTAT_PDFNormal(C157,0.300943968727696,1.04241610265003) -> 0.02924716859 | E157: 157 | G157: -2.063063064 | H157: =[1]!XLSTAT_PDFNormal(G157,0.300943968727696,1.04241610265003) -> 0.02924716859 | I157: 157 | K157: -2.063063064 | L157: =[1]!XLSTAT_PDFNormal(K157,-0.201135496518942,1.01363139377986) -> 0.07283511995 | M157: 157 | O157: -2.063063064 | P157: =[1]!XLSTAT_PDFNormal(O157,-0.201135496518942,1.01363139377986) -> 0.07283511995 | Q157: 157 | S157: -1.297297298 | T157: =[1]!XLSTAT_PDFNormal(S157,0.287820352735161,1.05024622546205) -> 0.1216108431 | U157: 157 | W157: -1.297297298 | X157: =[1]!XLSTAT_PDFNormal(W157,0.287820352735161,1.05024622546205) -> 0.1216108431 | Y157: 157 | AA157: -1.297297298 | AB157: =[1]!XLSTAT_PDFNormal(AA157,0.0946989758111516,0.952962709014027) -> 0.1440511465 | AC157: 157 | AE157: -1.297297298 | AF157: =[1]!XLSTAT_PDFNormal(AE157,0.0946989758111516,0.952962709014027) -> 0.1440511465
A158: 158 | C158: -2.057057058 | D158: =[1]!XLSTAT_PDFNormal(C158,0.300943968727696,1.04241610265003) -> 0.02963133632 | E158: 158 | G158: -2.057057058 | H158: =[1]!XLSTAT_PDFNormal(G158,0.300943968727696,1.04241610265003) -> 0.02963133632 | I158: 158 | K158: -2.057057058 | L158: =[1]!XLSTAT_PDFNormal(K158,-0.201135496518942,1.01363139377986) -> 0.07363089445 | M158: 158 | O158: -2.057057058 | P158: =[1]!XLSTAT_PDFNormal(O158,-0.201135496518942,1.01363139377986) -> 0.07363089445 | Q158: 158 | S158: -1.292792793 | T158: =[1]!XLSTAT_PDFNormal(S158,0.287820352735161,1.05024622546205) -> 0.1223994952 | U158: 158 | W158: -1.292792793 | X158: =[1]!XLSTAT_PDFNormal(W158,0.287820352735161,1.05024622546205) -> 0.1223994952 | Y158: 158 | AA158: -1.292792793 | AB158: =[1]!XLSTAT_PDFNormal(AA158,0.0946989758111516,0.952962709014027) -> 0.1450475711 | AC158: 158 | AE158: -1.292792793 | AF158: =[1]!XLSTAT_PDFNormal(AE158,0.0946989758111516,0.952962709014027) -> 0.1450475711
A159: 159 | C159: -2.051051052 | D159: =[1]!XLSTAT_PDFNormal(C159,0.300943968727696,1.04241610265003) -> 0.03001955362 | E159: 159 | G159: -2.051051052 | H159: =[1]!XLSTAT_PDFNormal(G159,0.300943968727696,1.04241610265003) -> 0.03001955362 | I159: 159 | K159: -2.051051052 | L159: =[1]!XLSTAT_PDFNormal(K159,-0.201135496518942,1.01363139377986) -> 0.07443275008 | M159: 159 | O159: -2.051051052 | P159: =[1]!XLSTAT_PDFNormal(O159,-0.201135496518942,1.01363139377986) -> 0.07443275008 | Q159: 159 | S159: -1.288288289 | T159: =[1]!XLSTAT_PDFNormal(S159,0.287820352735161,1.05024622546205) -> 0.1231909956 | U159: 159 | W159: -1.288288289 | X159: =[1]!XLSTAT_PDFNormal(W159,0.287820352735161,1.05024622546205) -> 0.1231909956 | Y159: 159 | AA159: -1.288288289 | AB159: =[1]!XLSTAT_PDFNormal(AA159,0.0946989758111516,0.952962709014027) -> 0.1460476251 | AC159: 159 | AE159: -1.288288289 | AF159: =[1]!XLSTAT_PDFNormal(AE159,0.0946989758111516,0.952962709014027) -> 0.1460476251
A160: 160 | C160: -2.045045046 | D160: =[1]!XLSTAT_PDFNormal(C160,0.300943968727696,1.04241610265003) -> 0.0304118476 | E160: 160 | G160: -2.045045046 | H160: =[1]!XLSTAT_PDFNormal(G160,0.300943968727696,1.04241610265003) -> 0.0304118476 | I160: 160 | K160: -2.045045046 | L160: =[1]!XLSTAT_PDFNormal(K160,-0.201135496518942,1.01363139377986) -> 0.07524069645 | M160: 160 | O160: -2.045045046 | P160: =[1]!XLSTAT_PDFNormal(O160,-0.201135496518942,1.01363139377986) -> 0.07524069645 | Q160: 160 | S160: -1.283783784 | T160: =[1]!XLSTAT_PDFNormal(S160,0.287820352735161,1.05024622546205) -> 0.1239853334 | U160: 160 | W160: -1.283783784 | X160: =[1]!XLSTAT_PDFNormal(W160,0.287820352735161,1.05024622546205) -> 0.1239853334 | Y160: 160 | AA160: -1.283783784 | AB160: =[1]!XLSTAT_PDFNormal(AA160,0.0946989758111516,0.952962709014027) -> 0.1470512884 | AC160: 160 | AE160: -1.283783784 | AF160: =[1]!XLSTAT_PDFNormal(AE160,0.0946989758111516,0.952962709014027) -> 0.1470512884
A161: 161 | C161: -2.03903904 | D161: =[1]!XLSTAT_PDFNormal(C161,0.300943968727696,1.04241610265003) -> 0.03080824533 | E161: 161 | G161: -2.03903904 | H161: =[1]!XLSTAT_PDFNormal(G161,0.300943968727696,1.04241610265003) -> 0.03080824533 | I161: 161 | K161: -2.03903904 | L161: =[1]!XLSTAT_PDFNormal(K161,-0.201135496518942,1.01363139377986) -> 0.07605474263 | M161: 161 | O161: -2.03903904 | P161: =[1]!XLSTAT_PDFNormal(O161,-0.201135496518942,1.01363139377986) -> 0.07605474263 | Q161: 161 | S161: -1.27927928 | T161: =[1]!XLSTAT_PDFNormal(S161,0.287820352735161,1.05024622546205) -> 0.1247824977 | U161: 161 | W161: -1.27927928 | X161: =[1]!XLSTAT_PDFNormal(W161,0.287820352735161,1.05024622546205) -> 0.1247824977 | Y161: 161 | AA161: -1.27927928 | AB161: =[1]!XLSTAT_PDFNormal(AA161,0.0946989758111516,0.952962709014027) -> 0.148058541 | AC161: 161 | AE161: -1.27927928 | AF161: =[1]!XLSTAT_PDFNormal(AE161,0.0946989758111516,0.952962709014027) -> 0.148058541
A162: 162 | C162: -2.033033034 | D162: =[1]!XLSTAT_PDFNormal(C162,0.300943968727696,1.04241610265003) -> 0.0312087738 | E162: 162 | G162: -2.033033034 | H162: =[1]!XLSTAT_PDFNormal(G162,0.300943968727696,1.04241610265003) -> 0.0312087738 | I162: 162 | K162: -2.033033034 | L162: =[1]!XLSTAT_PDFNormal(K162,-0.201135496518942,1.01363139377986) -> 0.07687489717 | M162: 162 | O162: -2.033033034 | P162: =[1]!XLSTAT_PDFNormal(O162,-0.201135496518942,1.01363139377986) -> 0.07687489717 | Q162: 162 | S162: -1.274774776 | T162: =[1]!XLSTAT_PDFNormal(S162,0.287820352735161,1.05024622546205) -> 0.1255824772 | U162: 162 | W162: -1.274774776 | X162: =[1]!XLSTAT_PDFNormal(W162,0.287820352735161,1.05024622546205) -> 0.1255824772 | Y162: 162 | AA162: -1.274774776 | AB162: =[1]!XLSTAT_PDFNormal(AA162,0.0946989758111516,0.952962709014027) -> 0.1490693622 | AC162: 162 | AE162: -1.274774776 | AF162: =[1]!XLSTAT_PDFNormal(AE162,0.0946989758111516,0.952962709014027) -> 0.1490693622
A163: 163 | C163: -2.027027028 | D163: =[1]!XLSTAT_PDFNormal(C163,0.300943968727696,1.04241610265003) -> 0.03161345995 | E163: 163 | G163: -2.027027028 | H163: =[1]!XLSTAT_PDFNormal(G163,0.300943968727696,1.04241610265003) -> 0.03161345995 | I163: 163 | K163: -2.027027028 | L163: =[1]!XLSTAT_PDFNormal(K163,-0.201135496518942,1.01363139377986) -> 0.07770116802 | M163: 163 | O163: -2.027027028 | P163: =[1]!XLSTAT_PDFNormal(O163,-0.201135496518942,1.01363139377986) -> 0.07770116802 | Q163: 163 | S163: -1.270270271 | T163: =[1]!XLSTAT_PDFNormal(S163,0.287820352735161,1.05024622546205) -> 0.1263852604 | U163: 163 | W163: -1.270270271 | X163: =[1]!XLSTAT_PDFNormal(W163,0.287820352735161,1.05024622546205) -> 0.1263852604 | Y163: 163 | AA163: -1.270270271 | AB163: =[1]!XLSTAT_PDFNormal(AA163,0.0946989758111516,0.952962709014027) -> 0.1500837311 | AC163: 163 | AE163: -1.270270271 | AF163: =[1]!XLSTAT_PDFNormal(AE163,0.0946989758111516,0.952962709014027) -> 0.1500837311
A164: 164 | C164: -2.021021022 | D164: =[1]!XLSTAT_PDFNormal(C164,0.300943968727696,1.04241610265003) -> 0.03202233064 | E164: 164 | G164: -2.021021022 | H164: =[1]!XLSTAT_PDFNormal(G164,0.300943968727696,1.04241610265003) -> 0.03202233064 | I164: 164 | K164: -2.021021022 | L164: =[1]!XLSTAT_PDFNormal(K164,-0.201135496518942,1.01363139377986) -> 0.07853356261 | M164: 164 | O164: -2.021021022 | P164: =[1]!XLSTAT_PDFNormal(O164,-0.201135496518942,1.01363139377986) -> 0.07853356261 | Q164: 164 | S164: -1.265765766 | T164: =[1]!XLSTAT_PDFNormal(S164,0.287820352735161,1.05024622546205) -> 0.1271908356 | U164: 164 | W164: -1.265765766 | X164: =[1]!XLSTAT_PDFNormal(W164,0.287820352735161,1.05024622546205) -> 0.1271908356 | Y164: 164 | AA164: -1.265765766 | AB164: =[1]!XLSTAT_PDFNormal(AA164,0.0946989758111516,0.952962709014027) -> 0.1511016264 | AC164: 164 | AE164: -1.265765766 | AF164: =[1]!XLSTAT_PDFNormal(AE164,0.0946989758111516,0.952962709014027) -> 0.1511016264
A165: 165 | C165: -2.015015016 | D165: =[1]!XLSTAT_PDFNormal(C165,0.300943968727696,1.04241610265003) -> 0.0324354127 | E165: 165 | G165: -2.015015016 | H165: =[1]!XLSTAT_PDFNormal(G165,0.300943968727696,1.04241610265003) -> 0.0324354127 | I165: 165 | K165: -2.015015016 | L165: =[1]!XLSTAT_PDFNormal(K165,-0.201135496518942,1.01363139377986) -> 0.07937208776 | M165: 165 | O165: -2.015015016 | P165: =[1]!XLSTAT_PDFNormal(O165,-0.201135496518942,1.01363139377986) -> 0.07937208776 | Q165: 165 | S165: -1.261261262 | T165: =[1]!XLSTAT_PDFNormal(S165,0.287820352735161,1.05024622546205) -> 0.1279991909 | U165: 165 | W165: -1.261261262 | X165: =[1]!XLSTAT_PDFNormal(W165,0.287820352735161,1.05024622546205) -> 0.1279991909 | Y165: 165 | AA165: -1.261261262 | AB165: =[1]!XLSTAT_PDFNormal(AA165,0.0946989758111516,0.952962709014027) -> 0.1521230263 | AC165: 165 | AE165: -1.261261262 | AF165: =[1]!XLSTAT_PDFNormal(AE165,0.0946989758111516,0.952962709014027) -> 0.1521230263
A166: 166 | C166: -2.00900901 | D166: =[1]!XLSTAT_PDFNormal(C166,0.300943968727696,1.04241610265003) -> 0.03285273282 | E166: 166 | G166: -2.00900901 | H166: =[1]!XLSTAT_PDFNormal(G166,0.300943968727696,1.04241610265003) -> 0.03285273282 | I166: 166 | K166: -2.00900901 | L166: =[1]!XLSTAT_PDFNormal(K166,-0.201135496518942,1.01363139377986) -> 0.08021674976 | M166: 166 | O166: -2.00900901 | P166: =[1]!XLSTAT_PDFNormal(O166,-0.201135496518942,1.01363139377986) -> 0.08021674976 | Q166: 166 | S166: -1.256756758 | T166: =[1]!XLSTAT_PDFNormal(S166,0.287820352735161,1.05024622546205) -> 0.1288103141 | U166: 166 | W166: -1.256756758 | X166: =[1]!XLSTAT_PDFNormal(W166,0.287820352735161,1.05024622546205) -> 0.1288103141 | Y166: 166 | AA166: -1.256756758 | AB166: =[1]!XLSTAT_PDFNormal(AA166,0.0946989758111516,0.952962709014027) -> 0.1531479087 | AC166: 166 | AE166: -1.256756758 | AF166: =[1]!XLSTAT_PDFNormal(AE166,0.0946989758111516,0.952962709014027) -> 0.1531479087
A167: 167 | C167: -2.003003004 | D167: =[1]!XLSTAT_PDFNormal(C167,0.300943968727696,1.04241610265003) -> 0.03327431766 | E167: 167 | G167: -2.003003004 | H167: =[1]!XLSTAT_PDFNormal(G167,0.300943968727696,1.04241610265003) -> 0.03327431766 | I167: 167 | K167: -2.003003004 | L167: =[1]!XLSTAT_PDFNormal(K167,-0.201135496518942,1.01363139377986) -> 0.08106755427 | M167: 167 | O167: -2.003003004 | P167: =[1]!XLSTAT_PDFNormal(O167,-0.201135496518942,1.01363139377986) -> 0.08106755427 | Q167: 167 | S167: -1.252252253 | T167: =[1]!XLSTAT_PDFNormal(S167,0.287820352735161,1.05024622546205) -> 0.1296241929 | U167: 167 | W167: -1.252252253 | X167: =[1]!XLSTAT_PDFNormal(W167,0.287820352735161,1.05024622546205) -> 0.1296241929 | Y167: 167 | AA167: -1.252252253 | AB167: =[1]!XLSTAT_PDFNormal(AA167,0.0946989758111516,0.952962709014027) -> 0.1541762511 | AC167: 167 | AE167: -1.252252253 | AF167: =[1]!XLSTAT_PDFNormal(AE167,0.0946989758111516,0.952962709014027) -> 0.1541762511
A168: 168 | C168: -1.996996998 | D168: =[1]!XLSTAT_PDFNormal(C168,0.300943968727696,1.04241610265003) -> 0.03370019378 | E168: 168 | G168: -1.996996998 | H168: =[1]!XLSTAT_PDFNormal(G168,0.300943968727696,1.04241610265003) -> 0.03370019378 | I168: 168 | K168: -1.996996998 | L168: =[1]!XLSTAT_PDFNormal(K168,-0.201135496518942,1.01363139377986) -> 0.0819245064 | M168: 168 | O168: -1.996996998 | P168: =[1]!XLSTAT_PDFNormal(O168,-0.201135496518942,1.01363139377986) -> 0.0819245064 | Q168: 168 | S168: -1.247747749 | T168: =[1]!XLSTAT_PDFNormal(S168,0.287820352735161,1.05024622546205) -> 0.1304408145 | U168: 168 | W168: -1.247747749 | X168: =[1]!XLSTAT_PDFNormal(W168,0.287820352735161,1.05024622546205) -> 0.1304408145 | Y168: 168 | AA168: -1.247747749 | AB168: =[1]!XLSTAT_PDFNormal(AA168,0.0946989758111516,0.952962709014027) -> 0.1552080307 | AC168: 168 | AE168: -1.247747749 | AF168: =[1]!XLSTAT_PDFNormal(AE168,0.0946989758111516,0.952962709014027) -> 0.1552080307
A169: 169 | C169: -1.990990992 | D169: =[1]!XLSTAT_PDFNormal(C169,0.300943968727696,1.04241610265003) -> 0.03413038764 | E169: 169 | G169: -1.990990992 | H169: =[1]!XLSTAT_PDFNormal(G169,0.300943968727696,1.04241610265003) -> 0.03413038764 | I169: 169 | K169: -1.990990992 | L169: =[1]!XLSTAT_PDFNormal(K169,-0.201135496518942,1.01363139377986) -> 0.08278761064 | M169: 169 | O169: -1.990990992 | P169: =[1]!XLSTAT_PDFNormal(O169,-0.201135496518942,1.01363139377986) -> 0.08278761064 | Q169: 169 | S169: -1.243243244 | T169: =[1]!XLSTAT_PDFNormal(S169,0.287820352735161,1.05024622546205) -> 0.1312601661 | U169: 169 | W169: -1.243243244 | X169: =[1]!XLSTAT_PDFNormal(W169,0.287820352735161,1.05024622546205) -> 0.1312601661 | Y169: 169 | AA169: -1.243243244 | AB169: =[1]!XLSTAT_PDFNormal(AA169,0.0946989758111516,0.952962709014027) -> 0.1562432241 | AC169: 169 | AE169: -1.243243244 | AF169: =[1]!XLSTAT_PDFNormal(AE169,0.0946989758111516,0.952962709014027) -> 0.1562432241
A170: 170 | C170: -1.984984986 | D170: =[1]!XLSTAT_PDFNormal(C170,0.300943968727696,1.04241610265003) -> 0.03456492562 | E170: 170 | G170: -1.984984986 | H170: =[1]!XLSTAT_PDFNormal(G170,0.300943968727696,1.04241610265003) -> 0.03456492562 | I170: 170 | K170: -1.984984986 | L170: =[1]!XLSTAT_PDFNormal(K170,-0.201135496518942,1.01363139377986) -> 0.08365687088 | M170: 170 | O170: -1.984984986 | P170: =[1]!XLSTAT_PDFNormal(O170,-0.201135496518942,1.01363139377986) -> 0.08365687088 | Q170: 170 | S170: -1.23873874 | T170: =[1]!XLSTAT_PDFNormal(S170,0.287820352735161,1.05024622546205) -> 0.1320822347 | U170: 170 | W170: -1.23873874 | X170: =[1]!XLSTAT_PDFNormal(W170,0.287820352735161,1.05024622546205) -> 0.1320822347 | Y170: 170 | AA170: -1.23873874 | AB170: =[1]!XLSTAT_PDFNormal(AA170,0.0946989758111516,0.952962709014027) -> 0.1572818078 | AC170: 170 | AE170: -1.23873874 | AF170: =[1]!XLSTAT_PDFNormal(AE170,0.0946989758111516,0.952962709014027) -> 0.1572818078
A171: 171 | C171: -1.97897898 | D171: =[1]!XLSTAT_PDFNormal(C171,0.300943968727696,1.04241610265003) -> 0.035003834 | E171: 171 | G171: -1.97897898 | H171: =[1]!XLSTAT_PDFNormal(G171,0.300943968727696,1.04241610265003) -> 0.035003834 | I171: 171 | K171: -1.97897898 | L171: =[1]!XLSTAT_PDFNormal(K171,-0.201135496518942,1.01363139377986) -> 0.0845322904 | M171: 171 | O171: -1.97897898 | P171: =[1]!XLSTAT_PDFNormal(O171,-0.201135496518942,1.01363139377986) -> 0.0845322904 | Q171: 171 | S171: -1.234234235 | T171: =[1]!XLSTAT_PDFNormal(S171,0.287820352735161,1.05024622546205) -> 0.1329070069 | U171: 171 | W171: -1.234234235 | X171: =[1]!XLSTAT_PDFNormal(W171,0.287820352735161,1.05024622546205) -> 0.1329070069 | Y171: 171 | AA171: -1.234234235 | AB171: =[1]!XLSTAT_PDFNormal(AA171,0.0946989758111516,0.952962709014027) -> 0.1583237578 | AC171: 171 | AE171: -1.234234235 | AF171: =[1]!XLSTAT_PDFNormal(AE171,0.0946989758111516,0.952962709014027) -> 0.1583237578
A172: 172 | C172: -1.972972974 | D172: =[1]!XLSTAT_PDFNormal(C172,0.300943968727696,1.04241610265003) -> 0.03544713893 | E172: 172 | G172: -1.972972974 | H172: =[1]!XLSTAT_PDFNormal(G172,0.300943968727696,1.04241610265003) -> 0.03544713893 | I172: 172 | K172: -1.972972974 | L172: =[1]!XLSTAT_PDFNormal(K172,-0.201135496518942,1.01363139377986) -> 0.08541387186 | M172: 172 | O172: -1.972972974 | P172: =[1]!XLSTAT_PDFNormal(O172,-0.201135496518942,1.01363139377986) -> 0.08541387186 | Q172: 172 | S172: -1.22972973 | T172: =[1]!XLSTAT_PDFNormal(S172,0.287820352735161,1.05024622546205) -> 0.1337344691 | U172: 172 | W172: -1.22972973 | X172: =[1]!XLSTAT_PDFNormal(W172,0.287820352735161,1.05024622546205) -> 0.1337344691 | Y172: 172 | AA172: -1.22972973 | AB172: =[1]!XLSTAT_PDFNormal(AA172,0.0946989758111516,0.952962709014027) -> 0.1593690496 | AC172: 172 | AE172: -1.22972973 | AF172: =[1]!XLSTAT_PDFNormal(AE172,0.0946989758111516,0.952962709014027) -> 0.1593690496
A173: 173 | C173: -1.966966968 | D173: =[1]!XLSTAT_PDFNormal(C173,0.300943968727696,1.04241610265003) -> 0.0358948665 | E173: 173 | G173: -1.966966968 | H173: =[1]!XLSTAT_PDFNormal(G173,0.300943968727696,1.04241610265003) -> 0.0358948665 | I173: 173 | K173: -1.966966968 | L173: =[1]!XLSTAT_PDFNormal(K173,-0.201135496518942,1.01363139377986) -> 0.08630161732 | M173: 173 | O173: -1.966966968 | P173: =[1]!XLSTAT_PDFNormal(O173,-0.201135496518942,1.01363139377986) -> 0.08630161732 | Q173: 173 | S173: -1.225225226 | T173: =[1]!XLSTAT_PDFNormal(S173,0.287820352735161,1.05024622546205) -> 0.1345646076 | U173: 173 | W173: -1.225225226 | X173: =[1]!XLSTAT_PDFNormal(W173,0.287820352735161,1.05024622546205) -> 0.1345646076 | Y173: 173 | AA173: -1.225225226 | AB173: =[1]!XLSTAT_PDFNormal(AA173,0.0946989758111516,0.952962709014027) -> 0.1604176583 | AC173: 173 | AE173: -1.225225226 | AF173: =[1]!XLSTAT_PDFNormal(AE173,0.0946989758111516,0.952962709014027) -> 0.1604176583
A174: 174 | C174: -1.960960962 | D174: =[1]!XLSTAT_PDFNormal(C174,0.300943968727696,1.04241610265003) -> 0.03634704263 | E174: 174 | G174: -1.960960962 | H174: =[1]!XLSTAT_PDFNormal(G174,0.300943968727696,1.04241610265003) -> 0.03634704263 | I174: 174 | K174: -1.960960962 | L174: =[1]!XLSTAT_PDFNormal(K174,-0.201135496518942,1.01363139377986) -> 0.08719552816 | M174: 174 | O174: -1.960960962 | P174: =[1]!XLSTAT_PDFNormal(O174,-0.201135496518942,1.01363139377986) -> 0.08719552816 | Q174: 174 | S174: -1.220720721 | T174: =[1]!XLSTAT_PDFNormal(S174,0.287820352735161,1.05024622546205) -> 0.1353974084 | U174: 174 | W174: -1.220720721 | X174: =[1]!XLSTAT_PDFNormal(W174,0.287820352735161,1.05024622546205) -> 0.1353974084 | Y174: 174 | AA174: -1.220720721 | AB174: =[1]!XLSTAT_PDFNormal(AA174,0.0946989758111516,0.952962709014027) -> 0.1614695589 | AC174: 174 | AE174: -1.220720721 | AF174: =[1]!XLSTAT_PDFNormal(AE174,0.0946989758111516,0.952962709014027) -> 0.1614695589
A175: 175 | C175: -1.954954956 | D175: =[1]!XLSTAT_PDFNormal(C175,0.300943968727696,1.04241610265003) -> 0.03680369317 | E175: 175 | G175: -1.954954956 | H175: =[1]!XLSTAT_PDFNormal(G175,0.300943968727696,1.04241610265003) -> 0.03680369317 | I175: 175 | K175: -1.954954956 | L175: =[1]!XLSTAT_PDFNormal(K175,-0.201135496518942,1.01363139377986) -> 0.08809560517 | M175: 175 | O175: -1.954954956 | P175: =[1]!XLSTAT_PDFNormal(O175,-0.201135496518942,1.01363139377986) -> 0.08809560517 | Q175: 175 | S175: -1.216216217 | T175: =[1]!XLSTAT_PDFNormal(S175,0.287820352735161,1.05024622546205) -> 0.1362328572 | U175: 175 | W175: -1.216216217 | X175: =[1]!XLSTAT_PDFNormal(W175,0.287820352735161,1.05024622546205) -> 0.1362328572 | Y175: 175 | AA175: -1.216216217 | AB175: =[1]!XLSTAT_PDFNormal(AA175,0.0946989758111516,0.952962709014027) -> 0.1625247258 | AC175: 175 | AE175: -1.216216217 | AF175: =[1]!XLSTAT_PDFNormal(AE175,0.0946989758111516,0.952962709014027) -> 0.1625247258
A176: 176 | C176: -1.94894895 | D176: =[1]!XLSTAT_PDFNormal(C176,0.300943968727696,1.04241610265003) -> 0.03726484383 | E176: 176 | G176: -1.94894895 | H176: =[1]!XLSTAT_PDFNormal(G176,0.300943968727696,1.04241610265003) -> 0.03726484383 | I176: 176 | K176: -1.94894895 | L176: =[1]!XLSTAT_PDFNormal(K176,-0.201135496518942,1.01363139377986) -> 0.08900184847 | M176: 176 | O176: -1.94894895 | P176: =[1]!XLSTAT_PDFNormal(O176,-0.201135496518942,1.01363139377986) -> 0.08900184847 | Q176: 176 | S176: -1.211711713 | T176: =[1]!XLSTAT_PDFNormal(S176,0.287820352735161,1.05024622546205) -> 0.1370709394 | U176: 176 | W176: -1.211711713 | X176: =[1]!XLSTAT_PDFNormal(W176,0.287820352735161,1.05024622546205) -> 0.1370709394 | Y176: 176 | AA176: -1.211711713 | AB176: =[1]!XLSTAT_PDFNormal(AA176,0.0946989758111516,0.952962709014027) -> 0.1635831329 | AC176: 176 | AE176: -1.211711713 | AF176: =[1]!XLSTAT_PDFNormal(AE176,0.0946989758111516,0.952962709014027) -> 0.1635831329
A177: 177 | C177: -1.942942944 | D177: =[1]!XLSTAT_PDFNormal(C177,0.300943968727696,1.04241610265003) -> 0.03773052017 | E177: 177 | G177: -1.942942944 | H177: =[1]!XLSTAT_PDFNormal(G177,0.300943968727696,1.04241610265003) -> 0.03773052017 | I177: 177 | K177: -1.942942944 | L177: =[1]!XLSTAT_PDFNormal(K177,-0.201135496518942,1.01363139377986) -> 0.08991425752 | M177: 177 | O177: -1.942942944 | P177: =[1]!XLSTAT_PDFNormal(O177,-0.201135496518942,1.01363139377986) -> 0.08991425752 | Q177: 177 | S177: -1.207207208 | T177: =[1]!XLSTAT_PDFNormal(S177,0.287820352735161,1.05024622546205) -> 0.1379116404 | U177: 177 | W177: -1.207207208 | X177: =[1]!XLSTAT_PDFNormal(W177,0.287820352735161,1.05024622546205) -> 0.1379116404 | Y177: 177 | AA177: -1.207207208 | AB177: =[1]!XLSTAT_PDFNormal(AA177,0.0946989758111516,0.952962709014027) -> 0.164644754 | AC177: 177 | AE177: -1.207207208 | AF177: =[1]!XLSTAT_PDFNormal(AE177,0.0946989758111516,0.952962709014027) -> 0.164644754
A178: 178 | C178: -1.936936938 | D178: =[1]!XLSTAT_PDFNormal(C178,0.300943968727696,1.04241610265003) -> 0.03820074764 | E178: 178 | G178: -1.936936938 | H178: =[1]!XLSTAT_PDFNormal(G178,0.300943968727696,1.04241610265003) -> 0.03820074764 | I178: 178 | K178: -1.936936938 | L178: =[1]!XLSTAT_PDFNormal(K178,-0.201135496518942,1.01363139377986) -> 0.09083283115 | M178: 178 | O178: -1.936936938 | P178: =[1]!XLSTAT_PDFNormal(O178,-0.201135496518942,1.01363139377986) -> 0.09083283115 | Q178: 178 | S178: -1.202702703 | T178: =[1]!XLSTAT_PDFNormal(S178,0.287820352735161,1.05024622546205) -> 0.1387549452 | U178: 178 | W178: -1.202702703 | X178: =[1]!XLSTAT_PDFNormal(W178,0.287820352735161,1.05024622546205) -> 0.1387549452 | Y178: 178 | AA178: -1.202702703 | AB178: =[1]!XLSTAT_PDFNormal(AA178,0.0946989758111516,0.952962709014027) -> 0.1657095623 | AC178: 178 | AE178: -1.202702703 | AF178: =[1]!XLSTAT_PDFNormal(AE178,0.0946989758111516,0.952962709014027) -> 0.1657095623
A179: 179 | C179: -1.930930932 | D179: =[1]!XLSTAT_PDFNormal(C179,0.300943968727696,1.04241610265003) -> 0.03867555156 | E179: 179 | G179: -1.930930932 | H179: =[1]!XLSTAT_PDFNormal(G179,0.300943968727696,1.04241610265003) -> 0.03867555156 | I179: 179 | K179: -1.930930932 | L179: =[1]!XLSTAT_PDFNormal(K179,-0.201135496518942,1.01363139377986) -> 0.09175756751 | M179: 179 | O179: -1.930930932 | P179: =[1]!XLSTAT_PDFNormal(O179,-0.201135496518942,1.01363139377986) -> 0.09175756751 | Q179: 179 | S179: -1.198198199 | T179: =[1]!XLSTAT_PDFNormal(S179,0.287820352735161,1.05024622546205) -> 0.1396008386 | U179: 179 | W179: -1.198198199 | X179: =[1]!XLSTAT_PDFNormal(W179,0.287820352735161,1.05024622546205) -> 0.1396008386 | Y179: 179 | AA179: -1.198198199 | AB179: =[1]!XLSTAT_PDFNormal(AA179,0.0946989758111516,0.952962709014027) -> 0.1667775307 | AC179: 179 | AE179: -1.198198199 | AF179: =[1]!XLSTAT_PDFNormal(AE179,0.0946989758111516,0.952962709014027) -> 0.1667775307
A180: 180 | C180: -1.924924926 | D180: =[1]!XLSTAT_PDFNormal(C180,0.300943968727696,1.04241610265003) -> 0.03915495707 | E180: 180 | G180: -1.924924926 | H180: =[1]!XLSTAT_PDFNormal(G180,0.300943968727696,1.04241610265003) -> 0.03915495707 | I180: 180 | K180: -1.924924926 | L180: =[1]!XLSTAT_PDFNormal(K180,-0.201135496518942,1.01363139377986) -> 0.09268846407 | M180: 180 | O180: -1.924924926 | P180: =[1]!XLSTAT_PDFNormal(O180,-0.201135496518942,1.01363139377986) -> 0.09268846407 | Q180: 180 | S180: -1.193693694 | T180: =[1]!XLSTAT_PDFNormal(S180,0.287820352735161,1.05024622546205) -> 0.1404493052 | U180: 180 | W180: -1.193693694 | X180: =[1]!XLSTAT_PDFNormal(W180,0.287820352735161,1.05024622546205) -> 0.1404493052 | Y180: 180 | AA180: -1.193693694 | AB180: =[1]!XLSTAT_PDFNormal(AA180,0.0946989758111516,0.952962709014027) -> 0.1678486316 | AC180: 180 | AE180: -1.193693694 | AF180: =[1]!XLSTAT_PDFNormal(AE180,0.0946989758111516,0.952962709014027) -> 0.1678486316
A181: 181 | C181: -1.91891892 | D181: =[1]!XLSTAT_PDFNormal(C181,0.300943968727696,1.04241610265003) -> 0.03963898921 | E181: 181 | G181: -1.91891892 | H181: =[1]!XLSTAT_PDFNormal(G181,0.300943968727696,1.04241610265003) -> 0.03963898921 | I181: 181 | K181: -1.91891892 | L181: =[1]!XLSTAT_PDFNormal(K181,-0.201135496518942,1.01363139377986) -> 0.09362551763 | M181: 181 | O181: -1.91891892 | P181: =[1]!XLSTAT_PDFNormal(O181,-0.201135496518942,1.01363139377986) -> 0.09362551763 | Q181: 181 | S181: -1.18918919 | T181: =[1]!XLSTAT_PDFNormal(S181,0.287820352735161,1.05024622546205) -> 0.1413003293 | U181: 181 | W181: -1.18918919 | X181: =[1]!XLSTAT_PDFNormal(W181,0.287820352735161,1.05024622546205) -> 0.1413003293 | Y181: 181 | AA181: -1.18918919 | AB181: =[1]!XLSTAT_PDFNormal(AA181,0.0946989758111516,0.952962709014027) -> 0.1689228372 | AC181: 181 | AE181: -1.18918919 | AF181: =[1]!XLSTAT_PDFNormal(AE181,0.0946989758111516,0.952962709014027) -> 0.1689228372
A182: 182 | C182: -1.912912914 | D182: =[1]!XLSTAT_PDFNormal(C182,0.300943968727696,1.04241610265003) -> 0.04012767282 | E182: 182 | G182: -1.912912914 | H182: =[1]!XLSTAT_PDFNormal(G182,0.300943968727696,1.04241610265003) -> 0.04012767282 | I182: 182 | K182: -1.912912914 | L182: =[1]!XLSTAT_PDFNormal(K182,-0.201135496518942,1.01363139377986) -> 0.09456872432 | M182: 182 | O182: -1.912912914 | P182: =[1]!XLSTAT_PDFNormal(O182,-0.201135496518942,1.01363139377986) -> 0.09456872432 | Q182: 182 | S182: -1.184684685 | T182: =[1]!XLSTAT_PDFNormal(S182,0.287820352735161,1.05024622546205) -> 0.142153895 | U182: 182 | W182: -1.184684685 | X182: =[1]!XLSTAT_PDFNormal(W182,0.287820352735161,1.05024622546205) -> 0.142153895 | Y182: 182 | AA182: -1.184684685 | AB182: =[1]!XLSTAT_PDFNormal(AA182,0.0946989758111516,0.952962709014027) -> 0.1700001193 | AC182: 182 | AE182: -1.184684685 | AF182: =[1]!XLSTAT_PDFNormal(AE182,0.0946989758111516,0.952962709014027) -> 0.1700001193
A183: 183 | C183: -1.906906908 | D183: =[1]!XLSTAT_PDFNormal(C183,0.300943968727696,1.04241610265003) -> 0.0406210326 | E183: 183 | G183: -1.906906908 | H183: =[1]!XLSTAT_PDFNormal(G183,0.300943968727696,1.04241610265003) -> 0.0406210326 | I183: 183 | K183: -1.906906908 | L183: =[1]!XLSTAT_PDFNormal(K183,-0.201135496518942,1.01363139377986) -> 0.09551807956 | M183: 183 | O183: -1.906906908 | P183: =[1]!XLSTAT_PDFNormal(O183,-0.201135496518942,1.01363139377986) -> 0.09551807956 | Q183: 183 | S183: -1.180180181 | T183: =[1]!XLSTAT_PDFNormal(S183,0.287820352735161,1.05024622546205) -> 0.1430099861 | U183: 183 | W183: -1.180180181 | X183: =[1]!XLSTAT_PDFNormal(W183,0.287820352735161,1.05024622546205) -> 0.1430099861 | Y183: 183 | AA183: -1.180180181 | AB183: =[1]!XLSTAT_PDFNormal(AA183,0.0946989758111516,0.952962709014027) -> 0.171080449 | AC183: 183 | AE183: -1.180180181 | AF183: =[1]!XLSTAT_PDFNormal(AE183,0.0946989758111516,0.952962709014027) -> 0.171080449
A184: 184 | C184: -1.900900902 | D184: =[1]!XLSTAT_PDFNormal(C184,0.300943968727696,1.04241610265003) -> 0.0411190931 | E184: 184 | G184: -1.900900902 | H184: =[1]!XLSTAT_PDFNormal(G184,0.300943968727696,1.04241610265003) -> 0.0411190931 | I184: 184 | K184: -1.900900902 | L184: =[1]!XLSTAT_PDFNormal(K184,-0.201135496518942,1.01363139377986) -> 0.09647357807 | M184: 184 | O184: -1.900900902 | P184: =[1]!XLSTAT_PDFNormal(O184,-0.201135496518942,1.01363139377986) -> 0.09647357807 | Q184: 184 | S184: -1.175675677 | T184: =[1]!XLSTAT_PDFNormal(S184,0.287820352735161,1.05024622546205) -> 0.1438685863 | U184: 184 | W184: -1.175675677 | X184: =[1]!XLSTAT_PDFNormal(W184,0.287820352735161,1.05024622546205) -> 0.1438685863 | Y184: 184 | AA184: -1.175675677 | AB184: =[1]!XLSTAT_PDFNormal(AA184,0.0946989758111516,0.952962709014027) -> 0.1721637974 | AC184: 184 | AE184: -1.175675677 | AF184: =[1]!XLSTAT_PDFNormal(AE184,0.0946989758111516,0.952962709014027) -> 0.1721637974
A185: 185 | C185: -1.894894896 | D185: =[1]!XLSTAT_PDFNormal(C185,0.300943968727696,1.04241610265003) -> 0.04162187868 | E185: 185 | G185: -1.894894896 | H185: =[1]!XLSTAT_PDFNormal(G185,0.300943968727696,1.04241610265003) -> 0.04162187868 | I185: 185 | K185: -1.894894896 | L185: =[1]!XLSTAT_PDFNormal(K185,-0.201135496518942,1.01363139377986) -> 0.09743521389 | M185: 185 | O185: -1.894894896 | P185: =[1]!XLSTAT_PDFNormal(O185,-0.201135496518942,1.01363139377986) -> 0.09743521389 | Q185: 185 | S185: -1.171171172 | T185: =[1]!XLSTAT_PDFNormal(S185,0.287820352735161,1.05024622546205) -> 0.1447296789 | U185: 185 | W185: -1.171171172 | X185: =[1]!XLSTAT_PDFNormal(W185,0.287820352735161,1.05024622546205) -> 0.1447296789 | Y185: 185 | AA185: -1.171171172 | AB185: =[1]!XLSTAT_PDFNormal(AA185,0.0946989758111516,0.952962709014027) -> 0.173250135 | AC185: 185 | AE185: -1.171171172 | AF185: =[1]!XLSTAT_PDFNormal(AE185,0.0946989758111516,0.952962709014027) -> 0.173250135
A186: 186 | C186: -1.88888889 | D186: =[1]!XLSTAT_PDFNormal(C186,0.300943968727696,1.04241610265003) -> 0.04212941353 | E186: 186 | G186: -1.88888889 | H186: =[1]!XLSTAT_PDFNormal(G186,0.300943968727696,1.04241610265003) -> 0.04212941353 | I186: 186 | K186: -1.88888889 | L186: =[1]!XLSTAT_PDFNormal(K186,-0.201135496518942,1.01363139377986) -> 0.09840298034 | M186: 186 | O186: -1.88888889 | P186: =[1]!XLSTAT_PDFNormal(O186,-0.201135496518942,1.01363139377986) -> 0.09840298034 | Q186: 186 | S186: -1.166666667 | T186: =[1]!XLSTAT_PDFNormal(S186,0.287820352735161,1.05024622546205) -> 0.1455932472 | U186: 186 | W186: -1.166666667 | X186: =[1]!XLSTAT_PDFNormal(W186,0.287820352735161,1.05024622546205) -> 0.1455932472 | Y186: 186 | AA186: -1.166666667 | AB186: =[1]!XLSTAT_PDFNormal(AA186,0.0946989758111516,0.952962709014027) -> 0.1743394319 | AC186: 186 | AE186: -1.166666667 | AF186: =[1]!XLSTAT_PDFNormal(AE186,0.0946989758111516,0.952962709014027) -> 0.1743394319
A187: 187 | C187: -1.882882884 | D187: =[1]!XLSTAT_PDFNormal(C187,0.300943968727696,1.04241610265003) -> 0.04264172166 | E187: 187 | G187: -1.882882884 | H187: =[1]!XLSTAT_PDFNormal(G187,0.300943968727696,1.04241610265003) -> 0.04264172166 | I187: 187 | K187: -1.882882884 | L187: =[1]!XLSTAT_PDFNormal(K187,-0.201135496518942,1.01363139377986) -> 0.09937687001 | M187: 187 | O187: -1.882882884 | P187: =[1]!XLSTAT_PDFNormal(O187,-0.201135496518942,1.01363139377986) -> 0.09937687001 | Q187: 187 | S187: -1.162162163 | T187: =[1]!XLSTAT_PDFNormal(S187,0.287820352735161,1.05024622546205) -> 0.1464592739 | U187: 187 | W187: -1.162162163 | X187: =[1]!XLSTAT_PDFNormal(W187,0.287820352735161,1.05024622546205) -> 0.1464592739 | Y187: 187 | AA187: -1.162162163 | AB187: =[1]!XLSTAT_PDFNormal(AA187,0.0946989758111516,0.952962709014027) -> 0.1754316581 | AC187: 187 | AE187: -1.162162163 | AF187: =[1]!XLSTAT_PDFNormal(AE187,0.0946989758111516,0.952962709014027) -> 0.1754316581
A188: 188 | C188: -1.876876878 | D188: =[1]!XLSTAT_PDFNormal(C188,0.300943968727696,1.04241610265003) -> 0.0431588269 | E188: 188 | G188: -1.876876878 | H188: =[1]!XLSTAT_PDFNormal(G188,0.300943968727696,1.04241610265003) -> 0.0431588269 | I188: 188 | K188: -1.876876878 | L188: =[1]!XLSTAT_PDFNormal(K188,-0.201135496518942,1.01363139377986) -> 0.1003568748 | M188: 188 | O188: -1.876876878 | P188: =[1]!XLSTAT_PDFNormal(O188,-0.201135496518942,1.01363139377986) -> 0.1003568748 | Q188: 188 | S188: -1.157657659 | T188: =[1]!XLSTAT_PDFNormal(S188,0.287820352735161,1.05024622546205) -> 0.1473277417 | U188: 188 | W188: -1.157657659 | X188: =[1]!XLSTAT_PDFNormal(W188,0.287820352735161,1.05024622546205) -> 0.1473277417 | Y188: 188 | AA188: -1.157657659 | AB188: =[1]!XLSTAT_PDFNormal(AA188,0.0946989758111516,0.952962709014027) -> 0.1765267827 | AC188: 188 | AE188: -1.157657659 | AF188: =[1]!XLSTAT_PDFNormal(AE188,0.0946989758111516,0.952962709014027) -> 0.1765267827
A189: 189 | C189: -1.870870872 | D189: =[1]!XLSTAT_PDFNormal(C189,0.300943968727696,1.04241610265003) -> 0.04368075288 | E189: 189 | G189: -1.870870872 | H189: =[1]!XLSTAT_PDFNormal(G189,0.300943968727696,1.04241610265003) -> 0.04368075288 | I189: 189 | K189: -1.870870872 | L189: =[1]!XLSTAT_PDFNormal(K189,-0.201135496518942,1.01363139377986) -> 0.1013429858 | M189: 189 | O189: -1.870870872 | P189: =[1]!XLSTAT_PDFNormal(O189,-0.201135496518942,1.01363139377986) -> 0.1013429858 | Q189: 189 | S189: -1.153153154 | T189: =[1]!XLSTAT_PDFNormal(S189,0.287820352735161,1.05024622546205) -> 0.1481986332 | U189: 189 | W189: -1.153153154 | X189: =[1]!XLSTAT_PDFNormal(W189,0.287820352735161,1.05024622546205) -> 0.1481986332 | Y189: 189 | AA189: -1.153153154 | AB189: =[1]!XLSTAT_PDFNormal(AA189,0.0946989758111516,0.952962709014027) -> 0.1776247749 | AC189: 189 | AE189: -1.153153154 | AF189: =[1]!XLSTAT_PDFNormal(AE189,0.0946989758111516,0.952962709014027) -> 0.1776247749
A190: 190 | C190: -1.864864866 | D190: =[1]!XLSTAT_PDFNormal(C190,0.300943968727696,1.04241610265003) -> 0.04420752304 | E190: 190 | G190: -1.864864866 | H190: =[1]!XLSTAT_PDFNormal(G190,0.300943968727696,1.04241610265003) -> 0.04420752304 | I190: 190 | K190: -1.864864866 | L190: =[1]!XLSTAT_PDFNormal(K190,-0.201135496518942,1.01363139377986) -> 0.1023351935 | M190: 190 | O190: -1.864864866 | P190: =[1]!XLSTAT_PDFNormal(O190,-0.201135496518942,1.01363139377986) -> 0.1023351935 | Q190: 190 | S190: -1.14864865 | T190: =[1]!XLSTAT_PDFNormal(S190,0.287820352735161,1.05024622546205) -> 0.1490719304 | U190: 190 | W190: -1.14864865 | X190: =[1]!XLSTAT_PDFNormal(W190,0.287820352735161,1.05024622546205) -> 0.1490719304 | Y190: 190 | AA190: -1.14864865 | AB190: =[1]!XLSTAT_PDFNormal(AA190,0.0946989758111516,0.952962709014027) -> 0.1787256033 | AC190: 190 | AE190: -1.14864865 | AF190: =[1]!XLSTAT_PDFNormal(AE190,0.0946989758111516,0.952962709014027) -> 0.1787256033
A191: 191 | C191: -1.85885886 | D191: =[1]!XLSTAT_PDFNormal(C191,0.300943968727696,1.04241610265003) -> 0.0447391606 | E191: 191 | G191: -1.85885886 | H191: =[1]!XLSTAT_PDFNormal(G191,0.300943968727696,1.04241610265003) -> 0.0447391606 | I191: 191 | K191: -1.85885886 | L191: =[1]!XLSTAT_PDFNormal(K191,-0.201135496518942,1.01363139377986) -> 0.1033334876 | M191: 191 | O191: -1.85885886 | P191: =[1]!XLSTAT_PDFNormal(O191,-0.201135496518942,1.01363139377986) -> 0.1033334876 | Q191: 191 | S191: -1.144144145 | T191: =[1]!XLSTAT_PDFNormal(S191,0.287820352735161,1.05024622546205) -> 0.1499476154 | U191: 191 | W191: -1.144144145 | X191: =[1]!XLSTAT_PDFNormal(W191,0.287820352735161,1.05024622546205) -> 0.1499476154 | Y191: 191 | AA191: -1.144144145 | AB191: =[1]!XLSTAT_PDFNormal(AA191,0.0946989758111516,0.952962709014027) -> 0.1798292361 | AC191: 191 | AE191: -1.144144145 | AF191: =[1]!XLSTAT_PDFNormal(AE191,0.0946989758111516,0.952962709014027) -> 0.1798292361
A192: 192 | C192: -1.852852854 | D192: =[1]!XLSTAT_PDFNormal(C192,0.300943968727696,1.04241610265003) -> 0.04527568861 | E192: 192 | G192: -1.852852854 | H192: =[1]!XLSTAT_PDFNormal(G192,0.300943968727696,1.04241610265003) -> 0.04527568861 | I192: 192 | K192: -1.852852854 | L192: =[1]!XLSTAT_PDFNormal(K192,-0.201135496518942,1.01363139377986) -> 0.104337857 | M192: 192 | O192: -1.852852854 | P192: =[1]!XLSTAT_PDFNormal(O192,-0.201135496518942,1.01363139377986) -> 0.104337857 | Q192: 192 | S192: -1.13963964 | T192: =[1]!XLSTAT_PDFNormal(S192,0.287820352735161,1.05024622546205) -> 0.1508256698 | U192: 192 | W192: -1.13963964 | X192: =[1]!XLSTAT_PDFNormal(W192,0.287820352735161,1.05024622546205) -> 0.1508256698 | Y192: 192 | AA192: -1.13963964 | AB192: =[1]!XLSTAT_PDFNormal(AA192,0.0946989758111516,0.952962709014027) -> 0.1809356411 | AC192: 192 | AE192: -1.13963964 | AF192: =[1]!XLSTAT_PDFNormal(AE192,0.0946989758111516,0.952962709014027) -> 0.1809356411
